Workbook

Sheet Pivot 3,5-16 (hidden)
A3: Radetiketter | B3: Summa av 0 Godkänd | C3: Summa av 2 Underkänd Med Efterk | D3: Summa av 3 Körförbud | E3: Summa av 6 Underkänd Utan Efterk | F3: Summa av U Underkänd Fle | G3: Summa av Utfall
A4: 1 Stockholms län | B4: 315 | C4: 265 | D4: 3 | E4: 199 | F4: 0 | G4: 782
A5: 3 Uppsala län | B5: 94 | C5: 93 | D5: 2 | E5: 63 | F5: 0 | G5: 252
A6: 4 Södermanlands län | B6: 60 | C6: 86 | D6: 0 | E6: 30 | F6: 0 | G6: 176
A7: 5 Östergötlands län | B7: 120 | C7: 108 | D7: 1 | E7: 84 | F7: 0 | G7: 313
A8: 6 Jönköpings län | B8: 270 | C8: 209 | D8: 1 | E8: 166 | F8: 0 | G8: 646
A9: 7 Kronobergs län | B9: 90 | C9: 162 | D9: 1 | E9: 74 | F9: 0 | G9: 327
A10: 8 Kalmar län | B10: 107 | C10: 84 | D10: 0 | E10: 43 | F10: 0 | G10: 234
A11: 9 Gotlands län | B11: 105 | C11: 58 | D11: 1 | E11: 35 | F11: 0 | G11: 199
A12: 10 Blekinge län | B12: 24 | C12: 24 | D12: 0 | E12: 28 | F12: 0 | G12: 76
A13: 12 Skåne län | B13: 343 | C13: 321 | D13: 1 | E13: 187 | F13: 0 | G13: 852
A14: 13 Hallands län | B14: 174 | C14: 125 | D14: 3 | E14: 49 | F14: 0 | G14: 351
A15: 14 Västra Götalands län | B15: 385 | C15: 428 | D15: 5 | E15: 223 | F15: 0 | G15: 1041
A16: 17 Värmlands län | B16: 63 | C16: 78 | D16: 4 | E16: 52 | F16: 0 | G16: 197
A17: 18 Örebro län | B17: 154 | C17: 146 | D17: 0 | E17: 69 | F17: 0 | G17: 369
A18: 19 Västmanlands län | B18: 94 | C18: 121 | D18: 1 | E18: 67 | F18: 0 | G18: 283
A19: 20 Dalarna län | B19: 225 | C19: 169 | D19: 2 | E19: 95 | F19: 0 | G19: 491
A20: 21 Gävleborgs län | B20: 173 | C20: 194 | D20: 2 | E20: 92 | F20: 0 | G20: 461
A21: 22 Västernorrlands län | B21: 168 | C21: 169 | D21: 3 | E21: 94 | F21: 0 | G21: 434
A22: 23 Jämtlands län | B22: 63 | C22: 48 | D22: 1 | E22: 25 | F22: 0 | G22: 137
A23: 24 Västerbottens län | B23: 68 | C23: 48 | D23: 1 | E23: 41 | F23: 0 | G23: 158
A24: 25 Norrbottens län | B24: 111 | C24: 103 | D24: 1 | E24: 100 | F24: 0 | G24: 315
A25: Totalsumma | B25: 3206 | C25: 3039 | D25: 33 | E25: 1816 | F25: 0 | G25: 8094

Sheet Utdata 3,5-16
A1: Kontrollbesiktning tunga lastbilar 3,5-16 ton, 2013
A2: Län | B2: Summa av 0 Godkänd | C2: Summa av 2 Underkänd Med Efterk | D2: Summa av 3 Körförbud | E2: Summa av 6 Underkänd Utan Efterk | F2: Summa av U Underkänd Fle | G2: Antal besiktade | H2: Andel underkända | I2: Andel underkända med efterkontroll | J2: Andel körförbud
A3: 1 Stockholms län | B3: 315 | C3: 265 | D3: 3 | E3: 199 | F3: 0 | G3: 782 | H3: =(C3+D3+E3+F3)/G3 -> 0.5971867008 | I3: =C3/G3 -> 0.3388746803 | J3: =D3/G3 -> 0.003836317136
A4: 3 Uppsala län | B4: 94 | C4: 93 | D4: 2 | E4: 63 | F4: 0 | G4: 252 | H4: =(C4+D4+E4+F4)/G4 -> 0.626984127 | I4: =C4/G4 -> 0.369047619 | J4: =D4/G4 -> 0.007936507937
A5: 4 Södermanlands län | B5: 60 | C5: 86 | D5: 0 | E5: 30 | F5: 0 | G5: 176 | H5: 0.6590909091 | I5: 0.4886363636 | J5: 0
A6: 5 Östergötlands län | B6: 120 | C6: 108 | D6: 1 | E6: 84 | F6: 0 | G6: 313 | H6: 0.6166134185 | I6: 0.3450479233 | J6: 0.003194888179
A7: 6 Jönköpings län | B7: 270 | C7: 209 | D7: 1 | E7: 166 | F7: 0 | G7: 646 | H7: 0.5820433437 | I7: 0.3235294118 | J7: 0.001547987616
A8: 7 Kronobergs län | B8: 90 | C8: 162 | D8: 1 | E8: 74 | F8: 0 | G8: 327 | H8: 0.7247706422 | I8: 0.495412844 | J8: 0.003058103976
A9: 8 Kalmar län | B9: 107 | C9: 84 | D9: 0 | E9: 43 | F9: 0 | G9: 234 | H9: 0.5427350427 | I9: 0.358974359 | J9: 0
A10: 9 Gotlands län | B10: 105 | C10: 58 | D10: 1 | E10: 35 | F10: 0 | G10: 199 | H10: 0.472361809 | I10: 0.2914572864 | J10: 0.005025125628
A11: 10 Blekinge län | B11: 24 | C11: 24 | D11: 0 | E11: 28 | F11: 0 | G11: 76 | H11: 0.6842105263 | I11: 0.3157894737 | J11: 0
A12: 12 Skåne län | B12: 343 | C12: 321 | D12: 1 | E12: 187 | F12: 0 | G12: 852 | H12: 0.5974178404 | I12: 0.3767605634 | J12: 0.00117370892
A13: 13 Hallands län | B13: 174 | C13: 125 | D13: 3 | E13: 49 | F13: 0 | G13: 351 | H13: 0.5042735043 | I13: 0.3561253561 | J13: 0.008547008547
A14: 14 Västra Götalands län | B14: 385 | C14: 428 | D14: 5 | E14: 223 | F14: 0 | G14: 1041 | H14: 0.6301633045 | I14: 0.4111431316 | J14: 0.004803073967
A15: 17 Värmlands län | B15: 63 | C15: 78 | D15: 4 | E15: 52 | F15: 0 | G15: 197 | H15: 0.6802030457 | I15: 0.3959390863 | J15: 0.02030456853
A16: 18 Örebro län | B16: 154 | C16: 146 | D16: 0 | E16: 69 | F16: 0 | G16: 369 | H16: 0.5826558266 | I16: 0.3956639566 | J16: 0
A17: 19 Västmanlands län | B17: 94 | C17: 121 | D17: 1 | E17: 67 | F17: 0 | G17: 283 | H17: 0.667844523 | I17: 0.4275618375 | J17: 0.003533568905
A18: 20 Dalarna län | B18: 225 | C18: 169 | D18: 2 | E18: 95 | F18: 0 | G18: 491 | H18: 0.5417515275 | I18: 0.3441955193 | J18: 0.004073319756
A19: 21 Gävleborgs län | B19: 173 | C19: 194 | D19: 2 | E19: 92 | F19: 0 | G19: 461 | H19: 0.6247288503 | I19: 0.420824295 | J19: 0.004338394794
A20: 22 Västernorrlands län | B20: 168 | C20: 169 | D20: 3 | E20: 94 | F20: 0 | G20: 434 | H20: 0.6129032258 | I20: 0.3894009217 | J20: 0.006912442396
A21: 23 Jämtlands län | B21: 63 | C21: 48 | D21: 1 | E21: 25 | F21: 0 | G21: 137 | H21: 0.5401459854 | I21: 0.3503649635 | J21: 0.007299270073
A22: 24 Västerbottens län | B22: 68 | C22: 48 | D22: 1 | E22: 41 | F22: 0 | G22: 158 | H22: 0.5696202532 | I22: 0.3037974684 | J22: 0.006329113924
A23: 25 Norrbottens län | B23: 111 | C23: 103 | D23: 1 | E23: 100 | F23: 0 | G23: 315 | H23: 0.6476190476 | I23: 0.326984127 | J23: 0.003174603175
A24: Totalt riket | B24: 3206 | C24: 3039 | D24: 33 | E24: 1816 | F24: 0 | G24: 8094 | H24: 0.6039041265 | I24: 0.3754633062 | J24: 0.004077094144

Sheet Utfall_3,5-16 (hidden)
A2: Stn | B2: Län | C2: 0 Godkänd | D2: 2 Underkänd Med Efterk | E2: 3 Körförbud | F2: 6 Underkänd Utan Efterk | G2: U Underkänd Fle | H2: Utfall
A3: 0418 Sollentuna | B3: 1 Stockholms län | C3: 145 | D3: 118 | E3: 1 | F3: 105 | G3: 0 | H3: 369
A4: 0317 Gävle-Sörby Urfjäll | B4: 21 Gävleborgs län | C4: 122 | D4: 147 | E4: 1 | F4: 53 | G4: 0 | H4: 323
A5: 0876 Jönköping-Torsvik | B5: 6 Jönköpings län | C5: 137 | D5: 89 | E5: 0 | F5: 97 | G5: 0 | H5: 323
A6: 0536 Norrköping-Herstadberg | B6: 5 Östergötlands län | C6: 99 | D6: 92 | E6: 1 | F6: 75 | G6: 0 | H6: 267
A7: 0523 Västerås-Tunbytorp | B7: 19 Västmanlands län | C7: 87 | D7: 113 | E7: 1 | F7: 64 | G7: 0 | H7: 265
A8: 0873 Växjö | B8: 7 Kronobergs län | C8: 56 | D8: 121 | E8: 0 | F8: 56 | G8: 0 | H8: 233
A9: 0415 Nacka | B9: 1 Stockholms län | C9: 97 | D9: 73 | E9: 1 | F9: 41 | G9: 0 | H9: 212
A10: 0952 Helsingborg-Berga | B10: 12 Skåne län | C10: 72 | D10: 78 | E10: 0 | F10: 61 | G10: 0 | H10: 211
A11: 0423 Södertälje-Moraberg | B11: 1 Stockholms län | C11: 73 | D11: 74 | E11: 1 | F11: 53 | G11: 0 | H11: 201
A12: 0429 Visby | B12: 9 Gotlands län | C12: 105 | D12: 58 | E12: 1 | F12: 35 | G12: 0 | H12: 199
A13: 0427 Uppsala-Fyrislund | B13: 3 Uppsala län | C13: 74 | D13: 67 | E13: 2 | F13: 52 | G13: 0 | H13: 195
A14: 0225 Sundsvall-Nacksta | B14: 22 Västernorrlands län | C14: 69 | D14: 81 | E14: 1 | F14: 37 | G14: 0 | H14: 188
A15: 0234 Örnsköldsvik | B15: 22 Västernorrlands län | C15: 65 | D15: 67 | E15: 2 | F15: 41 | G15: 0 | H15: 175
A16: 0315 Falun | B16: 20 Dalarna län | C16: 84 | D16: 42 | E16: 0 | F16: 39 | G16: 0 | H16: 165
A17: 0515 Hallsberg | B17: 18 Örebro län | C17: 77 | D17: 57 | E17: 0 | F17: 29 | G17: 0 | H17: 163
A18: 0729 Varberg | B18: 13 Hallands län | C18: 66 | D18: 68 | E18: 2 | F18: 22 | G18: 0 | H18: 158
A19: 0714 Göteborg-Aröd | B19: 14 Västra Götalands län | C19: 50 | D19: 61 | E19: 1 | F19: 41 | G19: 0 | H19: 153
A20: 0323 Mora | B20: 20 Dalarna län | C20: 73 | D20: 50 | E20: 0 | F20: 23 | G20: 0 | H20: 146
A21: 0320 Ljusdal | B21: 21 Gävleborgs län | C21: 51 | D21: 47 | E21: 1 | F21: 39 | G21: 0 | H21: 138
A22: 0329 Hedemora | B22: 20 Dalarna län | C22: 43 | D22: 57 | E22: 2 | F22: 29 | G22: 0 | H22: 131
A23: 0869 Vetlanda | B23: 6 Jönköpings län | C23: 65 | D23: 26 | E23: 0 | F23: 30 | G23: 0 | H23: 121
A24: 0713 Falkenberg | B24: 13 Hallands län | C24: 66 | D24: 34 | E24: 1 | F24: 19 | G24: 0 | H24: 120
A25: 0951 Eslöv | B25: 12 Skåne län | C25: 48 | D25: 44 | E25: 0 | F25: 26 | G25: 0 | H25: 118
A26: 0620 Skara | B26: 14 Västra Götalands län | C26: 63 | D26: 38 | E26: 1 | F26: 14 | G26: 0 | H26: 116
A27: 0611 Arvika | B27: 17 Värmlands län | C27: 41 | D27: 38 | E27: 1 | F27: 34 | G27: 0 | H27: 114
A28: 0525 Örebro-Lillån | B28: 18 Örebro län | C28: 46 | D28: 45 | E28: 0 | F28: 22 | G28: 0 | H28: 113
A29: 0870 Vimmerby | B29: 8 Kalmar län | C29: 64 | D29: 31 | E29: 0 | F29: 16 | G29: 0 | H29: 111
A30: 0721 Lysekil | B30: 14 Västra Götalands län | C30: 36 | D30: 41 | E30: 0 | F30: 28 | G30: 0 | H30: 105
A31: 0967 Helsingborg-Ättekulla | B31: 12 Skåne län | C31: 33 | D31: 42 | E31: 0 | F31: 23 | G31: 0 | H31: 98
A32: 0114 Gällivare | B32: 25 Norrbottens län | C32: 29 | D32: 31 | E32: 1 | F32: 33 | G32: 0 | H32: 94
A33: 0861 Nässjö | B33: 6 Jönköpings län | C33: 39 | D33: 38 | E33: 0 | F33: 16 | G33: 0 | H33: 93
A34: 0522 Strängnäs | B34: 4 Södermanlands län | C34: 25 | D34: 52 | E34: 0 | F34: 15 | G34: 0 | H34: 92
A35: 0863 Oskarshamn | B35: 8 Kalmar län | C35: 31 | D35: 42 | E35: 0 | F35: 19 | G35: 0 | H35: 92
A36: 0629 Alingsås | B36: 14 Västra Götalands län | C36: 26 | D36: 48 | E36: 0 | F36: 15 | G36: 0 | H36: 89
A37: 0961 Simrishamn | B37: 12 Skåne län | C37: 38 | D37: 37 | E37: 0 | F37: 14 | G37: 0 | H37: 89
A38: 0224 Strömsund | B38: 23 Jämtlands län | C38: 43 | D38: 24 | E38: 1 | F38: 11 | G38: 0 | H38: 79
A39: 0535 Lindesberg | B39: 18 Örebro län | C39: 28 | D39: 37 | E39: 0 | F39: 14 | G39: 0 | H39: 79
A40: 0859 Markaryd | B40: 7 Kronobergs län | C40: 30 | D40: 33 | E40: 1 | F40: 15 | G40: 0 | H40: 79
A41: 0871 Värnamo | B41: 6 Jönköpings län | C41: 24 | D41: 37 | E41: 1 | F41: 17 | G41: 0 | H41: 79
A42: 0634 Vänersborg | B42: 14 Västra Götalands län | C42: 28 | D42: 39 | E42: 0 | F42: 10 | G42: 0 | H42: 77
A43: 0237 Vilhelmina-Ekorrbacken | B43: 24 Västerbottens län | C43: 31 | D43: 19 | E43: 1 | F43: 23 | G43: 0 | H43: 74
A44: 0625 Tidaholm | B44: 14 Västra Götalands län | C44: 31 | D44: 31 | E44: 0 | F44: 10 | G44: 0 | H44: 72
A45: 0231 Ånge | B45: 22 Västernorrlands län | C45: 34 | D45: 21 | E45: 0 | F45: 16 | G45: 0 | H45: 71
A46: 0217 Lycksele | B46: 24 Västerbottens län | C46: 26 | D46: 25 | E46: 0 | F46: 17 | G46: 0 | H46: 68
A47: 0538 Katrineholm-Österleden | B47: 4 Södermanlands län | C47: 31 | D47: 23 | E47: 0 | F47: 11 | G47: 0 | H47: 65
A48: 0856 Karlshamn | B48: 10 Blekinge län | C48: 21 | D48: 20 | E48: 0 | F48: 24 | G48: 0 | H48: 65
A49: 0125 Övertorneå | B49: 25 Norrbottens län | C49: 14 | D49: 30 | E49: 0 | F49: 19 | G49: 0 | H49: 63
A50: 0112 Arvidsjaur | B50: 25 Norrbottens län | C50: 25 | D50: 16 | E50: 0 | F50: 19 | G50: 0 | H50: 60
A51: 0226 Sveg | B51: 23 Jämtlands län | C51: 20 | D51: 24 | E51: 0 | F51: 14 | G51: 0 | H51: 58
A52: 0732 Göteborg-Torslanda | B52: 14 Västra Götalands län | C52: 22 | D52: 20 | E52: 1 | F52: 15 | G52: 0 | H52: 58
A53: 0428 Östhammar | B53: 3 Uppsala län | C53: 20 | D53: 26 | E53: 0 | F53: 11 | G53: 0 | H53: 57
A54: 0311 Avesta | B54: 20 Dalarna län | C54: 25 | D54: 20 | E54: 0 | F54: 4 | G54: 0 | H54: 49
A55: 0123 Älvsbyn | B55: 25 Norrbottens län | C55: 22 | D55: 9 | E55: 0 | F55: 16 | G55: 0 | H55: 47
A56: 0615 Hagfors | B56: 17 Värmlands län | C56: 12 | D56: 25 | E56: 2 | F56: 8 | G56: 0 | H56: 47
A57: 0116 Jokkmokk | B57: 25 Norrbottens län | C57: 14 | D57: 5 | E57: 0 | F57: 8 | G57: 0 | H57: 27
A58: 0115 Haparanda | B58: 25 Norrbottens län | C58: 6 | D58: 12 | E58: 0 | F58: 5 | G58: 0 | H58: 23
A59: 0222 Sorsele | B59: 24 Västerbottens län | C59: 10 | D59: 4 | E59: 0 | F59: 1 | G59: 0 | H59: 15
A60: 0854 Jönköping-Gamla flygfältet | B60: 6 Jönköpings län | C60: 1 | D60: 6 | E60: 0 | F60: 1 | G60: 0 | H60: 8
A61: 0121 Pajala | B61: 25 Norrbottens län | C61: 1 | D61: 0 | E61: 0 | F61: 0 | G61: 0 | H61: 1
A62: 0228 Tärnaby | B62: 24 Västerbottens län | C62: 1 | D62: 0 | E62: 0 | F62: 0 | G62: 0 | H62: 1
A63: 0511 Arboga | B63: 19 Västmanlands län | C63: 7 | D63: 8 | E63: 0 | F63: 3 | G63: 0 | H63: 18
A64: 0512 Eskilstuna | B64: 4 Södermanlands län | C64: 4 | D64: 11 | E64: 0 | F64: 4 | G64: 0 | H64: 19
A65: 0516 Karlskoga | B65: 18 Örebro län | C65: 3 | D65: 7 | E65: 0 | F65: 4 | G65: 0 | H65: 14
A66: 0526 Finspång | B66: 5 Östergötlands län | C66: 5 | D66: 3 | E66: 0 | F66: 2 | G66: 0 | H66: 10
A67: 0529 Motala | B67: 5 Östergötlands län | C67: 7 | D67: 9 | E67: 0 | F67: 3 | G67: 0 | H67: 19
A68: 0530 Mjölby | B68: 5 Östergötlands län | C68: 7 | D68: 4 | E68: 0 | F68: 4 | G68: 0 | H68: 15
A69: 0533 Åtvidaberg | B69: 5 Östergötlands län | C69: 2 | D69: 0 | E69: 0 | F69: 0 | G69: 0 | H69: 2
A70: 0613 Falköping | B70: 14 Västra Götalands län | C70: 8 | D70: 3 | E70: 0 | F70: 2 | G70: 0 | H70: 13
A71: 0616 Karlstad-Våxnäs | B71: 17 Värmlands län | C71: 10 | D71: 15 | E71: 1 | F71: 10 | G71: 0 | H71: 36
A72: 0618 Lidköping | B72: 14 Västra Götalands län | C72: 5 | D72: 3 | E72: 0 | F72: 1 | G72: 0 | H72: 9
A73: 0627 Vara | B73: 14 Västra Götalands län | C73: 7 | D73: 5 | E73: 1 | F73: 7 | G73: 0 | H73: 20
A74: 0630 Borås-Ramnaslätt | B74: 14 Västra Götalands län | C74: 18 | D74: 26 | E74: 0 | F74: 8 | G74: 0 | H74: 52
A75: 0631 Kinna | B75: 14 Västra Götalands län | C75: 6 | D75: 5 | E75: 0 | F75: 6 | G75: 0 | H75: 17
A76: 0632 Trollhättan | B76: 14 Västra Götalands län | C76: 5 | D76: 9 | E76: 0 | F76: 3 | G76: 0 | H76: 17
A77: 0715 Göteborg-Sisjön | B77: 14 Västra Götalands län | C77: 11 | D77: 13 | E77: 0 | F77: 11 | G77: 0 | H77: 35
A78: 0716 Göteborg-Tagene | B78: 14 Västra Götalands län | C78: 21 | D78: 28 | E78: 1 | F78: 18 | G78: 0 | H78: 68
A79: 0717 Halmstad-Sannarp | B79: 13 Hallands län | C79: 28 | D79: 14 | E79: 0 | F79: 4 | G79: 0 | H79: 46
A80: 0719 Kungsbacka | B80: 13 Hallands län | C80: 14 | D80: 9 | E80: 0 | F80: 4 | G80: 0 | H80: 27
A81: 0722 Mölndal | B81: 14 Västra Götalands län | C81: 6 | D81: 14 | E81: 0 | F81: 10 | G81: 0 | H81: 30
A82: 0723 Partille | B82: 14 Västra Götalands län | C82: 19 | D82: 15 | E82: 0 | F82: 8 | G82: 0 | H82: 42
A83: 0724 Stenungsund | B83: 14 Västra Götalands län | C83: 8 | D83: 13 | E83: 0 | F83: 6 | G83: 0 | H83: 27
A84: 0727 Uddevalla | B84: 14 Västra Götalands län | C84: 15 | D84: 16 | E84: 0 | F84: 10 | G84: 0 | H84: 41
A85: 0730 Ängelholm | B85: 12 Skåne län | C85: 10 | D85: 14 | E85: 0 | F85: 5 | G85: 0 | H85: 29
A86: 0851 Borgholm | B86: 8 Kalmar län | C86: 2 | D86: 1 | E86: 0 | F86: 0 | G86: 0 | H86: 3
A87: 0853 Gislaved | B87: 6 Jönköpings län | C87: 1 | D87: 3 | E87: 0 | F87: 1 | G87: 0 | H87: 5
A88: 0860 Nybro | B88: 8 Kalmar län | C88: 7 | D88: 6 | E88: 0 | F88: 6 | G88: 0 | H88: 19
A89: 0862 Olofström | B89: 10 Blekinge län | C89: 2 | D89: 2 | E89: 0 | F89: 2 | G89: 0 | H89: 6
A90: 0866 Sölvesborg | B90: 10 Blekinge län | C90: 1 | D90: 2 | E90: 0 | F90: 2 | G90: 0 | H90: 5
A91: 0868 Tranås | B91: 6 Jönköpings län | C91: 3 | D91: 10 | E91: 0 | F91: 4 | G91: 0 | H91: 17
A92: 0872 Västervik | B92: 8 Kalmar län | C92: 3 | D92: 4 | E92: 0 | F92: 2 | G92: 0 | H92: 9
A93: 0875 Älmhult | B93: 7 Kronobergs län | C93: 4 | D93: 8 | E93: 0 | F93: 3 | G93: 0 | H93: 15
A94: 0953 Hässleholm | B94: 12 Skåne län | C94: 6 | D94: 9 | E94: 0 | F94: 3 | G94: 0 | H94: 18
A95: 0954 Hörby | B95: 12 Skåne län | C95: 0 | D95: 2 | E95: 0 | F95: 0 | G95: 0 | H95: 2
A96: 0955 Klippan | B96: 12 Skåne län | C96: 9 | D96: 3 | E96: 0 | F96: 4 | G96: 0 | H96: 16
A97: 0956 Kristianstad-Hammar | B97: 12 Skåne län | C97: 36 | D97: 15 | E97: 0 | F97: 10 | G97: 0 | H97: 61
A98: 0957 Landskrona | B98: 12 Skåne län | C98: 5 | D98: 4 | E98: 0 | F98: 3 | G98: 0 | H98: 12
A99: 0960 Malmö-Valdemarsro | B99: 12 Skåne län | C99: 31 | D99: 45 | E99: 0 | F99: 25 | G99: 0 | H99: 101
A100: 0963 Trelleborg | B100: 12 Skåne län | C100: 17 | D100: 4 | E100: 0 | F100: 4 | G100: 0 | H100: 25
A101: 0964 Ystad | B101: 12 Skåne län | C101: 26 | D101: 5 | E101: 0 | F101: 2 | G101: 0 | H101: 33
A102: 0968 Lomma | B102: 12 Skåne län | C102: 12 | D102: 19 | E102: 1 | F102: 7 | G102: 0 | H102: 39

Sheet Pivot över 16 ton (hidden)
A3: Radetiketter | B3: Summa av 0 Godkänd | C3: Summa av 2 Underkänd Med Efterk | D3: Summa av 3 Körförbud | E3: Summa av 6 Underkänd Utan Efterk | F3: Summa av U Underkänd Fle | G3: Summa av Utfall
A4: 1 Stockholms län | B4: 653 | C4: 1036 | D4: 7 | E4: 503 | F4: 0 | G4: 2199
A5: 3 Uppsala län | B5: 169 | C5: 292 | D5: 17 | E5: 126 | F5: 0 | G5: 604
A6: 4 Södermanlands län | B6: 160 | C6: 326 | D6: 6 | E6: 123 | F6: 0 | G6: 615
A7: 5 Östergötlands län | B7: 355 | C7: 420 | D7: 6 | E7: 181 | F7: 1 | G7: 963
A8: 6 Jönköpings län | B8: 818 | C8: 1104 | D8: 13 | E8: 593 | F8: 0 | G8: 2528
A9: 7 Kronobergs län | B9: 330 | C9: 556 | D9: 5 | E9: 224 | F9: 0 | G9: 1115
A10: 8 Kalmar län | B10: 337 | C10: 331 | D10: 6 | E10: 144 | F10: 0 | G10: 818
A11: 9 Gotlands län | B11: 182 | C11: 187 | D11: 2 | E11: 85 | F11: 0 | G11: 456
A12: 10 Blekinge län | B12: 123 | C12: 136 | D12: 3 | E12: 72 | F12: 0 | G12: 334
A13: 12 Skåne län | B13: 1301 | C13: 1503 | D13: 8 | E13: 753 | F13: 0 | G13: 3565
A14: 13 Hallands län | B14: 651 | C14: 605 | D14: 6 | E14: 223 | F14: 0 | G14: 1485
A15: 14 Västra Götalands län | B15: 1317 | C15: 1529 | D15: 26 | E15: 655 | F15: 1 | G15: 3528
A16: 17 Värmlands län | B16: 224 | C16: 282 | D16: 5 | E16: 132 | F16: 0 | G16: 643
A17: 18 Örebro län | B17: 317 | C17: 440 | D17: 9 | E17: 154 | F17: 0 | G17: 920
A18: 19 Västmanlands län | B18: 267 | C18: 527 | D18: 8 | E18: 208 | F18: 0 | G18: 1010
A19: 20 Dalarna län | B19: 427 | C19: 539 | D19: 11 | E19: 226 | F19: 0 | G19: 1203
A20: 21 Gävleborgs län | B20: 303 | C20: 689 | D20: 10 | E20: 195 | F20: 0 | G20: 1197
A21: 22 Västernorrlands län | B21: 371 | C21: 764 | D21: 13 | E21: 318 | F21: 0 | G21: 1466
A22: 23 Jämtlands län | B22: 93 | C22: 148 | D22: 1 | E22: 59 | F22: 0 | G22: 301
A23: 24 Västerbottens län | B23: 165 | C23: 243 | D23: 2 | E23: 102 | F23: 0 | G23: 512
A24: 25 Norrbottens län | B24: 260 | C24: 408 | D24: 5 | E24: 223 | F24: 0 | G24: 896
A25: Totalsumma | B25: 8823 | C25: 12065 | D25: 169 | E25: 5299 | F25: 2 | G25: 26358

Sheet Utdata över 16 ton
A1: Kontrollbesiktning tunga lastbilar > 16 ton, 2013
A2: Län | B2: Summa av 0 Godkänd | C2: Summa av 2 Underkänd Med Efterk | D2: Summa av 3 Körförbud | E2: Summa av 6 Underkänd Utan Efterk | F2: Summa av U Underkänd Fle | G2: Antal besiktade | H2: Andel underkända | I2: Andel underkända med efterkontroll | J2: Andel körförbud
A3: 1 Stockholms län | B3: 653 | C3: 1036 | D3: 7 | E3: 503 | F3: 0 | G3: 2199 | H3: =(C3+D3+E3+F3)/G3 -> 0.7030468395 | I3: =C3/G3 -> 0.4711232378 | J3: =D3/G3 -> 0.003183265121
A4: 3 Uppsala län | B4: 169 | C4: 292 | D4: 17 | E4: 126 | F4: 0 | G4: 604 | H4: =(C4+D4+E4+F4)/G4 -> 0.7201986755 | I4: =C4/G4 -> 0.4834437086 | J4: =D4/G4 -> 0.02814569536
A5: 4 Södermanlands län | B5: 160 | C5: 326 | D5: 6 | E5: 123 | F5: 0 | G5: 615 | H5: 0.7398373984 | I5: 0.5300813008 | J5: 0.009756097561
A6: 5 Östergötlands län | B6: 355 | C6: 420 | D6: 6 | E6: 181 | F6: 1 | G6: 963 | H6: 0.6313603323 | I6: 0.4361370717 | J6: 0.006230529595
A7: 6 Jönköpings län | B7: 818 | C7: 1104 | D7: 13 | E7: 593 | F7: 0 | G7: 2528 | H7: 0.6764240506 | I7: 0.4367088608 | J7: 0.005142405063
A8: 7 Kronobergs län | B8: 330 | C8: 556 | D8: 5 | E8: 224 | F8: 0 | G8: 1115 | H8: 0.7040358744 | I8: 0.4986547085 | J8: 0.004484304933
A9: 8 Kalmar län | B9: 337 | C9: 331 | D9: 6 | E9: 144 | F9: 0 | G9: 818 | H9: 0.5880195599 | I9: 0.4046454768 | J9: 0.007334963325
A10: 9 Gotlands län | B10: 182 | C10: 187 | D10: 2 | E10: 85 | F10: 0 | G10: 456 | H10: 0.600877193 | I10: 0.4100877193 | J10: 0.004385964912
A11: 10 Blekinge län | B11: 123 | C11: 136 | D11: 3 | E11: 72 | F11: 0 | G11: 334 | H11: 0.6317365269 | I11: 0.4071856287 | J11: 0.008982035928
A12: 12 Skåne län | B12: 1301 | C12: 1503 | D12: 8 | E12: 753 | F12: 0 | G12: 3565 | H12: 0.6350631136 | I12: 0.421598878 | J12: 0.002244039271
A13: 13 Hallands län | B13: 651 | C13: 605 | D13: 6 | E13: 223 | F13: 0 | G13: 1485 | H13: 0.5616161616 | I13: 0.4074074074 | J13: 0.00404040404
A14: 14 Västra Götalands län | B14: 1317 | C14: 1529 | D14: 26 | E14: 655 | F14: 1 | G14: 3528 | H14: 0.6267006803 | I14: 0.4333900227 | J14: 0.007369614512
A15: 17 Värmlands län | B15: 224 | C15: 282 | D15: 5 | E15: 132 | F15: 0 | G15: 643 | H15: 0.6516329705 | I15: 0.4385692068 | J15: 0.007776049767
A16: 18 Örebro län | B16: 317 | C16: 440 | D16: 9 | E16: 154 | F16: 0 | G16: 920 | H16: 0.6554347826 | I16: 0.4782608696 | J16: 0.009782608696
A17: 19 Västmanlands län | B17: 267 | C17: 527 | D17: 8 | E17: 208 | F17: 0 | G17: 1010 | H17: 0.7356435644 | I17: 0.5217821782 | J17: 0.007920792079
A18: 20 Dalarna län | B18: 427 | C18: 539 | D18: 11 | E18: 226 | F18: 0 | G18: 1203 | H18: 0.6450540316 | I18: 0.4480465503 | J18: 0.009143807149
A19: 21 Gävleborgs län | B19: 303 | C19: 689 | D19: 10 | E19: 195 | F19: 0 | G19: 1197 | H19: 0.7468671679 | I19: 0.5756056809 | J19: 0.008354218881
A20: 22 Västernorrlands län | B20: 371 | C20: 764 | D20: 13 | E20: 318 | F20: 0 | G20: 1466 | H20: 0.7469304229 | I20: 0.5211459754 | J20: 0.008867667121
A21: 23 Jämtlands län | B21: 93 | C21: 148 | D21: 1 | E21: 59 | F21: 0 | G21: 301 | H21: 0.6910299003 | I21: 0.4916943522 | J21: 0.003322259136
A22: 24 Västerbottens län | B22: 165 | C22: 243 | D22: 2 | E22: 102 | F22: 0 | G22: 512 | H22: 0.677734375 | I22: 0.474609375 | J22: 0.00390625
A23: 25 Norrbottens län | B23: 260 | C23: 408 | D23: 5 | E23: 223 | F23: 0 | G23: 896 | H23: 0.7098214286 | I23: 0.4553571429 | J23: 0.005580357143
A24: Totalt riket | B24: 8823 | C24: 12065 | D24: 169 | E24: 5299 | F24: 2 | G24: 26358 | H24: 0.6652629183 | I24: 0.4577357918 | J24: 0.006411715608

Sheet Över 16 ton (hidden)
A2: Stn | B2: Län | C2: 0 Godkänd | D2: 2 Underkänd Med Efterk | E2: 3 Körförbud | F2: 6 Underkänd Utan Efterk | G2: U Underkänd Fle | H2: Utfall
A3: 0876 Jönköping-Torsvik | B3: 6 Jönköpings län | C3: 483 | D3: 503 | E3: 4 | F3: 314 | G3: 0 | H3: 1304
A4: 0967 Helsingborg-Ättekulla | B4: 12 Skåne län | C4: 374 | D4: 404 | E4: 1 | F4: 273 | G4: 0 | H4: 1052
A5: 0317 Gävle-Sörby Urfjäll | B5: 21 Gävleborgs län | C5: 240 | D5: 559 | E5: 8 | F5: 155 | G5: 0 | H5: 962
A6: 0523 Västerås-Tunbytorp | B6: 19 Västmanlands län | C6: 241 | D6: 466 | E6: 7 | F6: 196 | G6: 0 | H6: 910
A7: 0418 Sollentuna | B7: 1 Stockholms län | C7: 247 | D7: 395 | E7: 5 | F7: 237 | G7: 0 | H7: 884
A8: 0729 Varberg | B8: 13 Hallands län | C8: 372 | D8: 362 | E8: 3 | F8: 139 | G8: 0 | H8: 876
A9: 0423 Södertälje-Moraberg | B9: 1 Stockholms län | C9: 236 | D9: 440 | E9: 1 | F9: 188 | G9: 0 | H9: 865
A10: 0873 Växjö | B10: 7 Kronobergs län | C10: 216 | D10: 447 | E10: 3 | F10: 181 | G10: 0 | H10: 847
A11: 0536 Norrköping-Herstadberg | B11: 5 Östergötlands län | C11: 303 | D11: 350 | E11: 5 | F11: 162 | G11: 1 | H11: 821
A12: 0225 Sundsvall-Nacksta | B12: 22 Västernorrlands län | C12: 187 | D12: 344 | E12: 6 | F12: 144 | G12: 0 | H12: 681
A13: 0952 Helsingborg-Berga | B13: 12 Skåne län | C13: 186 | D13: 301 | E13: 0 | F13: 153 | G13: 0 | H13: 640
A14: 0234 Örnsköldsvik | B14: 22 Västernorrlands län | C14: 126 | D14: 338 | E14: 3 | F14: 135 | G14: 0 | H14: 602
A15: 0620 Skara | B15: 14 Västra Götalands län | C15: 207 | D15: 247 | E15: 4 | F15: 81 | G15: 1 | H15: 540
A16: 0427 Uppsala-Fyrislund | B16: 3 Uppsala län | C16: 143 | D16: 249 | E16: 15 | F16: 109 | G16: 0 | H16: 516
A17: 0429 Visby | B17: 9 Gotlands län | C17: 182 | D17: 187 | E17: 2 | F17: 85 | G17: 0 | H17: 456
A18: 0415 Nacka | B18: 1 Stockholms län | C18: 170 | D18: 201 | E18: 1 | F18: 78 | G18: 0 | H18: 450
A19: 0871 Värnamo | B19: 6 Jönköpings län | C19: 86 | D19: 240 | E19: 4 | F19: 112 | G19: 0 | H19: 442
A20: 0732 Göteborg-Torslanda | B20: 14 Västra Götalands län | C20: 207 | D20: 125 | E20: 1 | F20: 92 | G20: 0 | H20: 425
A21: 0714 Göteborg-Aröd | B21: 14 Västra Götalands län | C21: 143 | D21: 175 | E21: 0 | F21: 95 | G21: 0 | H21: 413
A22: 0611 Arvika | B22: 17 Värmlands län | C22: 137 | D22: 176 | E22: 3 | F22: 85 | G22: 0 | H22: 401
A23: 0515 Hallsberg | B23: 18 Örebro län | C23: 150 | D23: 182 | E23: 3 | F23: 65 | G23: 0 | H23: 400
A24: 0870 Vimmerby | B24: 8 Kalmar län | C24: 207 | D24: 136 | E24: 6 | F24: 50 | G24: 0 | H24: 399
A25: 0869 Vetlanda | B25: 6 Jönköpings län | C25: 143 | D25: 138 | E25: 2 | F25: 102 | G25: 0 | H25: 385
A26: 0329 Hedemora | B26: 20 Dalarna län | C26: 96 | D26: 197 | E26: 7 | F26: 83 | G26: 0 | H26: 383
A27: 0315 Falun | B27: 20 Dalarna län | C27: 130 | D27: 175 | E27: 2 | F27: 74 | G27: 0 | H27: 381
A28: 0713 Falkenberg | B28: 13 Hallands län | C28: 185 | D28: 150 | E28: 2 | F28: 42 | G28: 0 | H28: 379
A29: 0323 Mora | B29: 20 Dalarna län | C29: 144 | D29: 139 | E29: 1 | F29: 55 | G29: 0 | H29: 339
A30: 0863 Oskarshamn | B30: 8 Kalmar län | C30: 95 | D30: 140 | E30: 0 | F30: 77 | G30: 0 | H30: 312
A31: 0217 Lycksele | B31: 24 Västerbottens län | C31: 94 | D31: 146 | E31: 0 | F31: 53 | G31: 0 | H31: 293
A32: 0861 Nässjö | B32: 6 Jönköpings län | C32: 80 | D32: 167 | E32: 3 | F32: 38 | G32: 0 | H32: 288
A33: 0721 Lysekil | B33: 14 Västra Götalands län | C33: 99 | D33: 119 | E33: 2 | F33: 66 | G33: 0 | H33: 286
A34: 0951 Eslöv | B34: 12 Skåne län | C34: 98 | D34: 125 | E34: 1 | F34: 52 | G34: 0 | H34: 276
A35: 0535 Lindesberg | B35: 18 Örebro län | C35: 92 | D35: 126 | E35: 3 | F35: 53 | G35: 0 | H35: 274
A36: 0522 Strängnäs | B36: 4 Södermanlands län | C36: 74 | D36: 141 | E36: 3 | F36: 54 | G36: 0 | H36: 272
A37: 0538 Katrineholm-Österleden | B37: 4 Södermanlands län | C37: 64 | D37: 144 | E37: 3 | F37: 56 | G37: 0 | H37: 267
A38: 0856 Karlshamn | B38: 10 Blekinge län | C38: 99 | D38: 96 | E38: 2 | F38: 63 | G38: 0 | H38: 260
A39: 0859 Markaryd | B39: 7 Kronobergs län | C39: 105 | D39: 97 | E39: 2 | F39: 39 | G39: 0 | H39: 243
A40: 0320 Ljusdal | B40: 21 Gävleborgs län | C40: 63 | D40: 130 | E40: 2 | F40: 40 | G40: 0 | H40: 235
A41: 0112 Arvidsjaur | B41: 25 Norrbottens län | C41: 84 | D41: 79 | E41: 3 | F41: 64 | G41: 0 | H41: 230
A42: 0114 Gällivare | B42: 25 Norrbottens län | C42: 44 | D42: 120 | E42: 1 | F42: 51 | G42: 0 | H42: 216
A43: 0525 Örebro-Lillån | B43: 18 Örebro län | C43: 68 | D43: 115 | E43: 2 | F43: 29 | G43: 0 | H43: 214
A44: 0629 Alingsås | B44: 14 Västra Götalands län | C44: 80 | D44: 97 | E44: 0 | F44: 36 | G44: 0 | H44: 213
A45: 0961 Simrishamn | B45: 12 Skåne län | C45: 77 | D45: 94 | E45: 2 | F45: 33 | G45: 0 | H45: 206
A46: 0634 Vänersborg | B46: 14 Västra Götalands län | C46: 52 | D46: 115 | E46: 4 | F46: 26 | G46: 0 | H46: 197
A47: 0237 Vilhelmina-Ekorrbacken | B47: 24 Västerbottens län | C47: 58 | D47: 83 | E47: 2 | F47: 48 | G47: 0 | H47: 191
A48: 0125 Övertorneå | B48: 25 Norrbottens län | C48: 43 | D48: 99 | E48: 0 | F48: 45 | G48: 0 | H48: 187
A49: 0231 Ånge | B49: 22 Västernorrlands län | C49: 58 | D49: 82 | E49: 4 | F49: 39 | G49: 0 | H49: 183
A50: 0226 Sveg | B50: 23 Jämtlands län | C50: 44 | D50: 80 | E50: 1 | F50: 33 | G50: 0 | H50: 158
A51: 0224 Strömsund | B51: 23 Jämtlands län | C51: 49 | D51: 68 | E51: 0 | F51: 26 | G51: 0 | H51: 143
A52: 0123 Älvsbyn | B52: 25 Norrbottens län | C52: 50 | D52: 47 | E52: 1 | F52: 42 | G52: 0 | H52: 140
A53: 0625 Tidaholm | B53: 14 Västra Götalands län | C53: 41 | D53: 68 | E53: 2 | F53: 16 | G53: 0 | H53: 127
A54: 0311 Avesta | B54: 20 Dalarna län | C54: 57 | D54: 28 | E54: 1 | F54: 14 | G54: 0 | H54: 100
A55: 0428 Östhammar | B55: 3 Uppsala län | C55: 26 | D55: 43 | E55: 2 | F55: 17 | G55: 0 | H55: 88
A56: 0115 Haparanda | B56: 25 Norrbottens län | C56: 24 | D56: 45 | E56: 0 | F56: 14 | G56: 0 | H56: 83
A57: 0615 Hagfors | B57: 17 Värmlands län | C57: 27 | D57: 39 | E57: 0 | F57: 6 | G57: 0 | H57: 72
A58: 0116 Jokkmokk | B58: 25 Norrbottens län | C58: 15 | D58: 18 | E58: 0 | F58: 7 | G58: 0 | H58: 40
A59: 0222 Sorsele | B59: 24 Västerbottens län | C59: 13 | D59: 14 | E59: 0 | F59: 1 | G59: 0 | H59: 28
A60: 0854 Jönköping-Gamla flygfältet | B60: 6 Jönköpings län | C60: 3 | D60: 5 | E60: 0 | F60: 0 | G60: 0 | H60: 8
A61: 0511 Arboga | B61: 19 Västmanlands län | C61: 26 | D61: 61 | E61: 1 | F61: 12 | G61: 0 | H61: 100
A62: 0512 Eskilstuna | B62: 4 Södermanlands län | C62: 22 | D62: 41 | E62: 0 | F62: 13 | G62: 0 | H62: 76
A63: 0516 Karlskoga | B63: 18 Örebro län | C63: 7 | D63: 17 | E63: 1 | F63: 7 | G63: 0 | H63: 32
A64: 0526 Finspång | B64: 5 Östergötlands län | C64: 8 | D64: 18 | E64: 0 | F64: 2 | G64: 0 | H64: 28
A65: 0529 Motala | B65: 5 Östergötlands län | C65: 22 | D65: 24 | E65: 1 | F65: 8 | G65: 0 | H65: 55
A66: 0530 Mjölby | B66: 5 Östergötlands län | C66: 19 | D66: 20 | E66: 0 | F66: 8 | G66: 0 | H66: 47
A67: 0533 Åtvidaberg | B67: 5 Östergötlands län | C67: 3 | D67: 8 | E67: 0 | F67: 1 | G67: 0 | H67: 12
A68: 0613 Falköping | B68: 14 Västra Götalands län | C68: 34 | D68: 39 | E68: 1 | F68: 17 | G68: 0 | H68: 91
A69: 0616 Karlstad-Våxnäs | B69: 17 Värmlands län | C69: 60 | D69: 67 | E69: 2 | F69: 41 | G69: 0 | H69: 170
A70: 0618 Lidköping | B70: 14 Västra Götalands län | C70: 18 | D70: 15 | E70: 0 | F70: 7 | G70: 0 | H70: 40
A71: 0627 Vara | B71: 14 Västra Götalands län | C71: 27 | D71: 35 | E71: 2 | F71: 11 | G71: 0 | H71: 75
A72: 0630 Borås-Ramnaslätt | B72: 14 Västra Götalands län | C72: 49 | D72: 81 | E72: 3 | F72: 32 | G72: 0 | H72: 165
A73: 0631 Kinna | B73: 14 Västra Götalands län | C73: 22 | D73: 18 | E73: 0 | F73: 13 | G73: 0 | H73: 53
A74: 0632 Trollhättan | B74: 14 Västra Götalands län | C74: 43 | D74: 38 | E74: 2 | F74: 12 | G74: 0 | H74: 95
A75: 0715 Göteborg-Sisjön | B75: 14 Västra Götalands län | C75: 18 | D75: 13 | E75: 0 | F75: 11 | G75: 0 | H75: 42
A76: 0716 Göteborg-Tagene | B76: 14 Västra Götalands län | C76: 75 | D76: 107 | E76: 1 | F76: 49 | G76: 0 | H76: 232
A77: 0717 Halmstad-Sannarp | B77: 13 Hallands län | C77: 71 | D77: 85 | E77: 1 | F77: 34 | G77: 0 | H77: 191
A78: 0719 Kungsbacka | B78: 13 Hallands län | C78: 23 | D78: 8 | E78: 0 | F78: 8 | G78: 0 | H78: 39
A79: 0722 Mölndal | B79: 14 Västra Götalands län | C79: 73 | D79: 64 | E79: 1 | F79: 32 | G79: 0 | H79: 170
A80: 0723 Partille | B80: 14 Västra Götalands län | C80: 28 | D80: 49 | E80: 1 | F80: 10 | G80: 0 | H80: 88
A81: 0724 Stenungsund | B81: 14 Västra Götalands län | C81: 36 | D81: 62 | E81: 2 | F81: 24 | G81: 0 | H81: 124
A82: 0727 Uddevalla | B82: 14 Västra Götalands län | C82: 65 | D82: 62 | E82: 0 | F82: 25 | G82: 0 | H82: 152
A83: 0730 Ängelholm | B83: 12 Skåne län | C83: 63 | D83: 63 | E83: 0 | F83: 44 | G83: 0 | H83: 170
A84: 0851 Borgholm | B84: 8 Kalmar län | C84: 3 | D84: 4 | E84: 0 | F84: 1 | G84: 0 | H84: 8
A85: 0853 Gislaved | B85: 6 Jönköpings län | C85: 15 | D85: 24 | E85: 0 | F85: 13 | G85: 0 | H85: 52
A86: 0860 Nybro | B86: 8 Kalmar län | C86: 13 | D86: 38 | E86: 0 | F86: 11 | G86: 0 | H86: 62
A87: 0862 Olofström | B87: 10 Blekinge län | C87: 16 | D87: 18 | E87: 1 | F87: 5 | G87: 0 | H87: 40
A88: 0866 Sölvesborg | B88: 10 Blekinge län | C88: 8 | D88: 22 | E88: 0 | F88: 4 | G88: 0 | H88: 34
A89: 0868 Tranås | B89: 6 Jönköpings län | C89: 8 | D89: 27 | E89: 0 | F89: 14 | G89: 0 | H89: 49
A90: 0872 Västervik | B90: 8 Kalmar län | C90: 19 | D90: 13 | E90: 0 | F90: 5 | G90: 0 | H90: 37
A91: 0875 Älmhult | B91: 7 Kronobergs län | C91: 9 | D91: 12 | E91: 0 | F91: 4 | G91: 0 | H91: 25
A92: 0953 Hässleholm | B92: 12 Skåne län | C92: 62 | D92: 71 | E92: 0 | F92: 18 | G92: 0 | H92: 151
A93: 0954 Hörby | B93: 12 Skåne län | C93: 0 | D93: 1 | E93: 0 | F93: 0 | G93: 0 | H93: 1
A94: 0955 Klippan | B94: 12 Skåne län | C94: 47 | D94: 42 | E94: 0 | F94: 26 | G94: 0 | H94: 115
A95: 0956 Kristianstad-Hammar | B95: 12 Skåne län | C95: 89 | D95: 68 | E95: 0 | F95: 22 | G95: 0 | H95: 179
A96: 0957 Landskrona | B96: 12 Skåne län | C96: 14 | D96: 24 | E96: 1 | F96: 9 | G96: 0 | H96: 48
A97: 0960 Malmö-Valdemarsro | B97: 12 Skåne län | C97: 152 | D97: 184 | E97: 2 | F97: 91 | G97: 0 | H97: 429
A98: 0963 Trelleborg | B98: 12 Skåne län | C98: 42 | D98: 15 | E98: 0 | F98: 10 | G98: 0 | H98: 67
A99: 0964 Ystad | B99: 12 Skåne län | C99: 68 | D99: 40 | E99: 0 | F99: 8 | G99: 0 | H99: 116
A100: 0968 Lomma | B100: 12 Skåne län | C100: 29 | D100: 71 | E100: 1 | F100: 14 | G100: 0 | H100: 115

Sheet Pivot tunga totalt (hidden)
A3: Radetiketter | B3: Summa av 0 Godkänd | C3: Summa av 2 Underkänd Med Efterk | D3: Summa av 3 Körförbud | E3: Summa av 6 Underkänd Utan Efterk | F3: Summa av U Underkänd Fle | G3: Summa av Utfall
A4: 1 Stockholms län | B4: 968 | C4: 1301 | D4: 10 | E4: 702 | F4: 0 | G4: 2981
A5: 3 Uppsala län | B5: 263 | C5: 385 | D5: 19 | E5: 189 | F5: 0 | G5: 856
A6: 4 Södermanlands län | B6: 220 | C6: 412 | D6: 6 | E6: 153 | F6: 0 | G6: 791
A7: 5 Östergötlands län | B7: 475 | C7: 528 | D7: 7 | E7: 265 | F7: 1 | G7: 1276
A8: 6 Jönköpings län | B8: 1088 | C8: 1313 | D8: 14 | E8: 759 | F8: 0 | G8: 3174
A9: 7 Kronobergs län | B9: 420 | C9: 718 | D9: 6 | E9: 298 | F9: 0 | G9: 1442
A10: 8 Kalmar län | B10: 444 | C10: 415 | D10: 6 | E10: 187 | F10: 0 | G10: 1052
A11: 9 Gotlands län | B11: 287 | C11: 245 | D11: 3 | E11: 120 | F11: 0 | G11: 655
A12: 10 Blekinge län | B12: 147 | C12: 160 | D12: 3 | E12: 100 | F12: 0 | G12: 410
A13: 12 Skåne län | B13: 1644 | C13: 1824 | D13: 9 | E13: 940 | F13: 0 | G13: 4417
A14: 13 Hallands län | B14: 825 | C14: 730 | D14: 9 | E14: 272 | F14: 0 | G14: 1836
A15: 14 Västra Götalands län | B15: 1702 | C15: 1957 | D15: 31 | E15: 878 | F15: 1 | G15: 4569
A16: 17 Värmlands län | B16: 287 | C16: 360 | D16: 9 | E16: 184 | F16: 0 | G16: 840
A17: 18 Örebro län | B17: 471 | C17: 586 | D17: 9 | E17: 223 | F17: 0 | G17: 1289
A18: 19 Västmanlands län | B18: 361 | C18: 648 | D18: 9 | E18: 275 | F18: 0 | G18: 1293
A19: 20 Dalarna län | B19: 652 | C19: 708 | D19: 13 | E19: 321 | F19: 0 | G19: 1694
A20: 21 Gävleborgs län | B20: 476 | C20: 883 | D20: 12 | E20: 287 | F20: 0 | G20: 1658
A21: 22 Västernorrlands län | B21: 539 | C21: 933 | D21: 16 | E21: 412 | F21: 0 | G21: 1900
A22: 23 Jämtlands län | B22: 156 | C22: 196 | D22: 2 | E22: 84 | F22: 0 | G22: 438
A23: 24 Västerbottens län | B23: 233 | C23: 291 | D23: 3 | E23: 143 | F23: 0 | G23: 670
A24: 25 Norrbottens län | B24: 371 | C24: 511 | D24: 6 | E24: 323 | F24: 0 | G24: 1211
A25: Totalsumma | B25: 12029 | C25: 15104 | D25: 202 | E25: 7115 | F25: 2 | G25: 34452

Sheet Utdata tungt
A2: Kontrollbesiktning tunga lastbilar > 3,5 ton, 2013
A3: Län | B3: Summa av 0 Godkänd | C3: Summa av 2 Underkänd Med Efterk | D3: Summa av 3 Körförbud | E3: Summa av 6 Underkänd Utan Efterk | F3: Summa av U Underkänd Fle | G3: Antal besiktade | H3: Andel underkända | I3: Andel underkända med efterkontroll | J3: Andel körförbud | K3: För jämförelse: Antal besiktade 2012 | L3: För jämförelse: relativ ändring volym
A4: 1 Stockholms län | B4: 968 | C4: 1301 | D4: 10 | E4: 702 | F4: 0 | G4: 2981 | H4: =(C4+D4+E4+F4)/G4 -> 0.6752767528 | I4: =C4/G4 -> 0.4364307279 | J4: =D4/G4 -> 0.003354579 | K4: =VLOOKUP(A4,$O$4:$P$24,2,0) -> 9327 | L4: =(G4-K4)/K4 -> -0.6803902648 | O4: 1 Stockholms län | P4: 9327
A5: 3 Uppsala län | B5: 263 | C5: 385 | D5: 19 | E5: 189 | F5: 0 | G5: 856 | H5: =(C5+D5+E5+F5)/G5 -> 0.6927570093 | I5: =C5/G5 -> 0.4497663551 | J5: =D5/G5 -> 0.02219626168 | K5: =VLOOKUP(A5,$O$4:$P$24,2,0) -> 2161 | L5: =(G5-K5)/K5 -> -0.6038870893 | O5: 3 Uppsala län | P5: 2161
A6: 4 Södermanlands län | B6: 220 | C6: 412 | D6: 6 | E6: 153 | F6: 0 | G6: 791 | H6: 0.7218710493 | I6: 0.5208596713 | J6: 0.007585335019 | K6: =VLOOKUP(A6,$O$4:$P$24,2,0) -> 2004 | L6: -0.6052894212 | O6: 4 Södermanlands län | P6: 2004
A7: 5 Östergötlands län | B7: 475 | C7: 528 | D7: 7 | E7: 265 | F7: 1 | G7: 1276 | H7: 0.6277429467 | I7: 0.4137931034 | J7: 0.005485893417 | K7: =VLOOKUP(A7,$O$4:$P$24,2,0) -> 2955 | L7: -0.5681895093 | O7: 5 Östergötlands län | P7: 2955
A8: 6 Jönköpings län | B8: 1088 | C8: 1313 | D8: 14 | E8: 759 | F8: 0 | G8: 3174 | H8: 0.6572148708 | I8: 0.413673598 | J8: 0.004410838059 | K8: =VLOOKUP(A8,$O$4:$P$24,2,0) -> 3767 | L8: -0.1574196974 | O8: 6 Jönköpings län | P8: 3767
A9: 7 Kronobergs län | B9: 420 | C9: 718 | D9: 6 | E9: 298 | F9: 0 | G9: 1442 | H9: 0.7087378641 | I9: 0.4979195562 | J9: 0.004160887656 | K9: =VLOOKUP(A9,$O$4:$P$24,2,0) -> 2020 | L9: -0.2861386139 | O9: 7 Kronobergs län | P9: 2020
A10: 8 Kalmar län | B10: 444 | C10: 415 | D10: 6 | E10: 187 | F10: 0 | G10: 1052 | H10: 0.5779467681 | I10: 0.394486692 | J10: 0.005703422053 | K10: =VLOOKUP(A10,$O$4:$P$24,2,0) -> 2175 | L10: -0.5163218391 | O10: 8 Kalmar län | P10: 2175
A11: 9 Gotlands län | B11: 287 | C11: 245 | D11: 3 | E11: 120 | F11: 0 | G11: 655 | H11: 0.5618320611 | I11: 0.3740458015 | J11: 0.004580152672 | K11: =VLOOKUP(A11,$O$4:$P$24,2,0) -> 638 | L11: 0.02664576803 | O11: 9 Gotlands län | P11: 638
A12: 10 Blekinge län | B12: 147 | C12: 160 | D12: 3 | E12: 100 | F12: 0 | G12: 410 | H12: 0.6414634146 | I12: 0.3902439024 | J12: 0.007317073171 | K12: =VLOOKUP(A12,$O$4:$P$24,2,0) -> 1353 | L12: -0.696969697 | O12: 10 Blekinge län | P12: 1353
A13: 12 Skåne län | B13: 1644 | C13: 1824 | D13: 9 | E13: 940 | F13: 0 | G13: 4417 | H13: 0.6278016753 | I13: 0.412949966 | J13: 0.002037582069 | K13: =VLOOKUP(A13,$O$4:$P$24,2,0) -> 10841 | L13: -0.5925652615 | O13: 12 Skåne län | P13: 10841
A14: 13 Hallands län | B14: 825 | C14: 730 | D14: 9 | E14: 272 | F14: 0 | G14: 1836 | H14: 0.5506535948 | I14: 0.3976034858 | J14: 0.004901960784 | K14: =VLOOKUP(A14,$O$4:$P$24,2,0) -> 2802 | L14: -0.3447537473 | O14: 13 Hallands län | P14: 2802
A15: 14 Västra Götalands län | B15: 1702 | C15: 1957 | D15: 31 | E15: 878 | F15: 1 | G15: 4569 | H15: 0.6274896039 | I15: 0.4283212957 | J15: 0.006784854454 | K15: =VLOOKUP(A15,$O$4:$P$24,2,0) -> 12011 | L15: -0.6195987012 | O15: 14 Västra Götalands län | P15: 12011
A16: 17 Värmlands län | B16: 287 | C16: 360 | D16: 9 | E16: 184 | F16: 0 | G16: 840 | H16: 0.6583333333 | I16: 0.4285714286 | J16: 0.01071428571 | K16: =VLOOKUP(A16,$O$4:$P$24,2,0) -> 3045 | L16: -0.724137931 | O16: 17 Värmlands län | P16: 3045
A17: 18 Örebro län | B17: 471 | C17: 586 | D17: 9 | E17: 223 | F17: 0 | G17: 1289 | H17: 0.6346004655 | I17: 0.4546159814 | J17: 0.006982156711 | K17: =VLOOKUP(A17,$O$4:$P$24,2,0) -> 2556 | L17: -0.4956964006 | O17: 18 Örebro län | P17: 2556
A18: 19 Västmanlands län | B18: 361 | C18: 648 | D18: 9 | E18: 275 | F18: 0 | G18: 1293 | H18: 0.720804331 | I18: 0.5011600928 | J18: 0.006960556845 | K18: =VLOOKUP(A18,$O$4:$P$24,2,0) -> 2432 | L18: -0.4683388158 | O18: 19 Västmanlands län | P18: 2432
A19: 20 Dalarna län | B19: 652 | C19: 708 | D19: 13 | E19: 321 | F19: 0 | G19: 1694 | H19: 0.6151121606 | I19: 0.4179456907 | J19: 0.007674144038 | K19: =VLOOKUP(A19,$O$4:$P$24,2,0) -> 3043 | L19: -0.4433125205 | O19: 20 Dalarna län | P19: 3043
A20: 21 Gävleborgs län | B20: 476 | C20: 883 | D20: 12 | E20: 287 | F20: 0 | G20: 1658 | H20: 0.712907117 | I20: 0.5325693607 | J20: 0.007237635706 | K20: =VLOOKUP(A20,$O$4:$P$24,2,0) -> 2876 | L20: -0.4235048679 | O20: 21 Gävleborgs län | P20: 2876
A21: 22 Västernorrlands län | B21: 539 | C21: 933 | D21: 16 | E21: 412 | F21: 0 | G21: 1900 | H21: 0.7163157895 | I21: 0.4910526316 | J21: 0.008421052632 | K21: =VLOOKUP(A21,$O$4:$P$24,2,0) -> 2914 | L21: -0.3479752917 | O21: 22 Västernorrlands län | P21: 2914
A22: 23 Jämtlands län | B22: 156 | C22: 196 | D22: 2 | E22: 84 | F22: 0 | G22: 438 | H22: 0.6438356164 | I22: 0.4474885845 | J22: 0.004566210046 | K22: =VLOOKUP(A22,$O$4:$P$24,2,0) -> 1559 | L22: -0.7190506735 | O22: 23 Jämtlands län | P22: 1559
A23: 24 Västerbottens län | B23: 233 | C23: 291 | D23: 3 | E23: 143 | F23: 0 | G23: 670 | H23: 0.652238806 | I23: 0.4343283582 | J23: 0.00447761194 | K23: =VLOOKUP(A23,$O$4:$P$24,2,0) -> 2339 | L23: -0.7135528003 | O23: 24 Västerbottens län | P23: 2339
A24: 25 Norrbottens län | B24: 371 | C24: 511 | D24: 6 | E24: 323 | F24: 0 | G24: 1211 | H24: 0.6936416185 | I24: 0.4219653179 | J24: 0.004954582989 | K24: =VLOOKUP(A24,$O$4:$P$24,2,0) -> 3015 | L24: -0.5983416252 | O24: 25 Norrbottens län | P24: 3015
A25: Totalt riket | B25: 12029 | C25: 15104 | D25: 202 | E25: 7115 | F25: 2 | G25: 34452 | H25: 0.650847556 | I25: 0.4384070591 | J25: 0.005863230001 | K25: =SUM(K4:K24) -> 75833 | L25: -0.5456859151

Sheet Pivot BE (hidden)
B3: Kolumnetiketter
B4: > 16000 | F4: 3,5-16 ton | J4: Tunga samtliga
A5: Radetiketter | B5: Summa av 0 Godkänd | C5: Summa av 2 Underkänd Med Efterk | D5: Summa av 3 Körförbud | E5: Summa av Utfall | F5: Summa av 0 Godkänd | G5: Summa av 2 Underkänd Med Efterk | H5: Summa av 3 Körförbud | I5: Summa av Utfall | J5: Summa av 0 Godkänd | K5: Summa av 2 Underkänd Med Efterk | L5: Summa av 3 Körförbud | M5: Summa av Utfall
A6: 1 Stockholms län | B6: 293 | C6: 86 | D6: 1 | E6: 380 | F6: 115 | G6: 24 | H6: 0 | I6: 139 | J6: 408 | K6: 110 | L6: 1 | M6: 519
A7: 10 Blekinge län | B7: 87 | C7: 6 | D7: 0 | E7: 93 | F7: 18 | G7: 2 | H7: 0 | I7: 20 | J7: 105 | K7: 8 | L7: 0 | M7: 113
A8: 12 Skåne län | B8: 617 | C8: 115 | D8: 0 | E8: 732 | F8: 169 | G8: 26 | H8: 0 | I8: 195 | J8: 786 | K8: 141 | L8: 0 | M8: 927
A9: 13 Hallands län | B9: 293 | C9: 27 | D9: 0 | E9: 320 | F9: 90 | G9: 16 | H9: 0 | I9: 106 | J9: 383 | K9: 43 | L9: 0 | M9: 426
A10: 14 Västra Götalands län | B10: 587 | C10: 117 | D10: 2 | E10: 706 | F10: 249 | G10: 27 | H10: 0 | I10: 276 | J10: 836 | K10: 144 | L10: 2 | M10: 982
A11: 17 Värmlands län | B11: 99 | C11: 31 | D11: 0 | E11: 130 | F11: 56 | G11: 6 | H11: 0 | I11: 62 | J11: 155 | K11: 37 | L11: 0 | M11: 192
A12: 18 Örebro län | B12: 220 | C12: 38 | D12: 0 | E12: 258 | F12: 76 | G12: 14 | H12: 0 | I12: 90 | J12: 296 | K12: 52 | L12: 0 | M12: 348
A13: 19 Västmanlands län | B13: 150 | C13: 43 | D13: 0 | E13: 193 | F13: 65 | G13: 17 | H13: 0 | I13: 82 | J13: 215 | K13: 60 | L13: 0 | M13: 275
A14: 20 Dalarna län | B14: 200 | C14: 56 | D14: 0 | E14: 256 | F14: 128 | G14: 18 | H14: 0 | I14: 146 | J14: 328 | K14: 74 | L14: 0 | M14: 402
A15: 21 Gävleborgs län | B15: 250 | C15: 57 | D15: 3 | E15: 310 | F15: 104 | G15: 24 | H15: 0 | I15: 128 | J15: 354 | K15: 81 | L15: 3 | M15: 438
A16: 22 Västernorrlands län | B16: 304 | C16: 92 | D16: 0 | E16: 396 | F16: 102 | G16: 14 | H16: 0 | I16: 116 | J16: 406 | K16: 106 | L16: 0 | M16: 512
A17: 23 Jämtlands län | B17: 46 | C17: 11 | D17: 0 | E17: 57 | F17: 26 | G17: 1 | H17: 0 | I17: 27 | J17: 72 | K17: 12 | L17: 0 | M17: 84
A18: 24 Västerbottens län | B18: 69 | C18: 16 | D18: 0 | E18: 85 | F18: 30 | G18: 4 | H18: 0 | I18: 34 | J18: 99 | K18: 20 | L18: 0 | M18: 119
A19: 25 Norrbottens län | B19: 289 | C19: 78 | D19: 0 | E19: 367 | F19: 74 | G19: 19 | H19: 0 | I19: 93 | J19: 363 | K19: 97 | L19: 0 | M19: 460
A20: 3 Uppsala län | B20: 148 | C20: 29 | D20: 1 | E20: 178 | F20: 51 | G20: 11 | H20: 0 | I20: 62 | J20: 199 | K20: 40 | L20: 1 | M20: 240
A21: 4 Södermanlands län | B21: 95 | C21: 48 | D21: 3 | E21: 146 | F21: 41 | G21: 9 | H21: 0 | I21: 50 | J21: 136 | K21: 57 | L21: 3 | M21: 196
A22: 5 Östergötlands län | B22: 160 | C22: 40 | D22: 2 | E22: 202 | F22: 66 | G22: 9 | H22: 0 | I22: 75 | J22: 226 | K22: 49 | L22: 2 | M22: 277
A23: 6 Jönköpings län | B23: 372 | C23: 69 | D23: 2 | E23: 443 | F23: 109 | G23: 13 | H23: 0 | I23: 122 | J23: 481 | K23: 82 | L23: 2 | M23: 565
A24: 7 Kronobergs län | B24: 253 | C24: 52 | D24: 0 | E24: 305 | F24: 92 | G24: 17 | H24: 0 | I24: 109 | J24: 345 | K24: 69 | L24: 0 | M24: 414
A25: 8 Kalmar län | B25: 103 | C25: 14 | D25: 0 | E25: 117 | F25: 48 | G25: 3 | H25: 0 | I25: 51 | J25: 151 | K25: 17 | L25: 0 | M25: 168
A26: 9 Gotlands län | B26: 45 | C26: 10 | D26: 0 | E26: 55 | F26: 13 | G26: 1 | H26: 0 | I26: 14 | J26: 58 | K26: 11 | L26: 0 | M26: 69
A27: Totalsumma | B27: 4680 | C27: 1035 | D27: 14 | E27: 5729 | F27: 1722 | G27: 275 | H27: 0 | I27: 1997 | J27: 6402 | K27: 1310 | L27: 14 | M27: 7726

Sheet Utdata BE
A1: Andel underkända vid efterkontroll per län | B1: Kolumnetiketter
B2: > 16000 | F2: 3,5-16 ton | J2: 3,5-16 ton | K2: Tunga samtliga | O2: Över 16 ton | P2: Tunga, samtliga viktklasser
A3: Län | B3: Summa av 0 Godkänd | C3: Summa av 2 Underkänd Med Efterk | D3: Summa av 3 Körförbud | E3: Summa av Utfall | F3: Summa av 0 Godkänd | G3: Summa av 2 Underkänd Med Efterk | H3: Summa av 3 Körförbud | I3: Summa av Utfall | J3: Andel underkända | K3: Summa av 0 Godkänd | L3: Summa av 2 Underkänd Med Efterk | M3: Summa av 3 Körförbud | N3: Summa av Utfall | O3: Andel underkända | P3: Andel underkända
A4: 1 Stockholms län | B4: 293 | C4: 86 | D4: 1 | E4: 380 | F4: 115 | G4: 24 | H4: 0 | I4: 139 | J4: =(G4+H4)/I4 -> 0.1726618705 | K4: 408 | L4: 110 | M4: 1 | N4: 519 | O4: =(C4+D4)/E4 -> 0.2289473684 | P4: =(L4+M4)/N4 -> 0.2138728324
A5: 3 Uppsala län | B5: 148 | C5: 29 | D5: 1 | E5: 178 | F5: 51 | G5: 11 | H5: 0 | I5: 62 | J5: 0.1774193548 | K5: 199 | L5: 40 | M5: 1 | N5: 240 | O5: 0.1685393258 | P5: 0.1708333333
A6: 4 Södermanlands län | B6: 95 | C6: 48 | D6: 3 | E6: 146 | F6: 41 | G6: 9 | H6: 0 | I6: 50 | J6: 0.18 | K6: 136 | L6: 57 | M6: 3 | N6: 196 | O6: 0.3493150685 | P6: 0.306122449
A7: 5 Östergötlands län | B7: 160 | C7: 40 | D7: 2 | E7: 202 | F7: 66 | G7: 9 | H7: 0 | I7: 75 | J7: 0.12 | K7: 226 | L7: 49 | M7: 2 | N7: 277 | O7: 0.2079207921 | P7: 0.1841155235
A8: 6 Jönköpings län | B8: 372 | C8: 69 | D8: 2 | E8: 443 | F8: 109 | G8: 13 | H8: 0 | I8: 122 | J8: 0.106557377 | K8: 481 | L8: 82 | M8: 2 | N8: 565 | O8: 0.1602708804 | P8: 0.1486725664
A9: 7 Kronobergs län | B9: 253 | C9: 52 | D9: 0 | E9: 305 | F9: 92 | G9: 17 | H9: 0 | I9: 109 | J9: 0.1559633028 | K9: 345 | L9: 69 | M9: 0 | N9: 414 | O9: 0.1704918033 | P9: 0.1666666667
A10: 8 Kalmar län | B10: 103 | C10: 14 | D10: 0 | E10: 117 | F10: 48 | G10: 3 | H10: 0 | I10: 51 | J10: 0.05882352941 | K10: 151 | L10: 17 | M10: 0 | N10: 168 | O10: 0.1196581197 | P10: 0.1011904762
A11: 9 Gotlands län | B11: 45 | C11: 10 | D11: 0 | E11: 55 | F11: 13 | G11: 1 | H11: 0 | I11: 14 | J11: 0.07142857143 | K11: 58 | L11: 11 | M11: 0 | N11: 69 | O11: 0.1818181818 | P11: 0.1594202899
A12: 10 Blekinge län | B12: 87 | C12: 6 | D12: 0 | E12: 93 | F12: 18 | G12: 2 | H12: 0 | I12: 20 | J12: =(G12+H12)/I12 -> 0.1 | K12: 105 | L12: 8 | M12: 0 | N12: 113 | O12: 0.06451612903 | P12: 0.07079646018
A13: 12 Skåne län | B13: 617 | C13: 115 | D13: 0 | E13: 732 | F13: 169 | G13: 26 | H13: 0 | I13: 195 | J13: 0.1333333333 | K13: 786 | L13: 141 | M13: 0 | N13: 927 | O13: 0.1571038251 | P13: 0.1521035599
A14: 13 Hallands län | B14: 293 | C14: 27 | D14: 0 | E14: 320 | F14: 90 | G14: 16 | H14: 0 | I14: 106 | J14: 0.1509433962 | K14: 383 | L14: 43 | M14: 0 | N14: 426 | O14: 0.084375 | P14: 0.1009389671
A15: 14 Västra Götalands län | B15: 587 | C15: 117 | D15: 2 | E15: 706 | F15: 249 | G15: 27 | H15: 0 | I15: 276 | J15: 0.09782608696 | K15: 836 | L15: 144 | M15: 2 | N15: 982 | O15: 0.1685552408 | P15: 0.1486761711
A16: 17 Värmlands län | B16: 99 | C16: 31 | D16: 0 | E16: 130 | F16: 56 | G16: 6 | H16: 0 | I16: 62 | J16: 0.09677419355 | K16: 155 | L16: 37 | M16: 0 | N16: 192 | O16: 0.2384615385 | P16: 0.1927083333
A17: 18 Örebro län | B17: 220 | C17: 38 | D17: 0 | E17: 258 | F17: 76 | G17: 14 | H17: 0 | I17: 90 | J17: 0.1555555556 | K17: 296 | L17: 52 | M17: 0 | N17: 348 | O17: 0.1472868217 | P17: 0.1494252874
A18: 19 Västmanlands län | B18: 150 | C18: 43 | D18: 0 | E18: 193 | F18: 65 | G18: 17 | H18: 0 | I18: 82 | J18: 0.2073170732 | K18: 215 | L18: 60 | M18: 0 | N18: 275 | O18: 0.2227979275 | P18: 0.2181818182
A19: 20 Dalarna län | B19: 200 | C19: 56 | D19: 0 | E19: 256 | F19: 128 | G19: 18 | H19: 0 | I19: 146 | J19: 0.1232876712 | K19: 328 | L19: 74 | M19: 0 | N19: 402 | O19: 0.21875 | P19: 0.184079602
A20: 21 Gävleborgs län | B20: 250 | C20: 57 | D20: 3 | E20: 310 | F20: 104 | G20: 24 | H20: 0 | I20: 128 | J20: 0.1875 | K20: 354 | L20: 81 | M20: 3 | N20: 438 | O20: 0.1935483871 | P20: 0.1917808219
A21: 22 Västernorrlands län | B21: 304 | C21: 92 | D21: 0 | E21: 396 | F21: 102 | G21: 14 | H21: 0 | I21: 116 | J21: 0.1206896552 | K21: 406 | L21: 106 | M21: 0 | N21: 512 | O21: 0.2323232323 | P21: 0.20703125
A22: 23 Jämtlands län | B22: 46 | C22: 11 | D22: 0 | E22: 57 | F22: 26 | G22: 1 | H22: 0 | I22: 27 | J22: 0.03703703704 | K22: 72 | L22: 12 | M22: 0 | N22: 84 | O22: 0.1929824561 | P22: 0.1428571429
A23: 24 Västerbottens län | B23: 69 | C23: 16 | D23: 0 | E23: 85 | F23: 30 | G23: 4 | H23: 0 | I23: 34 | J23: 0.1176470588 | K23: 99 | L23: 20 | M23: 0 | N23: 119 | O23: 0.1882352941 | P23: 0.1680672269
A24: 25 Norrbottens län | B24: 289 | C24: 78 | D24: 0 | E24: 367 | F24: 74 | G24: 19 | H24: 0 | I24: 93 | J24: 0.2043010753 | K24: 363 | L24: 97 | M24: 0 | N24: 460 | O24: 0.2125340599 | P24: 0.2108695652
A25: Totalt riket | B25: 4680 | C25: 1035 | D25: 14 | E25: 5729 | F25: 1722 | G25: 275 | H25: 0 | I25: 1997 | J25: 0.1377065598 | K25: 6402 | L25: 1310 | M25: 14 | N25: 7726 | O25: 0.1831035085 | P25: =(L25+M25)/N25 -> 0.171369402

Sheet Pivot Märken (hidden)
B3: Kolumnetiketter
B4: > 16000 | H4: 3,5-16 ton | N4: Tunga samtliga
A5: Radetiketter | B5: Summa av 0 Godkänd | C5: Summa av 2 Underkänd Med Efterk | D5: Summa av 3 Körförbud | E5: Summa av 6 Underkänd Utan Efterk | F5: Summa av U Underkänd Fle | G5: Summa av Utfall | H5: Summa av 0 Godkänd | I5: Summa av 2 Underkänd Med Efterk | J5: Summa av 3 Körförbud | K5: Summa av 6 Underkänd Utan Efterk | L5: Summa av U Underkänd Fle | M5: Summa av Utfall | N5: Summa av 0 Godkänd | O5: Summa av 2 Underkänd Med Efterk | P5: Summa av 3 Körförbud | Q5: Summa av 6 Underkänd Utan Efterk | R5: Summa av U Underkänd Fle | S5: Summa av Utfall
A6: VOLVO | B6: 3654 | C6: 5018 | D6: 36 | E6: 2307 | F6: 0 | G6: 11015 | H6: 1209 | I6: 1182 | J6: 13 | K6: 719 | L6: 0 | M6: 3123 | N6: 4863 | O6: 6200 | P6: 49 | Q6: 3026 | R6: 0 | S6: 14138
A7: SCANIA/SCANIA-VABIS | B7: 4218 | C7: 6082 | D7: 128 | E7: 2382 | F7: 0 | G7: 12810 | H7: 321 | I7: 125 | J7: 2 | K7: 113 | L7: 0 | M7: 561 | N7: 4539 | O7: 6207 | P7: 130 | Q7: 2495 | R7: 0 | S7: 13371
A8: MERCEDES-BENZ | B8: 550 | C8: 506 | D8: 4 | E8: 372 | F8: 0 | G8: 1432 | H8: 788 | I8: 843 | J8: 9 | K8: 511 | L8: 0 | M8: 2151 | N8: 1338 | O8: 1349 | P8: 13 | Q8: 883 | R8: 0 | S8: 3583
A9: MAN | B9: 226 | C9: 227 | D9: 0 | E9: 141 | F9: 0 | G9: 594 | H9: 38 | I9: 33 | J9: 1 | K9: 35 | L9: 0 | M9: 107 | N9: 264 | O9: 260 | P9: 1 | Q9: 176 | R9: 0 | S9: 701
A10: IVECO | B10: 8 | C10: 15 | D10: 0 | E10: 6 | F10: 0 | G10: 29 | H10: 189 | I10: 245 | J10: 3 | K10: 137 | L10: 0 | M10: 574 | N10: 197 | O10: 260 | P10: 3 | Q10: 143 | R10: 0 | S10: 603
A11: DAF | B11: 141 | C11: 194 | D11: 1 | E11: 79 | F11: 0 | G11: 415 | H11: 7 | I11: 21 | J11: 1 | K11: 9 | L11: 0 | M11: 38 | N11: 148 | O11: 215 | P11: 2 | Q11: 88 | R11: 0 | S11: 453
A12: CHEVROLET | H12: 134 | I12: 138 | J12: 0 | K12: 65 | L12: 0 | M12: 337 | N12: 134 | O12: 138 | P12: 0 | Q12: 65 | R12: 0 | S12: 337
A13: VW | H13: 123 | I13: 108 | J13: 1 | K13: 46 | L13: 0 | M13: 278 | N13: 123 | O13: 108 | P13: 1 | Q13: 46 | R13: 0 | S13: 278
A14: FORD | B14: 1 | C14: 0 | D14: 0 | E14: 0 | F14: 0 | G14: 1 | H14: 76 | I14: 94 | J14: 2 | K14: 40 | L14: 0 | M14: 212 | N14: 77 | O14: 94 | P14: 2 | Q14: 40 | R14: 0 | S14: 213
A15: DODGE /DODGE-FARGO/FARG0 | H15: 88 | I15: 72 | J15: 1 | K15: 41 | L15: 0 | M15: 202 | N15: 88 | O15: 72 | P15: 1 | Q15: 41 | R15: 0 | S15: 202
A16: RENAULT | B16: 2 | C16: 9 | D16: 0 | E16: 1 | F16: 0 | G16: 12 | H16: 42 | I16: 60 | J16: 0 | K16: 23 | L16: 0 | M16: 125 | N16: 44 | O16: 69 | P16: 0 | Q16: 24 | R16: 0 | S16: 137
A17: ÖVRIGA | B17: 20 | C17: 7 | D17: 0 | E17: 9 | F17: 0 | G17: 36 | H17: 27 | I17: 17 | J17: 0 | K17: 13 | L17: 0 | M17: 57 | N17: 47 | O17: 24 | P17: 0 | Q17: 22 | R17: 0 | S17: 93
A18: UNIMOG | H18: 36 | I18: 13 | J18: 0 | K18: 11 | L18: 0 | M18: 60 | N18: 36 | O18: 13 | P18: 0 | Q18: 11 | R18: 0 | S18: 60
A19: GMC | H19: 16 | I19: 22 | J19: 0 | K19: 7 | L19: 0 | M19: 45 | N19: 16 | O19: 22 | P19: 0 | Q19: 7 | R19: 0 | S19: 45
A20: FIAT | H20: 24 | I20: 8 | J20: 0 | K20: 8 | L20: 0 | M20: 40 | N20: 24 | O20: 8 | P20: 0 | Q20: 8 | R20: 0 | S20: 40
A21: TRISTAR | H21: 24 | I21: 8 | J21: 0 | K21: 5 | L21: 0 | M21: 37 | N21: 24 | O21: 8 | P21: 0 | Q21: 5 | R21: 0 | S21: 37
A22: MITSUBISHI | H22: 8 | I22: 12 | J22: 0 | K22: 10 | L22: 0 | M22: 30 | N22: 8 | O22: 12 | P22: 0 | Q22: 10 | R22: 0 | S22: 30
A23: Beskrivning saknas | B23: 2 | C23: 5 | D23: 0 | E23: 0 | F23: 2 | G23: 9 | H23: 11 | I23: 0 | J23: 0 | K23: 0 | L23: 0 | M23: 11 | N23: 13 | O23: 5 | P23: 0 | Q23: 0 | R23: 2 | S23: 20
A24: MAZDA | H24: 1 | I24: 8 | J24: 0 | K24: 4 | L24: 0 | M24: 13 | N24: 1 | O24: 8 | P24: 0 | Q24: 4 | R24: 0 | S24: 13
A25: HANOMAG/HANOMAG HENSCHEL | H25: 4 | I25: 6 | J25: 0 | K25: 2 | L25: 0 | M25: 12 | N25: 4 | O25: 6 | P25: 0 | Q25: 2 | R25: 0 | S25: 12
A26: NISSAN | H26: 4 | I26: 3 | J26: 0 | K26: 4 | L26: 0 | M26: 11 | N26: 4 | O26: 3 | P26: 0 | Q26: 4 | R26: 0 | S26: 11
A27: HÄGGLUNDS | H27: 5 | I27: 0 | J27: 0 | K27: 6 | L27: 0 | M27: 11 | N27: 5 | O27: 0 | P27: 0 | Q27: 6 | R27: 0 | S27: 11
A28: ISUZU | H28: 4 | I28: 4 | J28: 0 | K28: 2 | L28: 0 | M28: 10 | N28: 4 | O28: 4 | P28: 0 | Q28: 2 | R28: 0 | S28: 10
A29: INTERNATIONAL | H29: 4 | I29: 1 | J29: 0 | K29: 1 | L29: 0 | M29: 6 | N29: 4 | O29: 1 | P29: 0 | Q29: 1 | R29: 0 | S29: 6
A30: OPEL | H30: 3 | I30: 2 | J30: 0 | K30: 1 | L30: 0 | M30: 6 | N30: 3 | O30: 2 | P30: 0 | Q30: 1 | R30: 0 | S30: 6
A31: JEEP | H31: 5 | I31: 0 | J31: 0 | K31: 0 | L31: 0 | M31: 5 | N31: 5 | O31: 0 | P31: 0 | Q31: 0 | R31: 0 | S31: 5
A32: NEOPLAN | B32: 0 | C32: 2 | D32: 0 | E32: 1 | F32: 0 | G32: 3 | H32: 0 | I32: 1 | J32: 0 | K32: 0 | L32: 0 | M32: 1 | N32: 0 | O32: 3 | P32: 0 | Q32: 1 | R32: 0 | S32: 4
A33: TOYOTA | H33: 1 | I33: 3 | J33: 0 | K33: 0 | L33: 0 | M33: 4 | N33: 1 | O33: 3 | P33: 0 | Q33: 0 | R33: 0 | S33: 4
A34: BEDFORD | H34: 1 | I34: 3 | J34: 0 | K34: 0 | L34: 0 | M34: 4 | N34: 1 | O34: 3 | P34: 0 | Q34: 0 | R34: 0 | S34: 4
A35: STEYR/STEYR-PUCH | H35: 2 | I35: 0 | J35: 0 | K35: 1 | L35: 0 | M35: 3 | N35: 2 | O35: 0 | P35: 0 | Q35: 1 | R35: 0 | S35: 3
A36: K-SETRA | H36: 0 | I36: 3 | J36: 0 | K36: 0 | L36: 0 | M36: 3 | N36: 0 | O36: 3 | P36: 0 | Q36: 0 | R36: 0 | S36: 3
A37: WILLYS/WILLYS-OVERLAND | B37: 1 | C37: 0 | D37: 0 | E37: 1 | F37: 0 | G37: 2 | N37: 1 | O37: 0 | P37: 0 | Q37: 1 | R37: 0 | S37: 2
A38: SAAB | H38: 1 | I38: 1 | J38: 0 | K38: 0 | L38: 0 | M38: 2 | N38: 1 | O38: 1 | P38: 0 | Q38: 0 | R38: 0 | S38: 2
A39: PEUGEOT | H39: 2 | I39: 0 | J39: 0 | K39: 0 | L39: 0 | M39: 2 | N39: 2 | O39: 0 | P39: 0 | Q39: 0 | R39: 0 | S39: 2
A40: CITROEN | H40: 2 | I40: 0 | J40: 0 | K40: 0 | L40: 0 | M40: 2 | N40: 2 | O40: 0 | P40: 0 | Q40: 0 | R40: 0 | S40: 2
A41: BÜSSING | H41: 0 | I41: 0 | J41: 0 | K41: 1 | L41: 0 | M41: 1 | N41: 0 | O41: 0 | P41: 0 | Q41: 1 | R41: 0 | S41: 1
A42: HOBBY | H42: 0 | I42: 1 | J42: 0 | K42: 0 | L42: 0 | M42: 1 | N42: 0 | O42: 1 | P42: 0 | Q42: 0 | R42: 0 | S42: 1
A43: TRAILERGRUPPEN/TGAB | H43: 0 | I43: 0 | J43: 0 | K43: 1 | L43: 0 | M43: 1 | N43: 0 | O43: 0 | P43: 0 | Q43: 1 | R43: 0 | S43: 1
A44: BMC | H44: 1 | I44: 0 | J44: 0 | K44: 0 | L44: 0 | M44: 1 | N44: 1 | O44: 0 | P44: 0 | Q44: 0 | R44: 0 | S44: 1
A45: HUMMER | H45: 0 | I45: 1 | J45: 0 | K45: 0 | L45: 0 | M45: 1 | N45: 0 | O45: 1 | P45: 0 | Q45: 0 | R45: 0 | S45: 1
A46: FLEETWOOD | H46: 1 | I46: 0 | J46: 0 | K46: 0 | L46: 0 | M46: 1 | N46: 1 | O46: 0 | P46: 0 | Q46: 0 | R46: 0 | S46: 1
A47: BORGWARD | H47: 1 | I47: 0 | J47: 0 | K47: 0 | L47: 0 | M47: 1 | N47: 1 | O47: 0 | P47: 0 | Q47: 0 | R47: 0 | S47: 1
A48: MAGIRUS/MAGIRUS-DEUTTZ | H48: 1 | I48: 0 | J48: 0 | K48: 0 | L48: 0 | M48: 1 | N48: 1 | O48: 0 | P48: 0 | Q48: 0 | R48: 0 | S48: 1
A49: OMNINOVA | H49: 0 | I49: 1 | J49: 0 | K49: 0 | L49: 0 | M49: 1 | N49: 0 | O49: 1 | P49: 0 | Q49: 0 | R49: 0 | S49: 1
A50: FRANKIA | H50: 1 | I50: 0 | J50: 0 | K50: 0 | L50: 0 | M50: 1 | N50: 1 | O50: 0 | P50: 0 | Q50: 0 | R50: 0 | S50: 1
A51: JOHNSON | H51: 1 | I51: 0 | J51: 0 | K51: 0 | L51: 0 | M51: 1 | N51: 1 | O51: 0 | P51: 0 | Q51: 0 | R51: 0 | S51: 1
A52: Totalsumma | B52: 8823 | C52: 12065 | D52: 169 | E52: 5299 | F52: 2 | G52: 26358 | H52: 3206 | I52: 3039 | J52: 33 | K52: 1816 | L52: 0 | M52: 8094 | N52: 12029 | O52: 15104 | P52: 202 | Q52: 7115 | R52: 2 | S52: 34452

Sheet Utdata märken
A3: Besiktningsresultat per märke (de vanligaste märkena) | B3: Kolumnetiketter
B4: > 16000 | I4: 3,5-16 ton | N4: 3,5-16 ton | O4: 3,5-16 ton | P4: Tunga samtliga | U4: Över 16 ton | V4: Över 16 ton | W4: Tunga, samtliga viktklasser
A5: Märke | B5: Summa av 0 Godkänd | C5: Summa av 2 Underkänd Med Efterk | D5: Summa av 3 Körförbud | E5: Summa av 6 Underkänd Utan Efterk | F5: Summa av U Underkänd Fle | I5: Summa av 0 Godkänd | J5: Summa av 2 Underkänd Med Efterk | K5: Summa av 3 Körförbud | L5: Summa av 6 Underkänd Utan Efterk | M5: Summa av U Underkänd Fle | N5: Antal besiktade | O5: Andel underkända med efterkontroll | P5: Summa av 0 Godkänd | Q5: Summa av 2 Underkänd Med Efterk | R5: Summa av 3 Körförbud | S5: Summa av 6 Underkänd Utan Efterk | T5: Summa av U Underkänd Fle | U5: Antal besiktade | V5: Andel underkända med efterkontroll | W5: Antal besiktade | X5: Andel underkända med efterkontroll
A6: VOLVO | B6: 3654 | C6: 5018 | D6: 36 | E6: 2307 | F6: 0 | I6: 1209 | J6: 1182 | K6: 13 | L6: 719 | M6: 0 | N6: 3123 | O6: =(J6/N6) -> 0.3784822286 | P6: 4863 | Q6: 6200 | R6: 49 | S6: 3026 | T6: 0 | U6: 11015 | V6: =(C6/U6) -> 0.4555605992 | W6: 14138 | X6: =(Q6/W6) -> 0.4385344462
A7: SCANIA/SCANIA-VABIS | B7: 4218 | C7: 6082 | D7: 128 | E7: 2382 | F7: 0 | I7: 321 | J7: 125 | K7: 2 | L7: 113 | M7: 0 | N7: 561 | O7: =(J7/N7) -> 0.2228163993 | P7: 4539 | Q7: 6207 | R7: 130 | S7: 2495 | T7: 0 | U7: 12810 | V7: 0.474785324 | W7: 13371 | X7: =(Q7/W7) -> 0.4642135966
A8: MERCEDES-BENZ | B8: 550 | C8: 506 | D8: 4 | E8: 372 | F8: 0 | I8: 788 | J8: 843 | K8: 9 | L8: 511 | M8: 0 | N8: 2151 | O8: 0.3919107392 | P8: 1338 | Q8: 1349 | R8: 13 | S8: 883 | T8: 0 | U8: 1432 | V8: 0.3533519553 | W8: 3583 | X8: 0.3765001395
A9: MAN | B9: 226 | C9: 227 | D9: 0 | E9: 141 | F9: 0 | I9: 38 | J9: 33 | K9: 1 | L9: 35 | M9: 0 | N9: 107 | O9: 0.308411215 | P9: 264 | Q9: 260 | R9: 1 | S9: 176 | T9: 0 | U9: 594 | V9: 0.3821548822 | W9: 701 | X9: 0.3708987161
A10: IVECO | B10: 8 | C10: 15 | D10: 0 | E10: 6 | F10: 0 | I10: 189 | J10: 245 | K10: 3 | L10: 137 | M10: 0 | N10: 574 | O10: 0.4268292683 | P10: 197 | Q10: 260 | R10: 3 | S10: 143 | T10: 0 | U10: 29 | V10: 0.5172413793 | W10: 603 | X10: 0.4311774461
A11: DAF | B11: 141 | C11: 194 | D11: 1 | E11: 79 | F11: 0 | I11: 7 | J11: 21 | K11: 1 | L11: 9 | M11: 0 | N11: 38 | O11: 0.5526315789 | P11: 148 | Q11: 215 | R11: 2 | S11: 88 | T11: 0 | U11: 415 | V11: 0.4674698795 | W11: 453 | X11: 0.4746136865
A12: CHEVROLET | I12: 134 | J12: 138 | K12: 0 | L12: 65 | M12: 0 | N12: 337 | O12: 0.409495549 | P12: 134 | Q12: 138 | R12: 0 | S12: 65 | T12: 0 | W12: 337 | X12: 0.409495549
A13: VW | I13: 123 | J13: 108 | K13: 1 | L13: 46 | M13: 0 | N13: 278 | O13: 0.3884892086 | P13: 123 | Q13: 108 | R13: 1 | S13: 46 | T13: 0 | W13: 278 | X13: 0.3884892086
A14: FORD | B14: 1 | C14: 0 | D14: 0 | E14: 0 | F14: 0 | I14: 76 | J14: 94 | K14: 2 | L14: 40 | M14: 0 | N14: 212 | O14: 0.4433962264 | P14: 77 | Q14: 94 | R14: 2 | S14: 40 | T14: 0 | U14: 1 | V14: 0 | W14: 213 | X14: 0.441314554
A15: DODGE /DODGE-FARGO/FARG0 | I15: 88 | J15: 72 | K15: 1 | L15: 41 | M15: 0 | N15: 202 | O15: 0.3564356436 | P15: 88 | Q15: 72 | R15: 1 | S15: 41 | T15: 0 | W15: 202 | X15: 0.3564356436
A16: RENAULT | B16: 2 | C16: 9 | D16: 0 | E16: 1 | F16: 0 | I16: 42 | J16: 60 | K16: 0 | L16: 23 | M16: 0 | N16: 125 | O16: 0.48 | P16: 44 | Q16: 69 | R16: 0 | S16: 24 | T16: 0 | U16: 12 | V16: 0.75 | W16: 137 | X16: 0.503649635
A17: ÖVRIGA | B17: 20 | C17: 7 | D17: 0 | E17: 9 | F17: 0 | I17: 27 | J17: 17 | K17: 0 | L17: 13 | M17: 0 | N17: 57 | O17: 0.298245614 | P17: 47 | Q17: 24 | R17: 0 | S17: 22 | T17: 0 | U17: 36 | V17: 0.1944444444 | W17: 93 | X17: 0.2580645161
A18: UNIMOG | I18: 36 | J18: 13 | K18: 0 | L18: 11 | M18: 0 | N18: 60 | O18: 0.2166666667 | P18: 36 | Q18: 13 | R18: 0 | S18: 11 | T18: 0 | W18: 60 | X18: 0.2166666667
A19: GMC | I19: 16 | J19: 22 | K19: 0 | L19: 7 | M19: 0 | N19: 45 | O19: 0.4888888889 | P19: 16 | Q19: 22 | R19: 0 | S19: 7 | T19: 0 | W19: 45 | X19: 0.4888888889
A20: FIAT | I20: 24 | J20: 8 | K20: 0 | L20: 8 | M20: 0 | N20: 40 | O20: 0.2 | P20: 24 | Q20: 8 | R20: 0 | S20: 8 | T20: 0 | W20: 40 | X20: 0.2
A21: TRISTAR | I21: 24 | J21: 8 | K21: 0 | L21: 5 | M21: 0 | N21: 37 | O21: 0.2162162162 | P21: 24 | Q21: 8 | R21: 0 | S21: 5 | T21: 0 | W21: 37 | X21: 0.2162162162
A22: MITSUBISHI | I22: 8 | J22: 12 | K22: 0 | L22: 10 | M22: 0 | N22: 30 | O22: 0.4 | P22: 8 | Q22: 12 | R22: 0 | S22: 10 | T22: 0 | W22: 30 | X22: 0.4
A23: Beskrivning saknas | B23: 2 | C23: 5 | D23: 0 | E23: 0 | F23: 2 | I23: 11 | J23: 0 | K23: 0 | L23: 0 | M23: 0 | N23: 11 | O23: 0 | P23: 13 | Q23: 5 | R23: 0 | S23: 0 | T23: 2 | U23: 9 | V23: 0.5555555556 | W23: 20 | X23: 0.25
A24: MAZDA | I24: 1 | J24: 8 | K24: 0 | L24: 4 | M24: 0 | N24: 13 | O24: 0.6153846154 | P24: 1 | Q24: 8 | R24: 0 | S24: 4 | T24: 0 | W24: 13 | X24: 0.6153846154
A25: HANOMAG/HANOMAG HENSCHEL | I25: 4 | J25: 6 | K25: 0 | L25: 2 | M25: 0 | N25: 12 | O25: 0.5 | P25: 4 | Q25: 6 | R25: 0 | S25: 2 | T25: 0 | W25: 12 | X25: 0.5
A26: NISSAN | I26: 4 | J26: 3 | K26: 0 | L26: 4 | M26: 0 | N26: 11 | O26: 0.2727272727 | P26: 4 | Q26: 3 | R26: 0 | S26: 4 | T26: 0 | W26: 11 | X26: 0.2727272727
A27: HÄGGLUNDS | I27: 5 | J27: 0 | K27: 0 | L27: 6 | M27: 0 | N27: 11 | O27: 0 | P27: 5 | Q27: 0 | R27: 0 | S27: 6 | T27: 0 | W27: 11 | X27: 0
A28: ISUZU | I28: 4 | J28: 4 | K28: 0 | L28: 2 | M28: 0 | N28: 10 | O28: 0.4 | P28: 4 | Q28: 4 | R28: 0 | S28: 2 | T28: 0 | W28: 10 | X28: 0.4
A29: INTERNATIONAL | I29: 4 | J29: 1 | K29: 0 | L29: 1 | M29: 0 | N29: 6 | O29: 0.1666666667 | P29: 4 | Q29: 1 | R29: 0 | S29: 1 | T29: 0 | W29: 6 | X29: 0.1666666667
A30: OPEL | I30: 3 | J30: 2 | K30: 0 | L30: 1 | M30: 0 | N30: 6 | O30: 0.3333333333 | P30: 3 | Q30: 2 | R30: 0 | S30: 1 | T30: 0 | W30: 6 | X30: 0.3333333333
A31: JEEP | I31: 5 | J31: 0 | K31: 0 | L31: 0 | M31: 0 | N31: 5 | O31: 0 | P31: 5 | Q31: 0 | R31: 0 | S31: 0 | T31: 0 | W31: 5 | X31: 0
A32: NEOPLAN | B32: 0 | C32: 2 | D32: 0 | E32: 1 | F32: 0 | I32: 0 | J32: 1 | K32: 0 | L32: 0 | M32: 0 | N32: 1 | O32: 1 | P32: 0 | Q32: 3 | R32: 0 | S32: 1 | T32: 0 | U32: 3 | V32: 0.6666666667 | W32: 4 | X32: 0.75
A33: TOYOTA | I33: 1 | J33: 3 | K33: 0 | L33: 0 | M33: 0 | N33: 4 | O33: 0.75 | P33: 1 | Q33: 3 | R33: 0 | S33: 0 | T33: 0 | W33: 4 | X33: 0.75
A34: BEDFORD | I34: 1 | J34: 3 | K34: 0 | L34: 0 | M34: 0 | N34: 4 | O34: 0.75 | P34: 1 | Q34: 3 | R34: 0 | S34: 0 | T34: 0 | W34: 4 | X34: 0.75
A35: STEYR/STEYR-PUCH | I35: 2 | J35: 0 | K35: 0 | L35: 1 | M35: 0 | N35: 3 | O35: 0 | P35: 2 | Q35: 0 | R35: 0 | S35: 1 | T35: 0 | W35: 3 | X35: 0
A36: K-SETRA | I36: 0 | J36: 3 | K36: 0 | L36: 0 | M36: 0 | N36: 3 | O36: 1 | P36: 0 | Q36: 3 | R36: 0 | S36: 0 | T36: 0 | W36: 3 | X36: 1
A37: WILLYS/WILLYS-OVERLAND | B37: 1 | C37: 0 | D37: 0 | E37: 1 | F37: 0 | P37: 1 | Q37: 0 | R37: 0 | S37: 1 | T37: 0 | U37: 2 | V37: 0 | W37: 2 | X37: 0
A38: SAAB | I38: 1 | J38: 1 | K38: 0 | L38: 0 | M38: 0 | N38: 2 | O38: 0.5 | P38: 1 | Q38: 1 | R38: 0 | S38: 0 | T38: 0 | W38: 2 | X38: 0.5
A39: PEUGEOT | I39: 2 | J39: 0 | K39: 0 | L39: 0 | M39: 0 | N39: 2 | O39: 0 | P39: 2 | Q39: 0 | R39: 0 | S39: 0 | T39: 0 | W39: 2 | X39: 0
A40: CITROEN | I40: 2 | J40: 0 | K40: 0 | L40: 0 | M40: 0 | N40: 2 | O40: 0 | P40: 2 | Q40: 0 | R40: 0 | S40: 0 | T40: 0 | W40: 2 | X40: 0
A41: BÜSSING | I41: 0 | J41: 0 | K41: 0 | L41: 1 | M41: 0 | N41: 1 | O41: 0 | P41: 0 | Q41: 0 | R41: 0 | S41: 1 | T41: 0 | W41: 1 | X41: 0
A42: HOBBY | I42: 0 | J42: 1 | K42: 0 | L42: 0 | M42: 0 | N42: 1 | O42: 1 | P42: 0 | Q42: 1 | R42: 0 | S42: 0 | T42: 0 | W42: 1 | X42: 1
A43: TRAILERGRUPPEN/TGAB | I43: 0 | J43: 0 | K43: 0 | L43: 1 | M43: 0 | N43: 1 | O43: 0 | P43: 0 | Q43: 0 | R43: 0 | S43: 1 | T43: 0 | W43: 1 | X43: 0
A44: BMC | I44: 1 | J44: 0 | K44: 0 | L44: 0 | M44: 0 | N44: 1 | O44: 0 | P44: 1 | Q44: 0 | R44: 0 | S44: 0 | T44: 0 | W44: 1 | X44: 0
A45: HUMMER | I45: 0 | J45: 1 | K45: 0 | L45: 0 | M45: 0 | N45: 1 | O45: 1 | P45: 0 | Q45: 1 | R45: 0 | S45: 0 | T45: 0 | W45: 1 | X45: 1
A46: FLEETWOOD | I46: 1 | J46: 0 | K46: 0 | L46: 0 | M46: 0 | N46: 1 | O46: 0 | P46: 1 | Q46: 0 | R46: 0 | S46: 0 | T46: 0 | W46: 1 | X46: 0
A47: BORGWARD | I47: 1 | J47: 0 | K47: 0 | L47: 0 | M47: 0 | N47: 1 | O47: 0 | P47: 1 | Q47: 0 | R47: 0 | S47: 0 | T47: 0 | W47: 1 | X47: 0
A48: MAGIRUS/MAGIRUS-DEUTTZ | I48: 1 | J48: 0 | K48: 0 | L48: 0 | M48: 0 | N48: 1 | O48: 0 | P48: 1 | Q48: 0 | R48: 0 | S48: 0 | T48: 0 | W48: 1 | X48: 0
A49: OMNINOVA | I49: 0 | J49: 1 | K49: 0 | L49: 0 | M49: 0 | N49: 1 | O49: 1 | P49: 0 | Q49: 1 | R49: 0 | S49: 0 | T49: 0 | W49: 1 | X49: 1
A50: FRANKIA | I50: 1 | J50: 0 | K50: 0 | L50: 0 | M50: 0 | N50: 1 | O50: 0 | P50: 1 | Q50: 0 | R50: 0 | S50: 0 | T50: 0 | W50: 1 | X50: 0
A51: JOHNSON | I51: 1 | J51: 0 | K51: 0 | L51: 0 | M51: 0 | N51: 1 | O51: 0 | P51: 1 | Q51: 0 | R51: 0 | S51: 0 | T51: 0 | W51: 1 | X51: 0
A52: Totalt, samtliga märken | B52: 8823 | C52: 12065 | D52: 169 | E52: 5299 | F52: 2 | I52: 3206 | J52: 3039 | K52: 33 | L52: 1816 | M52: 0 | N52: 8094 | O52: 0.3754633062 | P52: 12029 | Q52: 15104 | R52: 202 | S52: 7115 | T52: 2 | U52: 26358 | V52: 0.4577357918 | W52: 34452 | X52: 0.4384070591

Sheet Pivot B System (hidden)
B3: Kolumnetiketter
B4: > 16000 | E4: 3,5-16 ton | H4: Tunga samtliga
A5: Radetiketter | B5: Summa av 2 Underkänd Med Efterk | C5: Summa av 3 Körförbud | D5: Summa av X Underkänd Utan Efterk | E5: Summa av 2 Underkänd Med Efterk | F5: Summa av 3 Körförbud | G5: Summa av X Underkänd Utan Efterk | H5: Summa av 2 Underkänd Med Efterk | I5: Summa av 3 Körförbud | J5: Summa av X Underkänd Utan Efterk
A6: 1. Stomme | B6: 682 | C6: 3 | D6: 351 | E6: 231 | F6: 1 | G6: 127 | H6: 913 | I6: 4 | J6: 478
A7: 2. Hjulsystem | B7: 4015 | C7: 25 | D7: 1211 | E7: 782 | F7: 5 | G7: 213 | H7: 4797 | I7: 30 | J7: 1424
A8: 3. Drivsystem | B8: 1220 | C8: 0 | D8: 1827 | E8: 421 | F8: 0 | G8: 456 | H8: 1641 | I8: 0 | J8: 2283
A9: 4. Bromssystem | B9: 7215 | C9: 135 | D9: 301 | E9: 1938 | F9: 24 | G9: 103 | H9: 9153 | I9: 159 | J9: 404
A10: 5. Styrsystem | B10: 2675 | C10: 6 | D10: 0 | E10: 469 | F10: 3 | G10: 2 | H10: 3144 | I10: 9 | J10: 2
A11: 6. Karosseri | B11: 715 | C11: 0 | D11: 3109 | E11: 238 | F11: 1 | G11: 597 | H11: 953 | I11: 1 | J11: 3706
A12: 7. Kommunikation | B12: 3330 | C12: 0 | D12: 10062 | E12: 776 | F12: 0 | G12: 3003 | H12: 4106 | I12: 0 | J12: 13065
A13: 8. Instrumentering | B13: 41 | C13: 0 | D13: 14 | E13: 38 | F13: 0 | G13: 4 | H13: 79 | I13: 0 | J13: 18
A14: 9. Övrigt | B14: 2771 | C14: 0 | D14: 570 | E14: 107 | F14: 0 | G14: 89 | H14: 2878 | I14: 0 | J14: 659
A15: 30. Miljökontroll | B15: 327 | C15: 0 | D15: 0 | E15: 106 | F15: 0 | G15: 0 | H15: 433 | I15: 0 | J15: 0
A16: 80. Kontroll Inte Utförd | B16: 46 | C16: 0 | D16: 0 | E16: 6 | F16: 0 | G16: 0 | H16: 52 | I16: 0 | J16: 0

Sheet Utdata B System
A3: Andel underkända per systemdel | B3: Kolumnetiketter
B4: > 16000 | E4: 3,5-16 ton | H4: 3,5-16 ton | I4: Tunga samtliga | L4: Över 16 ton | M4: Tunga, samtliga viktklasser
A5: 1. Stomme | B5: 682 | C5: 3 | D5: 351 | E5: 231 | F5: 1 | G5: 127 | H5: =SUM(E5:G5)/Antal_besiktade_3_5_till_16 -> 0.04435384235 | I5: 913 | J5: 4 | K5: 478 | L5: =(B5+C5+D5)/Antal_besiktade_16_ton -> 0.03930495485 | M5: =SUM(I5:K5)/(Antal_besiktade_16_ton+Antal_besiktade_3_5_till_16) -> 0.04049111808
A6: 2. Hjulsystem | B6: 4015 | C6: 25 | D6: 1211 | E6: 782 | F6: 5 | G6: 213 | H6: 0.1235483074 | I6: 4797 | J6: 30 | K6: 1424 | L6: 0.1992184536 | M6: 0.1814408452
A7: 3. Drivsystem | B7: 1220 | C7: 0 | D7: 1827 | E7: 421 | F7: 0 | G7: 456 | H7: 0.1083518656 | I7: 1641 | J7: 0 | K7: 2283 | L7: 0.1156005767 | M7: 0.1138975967
A8: 4. Bromssystem | B8: 7215 | C8: 135 | D8: 301 | E8: 1938 | F8: 24 | G8: 103 | H8: 0.2551272548 | I8: 9153 | J8: 159 | K8: 404 | L8: 0.2902724031 | M8: 0.2820155579
A9: 5. Styrsystem | B9: 2675 | C9: 6 | D9: 0 | E9: 469 | F9: 3 | G9: 2 | H9: 0.0585618977 | I9: 3144 | J9: 9 | K9: 2 | L9: 0.1017148494 | M9: 0.0915766864
A10: 6. Karosseri | B10: 715 | C10: 0 | D10: 3109 | E10: 238 | F10: 1 | G10: 597 | H10: 0.103286385 | I10: 953 | J10: 1 | K10: 3706 | L10: 0.1450792928 | M10: 0.1352606525
A11: 7. Kommunikation | B11: 3330 | C11: 0 | D11: 10062 | E11: 776 | F11: 0 | G11: 3003 | H11: 0.4668890536 | I11: 4106 | J11: 0 | K11: 13065 | L11: 0.508081038 | M11: 0.498403576
A12: 8. Instrumentering | B12: 41 | C12: 0 | D12: 14 | E12: 38 | F12: 0 | G12: 4 | H12: 0.00518902891 | I12: 79 | J12: 0 | K12: 18 | L12: 0.002086653009 | M12: 0.002815511436
A13: 9. Övrigt | B13: 2771 | C13: 0 | D13: 570 | E13: 107 | F13: 0 | G13: 89 | H13: 0.02421546825 | I13: 2878 | J13: 0 | K13: 659 | L13: 0.1267546855 | M13: 0.1026645768
A14: 30. Miljökontroll | B14: 327 | C14: 0 | D14: 0 | E14: 106 | F14: 0 | G14: 0 | H14: 0.01309612058 | I14: 433 | J14: 0 | K14: 0 | L14: 0.01240610061 | M14: 0.01256821084
A15: 80. Kontroll Inte Utförd | B15: 46 | C15: 0 | D15: 0 | E15: 6 | F15: 0 | G15: 0 | H15: 0.0007412898443 | I15: 52 | J15: 0 | K15: 0 | L15: 0.001745200698 | M15: 0.001509346337

Sheet B_System (hidden)
A1: Viktklass | B1: System | C1: 2 Underkänd Med Efterk | D1: 3 Körförbud | E1: J Justering | F1: X Underkänd Utan Efterk
A2: 3,5-16 ton | B2: 1. Stomme | C2: 25 | D2: 0 | E2: 0 | F2: 16
A3: 3,5-16 ton | B3: 2. Hjulsystem | C3: 94 | D3: 0 | E3: 0 | F3: 18
A4: 3,5-16 ton | B4: 3. Drivsystem | C4: 69 | D4: 0 | E4: 0 | F4: 58
A5: 3,5-16 ton | B5: 4. Bromssystem | C5: 234 | D5: 4 | E5: 0 | F5: 8
A6: 3,5-16 ton | B6: 5. Styrsystem | C6: 55 | D6: 0 | E6: 0 | F6: 1
A7: 3,5-16 ton | B7: 6. Karosseri | C7: 25 | D7: 0 | E7: 0 | F7: 74
A8: 3,5-16 ton | B8: 7. Kommunikation | C8: 114 | D8: 0 | E8: 7 | F8: 369
A9: 3,5-16 ton | B9: 8. Instrumentering | C9: 2 | D9: 0 | E9: 0 | F9: 0
A10: 3,5-16 ton | B10: 9. Övrigt | C10: 9 | D10: 0 | E10: 0 | F10: 11
A11: 3,5-16 ton | B11: 30. Miljökontroll | C11: 18 | D11: 0 | E11: 0 | F11: 0
A12: Tunga samtliga | B12: 1. Stomme | C12: 97 | D12: 0 | E12: 0 | F12: 62
A13: Tunga samtliga | B13: 2. Hjulsystem | C13: 598 | D13: 5 | E13: 0 | F13: 162
A14: Tunga samtliga | B14: 3. Drivsystem | C14: 269 | D14: 0 | E14: 0 | F14: 286
A15: Tunga samtliga | B15: 4. Bromssystem | C15: 1214 | D15: 23 | E15: 0 | F15: 46
A16: Tunga samtliga | B16: 5. Styrsystem | C16: 433 | D16: 0 | E16: 0 | F16: 1
A17: Tunga samtliga | B17: 6. Karosseri | C17: 137 | D17: 0 | E17: 0 | F17: 476
A18: Tunga samtliga | B18: 7. Kommunikation | C18: 590 | D18: 0 | E18: 28 | F18: 1656
A19: Tunga samtliga | B19: 8. Instrumentering | C19: 5 | D19: 0 | E19: 0 | F19: 6
A20: Tunga samtliga | B20: 9. Övrigt | C20: 373 | D20: 0 | E20: 0 | F20: 82
A21: Tunga samtliga | B21: 30. Miljökontroll | C21: 65 | D21: 0 | E21: 0 | F21: 0
A22: Tunga samtliga | B22: 80. Kontroll Inte Utförd | C22: 6 | D22: 0 | E22: 0 | F22: 0
A23: > 16000 | B23: 1. Stomme | C23: 72 | D23: 0 | E23: 0 | F23: 46
A24: > 16000 | B24: 2. Hjulsystem | C24: 504 | D24: 5 | E24: 0 | F24: 144
A25: > 16000 | B25: 3. Drivsystem | C25: 200 | D25: 0 | E25: 0 | F25: 228
A26: > 16000 | B26: 4. Bromssystem | C26: 980 | D26: 19 | E26: 0 | F26: 38
A27: > 16000 | B27: 5. Styrsystem | C27: 378 | D27: 0 | E27: 0 | F27: 0
A28: > 16000 | B28: 6. Karosseri | C28: 112 | D28: 0 | E28: 0 | F28: 402
A29: > 16000 | B29: 7. Kommunikation | C29: 476 | D29: 0 | E29: 21 | F29: 1287
A30: > 16000 | B30: 8. Instrumentering | C30: 3 | D30: 0 | E30: 0 | F30: 6
A31: > 16000 | B31: 9. Övrigt | C31: 364 | D31: 0 | E31: 0 | F31: 71
A32: > 16000 | B32: 30. Miljökontroll | C32: 47 | D32: 0 | E32: 0 | F32: 0
A33: > 16000 | B33: 80. Kontroll Inte Utförd | C33: 6 | D33: 0 | E33: 0 | F33: 0
A34: 3,5-16 ton | B34: 1. Stomme | C34: 206 | D34: 1 | E34: 0 | F34: 111
A35: 3,5-16 ton | B35: 2. Hjulsystem | C35: 688 | D35: 5 | E35: 0 | F35: 195
A36: 3,5-16 ton | B36: 3. Drivsystem | C36: 352 | D36: 0 | E36: 0 | F36: 398
A37: 3,5-16 ton | B37: 4. Bromssystem | C37: 1704 | D37: 20 | E37: 0 | F37: 95
A38: 3,5-16 ton | B38: 5. Styrsystem | C38: 414 | D38: 3 | E38: 0 | F38: 1
A39: 3,5-16 ton | B39: 6. Karosseri | C39: 213 | D39: 1 | E39: 0 | F39: 523
A40: 3,5-16 ton | B40: 7. Kommunikation | C40: 662 | D40: 0 | E40: 55 | F40: 2634
A41: 3,5-16 ton | B41: 8. Instrumentering | C41: 36 | D41: 0 | E41: 0 | F41: 4
A42: 3,5-16 ton | B42: 9. Övrigt | C42: 98 | D42: 0 | E42: 0 | F42: 78
A43: 3,5-16 ton | B43: 30. Miljökontroll | C43: 88 | D43: 0 | E43: 0 | F43: 0
A44: 3,5-16 ton | B44: 80. Kontroll Inte Utförd | C44: 6 | D44: 0 | E44: 0 | F44: 0
A45: > 16000 | B45: 1. Stomme | C45: 610 | D45: 3 | E45: 0 | F45: 305
A46: > 16000 | B46: 2. Hjulsystem | C46: 3511 | D46: 20 | E46: 0 | F46: 1067
A47: > 16000 | B47: 3. Drivsystem | C47: 1020 | D47: 0 | E47: 0 | F47: 1599
A48: > 16000 | B48: 4. Bromssystem | C48: 6235 | D48: 116 | E48: 0 | F48: 263
A49: > 16000 | B49: 5. Styrsystem | C49: 2297 | D49: 6 | E49: 0 | F49: 0
A50: > 16000 | B50: 6. Karosseri | C50: 603 | D50: 0 | E50: 0 | F50: 2707
A51: > 16000 | B51: 7. Kommunikation | C51: 2854 | D51: 0 | E51: 98 | F51: 8775
A52: > 16000 | B52: 8. Instrumentering | C52: 38 | D52: 0 | E52: 0 | F52: 8
A53: > 16000 | B53: 9. Övrigt | C53: 2407 | D53: 0 | E53: 0 | F53: 499
A54: > 16000 | B54: 30. Miljökontroll | C54: 280 | D54: 0 | E54: 0 | F54: 0
A55: > 16000 | B55: 80. Kontroll Inte Utförd | C55: 40 | D55: 0 | E55: 0 | F55: 0
A56: Tunga samtliga | B56: 1. Stomme | C56: 816 | D56: 4 | E56: 0 | F56: 416
A57: Tunga samtliga | B57: 2. Hjulsystem | C57: 4199 | D57: 25 | E57: 0 | F57: 1262
A58: Tunga samtliga | B58: 3. Drivsystem | C58: 1372 | D58: 0 | E58: 0 | F58: 1997
A59: Tunga samtliga | B59: 4. Bromssystem | C59: 7939 | D59: 136 | E59: 0 | F59: 358
A60: Tunga samtliga | B60: 5. Styrsystem | C60: 2711 | D60: 9 | E60: 0 | F60: 1
A61: Tunga samtliga | B61: 6. Karosseri | C61: 816 | D61: 1 | E61: 0 | F61: 3230
A62: Tunga samtliga | B62: 7. Kommunikation | C62: 3516 | D62: 0 | E62: 153 | F62: 11409
A63: Tunga samtliga | B63: 8. Instrumentering | C63: 74 | D63: 0 | E63: 0 | F63: 12
A64: Tunga samtliga | B64: 9. Övrigt | C64: 2505 | D64: 0 | E64: 0 | F64: 577
A65: Tunga samtliga | B65: 30. Miljökontroll | C65: 368 | D65: 0 | E65: 0 | F65: 0
A66: Tunga samtliga | B66: 80. Kontroll Inte Utförd | C66: 46 | D66: 0 | E66: 0 | F66: 0

Sheet Pivot B Komponent (hidden)
B3: Kolumnetiketter
B4: > 16000 | E4: 3,5-16 ton | H4: Tunga samtliga
A5: Radetiketter | B5: Summa av 2 Underkänd Med Efterk | C5: Summa av 3 Körförbud | D5: Summa av X Underkänd Utan Efterk | E5: Summa av 2 Underkänd Med Efterk | F5: Summa av 3 Körförbud | G5: Summa av X Underkänd Utan Efterk | H5: Summa av 2 Underkänd Med Efterk | I5: Summa av 3 Körförbud | J5: Summa av X Underkänd Utan Efterk
A6: 1.1.1 Ram | B6: 296 | C6: 1 | D6: 0 | E6: 115 | F6: 1 | G6: 0 | H6: 411 | I6: 2 | J6: 0
A7: 1.1.2 Balkprofil | B7: 160 | C7: 0 | D7: 0 | E7: 79 | F7: 0 | G7: 1 | H7: 239 | I7: 0 | J7: 1
A8: 1.1.3 Plåtyta | B8: 8 | C8: 0 | D8: 0 | E8: 15 | F8: 0 | G8: 0 | H8: 23 | I8: 0 | J8: 0
A9: 1.2.1 Infästning Hjulsystem | B9: 76 | C9: 2 | D9: 0 | E9: 28 | F9: 0 | G9: 0 | H9: 104 | I9: 2 | J9: 0
A10: 1.2.2 Infästning Drivsystem | B10: 7 | C10: 0 | D10: 0 | E10: 2 | F10: 0 | G10: 0 | H10: 9 | I10: 0 | J10: 0
A11: 1.2.3 Infästning Bromssystem | B11: 1 | C11: 0 | D11: 0 | H11: 1 | I11: 0 | J11: 0
A12: 1.2.4 Infästning Styrsystem | B12: 1 | C12: 0 | D12: 0
A13: 1.2.5 Infästning Karosseri | B13: 24 | C13: 0 | D13: 2 | E13: 15 | F13: 0 | G13: 0 | H13: 39 | I13: 0 | J13: 2
A14: 1.2.6 Infästning Kopplingsanordning | B14: 1 | C14: 0 | D14: 0 | E14: 5 | F14: 0 | G14: 0 | H14: 6 | I14: 0 | J14: 0
A15: 1.3.1 Underkörningsskydd | B15: 63 | C15: 0 | D15: 168 | E15: 4 | F15: 0 | G15: 72 | H15: 67 | I15: 0 | J15: 240
A16: 1.3.2 Sidoskydd | B16: 92 | C16: 0 | D16: 187 | E16: 11 | F16: 0 | G16: 54 | H16: 103 | I16: 0 | J16: 241
A17: 2.1.1 Däck | B17: 709 | C17: 0 | D17: 959 | E17: 129 | F17: 0 | G17: 134 | H17: 838 | I17: 0 | J17: 1093
A18: 2.1.2 Hjul/Fälg | B18: 18 | C18: 0 | D18: 28 | E18: 10 | F18: 0 | G18: 23 | H18: 28 | I18: 0 | J18: 51
A19: 2.1.3 Hjullager | B19: 1046 | C19: 1 | D19: 1 | E19: 186 | F19: 0 | G19: 1 | H19: 1232 | I19: 1 | J19: 2
A20: 2.1.5 Däcktrycksövervakning | B20: 1 | C20: 0 | D20: 0
A21: 2.2.1 Fjädring | B21: 1173 | C21: 8 | D21: 0 | E21: 150 | F21: 2 | G21: 0 | H21: 1323 | I21: 10 | J21: 0
A22: 2.2.2 Fjädersäte | B22: 27 | C22: 1 | D22: 0 | E22: 12 | F22: 0 | G22: 0 | H22: 39 | I22: 1 | J22: 0
A23: 2.2.3 Stötdämpare | B23: 129 | C23: 0 | D23: 201 | E23: 34 | F23: 0 | G23: 58 | H23: 163 | I23: 0 | J23: 259
A24: 2.3.1 Axel | B24: 527 | C24: 2 | D24: 41 | E24: 83 | F24: 0 | G24: 1 | H24: 610 | I24: 2 | J24: 42
A25: 2.3.2 Tvärstag | B25: 4 | C25: 0 | D25: 0 | E25: 15 | F25: 0 | G25: 0 | H25: 19 | I25: 0 | J25: 0
A26: 2.3.3 Länkarm | B26: 624 | C26: 13 | D26: 0 | E26: 49 | F26: 2 | G26: 0 | H26: 673 | I26: 15 | J26: 0
A27: 2.3.4 Spindelled | B27: 6 | C27: 0 | D27: 0 | E27: 93 | F27: 0 | G27: 0 | H27: 99 | I27: 0 | J27: 0
A28: 2.3.5 Spindeltapp | B28: 576 | C28: 0 | D28: 0 | E28: 132 | F28: 1 | G28: 0 | H28: 708 | I28: 1 | J28: 0
A29: 3.1.1 Motor | B29: 47 | C29: 0 | D29: 883 | E29: 18 | F29: 0 | G29: 182 | H29: 65 | I29: 0 | J29: 1065
A30: 3.1.2 Bränslesystem | B30: 156 | C30: 0 | D30: 22 | E30: 91 | F30: 0 | G30: 15 | H30: 247 | I30: 0 | J30: 37
A31: 3.1.3 Avgassystem | B31: 878 | C31: 0 | D31: 267 | E31: 258 | F31: 0 | G31: 149 | H31: 1136 | I31: 0 | J31: 416
A32: 3.1.4 El-System | B32: 55 | C32: 0 | D32: 7 | E32: 39 | F32: 0 | G32: 44 | H32: 94 | I32: 0 | J32: 51
A33: 3.1.5 Hastighetsregulator | B33: 37 | C33: 0 | D33: 380 | E33: 2 | F33: 0 | G33: 48 | H33: 39 | I33: 0 | J33: 428
A34: 3.1.6 Hydraulsystem | B34: 21 | C34: 0 | D34: 310 | E34: 5 | F34: 0 | G34: 28 | H34: 26 | I34: 0 | J34: 338
A35: 3.2.1 Växlingssystem | B35: 24 | C35: 0 | D35: 41 | E35: 8 | F35: 0 | G35: 6 | H35: 32 | I35: 0 | J35: 47
A36: 3.2.2 Kraftöverföring | B36: 49 | C36: 0 | D36: 25 | E36: 30 | F36: 0 | G36: 4 | H36: 79 | I36: 0 | J36: 29
A37: 30.1.10 Denox-System | B37: 6 | C37: 0 | D37: 0
A38: 30.1.9 Omborddiagnossystem | B38: 14 | C38: 0 | D38: 0 | E38: 2 | F38: 0 | G38: 0 | H38: 16 | I38: 0 | J38: 0
A39: 30.3.1 Miljökontroll Mätning | B39: 51 | C39: 0 | D39: 0 | E39: 42 | F39: 0 | G39: 0 | H39: 93 | I39: 0 | J39: 0
A40: 30.4.1 Köldmedie Kontrollrapport | B40: 257 | C40: 0 | D40: 0 | E40: 63 | F40: 0 | G40: 0 | H40: 320 | I40: 0 | J40: 0
A41: 4.1.1 Färdbroms Retardation | B41: 884 | C41: 117 | D41: 0 | E41: 29 | F41: 5 | G41: 0 | H41: 913 | I41: 122 | J41: 0
A42: 4.2.1 Färdbroms Bromskraftfördelning | B42: 2750 | C42: 3 | D42: 0 | E42: 674 | F42: 1 | G42: 0 | H42: 3424 | I42: 4 | J42: 0
A43: 4.2.2 Färdbroms Funktion | B43: 553 | C43: 0 | D43: 0 | E43: 109 | F43: 0 | G43: 0 | H43: 662 | I43: 0 | J43: 0
A44: 4.2.3 Färdbroms Rörelsereserv | B44: 71 | C44: 0 | D44: 0 | E44: 8 | F44: 1 | G44: 0 | H44: 79 | I44: 1 | J44: 0
A45: 4.2.4 Färdbroms Hjulbroms | B45: 2115 | C45: 11 | D45: 83 | E45: 522 | F45: 8 | G45: 56 | H45: 2637 | I45: 19 | J45: 139
A46: 4.2.5 Tillsatsbroms | B46: 3 | C46: 0 | D46: 12 | E46: 0 | F46: 0 | G46: 1 | H46: 3 | I46: 0 | J46: 13
A47: 4.3.1 Färdbroms Reglage | B47: 1 | C47: 0 | D47: 0 | E47: 2 | F47: 1 | G47: 0 | H47: 3 | I47: 1 | J47: 0
A48: 4.3.2 Färdbroms Huvudcylinder | B48: 1 | C48: 0 | D48: 0 | E48: 6 | F48: 0 | G48: 4 | H48: 7 | I48: 0 | J48: 4
A49: 4.4.1 Bromsledning | B49: 530 | C49: 5 | D49: 0 | E49: 304 | F49: 9 | G49: 0 | H49: 834 | I49: 14 | J49: 0
A50: 4.4.2 Färdbroms Länksystem | B50: 122 | C50: 0 | D50: 0 | E50: 4 | F50: 0 | G50: 0 | H50: 126 | I50: 0 | J50: 0
A51: 4.4.3 Bromshävarm | B51: 320 | C51: 0 | D51: 0 | E51: 10 | F51: 0 | G51: 0 | H51: 330 | I51: 0 | J51: 0
A52: 4.4.4 Bromscylinder | B52: 847 | C52: 2 | D52: 0 | E52: 80 | F52: 1 | G52: 0 | H52: 927 | I52: 3 | J52: 0
A53: 4.4.5 Bromsventil | B53: 253 | C53: 0 | D53: 0 | E53: 62 | F53: 0 | G53: 0 | H53: 315 | I53: 0 | J53: 0
A54: 4.4.6 Bromssystem Uttag | B54: 788 | C54: 0 | D54: 1 | E54: 54 | F54: 0 | G54: 0 | H54: 842 | I54: 0 | J54: 1
A55: 4.5.1 Lastkännande Ventil | B55: 71 | C55: 0 | D55: 2 | E55: 40 | F55: 0 | G55: 0 | H55: 111 | I55: 0 | J55: 2
A56: 4.5.2 Abs-System | B56: 872 | C56: 0 | D56: 14 | E56: 130 | F56: 0 | G56: 0 | H56: 1002 | I56: 0 | J56: 14
A57: 4.6.1 Färdbroms Tryckluft | B57: 323 | C57: 0 | D57: 141 | E57: 55 | F57: 0 | G57: 31 | H57: 378 | I57: 0 | J57: 172
A58: 4.6.2 Färdbroms Frysskydd | B58: 408 | C58: 0 | D58: 0 | E58: 10 | F58: 0 | G58: 5 | H58: 418 | I58: 0 | J58: 5
A59: 4.6.4 Färdbroms Varningsanordning | B59: 54 | C59: 0 | D59: 47 | E59: 26 | F59: 0 | G59: 7 | H59: 80 | I59: 0 | J59: 54
A60: 4.7.1 Parkeringsbroms Bromsfunktion | B60: 199 | C60: 0 | D60: 1 | E60: 483 | F60: 0 | G60: 0 | H60: 682 | I60: 0 | J60: 1
A61: 4.7.2 Parkeringsbroms Transmission | B61: 7 | C61: 0 | D61: 0 | E61: 8 | F61: 0 | G61: 0 | H61: 15 | I61: 0 | J61: 0
A62: 4.7.3 Parkeringsbroms Hjulbroms | B62: 2 | C62: 0 | D62: 0 | E62: 2 | F62: 0 | G62: 0 | H62: 4 | I62: 0 | J62: 0
A63: 5.1.1 Ratt | B63: 4 | C63: 0 | D63: 0 | E63: 1 | F63: 0 | G63: 0 | H63: 5 | I63: 0 | J63: 0
A64: 5.1.3 Rattaxel | B64: 33 | C64: 0 | D64: 0 | E64: 6 | F64: 0 | G64: 0 | H64: 39 | I64: 0 | J64: 0
A65: 5.1.4 Styrväxel | B65: 76 | C65: 0 | D65: 0 | E65: 18 | F65: 0 | G65: 2 | H65: 94 | I65: 0 | J65: 2
A66: 5.1.5 Systemfunktion Styrning | B66: 22 | C66: 0 | D66: 0 | E66: 37 | F66: 0 | G66: 0 | H66: 59 | I66: 0 | J66: 0
A67: 5.2.1 Styrsystem Arm/Stag | B67: 102 | C67: 0 | D67: 0 | E67: 19 | F67: 0 | G67: 0 | H67: 121 | I67: 0 | J67: 0
A68: 5.2.2 Styrled | B68: 2489 | C68: 6 | D68: 0 | E68: 401 | F68: 3 | G68: 0 | H68: 2890 | I68: 9 | J68: 0
A69: 6.1.1 Dörr | B69: 83 | C69: 0 | D69: 556 | E69: 12 | F69: 0 | G69: 39 | H69: 95 | I69: 0 | J69: 595
A70: 6.1.2 Främre Huv | B70: 2 | C70: 0 | D70: 1 | E70: 6 | F70: 0 | G70: 28 | H70: 8 | I70: 0 | J70: 29
A71: 6.1.3 Kaross | B71: 38 | C71: 0 | D71: 0 | E71: 21 | F71: 0 | G71: 1 | H71: 59 | I71: 0 | J71: 1
A72: 6.1.4 Stänkskydd | B72: 80 | C72: 0 | D72: 850 | E72: 30 | F72: 0 | G72: 171 | H72: 110 | I72: 0 | J72: 1021
A73: 6.1.5 Ruta | B73: 62 | C73: 0 | D73: 576 | E73: 28 | F73: 0 | G73: 210 | H73: 90 | I73: 0 | J73: 786
A74: 6.2.1 Bilbälte | B74: 116 | C74: 0 | D74: 0 | E74: 21 | F74: 0 | G74: 0 | H74: 137 | I74: 0 | J74: 0
A75: 6.2.2 Förar/Passagerarplats | B75: 20 | C75: 0 | D75: 0 | E75: 3 | F75: 0 | G75: 1 | H75: 23 | I75: 0 | J75: 1
A76: 6.2.3 Utrustning Invändig | B76: 19 | C76: 0 | D76: 0 | E76: 37 | F76: 0 | G76: 0 | H76: 56 | I76: 0 | J76: 0
A77: 6.2.5 Handikapputrustning | B77: 1 | C77: 0 | D77: 0 | H77: 1 | I77: 0 | J77: 0
A78: 6.3.1 Lastutrymme | B78: 91 | C78: 0 | D78: 41 | E78: 37 | F78: 0 | G78: 13 | H78: 128 | I78: 0 | J78: 54
A79: 6.3.2 Påbyggnadsram | B79: 185 | C79: 0 | D79: 1188 | E79: 38 | F79: 0 | G79: 138 | H79: 223 | I79: 0 | J79: 1326
A80: 6.3.3 Lastbegränsande Anordning | B80: 13 | C80: 0 | D80: 44 | E80: 4 | F80: 0 | G80: 14 | H80: 17 | I80: 0 | J80: 58
A81: 6.3.4 Lastsäkringsutrustning | B81: 8 | C81: 0 | D81: 0 | E81: 1 | F81: 0 | G81: 0 | H81: 9 | I81: 0 | J81: 0
A82: 6.3.5 Lastanordning | B82: 38 | C82: 0 | D82: 4 | E82: 7 | F82: 0 | G82: 1 | H82: 45 | I82: 0 | J82: 5
A83: 6.4.1 Tillbehör Utvändigt | B83: 6 | C83: 0 | D83: 79 | E83: 4 | F83: 1 | G83: 17 | H83: 10 | I83: 1 | J83: 96
A84: 6.5.1 Gasinstallation | E84: 2 | F84: 0 | G84: 0 | H84: 2 | I84: 0 | J84: 0
A85: 7.1.1 Rengörare | B85: 55 | C85: 0 | D85: 806 | E85: 34 | F85: 0 | G85: 407 | H85: 89 | I85: 0 | J85: 1213
A86: 7.1.2 Backspegel | B86: 243 | C86: 0 | D86: 488 | E86: 32 | F86: 0 | G86: 138 | H86: 275 | I86: 0 | J86: 626
A87: 7.1.3 Huvudstrålkastare | B87: 2056 | C87: 0 | D87: 2798 | E87: 458 | F87: 0 | G87: 949 | H87: 2514 | I87: 0 | J87: 3747
A88: 7.1.4 Dimstrålkastare | B88: 725 | C88: 0 | D88: 28 | E88: 24 | F88: 0 | G88: 1 | H88: 749 | I88: 0 | J88: 29
A89: 7.1.5 Fjärrstrålkastare | B89: 8 | C89: 0 | D89: 1 | E89: 1 | F89: 0 | G89: 0 | H89: 9 | I89: 0 | J89: 1
A90: 7.1.7 Arbetsbelysning | B90: 1 | C90: 0 | D90: 40 | E90: 0 | F90: 0 | G90: 5 | H90: 1 | I90: 0 | J90: 45
A91: 7.2.1 Positionslykta | B91: 73 | C91: 0 | D91: 2282 | E91: 33 | F91: 0 | G91: 506 | H91: 106 | I91: 0 | J91: 2788
A92: 7.2.2 Sidomarkering | B92: 217 | C92: 0 | D92: 2007 | E92: 87 | F92: 0 | G92: 580 | H92: 304 | I92: 0 | J92: 2587
A93: 7.2.3 Skyltlykta | B93: 141 | C93: 0 | D93: 2546 | E93: 37 | F93: 0 | G93: 334 | H93: 178 | I93: 0 | J93: 2880
A94: 7.2.4 Reflex | B94: 125 | C94: 0 | D94: 1485 | E94: 59 | F94: 0 | G94: 636 | H94: 184 | I94: 0 | J94: 2121
A95: 7.2.5 Dimbaklykta | B95: 0 | C95: 0 | D95: 4 | E95: 0 | F95: 0 | G95: 2 | H95: 0 | I95: 0 | J95: 6
A96: 7.2.7 Annan Lykta | B96: 12 | C96: 0 | D96: 403 | E96: 7 | F96: 0 | G96: 48 | H96: 19 | I96: 0 | J96: 451
A97: 7.3.1 Körriktningsvisare | B97: 54 | C97: 0 | D97: 426 | E97: 49 | F97: 0 | G97: 270 | H97: 103 | I97: 0 | J97: 696
A98: 7.3.2 Stopplykta | B98: 183 | C98: 0 | D98: 747 | E98: 85 | F98: 0 | G98: 200 | H98: 268 | I98: 0 | J98: 947
A99: 7.3.3 Signalanordning | B99: 7 | C99: 0 | D99: 484 | E99: 6 | F99: 0 | G99: 150 | H99: 13 | I99: 0 | J99: 634
A100: 7.3.4 Varningstriangel | B100: 7 | C100: 0 | D100: 312 | E100: 4 | F100: 0 | G100: 118 | H100: 11 | I100: 0 | J100: 430
A101: 7.3.5 Larmanordning | B101: 1 | C101: 0 | D101: 0
A102: 8.1.1 Hastighetsmätare | B102: 41 | C102: 0 | D102: 14 | E102: 38 | F102: 0 | G102: 4 | H102: 79 | I102: 0 | J102: 18
A103: 80.1.1 Rullbromsprov Inte Utfört | B103: 36 | C103: 0 | D103: 0 | E103: 5 | F103: 0 | G103: 0 | H103: 41 | I103: 0 | J103: 0
A104: 80.2.1 Underredskontroll Inte Utförd | B104: 8 | C104: 0 | D104: 0 | H104: 1 | I104: 0 | J104: 0
A105: 80.3.1 Framvagnskontroll Inte Utförd | B105: 4 | C105: 0 | D105: 0 | E105: 1 | F105: 0 | G105: 0 | H105: 5 | I105: 0 | J105: 0
A106: 80.4.1 Överredskontroll Inte Utförd | B106: 4 | C106: 0 | D106: 0 | H106: 1 | I106: 0 | J106: 0
A107: 9.1.1 Kulkoppling | B107: 8 | C107: 0 | D107: 0 | E107: 32 | F107: 0 | G107: 0 | H107: 40 | I107: 0 | J107: 0
A108: 9.1.11 Kopplingsklasskylt | B108: 1 | C108: 0 | D108: 61 | E108: 0 | F108: 0 | G108: 1 | H108: 1 | I108: 0 | J108: 62
A109: 9.1.2 Bygelkoppling | B109: 2392 | C109: 0 | D109: 0 | E109: 10 | F109: 0 | G109: 0 | H109: 2402 | I109: 0 | J109: 0
A110: 9.1.4 Vändskiva | B110: 266 | C110: 0 | D110: 3 | E110: 1 | F110: 0 | G110: 0 | H110: 267 | I110: 0 | J110: 3
A111: 9.1.5 Dragbalk Kopplingsanordning | B111: 20 | C111: 0 | D111: 0 | E111: 2 | F111: 0 | G111: 0 | H111: 22 | I111: 0 | J111: 0
A112: 9.1.6 Släpvagnskontakt | B112: 1 | C112: 0 | D112: 27 | E112: 0 | F112: 0 | G112: 12 | H112: 1 | I112: 0 | J112: 39
A113: 9.2.1 Utskjutande Detalj | B113: 14 | C113: 0 | D113: 0 | E113: 8 | F113: 0 | G113: 2 | H113: 22 | I113: 0 | J113: 2
A114: 9.3.1 Identitet | B114: 16 | C114: 0 | D114: 480 | E114: 4 | F114: 0 | G114: 76 | H114: 20 | I114: 0 | J114: 556
A115: 9.3.2 Ändring | B115: 58 | C115: 0 | D115: 0 | E115: 40 | F115: 0 | G115: 0 | H115: 98 | I115: 0 | J115: 0
A116: 9.4.1 Provkörning | B116: 31 | C116: 0 | D116: 0 | E116: 13 | F116: 0 | G116: 0 | H116: 44 | I116: 0 | J116: 0

Sheet Utdata B Komponent
A3: Andel underkända per komponent | B3: Kolumnetiketter
B4: > 16000 | E4: 3,5-16 ton | H4: 3,5-16 ton | I4: Tunga samtliga | L4: Över 16 ton | M4: Tunga, samtliga viktklasser
A5: Komponent | B5: Summa av 2 Underkänd Med Efterk | C5: Summa av 3 Körförbud | D5: Summa av X Underkänd Utan Efterk | E5: Summa av 2 Underkänd Med Efterk | F5: Summa av 3 Körförbud | G5: Summa av X Underkänd Utan Efterk | H5: Andel underkända | I5: Summa av 2 Underkänd Med Efterk | J5: Summa av 3 Körförbud | K5: Summa av X Underkänd Utan Efterk | L5: Andel underkända | M5: Andel underkända
A6: 1.1.1 Ram | B6: 296 | C6: 1 | D6: 0 | E6: 115 | F6: 1 | G6: 0 | H6: =(E6+F6+G6)/Antal_besiktade_3_5_till_16 -> 0.01433160366 | I6: 411 | J6: 2 | K6: 0 | L6: =(B6+C6+D6)/Antal_besiktade_16_ton -> 0.01126792625 | M6: =(I6+J6+K6)/(Antal_besiktade_3_5_till_16+Antal_besiktade_16_ton) -> 0.01198769302
A7: 1.1.2 Balkprofil | B7: 160 | C7: 0 | D7: 0 | E7: 79 | F7: 0 | G7: 1 | H7: 0.009883864591 | I7: 239 | J7: 0 | K7: 1 | L7: 0.006070263298 | M7: 0.006966213863
A8: 1.1.3 Plåtyta | B8: 8 | C8: 0 | D8: 0 | E8: 15 | F8: 0 | G8: 0 | H8: 0.001853224611 | I8: 23 | J8: 0 | K8: 0 | L8: 0.0003035131649 | M8: 0.0006675954952
A9: 1.2.1 Infästning Hjulsystem | B9: 76 | C9: 2 | D9: 0 | E9: 28 | F9: 0 | G9: 0 | H9: 0.003459352607 | I9: 104 | J9: 2 | K9: 0 | L9: 0.002959253358 | M9: 0.003076744456
A10: 1.2.2 Infästning Drivsystem | B10: 7 | C10: 0 | D10: 0 | E10: 2 | F10: 0 | G10: 0 | H10: 0.0002470966148 | I10: 9 | J10: 0 | K10: 0 | L10: 0.0002655740193 | M10: 0.0002612330199
A11: 1.2.3 Infästning Bromssystem | B11: 1 | C11: 0 | D11: 0 | H11: 0 | I11: 1 | J11: 0 | K11: 0 | L11: 3.793914561e-05 | M11: 2.902589109e-05
A12: 1.2.4 Infästning Styrsystem | B12: 1 | C12: 0 | D12: 0 | H12: 0 | L12: 3.793914561e-05 | M12: 0
A13: 1.2.5 Infästning Karosseri | B13: 24 | C13: 0 | D13: 2 | E13: 15 | F13: 0 | G13: 0 | H13: 0.001853224611 | I13: 39 | J13: 0 | K13: 2 | L13: 0.0009864177859 | M13: 0.001190061535
A14: 1.2.6 Infästning Kopplingsanordning | B14: 1 | C14: 0 | D14: 0 | E14: 5 | F14: 0 | G14: 0 | H14: 0.0006177415369 | I14: 6 | J14: 0 | K14: 0 | L14: 3.793914561e-05 | M14: 0.0001741553466
A15: 1.3.1 Underkörningsskydd | B15: 63 | C15: 0 | D15: 168 | E15: 4 | F15: 0 | G15: 72 | H15: 0.009389671362 | I15: 67 | J15: 0 | K15: 240 | L15: 0.008763942636 | M15: 0.008910948566
A16: 1.3.2 Sidoskydd | B16: 92 | C16: 0 | D16: 187 | E16: 11 | F16: 0 | G16: 54 | H16: 0.00803063998 | I16: 103 | J16: 0 | K16: 241 | L16: 0.01058502163 | M16: 0.009984906537
A17: 2.1.1 Däck | B17: 709 | C17: 0 | D17: 959 | E17: 129 | F17: 0 | G17: 134 | H17: 0.03249320484 | I17: 838 | J17: 0 | K17: 1093 | L17: 0.06328249488 | M17: 0.0560489957
A18: 2.1.2 Hjul/Fälg | B18: 18 | C18: 0 | D18: 28 | E18: 10 | F18: 0 | G18: 23 | H18: 0.004077094144 | I18: 28 | J18: 0 | K18: 51 | L18: 0.001745200698 | M18: 0.002293045396
A19: 2.1.3 Hjullager | B19: 1046 | C19: 1 | D19: 1 | E19: 186 | F19: 0 | G19: 1 | H19: 0.02310353348 | I19: 1232 | J19: 1 | K19: 2 | L19: 0.0397602246 | M19: 0.0358469755
A20: 2.1.5 Däcktrycksövervakning | B20: 1 | C20: 0 | D20: 0 | H20: 0 | L20: 3.793914561e-05 | M20: 0
A21: 2.2.1 Fjädring | B21: 1173 | C21: 8 | D21: 0 | E21: 150 | F21: 2 | G21: 0 | H21: 0.01877934272 | I21: 1323 | J21: 10 | K21: 0 | L21: 0.04480613097 | M21: 0.03869151283
A22: 2.2.2 Fjädersäte | B22: 27 | C22: 1 | D22: 0 | E22: 12 | F22: 0 | G22: 0 | H22: 0.001482579689 | I22: 39 | J22: 1 | K22: 0 | L22: 0.001062296077 | M22: 0.001161035644
A23: 2.2.3 Stötdämpare | B23: 129 | C23: 0 | D23: 201 | E23: 34 | F23: 0 | G23: 58 | H23: 0.01136644428 | I23: 163 | J23: 0 | K23: 259 | L23: 0.01251991805 | M23: 0.01224892604
A24: 2.3.1 Axel | B24: 527 | C24: 2 | D24: 41 | E24: 83 | F24: 0 | G24: 1 | H24: 0.01037805782 | I24: 610 | J24: 2 | K24: 42 | L24: 0.021625313 | M24: 0.01898293278
A25: 2.3.2 Tvärstag | B25: 4 | C25: 0 | D25: 0 | E25: 15 | F25: 0 | G25: 0 | H25: 0.001853224611 | I25: 19 | J25: 0 | K25: 0 | L25: 0.0001517565824 | M25: 0.0005514919308
A26: 2.3.3 Länkarm | B26: 624 | C26: 13 | D26: 0 | E26: 49 | F26: 2 | G26: 0 | H26: 0.006300963677 | I26: 673 | J26: 15 | K26: 0 | L26: 0.02416723575 | M26: 0.01996981307
A27: 2.3.4 Spindelled | B27: 6 | C27: 0 | D27: 0 | E27: 93 | F27: 0 | G27: 0 | H27: 0.01148999259 | I27: 99 | J27: 0 | K27: 0 | L27: 0.0002276348737 | M27: 0.002873563218
A28: 2.3.5 Spindeltapp | B28: 576 | C28: 0 | D28: 0 | E28: 132 | F28: 1 | G28: 0 | H28: 0.01643192488 | I28: 708 | J28: 1 | K28: 0 | L28: 0.02185294787 | M28: 0.02057935679
A29: 3.1.1 Motor | B29: 47 | C29: 0 | D29: 883 | E29: 18 | F29: 0 | G29: 182 | H29: 0.02470966148 | I29: 65 | J29: 0 | K29: 1065 | L29: 0.03528340542 | M29: 0.03279925694
A30: 3.1.2 Bränslesystem | B30: 156 | C30: 0 | D30: 22 | E30: 91 | F30: 0 | G30: 15 | H30: 0.01309612058 | I30: 247 | J30: 0 | K30: 37 | L30: 0.006753167919 | M30: 0.008243353071
A31: 3.1.3 Avgassystem | B31: 878 | C31: 0 | D31: 267 | E31: 258 | F31: 0 | G31: 149 | H31: 0.05028416111 | I31: 1136 | J31: 0 | K31: 416 | L31: 0.04344032172 | M31: 0.04504818298
A32: 3.1.4 El-System | B32: 55 | C32: 0 | D32: 7 | E32: 39 | F32: 0 | G32: 44 | H32: 0.01025450951 | I32: 94 | J32: 0 | K32: 51 | L32: 0.002352227028 | M32: 0.004208754209
A33: 3.1.5 Hastighetsregulator | B33: 37 | C33: 0 | D33: 380 | E33: 2 | F33: 0 | G33: 48 | H33: 0.006177415369 | I33: 39 | J33: 0 | K33: 428 | L33: 0.01582062372 | M33: 0.01355509114
A34: 3.1.6 Hydraulsystem | B34: 21 | C34: 0 | D34: 310 | E34: 5 | F34: 0 | G34: 28 | H34: 0.004077094144 | I34: 26 | J34: 0 | K34: 338 | L34: 0.0125578572 | M34: 0.01056542436
A35: 3.2.1 Växlingssystem | B35: 24 | C35: 0 | D35: 41 | E35: 8 | F35: 0 | G35: 6 | H35: 0.001729676303 | I35: 32 | J35: 0 | K35: 47 | L35: 0.002466044465 | M35: 0.002293045396
A36: 3.2.2 Kraftöverföring | B36: 49 | C36: 0 | D36: 25 | E36: 30 | F36: 0 | G36: 4 | H36: 0.004200642451 | I36: 79 | J36: 0 | K36: 29 | L36: 0.002807496775 | M36: 0.003134796238
A37: 4.1.1 Färdbroms Retardation | B37: 884 | C37: 117 | D37: 0 | E37: 29 | F37: 5 | G37: 0 | H37: 0.004200642451 | I37: 913 | J37: 122 | K37: 0 | L37: 0.03797708476 | M37: 0.03004179728
A38: 4.2.1 Färdbroms Bromskraftfördelning | B38: 2750 | C38: 3 | D38: 0 | E38: 674 | F38: 1 | G38: 0 | H38: =(E38+F38+G38)/Antal_besiktade_3_5_till_16 -> 0.08339510749 | I38: 3424 | J38: 4 | K38: 0 | L38: =(B38+C38+D38)/Antal_besiktade_16_ton -> 0.1044464679 | M38: =(I38+J38+K38)/(Antal_besiktade_3_5_till_16+Antal_besiktade_16_ton) -> 0.09950075467
A39: 4.2.2 Färdbroms Funktion | B39: 553 | C39: 0 | D39: 0 | E39: 109 | F39: 0 | G39: 0 | H39: 0.01346676551 | I39: 662 | J39: 0 | K39: 0 | L39: 0.02098034752 | M39: 0.0192151399
A40: 4.2.3 Färdbroms Rörelsereserv | B40: 71 | C40: 0 | D40: 0 | E40: 8 | F40: 1 | G40: 0 | H40: 0.001111934766 | I40: 79 | J40: 1 | K40: 0 | L40: 0.002693679338 | M40: 0.002322071288
A41: 4.2.4 Färdbroms Hjulbroms | B41: 2115 | C41: 11 | D41: 83 | E41: 522 | F41: 8 | G41: 56 | H41: 0.07239930813 | I41: 2637 | J41: 19 | K41: 139 | L41: 0.08380757265 | M41: 0.08112736561
A42: 4.2.5 Tillsatsbroms | B42: 3 | C42: 0 | D42: 12 | E42: 0 | F42: 0 | G42: 1 | H42: 0.0001235483074 | I42: 3 | J42: 0 | K42: 13 | L42: 0.0005690871842 | M42: 0.0004644142575
A43: 4.3.1 Färdbroms Reglage | B43: 1 | C43: 0 | D43: 0 | E43: 2 | F43: 1 | G43: 0 | H43: 0.0003706449222 | I43: 3 | J43: 1 | K43: 0 | L43: 3.793914561e-05 | M43: 0.0001161035644
A44: 4.3.2 Färdbroms Huvudcylinder | B44: 1 | C44: 0 | D44: 0 | E44: 6 | F44: 0 | G44: 4 | H44: 0.001235483074 | I44: 7 | J44: 0 | K44: 4 | L44: 3.793914561e-05 | M44: 0.000319284802
A45: 4.4.1 Bromsledning | B45: 530 | C45: 5 | D45: 0 | E45: 304 | F45: 9 | G45: 0 | H45: 0.03867062021 | I45: 834 | J45: 14 | K45: 0 | L45: 0.0202974429 | M45: 0.02461395565
A46: 4.4.2 Färdbroms Länksystem | B46: 122 | C46: 0 | D46: 0 | E46: 4 | F46: 0 | G46: 0 | H46: 0.0004941932296 | I46: 126 | J46: 0 | K46: 0 | L46: 0.004628575764 | M46: 0.003657262278
A47: 4.4.3 Bromshävarm | B47: 320 | C47: 0 | D47: 0 | E47: 10 | F47: 0 | G47: 0 | H47: 0.001235483074 | I47: 330 | J47: 0 | K47: 0 | L47: 0.0121405266 | M47: 0.009578544061
A48: 4.4.4 Bromscylinder | B48: 847 | C48: 2 | D48: 0 | E48: 80 | F48: 1 | G48: 0 | H48: 0.0100074129 | I48: 927 | J48: 3 | K48: 0 | L48: 0.03221033462 | M48: 0.02699407872
A49: 4.4.5 Bromsventil | B49: 253 | C49: 0 | D49: 0 | E49: 62 | F49: 0 | G49: 0 | H49: 0.007659995058 | I49: 315 | J49: 0 | K49: 0 | L49: 0.009598603839 | M49: 0.009143155695
A50: 4.4.6 Bromssystem Uttag | B50: 788 | C50: 0 | D50: 1 | E50: 54 | F50: 0 | G50: 0 | H50: 0.006671608599 | I50: 842 | J50: 0 | K50: 1 | L50: 0.02993398589 | M50: 0.02446882619
A51: 4.5.1 Lastkännande Ventil | B51: 71 | C51: 0 | D51: 2 | E51: 40 | F51: 0 | G51: 0 | H51: 0.004941932296 | I51: 111 | J51: 0 | K51: 2 | L51: 0.00276955763 | M51: 0.003279925694
A52: 4.5.2 Abs-System | B52: 872 | C52: 0 | D52: 14 | E52: 130 | F52: 0 | G52: 0 | H52: 0.01606127996 | I52: 1002 | J52: 0 | K52: 14 | L52: 0.03361408301 | M52: 0.02949030535
A53: 4.6.1 Färdbroms Tryckluft | B53: 323 | C53: 0 | D53: 141 | E53: 55 | F53: 0 | G53: 31 | H53: 0.01062515444 | I53: 378 | J53: 0 | K53: 172 | L53: 0.01760376356 | M53: 0.0159642401
A54: 4.6.2 Färdbroms Frysskydd | B54: 408 | C54: 0 | D54: 0 | E54: 10 | F54: 0 | G54: 5 | H54: 0.001853224611 | I54: 418 | J54: 0 | K54: 5 | L54: 0.01547917141 | M54: 0.01227795193
A55: 4.6.4 Färdbroms Varningsanordning | B55: 54 | C55: 0 | D55: 47 | E55: 26 | F55: 0 | G55: 7 | H55: 0.004077094144 | I55: 80 | J55: 0 | K55: 54 | L55: 0.003831853707 | M55: 0.003889469407
A56: 4.7.1 Parkeringsbroms Bromsfunktion | B56: 199 | C56: 0 | D56: 1 | E56: 483 | F56: 0 | G56: 0 | H56: 0.05967383247 | I56: 682 | J56: 0 | K56: 1 | L56: 0.007587829122 | M56: 0.01982468362
A57: 4.7.2 Parkeringsbroms Transmission | B57: 7 | C57: 0 | D57: 0 | E57: 8 | F57: 0 | G57: 0 | H57: 0.0009883864591 | I57: 15 | J57: 0 | K57: 0 | L57: 0.0002655740193 | M57: 0.0004353883664
A58: 4.7.3 Parkeringsbroms Hjulbroms | B58: 2 | C58: 0 | D58: 0 | E58: 2 | F58: 0 | G58: 0 | H58: 0.0002470966148 | I58: 4 | J58: 0 | K58: 0 | L58: 7.587829122e-05 | M58: 0.0001161035644
A59: 5.1.1 Ratt | B59: 4 | C59: 0 | D59: 0 | E59: 1 | F59: 0 | G59: 0 | H59: 0.0001235483074 | I59: 5 | J59: 0 | K59: 0 | L59: 0.0001517565824 | M59: 0.0001451294555
A60: 5.1.3 Rattaxel | B60: 33 | C60: 0 | D60: 0 | E60: 6 | F60: 0 | G60: 0 | H60: 0.0007412898443 | I60: 39 | J60: 0 | K60: 0 | L60: 0.001251991805 | M60: 0.001132009753
A61: 5.1.4 Styrväxel | B61: 76 | C61: 0 | D61: 0 | E61: 18 | F61: 0 | G61: 2 | H61: 0.002470966148 | I61: 94 | J61: 0 | K61: 2 | L61: 0.002883375066 | M61: 0.002786485545
A62: 5.1.5 Systemfunktion Styrning | B62: 22 | C62: 0 | D62: 0 | E62: 37 | F62: 0 | G62: 0 | H62: 0.004571287373 | I62: 59 | J62: 0 | K62: 0 | L62: 0.0008346612034 | M62: 0.001712527575
A63: 5.2.1 Styrsystem Arm/Stag | B63: 102 | C63: 0 | D63: 0 | E63: 19 | F63: 0 | G63: 0 | H63: 0.00234741784 | I63: 121 | J63: 0 | K63: 0 | L63: 0.003869792852 | M63: 0.003512132822
A64: 5.2.2 Styrled | B64: 2489 | C64: 6 | D64: 0 | E64: 401 | F64: 3 | G64: 0 | H64: 0.04991351618 | I64: 2890 | J64: 9 | K64: 0 | L64: 0.0946581683 | M64: 0.08414605828
A65: 6.1.1 Dörr | B65: 83 | C65: 0 | D65: 556 | E65: 12 | F65: 0 | G65: 39 | H65: 0.006300963677 | I65: 95 | J65: 0 | K65: 595 | L65: 0.02424311405 | M65: 0.02002786486
A66: 6.1.2 Främre Huv | B66: 2 | C66: 0 | D66: 1 | E66: 6 | F66: 0 | G66: 28 | H66: 0.004200642451 | I66: 8 | J66: 0 | K66: 29 | L66: 0.0001138174368 | M66: 0.001073957971
A67: 6.1.3 Kaross | B67: 38 | C67: 0 | D67: 0 | E67: 21 | F67: 0 | G67: 1 | H67: 0.002718062763 | I67: 59 | J67: 0 | K67: 1 | L67: 0.001441687533 | M67: 0.001741553466
A68: 6.1.4 Stänkskydd | B68: 80 | C68: 0 | D68: 850 | E68: 30 | F68: 0 | G68: 171 | H68: 0.02483320979 | I68: 110 | J68: 0 | K68: 1021 | L68: 0.03528340542 | M68: 0.03282828283
A69: 6.1.5 Ruta | B69: 62 | C69: 0 | D69: 576 | E69: 28 | F69: 0 | G69: 210 | H69: 0.02940449716 | I69: 90 | J69: 0 | K69: 786 | L69: 0.0242051749 | M69: 0.0254266806
A70: 6.2.1 Bilbälte | B70: 116 | C70: 0 | D70: 0 | E70: 21 | F70: 0 | G70: 0 | H70: =(E70+F70+G70)/Antal_besiktade_3_5_till_16 -> 0.002594514455 | I70: 137 | J70: 0 | K70: 0 | L70: =(B70+C70+D70)/Antal_besiktade_16_ton -> 0.004400940891 | M70: =(I70+J70+K70)/(Antal_besiktade_3_5_till_16+Antal_besiktade_16_ton) -> 0.00397654708
A71: 6.2.2 Förar/Passagerarplats | B71: 20 | C71: 0 | D71: 0 | E71: 3 | F71: 0 | G71: 1 | H71: 0.0004941932296 | I71: 23 | J71: 0 | K71: 1 | L71: 0.0007587829122 | M71: 0.0006966213863
A72: 6.2.3 Utrustning Invändig | B72: 19 | C72: 0 | D72: 0 | E72: 37 | F72: 0 | G72: 0 | H72: 0.004571287373 | I72: 56 | J72: 0 | K72: 0 | L72: 0.0007208437666 | M72: 0.001625449901
A73: 6.2.5 Handikapputrustning | B73: 1 | C73: 0 | D73: 0 | H73: 0 | I73: 1 | J73: 0 | K73: 0 | L73: 3.793914561e-05 | M73: 2.902589109e-05
A74: 6.3.1 Lastutrymme | B74: 91 | C74: 0 | D74: 41 | E74: 37 | F74: 0 | G74: 13 | H74: 0.006177415369 | I74: 128 | J74: 0 | K74: 54 | L74: 0.005007967221 | M74: 0.005282712179
A75: 6.3.2 Påbyggnadsram | B75: 185 | C75: 0 | D75: 1188 | E75: 38 | F75: 0 | G75: 138 | H75: 0.0217445021 | I75: 223 | J75: 0 | K75: 1326 | L75: 0.05209044692 | M75: 0.04496110531
A76: 6.3.3 Lastbegränsande Anordning | B76: 13 | C76: 0 | D76: 44 | E76: 4 | F76: 0 | G76: 14 | H76: 0.002223869533 | I76: 17 | J76: 0 | K76: 58 | L76: 0.0021625313 | M76: 0.002176941832
A77: 6.3.4 Lastsäkringsutrustning | B77: 8 | C77: 0 | D77: 0 | E77: 1 | F77: 0 | G77: 0 | H77: 0.0001235483074 | I77: 9 | J77: 0 | K77: 0 | L77: 0.0003035131649 | M77: 0.0002612330199
A78: 6.3.5 Lastanordning | B78: 38 | C78: 0 | D78: 4 | E78: 7 | F78: 0 | G78: 1 | H78: 0.0009883864591 | I78: 45 | J78: 0 | K78: 5 | L78: 0.001593444116 | M78: 0.001451294555
A79: 6.4.1 Tillbehör Utvändigt | B79: 6 | C79: 0 | D79: 79 | E79: 4 | F79: 1 | G79: 17 | H79: 0.002718062763 | I79: 10 | J79: 1 | K79: 96 | L79: 0.003224827377 | M79: 0.003105770347
A80: 6.5.1 Gasinstallation | E80: 2 | F80: 0 | G80: 0 | H80: 0.0002470966148 | I80: 2 | J80: 0 | K80: 0 | L80: 0 | M80: 5.805178219e-05
A81: 7.1.1 Rengörare | B81: 55 | C81: 0 | D81: 806 | E81: 34 | F81: 0 | G81: 407 | H81: 0.05448480356 | I81: 89 | J81: 0 | K81: 1213 | L81: 0.03266560437 | M81: 0.03779171021
A82: 7.1.2 Backspegel | B82: 243 | C82: 0 | D82: 488 | E82: 32 | F82: 0 | G82: 138 | H82: 0.02100321226 | I82: 275 | J82: 0 | K82: 626 | L82: 0.02773351544 | M82: 0.02615232788
A83: 7.1.3 Huvudstrålkastare | B83: 2056 | C83: 0 | D83: 2798 | E83: 458 | F83: 0 | G83: 949 | H83: 0.1738324685 | I83: 2514 | J83: 0 | K83: 3747 | L83: 0.1841566128 | M83: 0.1817311041
A84: 7.1.4 Dimstrålkastare | B84: 725 | C84: 0 | D84: 28 | E84: 24 | F84: 0 | G84: 1 | H84: 0.003088707685 | I84: 749 | J84: 0 | K84: 29 | L84: 0.02856817664 | M84: 0.02258214327
A85: 7.1.5 Fjärrstrålkastare | B85: 8 | C85: 0 | D85: 1 | E85: 1 | F85: 0 | G85: 0 | H85: 0.0001235483074 | I85: 9 | J85: 0 | K85: 1 | L85: 0.0003414523105 | M85: 0.0002902589109
A86: 7.1.7 Arbetsbelysning | B86: 1 | C86: 0 | D86: 40 | E86: 0 | F86: 0 | G86: 5 | H86: 0.0006177415369 | I86: 1 | J86: 0 | K86: 45 | L86: 0.00155550497 | M86: 0.00133519099
A87: 7.2.1 Positionslykta | B87: 73 | C87: 0 | D87: 2282 | E87: 33 | F87: 0 | G87: 506 | H87: 0.06659253768 | I87: 106 | J87: 0 | K87: 2788 | L87: 0.08934668791 | M87: 0.08400092883
A88: 7.2.2 Sidomarkering | B88: 217 | C88: 0 | D88: 2007 | E88: 87 | F88: 0 | G88: 580 | H88: 0.08240672103 | I88: 304 | J88: 0 | K88: 2587 | L88: 0.08437665984 | M88: 0.08391385116
A89: 7.2.3 Skyltlykta | B89: 141 | C89: 0 | D89: 2546 | E89: 37 | F89: 0 | G89: 334 | H89: 0.04583642204 | I89: 178 | J89: 0 | K89: 2880 | L89: 0.1019424843 | M89: 0.08876117497
A90: 7.2.4 Reflex | B90: 125 | C90: 0 | D90: 1485 | E90: 59 | F90: 0 | G90: 636 | H90: 0.08586607363 | I90: 184 | J90: 0 | K90: 2121 | L90: 0.06108202443 | M90: 0.06690467897
A91: 7.2.5 Dimbaklykta | B91: 0 | C91: 0 | D91: 4 | E91: 0 | F91: 0 | G91: 2 | H91: 0.0002470966148 | I91: 0 | J91: 0 | K91: 6 | L91: 0.0001517565824 | M91: 0.0001741553466
A92: 7.2.7 Annan Lykta | B92: 12 | C92: 0 | D92: 403 | E92: 7 | F92: 0 | G92: 48 | H92: 0.006795156906 | I92: 19 | J92: 0 | K92: 451 | L92: 0.01574474543 | M92: 0.01364216881
A93: 7.3.1 Körriktningsvisare | B93: 54 | C93: 0 | D93: 426 | E93: 49 | F93: 0 | G93: 270 | H93: 0.03941191006 | I93: 103 | J93: 0 | K93: 696 | L93: 0.01821078989 | M93: 0.02319168698
A94: 7.3.2 Stopplykta | B94: 183 | C94: 0 | D94: 747 | E94: 85 | F94: 0 | G94: 200 | H94: 0.03521126761 | I94: 268 | J94: 0 | K94: 947 | L94: 0.03528340542 | M94: 0.03526645768
A95: 7.3.3 Signalanordning | B95: 7 | C95: 0 | D95: 484 | E95: 6 | F95: 0 | G95: 150 | H95: 0.01927353595 | I95: 13 | J95: 0 | K95: 634 | L95: 0.01862812049 | M95: 0.01877975154
A96: 7.3.4 Varningstriangel | B96: 7 | C96: 0 | D96: 312 | E96: 4 | F96: 0 | G96: 118 | H96: 0.0150728935 | I96: 11 | J96: 0 | K96: 430 | L96: 0.01210258745 | M96: 0.01280041797
A97: 7.3.5 Larmanordning | B97: 1 | C97: 0 | D97: 0 | H97: 0 | L97: 3.793914561e-05 | M97: 0
A98: 8.1.1 Hastighetsmätare | B98: 41 | C98: 0 | D98: 14 | E98: 38 | F98: 0 | G98: 4 | H98: 0.00518902891 | I98: 79 | J98: 0 | K98: 18 | L98: 0.002086653009 | M98: 0.002815511436
A99: 9.1.1 Kulkoppling | B99: 8 | C99: 0 | D99: 0 | E99: 32 | F99: 0 | G99: 0 | H99: 0.003953545836 | I99: 40 | J99: 0 | K99: 0 | L99: 0.0003035131649 | M99: 0.001161035644
A100: 9.1.2 Bygelkoppling | B100: 2392 | C100: 0 | D100: 0 | E100: 10 | F100: 0 | G100: 0 | H100: 0.001235483074 | I100: 2402 | J100: 0 | K100: 0 | L100: 0.0907504363 | M100: 0.06972019041
A101: 9.1.4 Vändskiva | B101: 266 | C101: 0 | D101: 3 | E101: 1 | F101: 0 | G101: 0 | H101: 0.0001235483074 | I101: 267 | J101: 0 | K101: 3 | L101: 0.01020563017 | M101: 0.007836990596
A102: 9.1.5 Dragbalk Kopplingsanordning | B102: 20 | C102: 0 | D102: 0 | E102: 2 | F102: 0 | G102: 0 | H102: =(E102+F102+G102)/Antal_besiktade_3_5_till_16 -> 0.0002470966148 | I102: 22 | J102: 0 | K102: 0 | L102: =(B102+C102+D102)/Antal_besiktade_16_ton -> 0.0007587829122 | M102: =(I102+J102+K102)/(Antal_besiktade_3_5_till_16+Antal_besiktade_16_ton) -> 0.0006385696041
A103: 9.1.6 Släpvagnskontakt | B103: 1 | C103: 0 | D103: 27 | E103: 0 | F103: 0 | G103: 12 | H103: 0.001482579689 | I103: 1 | J103: 0 | K103: 39 | L103: 0.001062296077 | M103: 0.001161035644
A104: 9.1.11 Kopplingsklasskylt | B104: 1 | C104: 0 | D104: 61 | E104: 0 | F104: 0 | G104: 1 | H104: 0.0001235483074 | I104: 1 | J104: 0 | K104: 62 | L104: 0.002352227028 | M104: 0.001828631139
A105: 9.2.1 Utskjutande Detalj | B105: 14 | C105: 0 | D105: 0 | E105: 8 | F105: 0 | G105: 2 | H105: 0.001235483074 | I105: 22 | J105: 0 | K105: 2 | L105: 0.0005311480385 | M105: 0.0006966213863
A106: 9.3.1 Identitet | B106: 16 | C106: 0 | D106: 480 | E106: 4 | F106: 0 | G106: 76 | H106: 0.009883864591 | I106: 20 | J106: 0 | K106: 556 | L106: 0.01881781622 | M106: 0.01671891327
A107: 9.3.2 Ändring | B107: 58 | C107: 0 | D107: 0 | E107: 40 | F107: 0 | G107: 0 | H107: 0.004941932296 | I107: 98 | J107: 0 | K107: 0 | L107: 0.002200470445 | M107: 0.002844537327
A108: 9.4.1 Provkörning | B108: 31 | C108: 0 | D108: 0 | E108: 13 | F108: 0 | G108: 0 | H108: 0.001606127996 | I108: 44 | J108: 0 | K108: 0 | L108: 0.001176113514 | M108: 0.001277139208
A109: 30.1.9 Omborddiagnossystem | B109: 14 | C109: 0 | D109: 0 | E109: 2 | F109: 0 | G109: 0 | H109: 0.0002470966148 | I109: 16 | J109: 0 | K109: 0 | L109: 0.0005311480385 | M109: 0.0004644142575
A110: 30.1.10 Denox-System | B110: 6 | C110: 0 | D110: 0 | H110: 0 | L110: 0.0002276348737 | M110: 0
A111: 30.3.1 Miljökontroll Mätning | B111: 51 | C111: 0 | D111: 0 | E111: 42 | F111: 0 | G111: 0 | H111: 0.00518902891 | I111: 93 | J111: 0 | K111: 0 | L111: 0.001934896426 | M111: 0.002699407872
A112: 30.4.1 Köldmedie Kontrollrapport | B112: 257 | C112: 0 | D112: 0 | E112: 63 | F112: 0 | G112: 0 | H112: 0.007783543365 | I112: 320 | J112: 0 | K112: 0 | L112: 0.009750360422 | M112: 0.00928828515
A113: 80.1.1 Rullbromsprov Inte Utfört | B113: 36 | C113: 0 | D113: 0 | E113: 5 | F113: 0 | G113: 0 | H113: 0.0006177415369 | I113: 41 | J113: 0 | K113: 0 | L113: 0.001365809242 | M113: 0.001190061535
A114: 80.2.1 Underredskontroll Inte Utförd | B114: 8 | C114: 0 | D114: 0 | H114: 0 | I114: 1 | J114: 0 | K114: 0 | L114: 0.0003035131649 | M114: 2.902589109e-05
A115: 80.3.1 Framvagnskontroll Inte Utförd | B115: 4 | C115: 0 | D115: 0 | E115: 1 | F115: 0 | G115: 0 | H115: 0.0001235483074 | I115: 5 | J115: 0 | K115: 0 | L115: 0.0001517565824 | M115: 0.0001451294555
A116: 80.4.1 Överredskontroll Inte Utförd | B116: 4 | C116: 0 | D116: 0 | H116: 0 | I116: 1 | J116: 0 | K116: 0 | L116: 0.0001517565824 | M116: 2.902589109e-05

Sheet Pivot BE System (hidden)
B3: Kolumnetiketter
B4: > 16000 | D4: 3,5-16 ton | F4: Tunga samtliga
A5: Radetiketter | B5: Summa av 2 Underkänd Med Efterk | C5: Summa av 3 Körförbud | D5: Summa av 2 Underkänd Med Efterk | E5: Summa av 3 Körförbud | F5: Summa av 2 Underkänd Med Efterk | G5: Summa av 3 Körförbud
A6: 1. Stomme | B6: 43 | C6: 0 | D6: 14 | E6: 0 | F6: 57 | G6: 0
A7: 2. Hjulsystem | B7: 127 | C7: 0 | D7: 22 | E7: 0 | F7: 149 | G7: 0
A8: 3. Drivsystem | B8: 98 | C8: 1 | D8: 24 | E8: 0 | F8: 122 | G8: 1
A9: 4. Bromssystem | B9: 805 | C9: 13 | D9: 217 | E9: 0 | F9: 1022 | G9: 13
A10: 5. Styrsystem | B10: 51 | C10: 0 | D10: 5 | E10: 0 | F10: 56 | G10: 0
A11: 6. Karosseri | B11: 85 | C11: 0 | D11: 15 | E11: 0 | F11: 100 | G11: 0
A12: 7. Kommunikation | B12: 227 | C12: 0 | D12: 40 | E12: 0 | F12: 267 | G12: 0
A13: 8. Instrumentering | B13: 4 | C13: 0 | D13: 5 | E13: 0 | F13: 9 | G13: 0
A14: 9. Övrigt | B14: 95 | C14: 0 | D14: 8 | E14: 0 | F14: 103 | G14: 0
A15: 30. Miljökontroll | B15: 14 | C15: 0 | D15: 6 | E15: 0 | F15: 20 | G15: 0
A16: 50. Avvikelser | B16: 0 | C16: 0 | F16: 0 | G16: 0
A17: 80. Kontroll Inte Utförd | B17: 2 | C17: 0 | D17: 1 | E17: 0 | F17: 3 | G17: 0

Sheet BE System (hidden)
A1: System - Antal fordon m brister as values | B1: System | C1: 2 Underkänd Med Efterk | D1: 3 Körförbud | E1: G Godkänd | F1: J Justering
A2: 3,5-16 ton | B2: 1. Stomme | C2: 0 | D2: 0 | E2: 17 | F2: 0
A3: 3,5-16 ton | B3: 2. Hjulsystem | C3: 2 | D3: 0 | E3: 54 | F3: 0
A4: 3,5-16 ton | B4: 3. Drivsystem | C4: 1 | D4: 0 | E4: 49 | F4: 0
A5: 3,5-16 ton | B5: 4. Bromssystem | C5: 21 | D5: 0 | E5: 135 | F5: 0
A6: 3,5-16 ton | B6: 5. Styrsystem | C6: 0 | D6: 0 | E6: 34 | F6: 0
A7: 3,5-16 ton | B7: 6. Karosseri | C7: 2 | D7: 0 | E7: 34 | F7: 0
A8: 3,5-16 ton | B8: 7. Kommunikation | C8: 4 | D8: 0 | E8: 139 | F8: 0
A9: 3,5-16 ton | B9: 8. Instrumentering | C9: 0 | D9: 0 | E9: 1 | F9: 0
A10: 3,5-16 ton | B10: 9. Övrigt | C10: 0 | D10: 0 | E10: 8 | F10: 0
A11: 3,5-16 ton | B11: 30. Miljökontroll | C11: 1 | D11: 0 | E11: 14 | F11: 0
A12: Tunga samtliga | B12: 1. Stomme | C12: 5 | D12: 0 | E12: 58 | F12: 0
A13: Tunga samtliga | B13: 2. Hjulsystem | C13: 13 | D13: 0 | E13: 330 | F13: 0
A14: Tunga samtliga | B14: 3. Drivsystem | C14: 7 | D14: 0 | E14: 241 | F14: 0
A15: Tunga samtliga | B15: 4. Bromssystem | C15: 109 | D15: 1 | E15: 610 | F15: 0
A16: Tunga samtliga | B16: 5. Styrsystem | C16: 6 | D16: 0 | E16: 201 | F16: 0
A17: Tunga samtliga | B17: 6. Karosseri | C17: 12 | D17: 0 | E17: 212 | F17: 0
A18: Tunga samtliga | B18: 7. Kommunikation | C18: 32 | D18: 0 | E18: 607 | F18: 2
A19: Tunga samtliga | B19: 8. Instrumentering | C19: 0 | D19: 0 | E19: 7 | F19: 0
A20: Tunga samtliga | B20: 9. Övrigt | C20: 11 | D20: 0 | E20: 186 | F20: 0
A21: Tunga samtliga | B21: 30. Miljökontroll | C21: 4 | D21: 0 | E21: 43 | F21: 0
A22: Tunga samtliga | B22: 50. Avvikelser | C22: 0 | D22: 0 | E22: 1 | F22: 0
A23: Tunga samtliga | B23: 80. Kontroll Inte Utförd | C23: 1 | D23: 0 | E23: 5 | F23: 0
A24: > 16000 | B24: 1. Stomme | C24: 5 | D24: 0 | E24: 41 | F24: 0
A25: > 16000 | B25: 2. Hjulsystem | C25: 11 | D25: 0 | E25: 276 | F25: 0
A26: > 16000 | B26: 3. Drivsystem | C26: 6 | D26: 0 | E26: 192 | F26: 0
A27: > 16000 | B27: 4. Bromssystem | C27: 88 | D27: 1 | E27: 475 | F27: 0
A28: > 16000 | B28: 5. Styrsystem | C28: 6 | D28: 0 | E28: 167 | F28: 0
A29: > 16000 | B29: 6. Karosseri | C29: 10 | D29: 0 | E29: 178 | F29: 0
A30: > 16000 | B30: 7. Kommunikation | C30: 28 | D30: 0 | E30: 468 | F30: 2
A31: > 16000 | B31: 8. Instrumentering | C31: 0 | D31: 0 | E31: 6 | F31: 0
A32: > 16000 | B32: 9. Övrigt | C32: 11 | D32: 0 | E32: 178 | F32: 0
A33: > 16000 | B33: 30. Miljökontroll | C33: 3 | D33: 0 | E33: 29 | F33: 0
A34: > 16000 | B34: 50. Avvikelser | C34: 0 | D34: 0 | E34: 1 | F34: 0
A35: > 16000 | B35: 80. Kontroll Inte Utförd | C35: 1 | D35: 0 | E35: 5 | F35: 0
A36: 3,5-16 ton | B36: 1. Stomme | C36: 14 | D36: 0 | E36: 155 | F36: 0
A37: 3,5-16 ton | B37: 2. Hjulsystem | C37: 20 | D37: 0 | E37: 429 | F37: 0
A38: 3,5-16 ton | B38: 3. Drivsystem | C38: 23 | D38: 0 | E38: 354 | F38: 0
A39: 3,5-16 ton | B39: 4. Bromssystem | C39: 196 | D39: 0 | E39: 1064 | F39: 0
A40: 3,5-16 ton | B40: 5. Styrsystem | C40: 5 | D40: 0 | E40: 208 | F40: 0
A41: 3,5-16 ton | B41: 6. Karosseri | C41: 13 | D41: 0 | E41: 246 | F41: 0
A42: 3,5-16 ton | B42: 7. Kommunikation | C42: 36 | D42: 0 | E42: 893 | F42: 9
A43: 3,5-16 ton | B43: 8. Instrumentering | C43: 5 | D43: 0 | E43: 16 | F43: 0
A44: 3,5-16 ton | B44: 9. Övrigt | C44: 8 | D44: 0 | E44: 93 | F44: 0
A45: 3,5-16 ton | B45: 30. Miljökontroll | C45: 5 | D45: 0 | E45: 51 | F45: 0
A46: 3,5-16 ton | B46: 80. Kontroll Inte Utförd | C46: 1 | D46: 0 | E46: 4 | F46: 0
A47: > 16000 | B47: 1. Stomme | C47: 38 | D47: 0 | E47: 411 | F47: 0
A48: > 16000 | B48: 2. Hjulsystem | C48: 116 | D48: 0 | E48: 1758 | F48: 0
A49: > 16000 | B49: 3. Drivsystem | C49: 92 | D49: 1 | E49: 1060 | F49: 0
A50: > 16000 | B50: 4. Bromssystem | C50: 717 | D50: 12 | E50: 2951 | F50: 0
A51: > 16000 | B51: 5. Styrsystem | C51: 45 | D51: 0 | E51: 888 | F51: 0
A52: > 16000 | B52: 6. Karosseri | C52: 75 | D52: 0 | E52: 948 | F52: 0
A53: > 16000 | B53: 7. Kommunikation | C53: 199 | D53: 0 | E53: 2711 | F53: 12
A54: > 16000 | B54: 8. Instrumentering | C54: 4 | D54: 0 | E54: 25 | F54: 0
A55: > 16000 | B55: 9. Övrigt | C55: 84 | D55: 0 | E55: 1093 | F55: 0
A56: > 16000 | B56: 30. Miljökontroll | C56: 11 | D56: 0 | E56: 132 | F56: 0
A57: > 16000 | B57: 50. Avvikelser | C57: 0 | D57: 0 | E57: 1 | F57: 0
A58: > 16000 | B58: 80. Kontroll Inte Utförd | C58: 1 | D58: 0 | E58: 28 | F58: 0
A59: Tunga samtliga | B59: 1. Stomme | C59: 52 | D59: 0 | E59: 566 | F59: 0
A60: Tunga samtliga | B60: 2. Hjulsystem | C60: 136 | D60: 0 | E60: 2187 | F60: 0
A61: Tunga samtliga | B61: 3. Drivsystem | C61: 115 | D61: 1 | E61: 1414 | F61: 0
A62: Tunga samtliga | B62: 4. Bromssystem | C62: 913 | D62: 12 | E62: 4015 | F62: 0
A63: Tunga samtliga | B63: 5. Styrsystem | C63: 50 | D63: 0 | E63: 1096 | F63: 0
A64: Tunga samtliga | B64: 6. Karosseri | C64: 88 | D64: 0 | E64: 1194 | F64: 0
A65: Tunga samtliga | B65: 7. Kommunikation | C65: 235 | D65: 0 | E65: 3604 | F65: 21
A66: Tunga samtliga | B66: 8. Instrumentering | C66: 9 | D66: 0 | E66: 41 | F66: 0
A67: Tunga samtliga | B67: 9. Övrigt | C67: 92 | D67: 0 | E67: 1186 | F67: 0
A68: Tunga samtliga | B68: 30. Miljökontroll | C68: 16 | D68: 0 | E68: 183 | F68: 0
A69: Tunga samtliga | B69: 80. Kontroll Inte Utförd | C69: 2 | D69: 0 | E69: 32 | F69: 0

Sheet Utdata BE System
A3: Andel underkända vid efterkontroll per system | B3: Kolumnetiketter
B4: > 16000 | D4: 3,5-16 ton | F4: 3,5-16 ton | G4: Tunga samtliga | I4: Över 16 ton | J4: Tunga, samtliga viktklasser
A5: Radetiketter | B5: Summa av 2 Underkänd Med Efterk | C5: Summa av 3 Körförbud | D5: Summa av 2 Underkänd Med Efterk | E5: Summa av 3 Körförbud | F5: Andel underkända | G5: Summa av 2 Underkänd Med Efterk | H5: Summa av 3 Körförbud | I5: Andel underkända | J5: Andel underkända
A6: 1. Stomme | B6: 43 | C6: 0 | D6: 14 | E6: 0 | F6: =(D6+E6)/Antal_BE_35_16 -> 0.007010515774 | G6: 57 | H6: 0 | I6: =(B6+C6)/Antal_BE_Över_16 -> 0.007505672892 | J6: =(G6+H6)/(Antal_BE_35_16+Antal_BE_Över_16) -> 0.007377685736
A7: 2. Hjulsystem | B7: 127 | C7: 0 | D7: 22 | E7: 0 | F7: 0.01101652479 | G7: 149 | H7: 0 | I7: 0.02216791761 | J7: 0.01928552938
A8: 3. Drivsystem | B8: 98 | C8: 1 | D8: 24 | E8: 0 | F8: 0.01201802704 | G8: 122 | H8: 1 | I8: 0.01728050271 | J8: 0.01592026922
A9: 4. Bromssystem | B9: 805 | C9: 13 | D9: 217 | E9: 0 | F9: 0.1086629945 | G9: 1022 | H9: 13 | I9: 0.1427823355 | J9: 0.133963241
A10: 5. Styrsystem | B10: 51 | C10: 0 | D10: 5 | E10: 0 | F10: 0.002503755633 | G10: 56 | H10: 0 | I10: 0.008902077151 | J10: 0.007248252653
A11: 6. Karosseri | B11: 85 | C11: 0 | D11: 15 | E11: 0 | F11: 0.0075112669 | G11: 100 | H11: 0 | I11: 0.01483679525 | J11: 0.01294330831
A12: 7. Kommunikation | B12: 227 | C12: 0 | D12: 40 | E12: 0 | F12: 0.02003004507 | G12: 267 | H12: 0 | I12: 0.03962297085 | J12: 0.03455863319
A13: 8. Instrumentering | B13: 4 | C13: 0 | D13: 5 | E13: 0 | F13: 0.002503755633 | G13: 9 | H13: 0 | I13: 0.0006982021295 | J13: 0.001164897748
A14: 9. Övrigt | B14: 95 | C14: 0 | D14: 8 | E14: 0 | F14: 0.004006009014 | G14: 103 | H14: 0 | I14: 0.01658230058 | J14: 0.01333160756
A15: 30. Miljökontroll | B15: 14 | C15: 0 | D15: 6 | E15: 0 | F15: 0.00300450676 | G15: 20 | H15: 0 | I15: 0.002443707453 | J15: 0.002588661662
A16: 50. Avvikelser | B16: 0 | C16: 0 | F16: 0 | G16: 0 | H16: 0 | I16: 0 | J16: 0
A17: 80. Kontroll Inte Utförd | B17: 2 | C17: 0 | D17: 1 | E17: 0 | F17: 0.0005007511267 | G17: 3 | H17: 0 | I17: 0.0003491010648 | J17: 0.0003882992493

Sheet Pivot BE Komponent (hidden)
B3: Kolumnetiketter
B4: > 16000 | D4: 3,5-16 ton | F4: Tunga samtliga | J4: > 16000 | L4: 3,5-16 ton | N4: Tunga samtliga
A5: Radetiketter | B5: Summa av 2 Underkänd Med Efterk | C5: Summa av 3 Körförbud | D5: Summa av 2 Underkänd Med Efterk | E5: Summa av 3 Körförbud | F5: Summa av 2 Underkänd Med Efterk | G5: Summa av 3 Körförbud | I5: Radetiketter | J5: Summa av 2 Underkänd Med Efterk | K5: Summa av 3 Körförbud | L5: Summa av 2 Underkänd Med Efterk | M5: Summa av 3 Körförbud | N5: Summa av 2 Underkänd Med Efterk | O5: Summa av 3 Körförbud
A6: 1.1.1 Ram | B6: 15 | C6: 0 | D6: 4 | E6: 0 | F6: 19 | G6: 0 | I6: 1.1.1 Ram | J6: 15 | K6: 0 | L6: 4 | M6: 0 | N6: 19 | O6: 0
A7: 1.1.2 Balkprofil | B7: 12 | C7: 0 | D7: 4 | E7: 0 | F7: 16 | G7: 0 | I7: 1.1.2 Balkprofil | J7: 12 | K7: 0 | L7: 4 | M7: 0 | N7: 16 | O7: 0
A8: 1.1.3 Plåtyta | B8: 0 | C8: 0 | D8: 1 | E8: 0 | F8: 1 | G8: 0 | I8: 1.1.3 Plåtyta | J8: 0 | K8: 0 | L8: 1 | M8: 0 | N8: 1 | O8: 0
A9: 1.2.1 Infästning Hjulsystem | B9: 6 | C9: 0 | D9: 3 | E9: 0 | F9: 9 | G9: 0 | I9: 1.2.1 Infästning Hjulsystem | J9: 6 | K9: 0 | L9: 3 | M9: 0 | N9: 9 | O9: 0
A10: 1.2.2 Infästning Drivsystem | B10: 0 | C10: 0 | D10: 0 | E10: 0 | F10: 0 | G10: 0 | I10: 1.2.2 Infästning Drivsystem | J10: 0 | K10: 0 | L10: 0 | M10: 0 | N10: 0 | O10: 0
A11: 1.2.5 Infästning Karosseri | B11: 0 | C11: 0 | D11: 1 | E11: 0 | F11: 1 | G11: 0 | I11: 1.2.5 Infästning Karosseri | J11: 0 | K11: 0 | L11: 1 | M11: 0 | N11: 1 | O11: 0
A12: 1.2.6 Infästning Kopplingsanordning | B12: 0 | C12: 0 | D12: 0 | E12: 0 | F12: 0 | G12: 0 | I12: 1.2.6 Infästning Kopplingsanordning | J12: 0 | K12: 0 | L12: 0 | M12: 0 | N12: 0 | O12: 0
A13: 1.3.1 Underkörningsskydd | B13: 3 | C13: 0 | D13: 3 | E13: 0 | F13: 6 | G13: 0 | I13: 1.3.1 Underkörningsskydd | J13: 3 | K13: 0 | L13: 3 | M13: 0 | N13: 6 | O13: 0
A14: 1.3.2 Sidoskydd | B14: 8 | C14: 0 | D14: 1 | E14: 0 | F14: 9 | G14: 0 | I14: 1.3.2 Sidoskydd | J14: 8 | K14: 0 | L14: 1 | M14: 0 | N14: 9 | O14: 0
A15: 2.1.1 Däck | B15: 22 | C15: 0 | D15: 0 | E15: 0 | F15: 22 | G15: 0 | I15: 2.1.1 Däck | J15: 22 | K15: 0 | L15: 0 | M15: 0 | N15: 22 | O15: 0
A16: 2.1.2 Hjul/Fälg | B16: 0 | C16: 0 | D16: 1 | E16: 0 | F16: 1 | G16: 0 | I16: 2.1.2 Hjul/Fälg | J16: 0 | K16: 0 | L16: 1 | M16: 0 | N16: 1 | O16: 0
A17: 2.1.3 Hjullager | B17: 26 | C17: 0 | D17: 5 | E17: 0 | F17: 31 | G17: 0 | I17: 2.1.3 Hjullager | J17: 26 | K17: 0 | L17: 5 | M17: 0 | N17: 31 | O17: 0
A18: 2.2.1 Fjädring | B18: 28 | C18: 0 | D18: 3 | E18: 0 | F18: 31 | G18: 0 | I18: 2.2.1 Fjädring | J18: 28 | K18: 0 | L18: 3 | M18: 0 | N18: 31 | O18: 0
A19: 2.2.2 Fjädersäte | B19: 0 | C19: 0 | D19: 1 | E19: 0 | F19: 1 | G19: 0 | I19: 2.2.2 Fjädersäte | J19: 0 | K19: 0 | L19: 1 | M19: 0 | N19: 1 | O19: 0
A20: 2.2.3 Stötdämpare | B20: 7 | C20: 0 | D20: 1 | E20: 0 | F20: 8 | G20: 0 | I20: 2.2.3 Stötdämpare | J20: 7 | K20: 0 | L20: 1 | M20: 0 | N20: 8 | O20: 0
A21: 2.3.1 Axel | B21: 25 | C21: 0 | D21: 3 | E21: 0 | F21: 28 | G21: 0 | I21: 2.3.1 Axel | J21: 25 | K21: 0 | L21: 3 | M21: 0 | N21: 28 | O21: 0
A22: 2.3.2 Tvärstag | B22: 0 | C22: 0 | D22: 2 | E22: 0 | F22: 2 | G22: 0 | I22: 2.3.2 Tvärstag | J22: 0 | K22: 0 | L22: 2 | M22: 0 | N22: 2 | O22: 0
A23: 2.3.3 Länkarm | B23: 21 | C23: 0 | D23: 2 | E23: 0 | F23: 23 | G23: 0 | I23: 2.3.3 Länkarm | J23: 21 | K23: 0 | L23: 2 | M23: 0 | N23: 23 | O23: 0
A24: 2.3.4 Spindelled | B24: 0 | C24: 0 | D24: 1 | E24: 0 | F24: 1 | G24: 0 | I24: 2.3.4 Spindelled | J24: 0 | K24: 0 | L24: 1 | M24: 0 | N24: 1 | O24: 0
A25: 2.3.5 Spindeltapp | B25: 19 | C25: 0 | D25: 7 | E25: 0 | F25: 26 | G25: 0 | I25: 2.3.5 Spindeltapp | J25: 19 | K25: 0 | L25: 7 | M25: 0 | N25: 26 | O25: 0
A26: 3.1.1 Motor | B26: 40 | C26: 0 | D26: 9 | E26: 0 | F26: 49 | G26: 0 | I26: 3.1.1 Motor | J26: 40 | K26: 0 | L26: 9 | M26: 0 | N26: 49 | O26: 0
A27: 3.1.2 Bränslesystem | B27: 2 | C27: 1 | D27: 3 | E27: 0 | F27: 5 | G27: 1 | I27: 3.1.2 Bränslesystem | J27: 2 | K27: 1 | L27: 3 | M27: 0 | N27: 5 | O27: 1
A28: 3.1.3 Avgassystem | B28: 39 | C28: 0 | D28: 13 | E28: 0 | F28: 52 | G28: 0 | I28: 3.1.3 Avgassystem | J28: 39 | K28: 0 | L28: 13 | M28: 0 | N28: 52 | O28: 0
A29: 3.1.4 El-System | B29: 0 | C29: 0 | D29: 3 | E29: 0 | F29: 3 | G29: 0 | I29: 3.1.4 El-System | J29: 0 | K29: 0 | L29: 3 | M29: 0 | N29: 3 | O29: 0
A30: 3.1.5 Hastighetsregulator | B30: 5 | C30: 0 | D30: 0 | E30: 0 | F30: 5 | G30: 0 | I30: 3.1.5 Hastighetsregulator | J30: 5 | K30: 0 | L30: 0 | M30: 0 | N30: 5 | O30: 0
A31: 3.1.6 Hydraulsystem | B31: 11 | C31: 0 | D31: 0 | E31: 0 | F31: 11 | G31: 0 | I31: 3.1.6 Hydraulsystem | J31: 11 | K31: 0 | L31: 0 | M31: 0 | N31: 11 | O31: 0
A32: 3.2.1 Växlingssystem | B32: 3 | C32: 0 | D32: 0 | E32: 0 | F32: 3 | G32: 0 | I32: 3.2.1 Växlingssystem | J32: 3 | K32: 0 | L32: 0 | M32: 0 | N32: 3 | O32: 0
A33: 3.2.2 Kraftöverföring | B33: 2 | C33: 0 | D33: 0 | E33: 0 | F33: 2 | G33: 0 | I33: 3.2.2 Kraftöverföring | J33: 2 | K33: 0 | L33: 0 | M33: 0 | N33: 2 | O33: 0
A34: 30.1.10 Denox-System | B34: 0 | C34: 0 | I34: 30.1.10 Denox-System | J34: 0 | K34: 0
A35: 30.1.9 Omborddiagnossystem | B35: 1 | C35: 0 | D35: 0 | E35: 0 | F35: 1 | G35: 0 | I35: 30.1.9 Omborddiagnossystem | J35: 1 | K35: 0 | L35: 0 | M35: 0 | N35: 1 | O35: 0
A36: 30.3.1 Miljökontroll Mätning | B36: 7 | C36: 0 | D36: 4 | E36: 0 | F36: 11 | G36: 0 | I36: 30.3.1 Miljökontroll Mätning | J36: 7 | K36: 0 | L36: 4 | M36: 0 | N36: 11 | O36: 0
A37: 30.4.1 Köldmedie Kontrollrapport | B37: 6 | C37: 0 | D37: 2 | E37: 0 | F37: 8 | G37: 0 | I37: 30.4.1 Köldmedie Kontrollrapport | J37: 6 | K37: 0 | L37: 2 | M37: 0 | N37: 8 | O37: 0
A38: 4.1.1 Färdbroms Retardation | B38: 205 | C38: 12 | D38: 3 | E38: 0 | F38: 208 | G38: 12 | I38: 4.1.1 Färdbroms Retardation | J38: 205 | K38: 12 | L38: 3 | M38: 0 | N38: 208 | O38: 12
A39: 4.2.1 Färdbroms Bromskraftfördelning | B39: 415 | C39: 0 | D39: 112 | E39: 0 | F39: 527 | G39: 0 | I39: 4.2.1 Färdbroms Bromskraftfördelning | J39: 415 | K39: 0 | L39: 112 | M39: 0 | N39: 527 | O39: 0
A40: 4.2.2 Färdbroms Funktion | B40: 38 | C40: 0 | D40: 11 | E40: 0 | F40: 49 | G40: 0 | I40: 4.2.2 Färdbroms Funktion | J40: 38 | K40: 0 | L40: 11 | M40: 0 | N40: 49 | O40: 0
A41: 4.2.3 Färdbroms Rörelsereserv | B41: 4 | C41: 0 | D41: 1 | E41: 0 | F41: 5 | G41: 0 | I41: 4.2.3 Färdbroms Rörelsereserv | J41: 4 | K41: 0 | L41: 1 | M41: 0 | N41: 5 | O41: 0
A42: 4.2.4 Färdbroms Hjulbroms | B42: 171 | C42: 0 | D42: 34 | E42: 0 | F42: 205 | G42: 0 | I42: 4.2.4 Färdbroms Hjulbroms | J42: 171 | K42: 0 | L42: 34 | M42: 0 | N42: 205 | O42: 0
A43: 4.2.5 Tillsatsbroms | B43: 0 | C43: 0 | I43: 4.2.5 Tillsatsbroms | J43: 0 | K43: 0
A44: 4.3.1 Färdbroms Reglage | B44: 0 | C44: 0 | D44: 0 | E44: 0 | F44: 0 | G44: 0 | I44: 4.3.1 Färdbroms Reglage | J44: 0 | K44: 0 | L44: 0 | M44: 0 | N44: 0 | O44: 0
A45: 4.3.2 Färdbroms Huvudcylinder | B45: 0 | C45: 0 | D45: 0 | E45: 0 | F45: 0 | G45: 0 | I45: 4.3.2 Färdbroms Huvudcylinder | J45: 0 | K45: 0 | L45: 0 | M45: 0 | N45: 0 | O45: 0
A46: 4.4.1 Bromsledning | B46: 20 | C46: 0 | D46: 8 | E46: 0 | F46: 28 | G46: 0 | I46: 4.4.1 Bromsledning | J46: 20 | K46: 0 | L46: 8 | M46: 0 | N46: 28 | O46: 0
A47: 4.4.2 Färdbroms Länksystem | B47: 5 | C47: 0 | D47: 0 | E47: 0 | F47: 5 | G47: 0 | I47: 4.4.2 Färdbroms Länksystem | J47: 5 | K47: 0 | L47: 0 | M47: 0 | N47: 5 | O47: 0
A48: 4.4.3 Bromshävarm | B48: 14 | C48: 0 | D48: 0 | E48: 0 | F48: 14 | G48: 0 | I48: 4.4.3 Bromshävarm | J48: 14 | K48: 0 | L48: 0 | M48: 0 | N48: 14 | O48: 0
A49: 4.4.4 Bromscylinder | B49: 18 | C49: 1 | D49: 1 | E49: 0 | F49: 19 | G49: 1 | I49: 4.4.4 Bromscylinder | J49: 18 | K49: 1 | L49: 1 | M49: 0 | N49: 19 | O49: 1
A50: 4.4.5 Bromsventil | B50: 16 | C50: 0 | D50: 2 | E50: 0 | F50: 18 | G50: 0 | I50: 4.4.5 Bromsventil | J50: 16 | K50: 0 | L50: 2 | M50: 0 | N50: 18 | O50: 0
A51: 4.4.6 Bromssystem Uttag | B51: 37 | C51: 0 | D51: 5 | E51: 0 | F51: 42 | G51: 0 | I51: 4.4.6 Bromssystem Uttag | J51: 37 | K51: 0 | L51: 5 | M51: 0 | N51: 42 | O51: 0
A52: 4.5.1 Lastkännande Ventil | B52: 4 | C52: 0 | D52: 1 | E52: 0 | F52: 5 | G52: 0 | I52: 4.5.1 Lastkännande Ventil | J52: 4 | K52: 0 | L52: 1 | M52: 0 | N52: 5 | O52: 0
A53: 4.5.2 Abs-System | B53: 71 | C53: 0 | D53: 13 | E53: 0 | F53: 84 | G53: 0 | I53: 4.5.2 Abs-System | J53: 71 | K53: 0 | L53: 13 | M53: 0 | N53: 84 | O53: 0
A54: 4.6.1 Färdbroms Tryckluft | B54: 14 | C54: 0 | D54: 1 | E54: 0 | F54: 15 | G54: 0 | I54: 4.6.1 Färdbroms Tryckluft | J54: 14 | K54: 0 | L54: 1 | M54: 0 | N54: 15 | O54: 0
A55: 4.6.2 Färdbroms Frysskydd | B55: 15 | C55: 0 | D55: 2 | E55: 0 | F55: 17 | G55: 0 | I55: 4.6.2 Färdbroms Frysskydd | J55: 15 | K55: 0 | L55: 2 | M55: 0 | N55: 17 | O55: 0
A56: 4.6.4 Färdbroms Varningsanordning | B56: 7 | C56: 0 | D56: 3 | E56: 0 | F56: 10 | G56: 0 | I56: 4.6.4 Färdbroms Varningsanordning | J56: 7 | K56: 0 | L56: 3 | M56: 0 | N56: 10 | O56: 0
A57: 4.7.1 Parkeringsbroms Bromsfunktion | B57: 13 | C57: 0 | D57: 67 | E57: 0 | F57: 80 | G57: 0 | I57: 4.7.1 Parkeringsbroms Bromsfunktion | J57: 13 | K57: 0 | L57: 67 | M57: 0 | N57: 80 | O57: 0
A58: 4.7.2 Parkeringsbroms Transmission | B58: 0 | C58: 0 | D58: 0 | E58: 0 | F58: 0 | G58: 0 | I58: 4.7.2 Parkeringsbroms Transmission | J58: 0 | K58: 0 | L58: 0 | M58: 0 | N58: 0 | O58: 0
A59: 4.7.3 Parkeringsbroms Hjulbroms | B59: 0 | C59: 0 | F59: 0 | G59: 0 | I59: 4.7.3 Parkeringsbroms Hjulbroms | J59: 0 | K59: 0 | N59: 0 | O59: 0
A60: 5.1.1 Ratt | B60: 0 | C60: 0 | D60: 0 | E60: 0 | F60: 0 | G60: 0 | I60: 5.1.1 Ratt | J60: 0 | K60: 0 | L60: 0 | M60: 0 | N60: 0 | O60: 0
A61: 5.1.3 Rattaxel | B61: 0 | C61: 0 | D61: 0 | E61: 0 | F61: 0 | G61: 0 | I61: 5.1.3 Rattaxel | J61: 0 | K61: 0 | L61: 0 | M61: 0 | N61: 0 | O61: 0
A62: 5.1.4 Styrväxel | B62: 3 | C62: 0 | D62: 0 | E62: 0 | F62: 3 | G62: 0 | I62: 5.1.4 Styrväxel | J62: 3 | K62: 0 | L62: 0 | M62: 0 | N62: 3 | O62: 0
A63: 5.1.5 Systemfunktion Styrning | B63: 1 | C63: 0 | D63: 2 | E63: 0 | F63: 3 | G63: 0 | I63: 5.1.5 Systemfunktion Styrning | J63: 1 | K63: 0 | L63: 2 | M63: 0 | N63: 3 | O63: 0
A64: 5.2.1 Styrsystem Arm/Stag | B64: 2 | C64: 0 | D64: 0 | E64: 0 | F64: 2 | G64: 0 | I64: 5.2.1 Styrsystem Arm/Stag | J64: 2 | K64: 0 | L64: 0 | M64: 0 | N64: 2 | O64: 0
A65: 5.2.2 Styrled | B65: 49 | C65: 0 | D65: 3 | E65: 0 | F65: 52 | G65: 0 | I65: 5.2.2 Styrled | J65: 49 | K65: 0 | L65: 3 | M65: 0 | N65: 52 | O65: 0
A66: 50.1.5 Kopplingsuppgifter | B66: 0 | C66: 0 | I66: 50.1.5 Kopplingsuppgifter | J66: 0 | K66: 0
A67: 50.2.7 Bromssystem | B67: 0 | C67: 0 | F67: 0 | G67: 0 | I67: 50.2.7 Bromssystem | J67: 0 | K67: 0 | N67: 0 | O67: 0
A68: 6.1.1 Dörr | B68: 26 | C68: 0 | D68: 3 | E68: 0 | F68: 29 | G68: 0 | I68: 6.1.1 Dörr | J68: 26 | K68: 0 | L68: 3 | M68: 0 | N68: 29 | O68: 0
A69: 6.1.2 Främre Huv | B69: 0 | C69: 0 | D69: 0 | E69: 0 | F69: 0 | G69: 0 | I69: 6.1.2 Främre Huv | J69: 0 | K69: 0 | L69: 0 | M69: 0 | N69: 0 | O69: 0
A70: 6.1.3 Kaross | B70: 4 | C70: 0 | D70: 1 | E70: 0 | F70: 5 | G70: 0 | I70: 6.1.3 Kaross | J70: 4 | K70: 0 | L70: 1 | M70: 0 | N70: 5 | O70: 0
A71: 6.1.4 Stänkskydd | B71: 10 | C71: 0 | D71: 2 | E71: 0 | F71: 12 | G71: 0 | I71: 6.1.4 Stänkskydd | J71: 10 | K71: 0 | L71: 2 | M71: 0 | N71: 12 | O71: 0
A72: 6.1.5 Ruta | B72: 14 | C72: 0 | D72: 4 | E72: 0 | F72: 18 | G72: 0 | I72: 6.1.5 Ruta | J72: 14 | K72: 0 | L72: 4 | M72: 0 | N72: 18 | O72: 0
A73: 6.2.1 Bilbälte | B73: 1 | C73: 0 | D73: 0 | E73: 0 | F73: 1 | G73: 0 | I73: 6.2.1 Bilbälte | J73: 1 | K73: 0 | L73: 0 | M73: 0 | N73: 1 | O73: 0
A74: 6.2.2 Förar/Passagerarplats | B74: 0 | C74: 0 | D74: 0 | E74: 0 | F74: 0 | G74: 0 | I74: 6.2.2 Förar/Passagerarplats | J74: 0 | K74: 0 | L74: 0 | M74: 0 | N74: 0 | O74: 0
A75: 6.2.3 Utrustning Invändig | B75: 1 | C75: 0 | D75: 2 | E75: 0 | F75: 3 | G75: 0 | I75: 6.2.3 Utrustning Invändig | J75: 1 | K75: 0 | L75: 2 | M75: 0 | N75: 3 | O75: 0
A76: 6.2.5 Handikapputrustning | D76: 0 | E76: 0 | F76: 0 | G76: 0 | I76: 6.2.5 Handikapputrustning | L76: 0 | M76: 0 | N76: 0 | O76: 0
A77: 6.3.1 Lastutrymme | B77: 3 | C77: 0 | D77: 0 | E77: 0 | F77: 3 | G77: 0 | I77: 6.3.1 Lastutrymme | J77: 3 | K77: 0 | L77: 0 | M77: 0 | N77: 3 | O77: 0
A78: 6.3.2 Påbyggnadsram | B78: 25 | C78: 0 | D78: 5 | E78: 0 | F78: 30 | G78: 0 | I78: 6.3.2 Påbyggnadsram | J78: 25 | K78: 0 | L78: 5 | M78: 0 | N78: 30 | O78: 0
A79: 6.3.3 Lastbegränsande Anordning | B79: 0 | C79: 0 | D79: 0 | E79: 0 | F79: 0 | G79: 0 | I79: 6.3.3 Lastbegränsande Anordning | J79: 0 | K79: 0 | L79: 0 | M79: 0 | N79: 0 | O79: 0
A80: 6.3.4 Lastsäkringsutrustning | B80: 0 | C80: 0 | F80: 0 | G80: 0 | I80: 6.3.4 Lastsäkringsutrustning | J80: 0 | K80: 0 | N80: 0 | O80: 0
A81: 6.3.5 Lastanordning | B81: 2 | C81: 0 | D81: 0 | E81: 0 | F81: 2 | G81: 0 | I81: 6.3.5 Lastanordning | J81: 2 | K81: 0 | L81: 0 | M81: 0 | N81: 2 | O81: 0
A82: 6.4.1 Tillbehör Utvändigt | B82: 4 | C82: 0 | D82: 0 | E82: 0 | F82: 4 | G82: 0 | I82: 6.4.1 Tillbehör Utvändigt | J82: 4 | K82: 0 | L82: 0 | M82: 0 | N82: 4 | O82: 0
A83: 6.5.1 Gasinstallation | D83: 0 | E83: 0 | F83: 0 | G83: 0 | I83: 6.5.1 Gasinstallation | L83: 0 | M83: 0 | N83: 0 | O83: 0
A84: 7.1.1 Rengörare | B84: 17 | C84: 0 | D84: 4 | E84: 0 | F84: 21 | G84: 0 | I84: 7.1.1 Rengörare | J84: 17 | K84: 0 | L84: 4 | M84: 0 | N84: 21 | O84: 0
A85: 7.1.2 Backspegel | B85: 18 | C85: 0 | D85: 3 | E85: 0 | F85: 21 | G85: 0 | I85: 7.1.2 Backspegel | J85: 18 | K85: 0 | L85: 3 | M85: 0 | N85: 21 | O85: 0
A86: 7.1.3 Huvudstrålkastare | B86: 120 | C86: 0 | D86: 18 | E86: 0 | F86: 138 | G86: 0 | I86: 7.1.3 Huvudstrålkastare | J86: 120 | K86: 0 | L86: 18 | M86: 0 | N86: 138 | O86: 0
A87: 7.1.4 Dimstrålkastare | B87: 24 | C87: 0 | D87: 0 | E87: 0 | F87: 24 | G87: 0 | I87: 7.1.4 Dimstrålkastare | J87: 24 | K87: 0 | L87: 0 | M87: 0 | N87: 24 | O87: 0
A88: 7.1.5 Fjärrstrålkastare | B88: 0 | C88: 0 | D88: 0 | E88: 0 | F88: 0 | G88: 0 | I88: 7.1.5 Fjärrstrålkastare | J88: 0 | K88: 0 | L88: 0 | M88: 0 | N88: 0 | O88: 0
A89: 7.1.7 Arbetsbelysning | B89: 0 | C89: 0 | D89: 0 | E89: 0 | F89: 0 | G89: 0 | I89: 7.1.7 Arbetsbelysning | J89: 0 | K89: 0 | L89: 0 | M89: 0 | N89: 0 | O89: 0
A90: 7.2.1 Positionslykta | B90: 46 | C90: 0 | D90: 7 | E90: 0 | F90: 53 | G90: 0 | I90: 7.2.1 Positionslykta | J90: 46 | K90: 0 | L90: 7 | M90: 0 | N90: 53 | O90: 0
A91: 7.2.2 Sidomarkering | B91: 39 | C91: 0 | D91: 9 | E91: 0 | F91: 48 | G91: 0 | I91: 7.2.2 Sidomarkering | J91: 39 | K91: 0 | L91: 9 | M91: 0 | N91: 48 | O91: 0
A92: 7.2.3 Skyltlykta | B92: 27 | C92: 0 | D92: 3 | E92: 0 | F92: 30 | G92: 0 | I92: 7.2.3 Skyltlykta | J92: 27 | K92: 0 | L92: 3 | M92: 0 | N92: 30 | O92: 0
A93: 7.2.4 Reflex | B93: 13 | C93: 0 | D93: 5 | E93: 0 | F93: 18 | G93: 0 | I93: 7.2.4 Reflex | J93: 13 | K93: 0 | L93: 5 | M93: 0 | N93: 18 | O93: 0
A94: 7.2.5 Dimbaklykta | B94: 0 | C94: 0 | I94: 7.2.5 Dimbaklykta | J94: 0 | K94: 0
A95: 7.2.7 Annan Lykta | B95: 3 | C95: 0 | D95: 0 | E95: 0 | F95: 3 | G95: 0 | I95: 7.2.7 Annan Lykta | J95: 3 | K95: 0 | L95: 0 | M95: 0 | N95: 3 | O95: 0
A96: 7.3.1 Körriktningsvisare | B96: 3 | C96: 0 | D96: 3 | E96: 0 | F96: 6 | G96: 0 | I96: 7.3.1 Körriktningsvisare | J96: 3 | K96: 0 | L96: 3 | M96: 0 | N96: 6 | O96: 0
A97: 7.3.2 Stopplykta | B97: 17 | C97: 0 | D97: 4 | E97: 0 | F97: 21 | G97: 0 | I97: 7.3.2 Stopplykta | J97: 17 | K97: 0 | L97: 4 | M97: 0 | N97: 21 | O97: 0
A98: 7.3.3 Signalanordning | B98: 13 | C98: 0 | D98: 0 | E98: 0 | F98: 13 | G98: 0 | I98: 7.3.3 Signalanordning | J98: 13 | K98: 0 | L98: 0 | M98: 0 | N98: 13 | O98: 0
A99: 7.3.4 Varningstriangel | B99: 3 | C99: 0 | D99: 0 | E99: 0 | F99: 3 | G99: 0 | I99: 7.3.4 Varningstriangel | J99: 3 | K99: 0 | L99: 0 | M99: 0 | N99: 3 | O99: 0
A100: 7.3.5 Larmanordning | B100: 0 | C100: 0 | I100: 7.3.5 Larmanordning | J100: 0 | K100: 0
A101: 8.1.1 Hastighetsmätare | B101: 4 | C101: 0 | D101: 5 | E101: 0 | F101: 9 | G101: 0 | I101: 8.1.1 Hastighetsmätare | J101: 4 | K101: 0 | L101: 5 | M101: 0 | N101: 9 | O101: 0
A102: 80.1.1 Rullbromsprov Inte Utfört | B102: 2 | C102: 0 | D102: 1 | E102: 0 | F102: 3 | G102: 0 | I102: 80.1.1 Rullbromsprov Inte Utfört | J102: 2 | K102: 0 | L102: 1 | M102: 0 | N102: 3 | O102: 0
A103: 80.2.1 Underredskontroll Inte Utförd | B103: 0 | C103: 0 | I103: 80.2.1 Underredskontroll Inte Utförd | J103: 0 | K103: 0
A104: 80.3.1 Framvagnskontroll Inte Utförd | B104: 0 | C104: 0 | F104: 0 | G104: 0 | I104: 80.3.1 Framvagnskontroll Inte Utförd | J104: 0 | K104: 0 | N104: 0 | O104: 0
A105: 80.4.1 Överredskontroll Inte Utförd | B105: 0 | C105: 0 | I105: 80.4.1 Överredskontroll Inte Utförd | J105: 0 | K105: 0
A106: 9.1.1 Kulkoppling | B106: 0 | C106: 0 | D106: 1 | E106: 0 | F106: 1 | G106: 0 | I106: 9.1.1 Kulkoppling | J106: 0 | K106: 0 | L106: 1 | M106: 0 | N106: 1 | O106: 0
A107: 9.1.11 Kopplingsklasskylt | B107: 3 | C107: 0 | F107: 1 | G107: 0 | I107: 9.1.11 Kopplingsklasskylt | J107: 3 | K107: 0 | N107: 1 | O107: 0
A108: 9.1.12 Multifunktionskoppling | B108: 0 | C108: 0 | I108: 9.1.12 Multifunktionskoppling | J108: 0 | K108: 0
A109: 9.1.2 Bygelkoppling | B109: 64 | C109: 0 | D109: 1 | E109: 0 | F109: 65 | G109: 0 | I109: 9.1.2 Bygelkoppling | J109: 64 | K109: 0 | L109: 1 | M109: 0 | N109: 65 | O109: 0
A110: 9.1.4 Vändskiva | B110: 11 | C110: 0 | D110: 0 | E110: 0 | F110: 11 | G110: 0 | I110: 9.1.4 Vändskiva | J110: 11 | K110: 0 | L110: 0 | M110: 0 | N110: 11 | O110: 0
A111: 9.1.5 Dragbalk Kopplingsanordning | B111: 1 | C111: 0 | D111: 1 | E111: 0 | F111: 2 | G111: 0 | I111: 9.1.5 Dragbalk Kopplingsanordning | J111: 1 | K111: 0 | L111: 1 | M111: 0 | N111: 2 | O111: 0
A112: 9.1.6 Släpvagnskontakt | B112: 0 | C112: 0 | D112: 0 | E112: 0 | F112: 0 | G112: 0 | I112: 9.1.6 Släpvagnskontakt | J112: 0 | K112: 0 | L112: 0 | M112: 0 | N112: 0 | O112: 0
A113: 9.2.1 Utskjutande Detalj | B113: 1 | C113: 0 | D113: 0 | E113: 0 | F113: 1 | G113: 0 | I113: 9.2.1 Utskjutande Detalj | J113: 1 | K113: 0 | L113: 0 | M113: 0 | N113: 1 | O113: 0
A114: 9.3.1 Identitet | B114: 11 | C114: 0 | D114: 3 | E114: 0 | F114: 14 | G114: 0 | I114: 9.3.1 Identitet | J114: 11 | K114: 0 | L114: 3 | M114: 0 | N114: 14 | O114: 0
A115: 9.3.2 Ändring | B115: 4 | C115: 0 | D115: 1 | E115: 0 | F115: 5 | G115: 0 | I115: 9.3.2 Ändring | J115: 4 | K115: 0 | L115: 1 | M115: 0 | N115: 5 | O115: 0
A116: 9.4.1 Provkörning | B116: 1 | C116: 0 | D116: 1 | E116: 0 | F116: 2 | G116: 0 | I116: 9.4.1 Provkörning | J116: 1 | K116: 0 | L116: 1 | M116: 0 | N116: 2 | O116: 0

Sheet BE Komponent (hidden)
A1: Viktklass | B1: System | C1: Delsystem | D1: Komponent | E1: 2 Underkänd Med Efterk | F1: 3 Körförbud | G1: G Godkänd | H1: J Justering
A2: 3,5-16 ton | B2: 1. Stomme | C2: 1.1 Bärande Konstruktion | D2: 1.1.1 Ram | E2: 4 | F2: 0 | G2: 56 | H2: 0
A3: 3,5-16 ton | B3: 1. Stomme | C3: 1.1 Bärande Konstruktion | D3: 1.1.2 Balkprofil | E3: 4 | F3: 0 | G3: 35 | H3: 0
A4: 3,5-16 ton | B4: 1. Stomme | C4: 1.1 Bärande Konstruktion | D4: 1.1.3 Plåtyta | E4: 1 | F4: 0 | G4: 5 | H4: 0
A5: 3,5-16 ton | B5: 1. Stomme | C5: 1.2 Infästning | D5: 1.2.1 Infästning Hjulsystem | E5: 3 | F5: 0 | G5: 16 | H5: 0
A6: 3,5-16 ton | B6: 1. Stomme | C6: 1.2 Infästning | D6: 1.2.2 Infästning Drivsystem | E6: 0 | F6: 0 | G6: 2 | H6: 0
A7: 3,5-16 ton | B7: 1. Stomme | C7: 1.2 Infästning | D7: 1.2.5 Infästning Karosseri | E7: 1 | F7: 0 | G7: 4 | H7: 0
A8: 3,5-16 ton | B8: 1. Stomme | C8: 1.2 Infästning | D8: 1.2.6 Infästning Kopplingsanordning | E8: 0 | F8: 0 | G8: 3 | H8: 0
A9: 3,5-16 ton | B9: 1. Stomme | C9: 1.3 Skydd | D9: 1.3.1 Underkörningsskydd | E9: 3 | F9: 0 | G9: 25 | H9: 0
A10: 3,5-16 ton | B10: 1. Stomme | C10: 1.3 Skydd | D10: 1.3.2 Sidoskydd | E10: 1 | F10: 0 | G10: 21 | H10: 0
A11: 3,5-16 ton | B11: 2. Hjulsystem | C11: 2.1 Hjul | D11: 2.1.1 Däck | E11: 0 | F11: 0 | G11: 103 | H11: 0
A12: 3,5-16 ton | B12: 2. Hjulsystem | C12: 2.1 Hjul | D12: 2.1.2 Hjul/Fälg | E12: 1 | F12: 0 | G12: 12 | H12: 0
A13: 3,5-16 ton | B13: 2. Hjulsystem | C13: 2.1 Hjul | D13: 2.1.3 Hjullager | E13: 4 | F13: 0 | G13: 84 | H13: 0
A14: 3,5-16 ton | B14: 2. Hjulsystem | C14: 2.2 Fjädersystem | D14: 2.2.1 Fjädring | E14: 3 | F14: 0 | G14: 65 | H14: 0
A15: 3,5-16 ton | B15: 2. Hjulsystem | C15: 2.2 Fjädersystem | D15: 2.2.2 Fjädersäte | E15: 1 | F15: 0 | G15: 6 | H15: 0
A16: 3,5-16 ton | B16: 2. Hjulsystem | C16: 2.2 Fjädersystem | D16: 2.2.3 Stötdämpare | E16: 1 | F16: 0 | G16: 42 | H16: 0
A17: 3,5-16 ton | B17: 2. Hjulsystem | C17: 2.3 Axel/Länkage | D17: 2.3.1 Axel | E17: 3 | F17: 0 | G17: 37 | H17: 0
A18: 3,5-16 ton | B18: 2. Hjulsystem | C18: 2.3 Axel/Länkage | D18: 2.3.2 Tvärstag | E18: 2 | F18: 0 | G18: 5 | H18: 0
A19: 3,5-16 ton | B19: 2. Hjulsystem | C19: 2.3 Axel/Länkage | D19: 2.3.3 Länkarm | E19: 1 | F19: 0 | G19: 34 | H19: 0
A20: 3,5-16 ton | B20: 2. Hjulsystem | C20: 2.3 Axel/Länkage | D20: 2.3.4 Spindelled | E20: 1 | F20: 0 | G20: 50 | H20: 0
A21: 3,5-16 ton | B21: 2. Hjulsystem | C21: 2.3 Axel/Länkage | D21: 2.3.5 Spindeltapp | E21: 7 | F21: 0 | G21: 47 | H21: 0
A22: 3,5-16 ton | B22: 3. Drivsystem | C22: 3.1 Kraftkälla | D22: 3.1.1 Motor | E22: 8 | F22: 0 | G22: 71 | H22: 0
A23: 3,5-16 ton | B23: 3. Drivsystem | C23: 3.1 Kraftkälla | D23: 3.1.2 Bränslesystem | E23: 3 | F23: 0 | G23: 50 | H23: 0
A24: 3,5-16 ton | B24: 3. Drivsystem | C24: 3.1 Kraftkälla | D24: 3.1.3 Avgassystem | E24: 13 | F24: 0 | G24: 191 | H24: 0
A25: 3,5-16 ton | B25: 3. Drivsystem | C25: 3.1 Kraftkälla | D25: 3.1.4 El-System | E25: 3 | F25: 0 | G25: 35 | H25: 0
A26: 3,5-16 ton | B26: 3. Drivsystem | C26: 3.1 Kraftkälla | D26: 3.1.5 Hastighetsregulator | E26: 0 | F26: 0 | G26: 14 | H26: 0
A27: 3,5-16 ton | B27: 3. Drivsystem | C27: 3.1 Kraftkälla | D27: 3.1.6 Hydraulsystem | E27: 0 | F27: 0 | G27: 14 | H27: 0
A28: 3,5-16 ton | B28: 3. Drivsystem | C28: 3.2 Drivning | D28: 3.2.1 Växlingssystem | E28: 0 | F28: 0 | G28: 1 | H28: 0
A29: 3,5-16 ton | B29: 3. Drivsystem | C29: 3.2 Drivning | D29: 3.2.2 Kraftöverföring | E29: 0 | F29: 0 | G29: 12 | H29: 0
A30: 3,5-16 ton | B30: 4. Bromssystem | C30: 4.1 Färdbroms-Prestanda | D30: 4.1.1 Färdbroms Retardation | E30: 3 | F30: 0 | G30: 17 | H30: 0
A31: 3,5-16 ton | B31: 4. Bromssystem | C31: 4.2 Färdbroms-Funktion | D31: 4.2.1 Färdbroms Bromskraftfördelning | E31: 102 | F31: 0 | G31: 335 | H31: 0
A32: 3,5-16 ton | B32: 4. Bromssystem | C32: 4.2 Färdbroms-Funktion | D32: 4.2.2 Färdbroms Funktion | E32: 11 | F32: 0 | G32: 52 | H32: 0
A33: 3,5-16 ton | B33: 4. Bromssystem | C33: 4.2 Färdbroms-Funktion | D33: 4.2.3 Färdbroms Rörelsereserv | E33: 1 | F33: 0 | G33: 4 | H33: 0
A34: 3,5-16 ton | B34: 4. Bromssystem | C34: 4.2 Färdbroms-Funktion | D34: 4.2.4 Färdbroms Hjulbroms | E34: 29 | F34: 0 | G34: 283 | H34: 0
A35: 3,5-16 ton | B35: 4. Bromssystem | C35: 4.3 Färdbroms-Manövrering | D35: 4.3.1 Färdbroms Reglage | E35: 0 | F35: 0 | G35: 1 | H35: 0
A36: 3,5-16 ton | B36: 4. Bromssystem | C36: 4.3 Färdbroms-Manövrering | D36: 4.3.2 Färdbroms Huvudcylinder | E36: 0 | F36: 0 | G36: 4 | H36: 0
A37: 3,5-16 ton | B37: 4. Bromssystem | C37: 4.4 Färdbroms-Transmisson | D37: 4.4.1 Bromsledning | E37: 8 | F37: 0 | G37: 172 | H37: 0
A38: 3,5-16 ton | B38: 4. Bromssystem | C38: 4.4 Färdbroms-Transmisson | D38: 4.4.2 Färdbroms Länksystem | E38: 0 | F38: 0 | G38: 3 | H38: 0
A39: 3,5-16 ton | B39: 4. Bromssystem | C39: 4.4 Färdbroms-Transmisson | D39: 4.4.3 Bromshävarm | E39: 0 | F39: 0 | G39: 1 | H39: 0
A40: 3,5-16 ton | B40: 4. Bromssystem | C40: 4.4 Färdbroms-Transmisson | D40: 4.4.4 Bromscylinder | E40: 0 | F40: 0 | G40: 28 | H40: 0
A41: 3,5-16 ton | B41: 4. Bromssystem | C41: 4.4 Färdbroms-Transmisson | D41: 4.4.5 Bromsventil | E41: 1 | F41: 0 | G41: 27 | H41: 0
A42: 3,5-16 ton | B42: 4. Bromssystem | C42: 4.4 Färdbroms-Transmisson | D42: 4.4.6 Bromssystem Uttag | E42: 5 | F42: 0 | G42: 19 | H42: 0
A43: 3,5-16 ton | B43: 4. Bromssystem | C43: 4.5 Färdbroms-Reglering | D43: 4.5.1 Lastkännande Ventil | E43: 1 | F43: 0 | G43: 16 | H43: 0
A44: 3,5-16 ton | B44: 4. Bromssystem | C44: 4.5 Färdbroms-Reglering | D44: 4.5.2 Abs-System | E44: 11 | F44: 0 | G44: 47 | H44: 0
A45: 3,5-16 ton | B45: 4. Bromssystem | C45: 4.6 Färdbroms-Energiförsörjning | D45: 4.6.1 Färdbroms Tryckluft | E45: 1 | F45: 0 | G45: 34 | H45: 0
A46: 3,5-16 ton | B46: 4. Bromssystem | C46: 4.6 Färdbroms-Energiförsörjning | D46: 4.6.2 Färdbroms Frysskydd | E46: 0 | F46: 0 | G46: 6 | H46: 0
A47: 3,5-16 ton | B47: 4. Bromssystem | C47: 4.6 Färdbroms-Energiförsörjning | D47: 4.6.4 Färdbroms Varningsanordning | E47: 3 | F47: 0 | G47: 18 | H47: 0
A48: 3,5-16 ton | B48: 4. Bromssystem | C48: 4.7 Parkeringsbroms | D48: 4.7.1 Parkeringsbroms Bromsfunktion | E48: 63 | F48: 0 | G48: 294 | H48: 0
A49: 3,5-16 ton | B49: 4. Bromssystem | C49: 4.7 Parkeringsbroms | D49: 4.7.2 Parkeringsbroms Transmission | E49: 0 | F49: 0 | G49: 4 | H49: 0
A50: 3,5-16 ton | B50: 5. Styrsystem | C50: 5.1 Styrmekanism | D50: 5.1.1 Ratt | E50: 0 | F50: 0 | G50: 1 | H50: 0
A51: 3,5-16 ton | B51: 5. Styrsystem | C51: 5.1 Styrmekanism | D51: 5.1.3 Rattaxel | E51: 0 | F51: 0 | G51: 1 | H51: 0
A52: 3,5-16 ton | B52: 5. Styrsystem | C52: 5.1 Styrmekanism | D52: 5.1.4 Styrväxel | E52: 0 | F52: 0 | G52: 12 | H52: 0
A53: 3,5-16 ton | B53: 5. Styrsystem | C53: 5.1 Styrmekanism | D53: 5.1.5 Systemfunktion Styrning | E53: 2 | F53: 0 | G53: 16 | H53: 0
A54: 3,5-16 ton | B54: 5. Styrsystem | C54: 5.2 Länkage | D54: 5.2.1 Styrsystem Arm/Stag | E54: 0 | F54: 0 | G54: 6 | H54: 0
A55: 3,5-16 ton | B55: 5. Styrsystem | C55: 5.2 Länkage | D55: 5.2.2 Styrled | E55: 3 | F55: 0 | G55: 177 | H55: 0
A56: 3,5-16 ton | B56: 6. Karosseri | C56: 6.1 Karossens Utsida | D56: 6.1.1 Dörr | E56: 3 | F56: 0 | G56: 24 | H56: 0
A57: 3,5-16 ton | B57: 6. Karosseri | C57: 6.1 Karossens Utsida | D57: 6.1.2 Främre Huv | E57: 0 | F57: 0 | G57: 9 | H57: 0
A58: 3,5-16 ton | B58: 6. Karosseri | C58: 6.1 Karossens Utsida | D58: 6.1.3 Kaross | E58: 1 | F58: 0 | G58: 6 | H58: 0
A59: 3,5-16 ton | B59: 6. Karosseri | C59: 6.1 Karossens Utsida | D59: 6.1.4 Stänkskydd | E59: 2 | F59: 0 | G59: 61 | H59: 0
A60: 3,5-16 ton | B60: 6. Karosseri | C60: 6.1 Karossens Utsida | D60: 6.1.5 Ruta | E60: 2 | F60: 0 | G60: 58 | H60: 0
A61: 3,5-16 ton | B61: 6. Karosseri | C61: 6.2 Personutrymme | D61: 6.2.1 Bilbälte | E61: 0 | F61: 0 | G61: 11 | H61: 0
A62: 3,5-16 ton | B62: 6. Karosseri | C62: 6.2 Personutrymme | D62: 6.2.2 Förar/Passagerarplats | E62: 0 | F62: 0 | G62: 1 | H62: 0
A63: 3,5-16 ton | B63: 6. Karosseri | C63: 6.2 Personutrymme | D63: 6.2.3 Utrustning Invändig | E63: 2 | F63: 0 | G63: 16 | H63: 0
A64: 3,5-16 ton | B64: 6. Karosseri | C64: 6.3 Lasthantering | D64: 6.3.1 Lastutrymme | E64: 0 | F64: 0 | G64: 22 | H64: 0
A65: 3,5-16 ton | B65: 6. Karosseri | C65: 6.3 Lasthantering | D65: 6.3.2 Påbyggnadsram | E65: 5 | F65: 0 | G65: 49 | H65: 0
A66: 3,5-16 ton | B66: 6. Karosseri | C66: 6.3 Lasthantering | D66: 6.3.3 Lastbegränsande Anordning | E66: 0 | F66: 0 | G66: 8 | H66: 0
A67: 3,5-16 ton | B67: 6. Karosseri | C67: 6.3 Lasthantering | D67: 6.3.5 Lastanordning | E67: 0 | F67: 0 | G67: 3 | H67: 0
A68: 3,5-16 ton | B68: 6. Karosseri | C68: 6.4 Extra Utrustning | D68: 6.4.1 Tillbehör Utvändigt | E68: 0 | F68: 0 | G68: 6 | H68: 0
A69: 3,5-16 ton | B69: 6. Karosseri | C69: 6.5 Gaskontroll | D69: 6.5.1 Gasinstallation | E69: 0 | F69: 0 | G69: 1 | H69: 0
A70: 3,5-16 ton | B70: 7. Kommunikation | C70: 7.1 Sikthjälpmedel | D70: 7.1.1 Rengörare | E70: 4 | F70: 0 | G70: 122 | H70: 0
A71: 3,5-16 ton | B71: 7. Kommunikation | C71: 7.1 Sikthjälpmedel | D71: 7.1.2 Backspegel | E71: 3 | F71: 0 | G71: 45 | H71: 0
A72: 3,5-16 ton | B72: 7. Kommunikation | C72: 7.1 Sikthjälpmedel | D72: 7.1.3 Huvudstrålkastare | E72: 15 | F72: 0 | G72: 387 | H72: 9
A73: 3,5-16 ton | B73: 7. Kommunikation | C73: 7.1 Sikthjälpmedel | D73: 7.1.4 Dimstrålkastare | E73: 0 | F73: 0 | G73: 12 | H73: 0
A74: 3,5-16 ton | B74: 7. Kommunikation | C74: 7.1 Sikthjälpmedel | D74: 7.1.5 Fjärrstrålkastare | E74: 0 | F74: 0 | G74: 1 | H74: 0
A75: 3,5-16 ton | B75: 7. Kommunikation | C75: 7.2 Markeringar | D75: 7.2.1 Positionslykta | E75: 6 | F75: 0 | G75: 146 | H75: 0
A76: 3,5-16 ton | B76: 7. Kommunikation | C76: 7.2 Markeringar | D76: 7.2.2 Sidomarkering | E76: 6 | F76: 0 | G76: 194 | H76: 0
A77: 3,5-16 ton | B77: 7. Kommunikation | C77: 7.2 Markeringar | D77: 7.2.3 Skyltlykta | E77: 2 | F77: 0 | G77: 97 | H77: 0
A78: 3,5-16 ton | B78: 7. Kommunikation | C78: 7.2 Markeringar | D78: 7.2.4 Reflex | E78: 5 | F78: 0 | G78: 180 | H78: 0
A79: 3,5-16 ton | B79: 7. Kommunikation | C79: 7.2 Markeringar | D79: 7.2.7 Annan Lykta | E79: 0 | F79: 0 | G79: 19 | H79: 0
A80: 3,5-16 ton | B80: 7. Kommunikation | C80: 7.3 Signaler | D80: 7.3.1 Körriktningsvisare | E80: 2 | F80: 0 | G80: 86 | H80: 0
A81: 3,5-16 ton | B81: 7. Kommunikation | C81: 7.3 Signaler | D81: 7.3.2 Stopplykta | E81: 4 | F81: 0 | G81: 102 | H81: 0
A82: 3,5-16 ton | B82: 7. Kommunikation | C82: 7.3 Signaler | D82: 7.3.3 Signalanordning | E82: 0 | F82: 0 | G82: 46 | H82: 0
A83: 3,5-16 ton | B83: 7. Kommunikation | C83: 7.3 Signaler | D83: 7.3.4 Varningstriangel | E83: 0 | F83: 0 | G83: 28 | H83: 0
A84: 3,5-16 ton | B84: 8. Instrumentering | C84: 8.1 Färdinstrument | D84: 8.1.1 Hastighetsmätare | E84: 5 | F84: 0 | G84: 16 | H84: 0
A85: 3,5-16 ton | B85: 9. Övrigt | C85: 9.1 Kopplingsanordningar | D85: 9.1.1 Kulkoppling | E85: 1 | F85: 0 | G85: 21 | H85: 0
A86: 3,5-16 ton | B86: 9. Övrigt | C86: 9.1 Kopplingsanordningar | D86: 9.1.2 Bygelkoppling | E86: 1 | F86: 0 | G86: 4 | H86: 0
A87: 3,5-16 ton | B87: 9. Övrigt | C87: 9.1 Kopplingsanordningar | D87: 9.1.4 Vändskiva | E87: 0 | F87: 0 | G87: 1 | H87: 0
A88: 3,5-16 ton | B88: 9. Övrigt | C88: 9.1 Kopplingsanordningar | D88: 9.1.5 Dragbalk Kopplingsanordning | E88: 1 | F88: 0 | G88: 2 | H88: 0
A89: 3,5-16 ton | B89: 9. Övrigt | C89: 9.1 Kopplingsanordningar | D89: 9.1.6 Släpvagnskontakt | E89: 0 | F89: 0 | G89: 5 | H89: 0
A90: 3,5-16 ton | B90: 9. Övrigt | C90: 9.2 Trafikfarliga Anordningar | D90: 9.2.1 Utskjutande Detalj | E90: 0 | F90: 0 | G90: 4 | H90: 0
A91: 3,5-16 ton | B91: 9. Övrigt | C91: 9.3 Registeruppgift | D91: 9.3.1 Identitet | E91: 3 | F91: 0 | G91: 23 | H91: 0
A92: 3,5-16 ton | B92: 9. Övrigt | C92: 9.3 Registeruppgift | D92: 9.3.2 Ändring | E92: 1 | F92: 0 | G92: 35 | H92: 0
A93: 3,5-16 ton | B93: 9. Övrigt | C93: 9.4 Provkörning | D93: 9.4.1 Provkörning | E93: 1 | F93: 0 | G93: 6 | H93: 0
A94: 3,5-16 ton | B94: 30. Miljökontroll | C94: 30.1 Avgasrening | D94: 30.1.9 Omborddiagnossystem | E94: 0 | F94: 0 | G94: 1 | H94: 0
A95: 3,5-16 ton | B95: 30. Miljökontroll | C95: 30.3 Avgaser Dieseldriven | D95: 30.3.1 Miljökontroll Mätning | E95: 3 | F95: 0 | G95: 20 | H95: 0
A96: 3,5-16 ton | B96: 30. Miljökontroll | C96: 30.4 Köldmedie | D96: 30.4.1 Köldmedie Kontrollrapport | E96: 2 | F96: 0 | G96: 30 | H96: 0
A97: 3,5-16 ton | B97: 80. Kontroll Inte Utförd | C97: 80.1 Rullbromsprov | D97: 80.1.1 Rullbromsprov Inte Utfört | E97: 1 | F97: 0 | G97: 4 | H97: 0
A98: > 16000 | B98: 1. Stomme | C98: 1.1 Bärande Konstruktion | D98: 1.1.1 Ram | E98: 11 | F98: 0 | G98: 145 | H98: 0
A99: > 16000 | B99: 1. Stomme | C99: 1.1 Bärande Konstruktion | D99: 1.1.2 Balkprofil | E99: 12 | F99: 0 | G99: 83 | H99: 0
A100: > 16000 | B100: 1. Stomme | C100: 1.1 Bärande Konstruktion | D100: 1.1.3 Plåtyta | E100: 0 | F100: 0 | G100: 4 | H100: 0
A101: > 16000 | B101: 1. Stomme | C101: 1.2 Infästning | D101: 1.2.1 Infästning Hjulsystem | E101: 6 | F101: 0 | G101: 33 | H101: 0
A102: > 16000 | B102: 1. Stomme | C102: 1.2 Infästning | D102: 1.2.2 Infästning Drivsystem | E102: 0 | F102: 0 | G102: 1 | H102: 0
A103: > 16000 | B103: 1. Stomme | C103: 1.2 Infästning | D103: 1.2.5 Infästning Karosseri | E103: 0 | F103: 0 | G103: 8 | H103: 0
A104: > 16000 | B104: 1. Stomme | C104: 1.2 Infästning | D104: 1.2.6 Infästning Kopplingsanordning | E104: 0 | F104: 0 | G104: 1 | H104: 0
A105: > 16000 | B105: 1. Stomme | C105: 1.3 Skydd | D105: 1.3.1 Underkörningsskydd | E105: 2 | F105: 0 | G105: 70 | H105: 0
A106: > 16000 | B106: 1. Stomme | C106: 1.3 Skydd | D106: 1.3.2 Sidoskydd | E106: 8 | F106: 0 | G106: 98 | H106: 0
A107: > 16000 | B107: 2. Hjulsystem | C107: 2.1 Hjul | D107: 2.1.1 Däck | E107: 22 | F107: 0 | G107: 564 | H107: 0
A108: > 16000 | B108: 2. Hjulsystem | C108: 2.1 Hjul | D108: 2.1.2 Hjul/Fälg | E108: 0 | F108: 0 | G108: 23 | H108: 0
A109: > 16000 | B109: 2. Hjulsystem | C109: 2.1 Hjul | D109: 2.1.3 Hjullager | E109: 21 | F109: 0 | G109: 380 | H109: 0
A110: > 16000 | B110: 2. Hjulsystem | C110: 2.2 Fjädersystem | D110: 2.2.1 Fjädring | E110: 25 | F110: 0 | G110: 417 | H110: 0
A111: > 16000 | B111: 2. Hjulsystem | C111: 2.2 Fjädersystem | D111: 2.2.2 Fjädersäte | E111: 0 | F111: 0 | G111: 12 | H111: 0
A112: > 16000 | B112: 2. Hjulsystem | C112: 2.2 Fjädersystem | D112: 2.2.3 Stötdämpare | E112: 7 | F112: 0 | G112: 118 | H112: 0
A113: > 16000 | B113: 2. Hjulsystem | C113: 2.3 Axel/Länkage | D113: 2.3.1 Axel | E113: 22 | F113: 0 | G113: 237 | H113: 0
A114: > 16000 | B114: 2. Hjulsystem | C114: 2.3 Axel/Länkage | D114: 2.3.2 Tvärstag | E114: 0 | F114: 0 | G114: 1 | H114: 0
A115: > 16000 | B115: 2. Hjulsystem | C115: 2.3 Axel/Länkage | D115: 2.3.3 Länkarm | E115: 19 | F115: 0 | G115: 259 | H115: 0
A116: > 16000 | B116: 2. Hjulsystem | C116: 2.3 Axel/Länkage | D116: 2.3.4 Spindelled | E116: 0 | F116: 0 | G116: 2 | H116: 0
A117: > 16000 | B117: 2. Hjulsystem | C117: 2.3 Axel/Länkage | D117: 2.3.5 Spindeltapp | E117: 19 | F117: 0 | G117: 206 | H117: 0
A118: > 16000 | B118: 3. Drivsystem | C118: 3.1 Kraftkälla | D118: 3.1.1 Motor | E118: 38 | F118: 0 | G118: 288 | H118: 0
A119: > 16000 | B119: 3. Drivsystem | C119: 3.1 Kraftkälla | D119: 3.1.2 Bränslesystem | E119: 2 | F119: 1 | G119: 80 | H119: 0
A120: > 16000 | B120: 3. Drivsystem | C120: 3.1 Kraftkälla | D120: 3.1.3 Avgassystem | E120: 34 | F120: 0 | G120: 535 | H120: 0
A121: > 16000 | B121: 3. Drivsystem | C121: 3.1 Kraftkälla | D121: 3.1.4 El-System | E121: 0 | F121: 0 | G121: 29 | H121: 0
A122: > 16000 | B122: 3. Drivsystem | C122: 3.1 Kraftkälla | D122: 3.1.5 Hastighetsregulator | E122: 5 | F122: 0 | G122: 121 | H122: 0
A123: > 16000 | B123: 3. Drivsystem | C123: 3.1 Kraftkälla | D123: 3.1.6 Hydraulsystem | E123: 11 | F123: 0 | G123: 88 | H123: 0
A124: > 16000 | B124: 3. Drivsystem | C124: 3.2 Drivning | D124: 3.2.1 Växlingssystem | E124: 3 | F124: 0 | G124: 19 | H124: 0
A125: > 16000 | B125: 3. Drivsystem | C125: 3.2 Drivning | D125: 3.2.2 Kraftöverföring | E125: 2 | F125: 0 | G125: 30 | H125: 0
A126: > 16000 | B126: 4. Bromssystem | C126: 4.1 Färdbroms-Prestanda | D126: 4.1.1 Färdbroms Retardation | E126: 181 | F126: 11 | G126: 369 | H126: 0
A127: > 16000 | B127: 4. Bromssystem | C127: 4.2 Färdbroms-Funktion | D127: 4.2.1 Färdbroms Bromskraftfördelning | E127: 373 | F127: 0 | G127: 1146 | H127: 0
A128: > 16000 | B128: 4. Bromssystem | C128: 4.2 Färdbroms-Funktion | D128: 4.2.2 Färdbroms Funktion | E128: 33 | F128: 0 | G128: 198 | H128: 0
A129: > 16000 | B129: 4. Bromssystem | C129: 4.2 Färdbroms-Funktion | D129: 4.2.3 Färdbroms Rörelsereserv | E129: 4 | F129: 0 | G129: 36 | H129: 0
A130: > 16000 | B130: 4. Bromssystem | C130: 4.2 Färdbroms-Funktion | D130: 4.2.4 Färdbroms Hjulbroms | E130: 154 | F130: 0 | G130: 804 | H130: 0
A131: > 16000 | B131: 4. Bromssystem | C131: 4.2 Färdbroms-Funktion | D131: 4.2.5 Tillsatsbroms | E131: 0 | F131: 0 | G131: 5 | H131: 0
A132: > 16000 | B132: 4. Bromssystem | C132: 4.3 Färdbroms-Manövrering | D132: 4.3.1 Färdbroms Reglage | E132: 0 | F132: 0 | G132: 1 | H132: 0
A133: > 16000 | B133: 4. Bromssystem | C133: 4.3 Färdbroms-Manövrering | D133: 4.3.2 Färdbroms Huvudcylinder | E133: 0 | F133: 0 | G133: 1 | H133: 0
A134: > 16000 | B134: 4. Bromssystem | C134: 4.4 Färdbroms-Transmisson | D134: 4.4.1 Bromsledning | E134: 18 | F134: 0 | G134: 227 | H134: 0
A135: > 16000 | B135: 4. Bromssystem | C135: 4.4 Färdbroms-Transmisson | D135: 4.4.2 Färdbroms Länksystem | E135: 5 | F135: 0 | G135: 61 | H135: 0
A136: > 16000 | B136: 4. Bromssystem | C136: 4.4 Färdbroms-Transmisson | D136: 4.4.3 Bromshävarm | E136: 14 | F136: 0 | G136: 147 | H136: 0
A137: > 16000 | B137: 4. Bromssystem | C137: 4.4 Färdbroms-Transmisson | D137: 4.4.4 Bromscylinder | E137: 15 | F137: 1 | G137: 329 | H137: 0
A138: > 16000 | B138: 4. Bromssystem | C138: 4.4 Färdbroms-Transmisson | D138: 4.4.5 Bromsventil | E138: 16 | F138: 0 | G138: 97 | H138: 0
A139: > 16000 | B139: 4. Bromssystem | C139: 4.4 Färdbroms-Transmisson | D139: 4.4.6 Bromssystem Uttag | E139: 31 | F139: 0 | G139: 303 | H139: 0
A140: > 16000 | B140: 4. Bromssystem | C140: 4.5 Färdbroms-Reglering | D140: 4.5.1 Lastkännande Ventil | E140: 3 | F140: 0 | G140: 27 | H140: 0
A141: > 16000 | B141: 4. Bromssystem | C141: 4.5 Färdbroms-Reglering | D141: 4.5.2 Abs-System | E141: 64 | F141: 0 | G141: 275 | H141: 0
A142: > 16000 | B142: 4. Bromssystem | C142: 4.6 Färdbroms-Energiförsörjning | D142: 4.6.1 Färdbroms Tryckluft | E142: 12 | F142: 0 | G142: 168 | H142: 0
A143: > 16000 | B143: 4. Bromssystem | C143: 4.6 Färdbroms-Energiförsörjning | D143: 4.6.2 Färdbroms Frysskydd | E143: 15 | F143: 0 | G143: 144 | H143: 0
A144: > 16000 | B144: 4. Bromssystem | C144: 4.6 Färdbroms-Energiförsörjning | D144: 4.6.4 Färdbroms Varningsanordning | E144: 6 | F144: 0 | G144: 38 | H144: 0
A145: > 16000 | B145: 4. Bromssystem | C145: 4.7 Parkeringsbroms | D145: 4.7.1 Parkeringsbroms Bromsfunktion | E145: 12 | F145: 0 | G145: 83 | H145: 0
A146: > 16000 | B146: 4. Bromssystem | C146: 4.7 Parkeringsbroms | D146: 4.7.2 Parkeringsbroms Transmission | E146: 0 | F146: 0 | G146: 3 | H146: 0
A147: > 16000 | B147: 5. Styrsystem | C147: 5.1 Styrmekanism | D147: 5.1.1 Ratt | E147: 0 | F147: 0 | G147: 2 | H147: 0
A148: > 16000 | B148: 5. Styrsystem | C148: 5.1 Styrmekanism | D148: 5.1.3 Rattaxel | E148: 0 | F148: 0 | G148: 17 | H148: 0
A149: > 16000 | B149: 5. Styrsystem | C149: 5.1 Styrmekanism | D149: 5.1.4 Styrväxel | E149: 3 | F149: 0 | G149: 25 | H149: 0
A150: > 16000 | B150: 5. Styrsystem | C150: 5.1 Styrmekanism | D150: 5.1.5 Systemfunktion Styrning | E150: 1 | F150: 0 | G150: 8 | H150: 0
A151: > 16000 | B151: 5. Styrsystem | C151: 5.2 Länkage | D151: 5.2.1 Styrsystem Arm/Stag | E151: 2 | F151: 0 | G151: 39 | H151: 0
A152: > 16000 | B152: 5. Styrsystem | C152: 5.2 Länkage | D152: 5.2.2 Styrled | E152: 43 | F152: 0 | G152: 817 | H152: 0
A153: > 16000 | B153: 6. Karosseri | C153: 6.1 Karossens Utsida | D153: 6.1.1 Dörr | E153: 24 | F153: 0 | G153: 188 | H153: 0
A154: > 16000 | B154: 6. Karosseri | C154: 6.1 Karossens Utsida | D154: 6.1.2 Främre Huv | E154: 0 | F154: 0 | G154: 1 | H154: 0
A155: > 16000 | B155: 6. Karosseri | C155: 6.1 Karossens Utsida | D155: 6.1.3 Kaross | E155: 4 | F155: 0 | G155: 14 | H155: 0
A156: > 16000 | B156: 6. Karosseri | C156: 6.1 Karossens Utsida | D156: 6.1.4 Stänkskydd | E156: 9 | F156: 0 | G156: 262 | H156: 0
A157: > 16000 | B157: 6. Karosseri | C157: 6.1 Karossens Utsida | D157: 6.1.5 Ruta | E157: 13 | F157: 0 | G157: 124 | H157: 0
A158: > 16000 | B158: 6. Karosseri | C158: 6.2 Personutrymme | D158: 6.2.1 Bilbälte | E158: 1 | F158: 0 | G158: 39 | H158: 0
A159: > 16000 | B159: 6. Karosseri | C159: 6.2 Personutrymme | D159: 6.2.2 Förar/Passagerarplats | E159: 0 | F159: 0 | G159: 9 | H159: 0
A160: > 16000 | B160: 6. Karosseri | C160: 6.2 Personutrymme | D160: 6.2.3 Utrustning Invändig | E160: 1 | F160: 0 | G160: 1 | H160: 0
A161: > 16000 | B161: 6. Karosseri | C161: 6.3 Lasthantering | D161: 6.3.1 Lastutrymme | E161: 3 | F161: 0 | G161: 48 | H161: 0
A162: > 16000 | B162: 6. Karosseri | C162: 6.3 Lasthantering | D162: 6.3.2 Påbyggnadsram | E162: 19 | F162: 0 | G162: 310 | H162: 0
A163: > 16000 | B163: 6. Karosseri | C163: 6.3 Lasthantering | D163: 6.3.3 Lastbegränsande Anordning | E163: 0 | F163: 0 | G163: 15 | H163: 0
A164: > 16000 | B164: 6. Karosseri | C164: 6.3 Lasthantering | D164: 6.3.4 Lastsäkringsutrustning | E164: 0 | F164: 0 | G164: 2 | H164: 0
A165: > 16000 | B165: 6. Karosseri | C165: 6.3 Lasthantering | D165: 6.3.5 Lastanordning | E165: 1 | F165: 0 | G165: 20 | H165: 0
A166: > 16000 | B166: 6. Karosseri | C166: 6.4 Extra Utrustning | D166: 6.4.1 Tillbehör Utvändigt | E166: 3 | F166: 0 | G166: 33 | H166: 0
A167: > 16000 | B167: 7. Kommunikation | C167: 7.1 Sikthjälpmedel | D167: 7.1.1 Rengörare | E167: 14 | F167: 0 | G167: 271 | H167: 0
A168: > 16000 | B168: 7. Kommunikation | C168: 7.1 Sikthjälpmedel | D168: 7.1.2 Backspegel | E168: 15 | F168: 0 | G168: 206 | H168: 0
A169: > 16000 | B169: 7. Kommunikation | C169: 7.1 Sikthjälpmedel | D169: 7.1.3 Huvudstrålkastare | E169: 104 | F169: 0 | G169: 1175 | H169: 12
A170: > 16000 | B170: 7. Kommunikation | C170: 7.1 Sikthjälpmedel | D170: 7.1.4 Dimstrålkastare | E170: 20 | F170: 0 | G170: 206 | H170: 0
A171: > 16000 | B171: 7. Kommunikation | C171: 7.1 Sikthjälpmedel | D171: 7.1.5 Fjärrstrålkastare | E171: 0 | F171: 0 | G171: 5 | H171: 0
A172: > 16000 | B172: 7. Kommunikation | C172: 7.1 Sikthjälpmedel | D172: 7.1.7 Arbetsbelysning | E172: 0 | F172: 0 | G172: 14 | H172: 0
A173: > 16000 | B173: 7. Kommunikation | C173: 7.2 Markeringar | D173: 7.2.1 Positionslykta | E173: 43 | F173: 0 | G173: 563 | H173: 0
A174: > 16000 | B174: 7. Kommunikation | C174: 7.2 Markeringar | D174: 7.2.2 Sidomarkering | E174: 35 | F174: 0 | G174: 549 | H174: 0
A175: > 16000 | B175: 7. Kommunikation | C175: 7.2 Markeringar | D175: 7.2.3 Skyltlykta | E175: 25 | F175: 0 | G175: 606 | H175: 0
A176: > 16000 | B176: 7. Kommunikation | C176: 7.2 Markeringar | D176: 7.2.4 Reflex | E176: 11 | F176: 0 | G176: 368 | H176: 0
A177: > 16000 | B177: 7. Kommunikation | C177: 7.2 Markeringar | D177: 7.2.5 Dimbaklykta | E177: 0 | F177: 0 | G177: 1 | H177: 0
A178: > 16000 | B178: 7. Kommunikation | C178: 7.2 Markeringar | D178: 7.2.7 Annan Lykta | E178: 3 | F178: 0 | G178: 108 | H178: 0
A179: > 16000 | B179: 7. Kommunikation | C179: 7.3 Signaler | D179: 7.3.1 Körriktningsvisare | E179: 3 | F179: 0 | G179: 142 | H179: 0
A180: > 16000 | B180: 7. Kommunikation | C180: 7.3 Signaler | D180: 7.3.2 Stopplykta | E180: 17 | F180: 0 | G180: 234 | H180: 0
A181: > 16000 | B181: 7. Kommunikation | C181: 7.3 Signaler | D181: 7.3.3 Signalanordning | E181: 13 | F181: 0 | G181: 161 | H181: 0
A182: > 16000 | B182: 7. Kommunikation | C182: 7.3 Signaler | D182: 7.3.4 Varningstriangel | E182: 2 | F182: 0 | G182: 96 | H182: 0
A183: > 16000 | B183: 7. Kommunikation | C183: 7.3 Signaler | D183: 7.3.5 Larmanordning | E183: 0 | F183: 0 | G183: 1 | H183: 0
A184: > 16000 | B184: 8. Instrumentering | C184: 8.1 Färdinstrument | D184: 8.1.1 Hastighetsmätare | E184: 4 | F184: 0 | G184: 25 | H184: 0
A185: > 16000 | B185: 9. Övrigt | C185: 9.1 Kopplingsanordningar | D185: 9.1.1 Kulkoppling | E185: 0 | F185: 0 | G185: 4 | H185: 0
A186: > 16000 | B186: 9. Övrigt | C186: 9.1 Kopplingsanordningar | D186: 9.1.11 Kopplingsklasskylt | E186: 2 | F186: 0 | G186: 22 | H186: 0
A187: > 16000 | B187: 9. Övrigt | C187: 9.1 Kopplingsanordningar | D187: 9.1.12 Multifunktionskoppling | E187: 0 | F187: 0 | G187: 1 | H187: 0
A188: > 16000 | B188: 9. Övrigt | C188: 9.1 Kopplingsanordningar | D188: 9.1.2 Bygelkoppling | E188: 58 | F188: 0 | G188: 809 | H188: 0
A189: > 16000 | B189: 9. Övrigt | C189: 9.1 Kopplingsanordningar | D189: 9.1.4 Vändskiva | E189: 10 | F189: 0 | G189: 105 | H189: 0
A190: > 16000 | B190: 9. Övrigt | C190: 9.1 Kopplingsanordningar | D190: 9.1.5 Dragbalk Kopplingsanordning | E190: 1 | F190: 0 | G190: 9 | H190: 0
A191: > 16000 | B191: 9. Övrigt | C191: 9.1 Kopplingsanordningar | D191: 9.1.6 Släpvagnskontakt | E191: 0 | F191: 0 | G191: 9 | H191: 0
A192: > 16000 | B192: 9. Övrigt | C192: 9.2 Trafikfarliga Anordningar | D192: 9.2.1 Utskjutande Detalj | E192: 1 | F192: 0 | G192: 2 | H192: 0
A193: > 16000 | B193: 9. Övrigt | C193: 9.3 Registeruppgift | D193: 9.3.1 Identitet | E193: 9 | F193: 0 | G193: 138 | H193: 0
A194: > 16000 | B194: 9. Övrigt | C194: 9.3 Registeruppgift | D194: 9.3.2 Ändring | E194: 4 | F194: 0 | G194: 39 | H194: 0
A195: > 16000 | B195: 9. Övrigt | C195: 9.4 Provkörning | D195: 9.4.1 Provkörning | E195: 0 | F195: 0 | G195: 15 | H195: 0
A196: > 16000 | B196: 30. Miljökontroll | C196: 30.1 Avgasrening | D196: 30.1.10 Denox-System | E196: 0 | F196: 0 | G196: 2 | H196: 0
A197: > 16000 | B197: 30. Miljökontroll | C197: 30.1 Avgasrening | D197: 30.1.9 Omborddiagnossystem | E197: 1 | F197: 0 | G197: 1 | H197: 0
A198: > 16000 | B198: 30. Miljökontroll | C198: 30.3 Avgaser Dieseldriven | D198: 30.3.1 Miljökontroll Mätning | E198: 5 | F198: 0 | G198: 21 | H198: 0
A199: > 16000 | B199: 30. Miljökontroll | C199: 30.4 Köldmedie | D199: 30.4.1 Köldmedie Kontrollrapport | E199: 5 | F199: 0 | G199: 108 | H199: 0
A200: > 16000 | B200: 50. Avvikelser | C200: 50.1 Registrerade Uppgifter | D200: 50.1.5 Kopplingsuppgifter | E200: 0 | F200: 0 | G200: 1 | H200: 0
... 361 more rows

Sheet Utdata BE Komponent
A2: Andel underkända vid efterkontroll per komponent | B2: Kolumnetiketter
B3: > 16000 | D3: 3,5-16 ton | F3: 3,5-16 ton | G3: Tunga samtliga | I3: Över 16 ton | J3: Tunga, samtliga viktklasser
A4: Radetiketter | B4: Summa av 2 Underkänd Med Efterk | C4: Summa av 3 Körförbud | D4: Summa av 2 Underkänd Med Efterk | E4: Summa av 3 Körförbud | F4: Andel underkända | G4: Summa av 2 Underkänd Med Efterk | H4: Summa av 3 Körförbud | I4: Andel underkända | J4: Andel underkända
A5: 1.1.1 Ram | B5: 15 | C5: 0 | D5: 4 | E5: 0 | F5: =SUM(D5:E5)/Antal_BE_35_16 -> 0.002003004507 | G5: =VLOOKUP($A5,'Pivot BE Komponent'!$I$5:$O$116,6,0) -> 19 | H5: =VLOOKUP($A5,'Pivot BE Komponent'!$I$5:$O$116,7,0) -> 0 | I5: =SUM(B5:C5)/Antal_BE_Över_16 -> 0.002618257986 | J5: =SUM(G5:H5)/(Antal_BE_Över_16+Antal_BE_35_16) -> 0.002459228579
A6: 1.1.2 Balkprofil | B6: 12 | C6: 0 | D6: 4 | E6: 0 | F6: 0.002003004507 | G6: =VLOOKUP($A6,'Pivot BE Komponent'!$I$5:$O$116,6,0) -> 16 | H6: =VLOOKUP($A6,'Pivot BE Komponent'!$I$5:$O$116,7,0) -> 0 | I6: 0.002094606389 | J6: 0.00207092933
A7: 1.1.3 Plåtyta | B7: 0 | C7: 0 | D7: 1 | E7: 0 | F7: 0.0005007511267 | G7: =VLOOKUP($A7,'Pivot BE Komponent'!$I$5:$O$116,6,0) -> 1 | H7: =VLOOKUP($A7,'Pivot BE Komponent'!$I$5:$O$116,7,0) -> 0 | I7: 0 | J7: 0.0001294330831
A8: 1.2.1 Infästning Hjulsystem | B8: 6 | C8: 0 | D8: 3 | E8: 0 | F8: 0.00150225338 | G8: =VLOOKUP($A8,'Pivot BE Komponent'!$I$5:$O$116,6,0) -> 9 | H8: =VLOOKUP($A8,'Pivot BE Komponent'!$I$5:$O$116,7,0) -> 0 | I8: 0.001047303194 | J8: 0.001164897748
A9: 1.2.2 Infästning Drivsystem | B9: 0 | C9: 0 | D9: 0 | E9: 0 | F9: 0 | G9: =VLOOKUP($A9,'Pivot BE Komponent'!$I$5:$O$116,6,0) -> 0 | H9: =VLOOKUP($A9,'Pivot BE Komponent'!$I$5:$O$116,7,0) -> 0 | I9: 0 | J9: 0
A10: 1.2.5 Infästning Karosseri | B10: 0 | C10: 0 | D10: 1 | E10: 0 | F10: 0.0005007511267 | G10: =VLOOKUP($A10,'Pivot BE Komponent'!$I$5:$O$116,6,0) -> 1 | H10: =VLOOKUP($A10,'Pivot BE Komponent'!$I$5:$O$116,7,0) -> 0 | I10: 0 | J10: 0.0001294330831
A11: 1.2.6 Infästning Kopplingsanordning | B11: 0 | C11: 0 | D11: 0 | E11: 0 | F11: 0 | G11: =VLOOKUP($A11,'Pivot BE Komponent'!$I$5:$O$116,6,0) -> 0 | H11: =VLOOKUP($A11,'Pivot BE Komponent'!$I$5:$O$116,7,0) -> 0 | I11: 0 | J11: 0
A12: 1.3.1 Underkörningsskydd | B12: 3 | C12: 0 | D12: 3 | E12: 0 | F12: 0.00150225338 | G12: =VLOOKUP($A12,'Pivot BE Komponent'!$I$5:$O$116,6,0) -> 6 | H12: =VLOOKUP($A12,'Pivot BE Komponent'!$I$5:$O$116,7,0) -> 0 | I12: 0.0005236515971 | J12: 0.0007765984986
A13: 1.3.2 Sidoskydd | B13: 8 | C13: 0 | D13: 1 | E13: 0 | F13: 0.0005007511267 | G13: =VLOOKUP($A13,'Pivot BE Komponent'!$I$5:$O$116,6,0) -> 9 | H13: =VLOOKUP($A13,'Pivot BE Komponent'!$I$5:$O$116,7,0) -> 0 | I13: 0.001396404259 | J13: 0.001164897748
A14: 2.1.1 Däck | B14: 22 | C14: 0 | D14: 0 | E14: 0 | F14: 0 | G14: =VLOOKUP($A14,'Pivot BE Komponent'!$I$5:$O$116,6,0) -> 22 | H14: =VLOOKUP($A14,'Pivot BE Komponent'!$I$5:$O$116,7,0) -> 0 | I14: 0.003840111712 | J14: 0.002847527828
A15: 2.1.2 Hjul/Fälg | B15: 0 | C15: 0 | D15: 1 | E15: 0 | F15: 0.0005007511267 | G15: =VLOOKUP($A15,'Pivot BE Komponent'!$I$5:$O$116,6,0) -> 1 | H15: =VLOOKUP($A15,'Pivot BE Komponent'!$I$5:$O$116,7,0) -> 0 | I15: 0 | J15: 0.0001294330831
A16: 2.1.3 Hjullager | B16: 26 | C16: 0 | D16: 5 | E16: 0 | F16: 0.002503755633 | G16: =VLOOKUP($A16,'Pivot BE Komponent'!$I$5:$O$116,6,0) -> 31 | H16: =VLOOKUP($A16,'Pivot BE Komponent'!$I$5:$O$116,7,0) -> 0 | I16: 0.004538313842 | J16: 0.004012425576
A17: 2.2.1 Fjädring | B17: 28 | C17: 0 | D17: 3 | E17: 0 | F17: 0.00150225338 | G17: =VLOOKUP($A17,'Pivot BE Komponent'!$I$5:$O$116,6,0) -> 31 | H17: =VLOOKUP($A17,'Pivot BE Komponent'!$I$5:$O$116,7,0) -> 0 | I17: 0.004887414907 | J17: 0.004012425576
A18: 2.2.2 Fjädersäte | B18: 0 | C18: 0 | D18: 1 | E18: 0 | F18: 0.0005007511267 | G18: =VLOOKUP($A18,'Pivot BE Komponent'!$I$5:$O$116,6,0) -> 1 | H18: =VLOOKUP($A18,'Pivot BE Komponent'!$I$5:$O$116,7,0) -> 0 | I18: 0 | J18: 0.0001294330831
A19: 2.2.3 Stötdämpare | B19: 7 | C19: 0 | D19: 1 | E19: 0 | F19: 0.0005007511267 | G19: =VLOOKUP($A19,'Pivot BE Komponent'!$I$5:$O$116,6,0) -> 8 | H19: =VLOOKUP($A19,'Pivot BE Komponent'!$I$5:$O$116,7,0) -> 0 | I19: 0.001221853727 | J19: 0.001035464665
A20: 2.3.1 Axel | B20: 25 | C20: 0 | D20: 3 | E20: 0 | F20: 0.00150225338 | G20: =VLOOKUP($A20,'Pivot BE Komponent'!$I$5:$O$116,6,0) -> 28 | H20: =VLOOKUP($A20,'Pivot BE Komponent'!$I$5:$O$116,7,0) -> 0 | I20: 0.004363763309 | J20: 0.003624126327
A21: 2.3.2 Tvärstag | B21: 0 | C21: 0 | D21: 2 | E21: 0 | F21: 0.001001502253 | G21: =VLOOKUP($A21,'Pivot BE Komponent'!$I$5:$O$116,6,0) -> 2 | H21: =VLOOKUP($A21,'Pivot BE Komponent'!$I$5:$O$116,7,0) -> 0 | I21: 0 | J21: 0.0002588661662
A22: 2.3.3 Länkarm | B22: 21 | C22: 0 | D22: 2 | E22: 0 | F22: 0.001001502253 | G22: =VLOOKUP($A22,'Pivot BE Komponent'!$I$5:$O$116,6,0) -> 23 | H22: =VLOOKUP($A22,'Pivot BE Komponent'!$I$5:$O$116,7,0) -> 0 | I22: 0.00366556118 | J22: 0.002976960911
A23: 2.3.4 Spindelled | B23: 0 | C23: 0 | D23: 1 | E23: 0 | F23: 0.0005007511267 | G23: =VLOOKUP($A23,'Pivot BE Komponent'!$I$5:$O$116,6,0) -> 1 | H23: =VLOOKUP($A23,'Pivot BE Komponent'!$I$5:$O$116,7,0) -> 0 | I23: 0 | J23: 0.0001294330831
A24: 2.3.5 Spindeltapp | B24: 19 | C24: 0 | D24: 7 | E24: 0 | F24: 0.003505257887 | G24: =VLOOKUP($A24,'Pivot BE Komponent'!$I$5:$O$116,6,0) -> 26 | H24: =VLOOKUP($A24,'Pivot BE Komponent'!$I$5:$O$116,7,0) -> 0 | I24: 0.003316460115 | J24: 0.00336526016
A25: 3.1.1 Motor | B25: 40 | C25: 0 | D25: 9 | E25: 0 | F25: 0.00450676014 | G25: =VLOOKUP($A25,'Pivot BE Komponent'!$I$5:$O$116,6,0) -> 49 | H25: =VLOOKUP($A25,'Pivot BE Komponent'!$I$5:$O$116,7,0) -> 0 | I25: 0.006982021295 | J25: 0.006342221072
A26: 3.1.2 Bränslesystem | B26: 2 | C26: 1 | D26: 3 | E26: 0 | F26: 0.00150225338 | G26: =VLOOKUP($A26,'Pivot BE Komponent'!$I$5:$O$116,6,0) -> 5 | H26: =VLOOKUP($A26,'Pivot BE Komponent'!$I$5:$O$116,7,0) -> 1 | I26: 0.0005236515971 | J26: 0.0007765984986
A27: 3.1.3 Avgassystem | B27: 39 | C27: 0 | D27: 13 | E27: 0 | F27: 0.006509764647 | G27: =VLOOKUP($A27,'Pivot BE Komponent'!$I$5:$O$116,6,0) -> 52 | H27: =VLOOKUP($A27,'Pivot BE Komponent'!$I$5:$O$116,7,0) -> 0 | I27: 0.006807470763 | J27: 0.006730520321
A28: 3.1.4 El-System | B28: 0 | C28: 0 | D28: 3 | E28: 0 | F28: 0.00150225338 | G28: =VLOOKUP($A28,'Pivot BE Komponent'!$I$5:$O$116,6,0) -> 3 | H28: =VLOOKUP($A28,'Pivot BE Komponent'!$I$5:$O$116,7,0) -> 0 | I28: 0 | J28: 0.0003882992493
A29: 3.1.5 Hastighetsregulator | B29: 5 | C29: 0 | D29: 0 | E29: 0 | F29: 0 | G29: =VLOOKUP($A29,'Pivot BE Komponent'!$I$5:$O$116,6,0) -> 5 | H29: =VLOOKUP($A29,'Pivot BE Komponent'!$I$5:$O$116,7,0) -> 0 | I29: 0.0008727526619 | J29: 0.0006471654155
A30: 3.1.6 Hydraulsystem | B30: 11 | C30: 0 | D30: 0 | E30: 0 | F30: 0 | G30: =VLOOKUP($A30,'Pivot BE Komponent'!$I$5:$O$116,6,0) -> 11 | H30: =VLOOKUP($A30,'Pivot BE Komponent'!$I$5:$O$116,7,0) -> 0 | I30: 0.001920055856 | J30: 0.001423763914
A31: 3.2.1 Växlingssystem | B31: 3 | C31: 0 | D31: 0 | E31: 0 | F31: 0 | G31: =VLOOKUP($A31,'Pivot BE Komponent'!$I$5:$O$116,6,0) -> 3 | H31: =VLOOKUP($A31,'Pivot BE Komponent'!$I$5:$O$116,7,0) -> 0 | I31: 0.0005236515971 | J31: 0.0003882992493
A32: 3.2.2 Kraftöverföring | B32: 2 | C32: 0 | D32: 0 | E32: 0 | F32: 0 | G32: =VLOOKUP($A32,'Pivot BE Komponent'!$I$5:$O$116,6,0) -> 2 | H32: =VLOOKUP($A32,'Pivot BE Komponent'!$I$5:$O$116,7,0) -> 0 | I32: 0.0003491010648 | J32: 0.0002588661662
A33: 4.1.1 Färdbroms Retardation | B33: 205 | C33: 12 | D33: 3 | E33: 0 | F33: 0.00150225338 | G33: =VLOOKUP($A33,'Pivot BE Komponent'!$I$5:$O$116,6,0) -> 208 | H33: =VLOOKUP($A33,'Pivot BE Komponent'!$I$5:$O$116,7,0) -> 12 | I33: 0.03787746553 | J33: 0.02847527828
A34: 4.2.1 Färdbroms Bromskraftfördelning | B34: 415 | C34: 0 | D34: 112 | E34: 0 | F34: 0.05608412619 | G34: =VLOOKUP($A34,'Pivot BE Komponent'!$I$5:$O$116,6,0) -> 527 | H34: =VLOOKUP($A34,'Pivot BE Komponent'!$I$5:$O$116,7,0) -> 0 | I34: 0.07243847094 | J34: 0.06821123479
A35: 4.2.2 Färdbroms Funktion | B35: 38 | C35: 0 | D35: 11 | E35: 0 | F35: 0.005508262394 | G35: =VLOOKUP($A35,'Pivot BE Komponent'!$I$5:$O$116,6,0) -> 49 | H35: =VLOOKUP($A35,'Pivot BE Komponent'!$I$5:$O$116,7,0) -> 0 | I35: 0.00663292023 | J35: 0.006342221072
A36: 4.2.3 Färdbroms Rörelsereserv | B36: 4 | C36: 0 | D36: 1 | E36: 0 | F36: 0.0005007511267 | G36: =VLOOKUP($A36,'Pivot BE Komponent'!$I$5:$O$116,6,0) -> 5 | H36: =VLOOKUP($A36,'Pivot BE Komponent'!$I$5:$O$116,7,0) -> 0 | I36: 0.0006982021295 | J36: 0.0006471654155
A37: 4.2.4 Färdbroms Hjulbroms | B37: 171 | C37: 0 | D37: 34 | E37: 0 | F37: =SUM(D37:E37)/Antal_BE_35_16 -> 0.01702553831 | G37: =VLOOKUP($A37,'Pivot BE Komponent'!$I$5:$O$116,6,0) -> 205 | H37: =VLOOKUP($A37,'Pivot BE Komponent'!$I$5:$O$116,7,0) -> 0 | I37: =SUM(B37:C37)/Antal_BE_Över_16 -> 0.02984814104 | J37: =SUM(G37:H37)/(Antal_BE_Över_16+Antal_BE_35_16) -> 0.02653378203
A38: 4.2.5 Tillsatsbroms | B38: 0 | C38: 0 | F38: 0 | G38: =VLOOKUP($A38,'Pivot BE Komponent'!$I$5:$O$116,6,0) -> 0 | H38: =VLOOKUP($A38,'Pivot BE Komponent'!$I$5:$O$116,7,0) -> 0 | I38: 0 | J38: 0
A39: 4.3.1 Färdbroms Reglage | B39: 0 | C39: 0 | D39: 0 | E39: 0 | F39: 0 | G39: =VLOOKUP($A39,'Pivot BE Komponent'!$I$5:$O$116,6,0) -> 0 | H39: =VLOOKUP($A39,'Pivot BE Komponent'!$I$5:$O$116,7,0) -> 0 | I39: 0 | J39: 0
A40: 4.3.2 Färdbroms Huvudcylinder | B40: 0 | C40: 0 | D40: 0 | E40: 0 | F40: 0 | G40: =VLOOKUP($A40,'Pivot BE Komponent'!$I$5:$O$116,6,0) -> 0 | H40: =VLOOKUP($A40,'Pivot BE Komponent'!$I$5:$O$116,7,0) -> 0 | I40: 0 | J40: 0
A41: 4.4.1 Bromsledning | B41: 20 | C41: 0 | D41: 8 | E41: 0 | F41: 0.004006009014 | G41: =VLOOKUP($A41,'Pivot BE Komponent'!$I$5:$O$116,6,0) -> 28 | H41: =VLOOKUP($A41,'Pivot BE Komponent'!$I$5:$O$116,7,0) -> 0 | I41: 0.003491010648 | J41: 0.003624126327
A42: 4.4.2 Färdbroms Länksystem | B42: 5 | C42: 0 | D42: 0 | E42: 0 | F42: 0 | G42: =VLOOKUP($A42,'Pivot BE Komponent'!$I$5:$O$116,6,0) -> 5 | H42: =VLOOKUP($A42,'Pivot BE Komponent'!$I$5:$O$116,7,0) -> 0 | I42: 0.0008727526619 | J42: 0.0006471654155
A43: 4.4.3 Bromshävarm | B43: 14 | C43: 0 | D43: 0 | E43: 0 | F43: 0 | G43: =VLOOKUP($A43,'Pivot BE Komponent'!$I$5:$O$116,6,0) -> 14 | H43: =VLOOKUP($A43,'Pivot BE Komponent'!$I$5:$O$116,7,0) -> 0 | I43: 0.002443707453 | J43: 0.001812063163
A44: 4.4.4 Bromscylinder | B44: 18 | C44: 1 | D44: 1 | E44: 0 | F44: 0.0005007511267 | G44: =VLOOKUP($A44,'Pivot BE Komponent'!$I$5:$O$116,6,0) -> 19 | H44: =VLOOKUP($A44,'Pivot BE Komponent'!$I$5:$O$116,7,0) -> 1 | I44: 0.003316460115 | J44: 0.002588661662
A45: 4.4.5 Bromsventil | B45: 16 | C45: 0 | D45: 2 | E45: 0 | F45: 0.001001502253 | G45: =VLOOKUP($A45,'Pivot BE Komponent'!$I$5:$O$116,6,0) -> 18 | H45: =VLOOKUP($A45,'Pivot BE Komponent'!$I$5:$O$116,7,0) -> 0 | I45: 0.002792808518 | J45: 0.002329795496
A46: 4.4.6 Bromssystem Uttag | B46: 37 | C46: 0 | D46: 5 | E46: 0 | F46: 0.002503755633 | G46: =VLOOKUP($A46,'Pivot BE Komponent'!$I$5:$O$116,6,0) -> 42 | H46: =VLOOKUP($A46,'Pivot BE Komponent'!$I$5:$O$116,7,0) -> 0 | I46: 0.006458369698 | J46: 0.00543618949
A47: 4.5.1 Lastkännande Ventil | B47: 4 | C47: 0 | D47: 1 | E47: 0 | F47: 0.0005007511267 | G47: =VLOOKUP($A47,'Pivot BE Komponent'!$I$5:$O$116,6,0) -> 5 | H47: =VLOOKUP($A47,'Pivot BE Komponent'!$I$5:$O$116,7,0) -> 0 | I47: 0.0006982021295 | J47: 0.0006471654155
A48: 4.5.2 Abs-System | B48: 71 | C48: 0 | D48: 13 | E48: 0 | F48: 0.006509764647 | G48: =VLOOKUP($A48,'Pivot BE Komponent'!$I$5:$O$116,6,0) -> 84 | H48: =VLOOKUP($A48,'Pivot BE Komponent'!$I$5:$O$116,7,0) -> 0 | I48: 0.0123930878 | J48: 0.01087237898
A49: 4.6.1 Färdbroms Tryckluft | B49: 14 | C49: 0 | D49: 1 | E49: 0 | F49: 0.0005007511267 | G49: =VLOOKUP($A49,'Pivot BE Komponent'!$I$5:$O$116,6,0) -> 15 | H49: =VLOOKUP($A49,'Pivot BE Komponent'!$I$5:$O$116,7,0) -> 0 | I49: 0.002443707453 | J49: 0.001941496246
A50: 4.6.2 Färdbroms Frysskydd | B50: 15 | C50: 0 | D50: 2 | E50: 0 | F50: 0.001001502253 | G50: =VLOOKUP($A50,'Pivot BE Komponent'!$I$5:$O$116,6,0) -> 17 | H50: =VLOOKUP($A50,'Pivot BE Komponent'!$I$5:$O$116,7,0) -> 0 | I50: 0.002618257986 | J50: 0.002200362413
A51: 4.6.4 Färdbroms Varningsanordning | B51: 7 | C51: 0 | D51: 3 | E51: 0 | F51: 0.00150225338 | G51: =VLOOKUP($A51,'Pivot BE Komponent'!$I$5:$O$116,6,0) -> 10 | H51: =VLOOKUP($A51,'Pivot BE Komponent'!$I$5:$O$116,7,0) -> 0 | I51: 0.001221853727 | J51: 0.001294330831
A52: 4.7.1 Parkeringsbroms Bromsfunktion | B52: 13 | C52: 0 | D52: 67 | E52: 0 | F52: 0.03355032549 | G52: =VLOOKUP($A52,'Pivot BE Komponent'!$I$5:$O$116,6,0) -> 80 | H52: =VLOOKUP($A52,'Pivot BE Komponent'!$I$5:$O$116,7,0) -> 0 | I52: 0.002269156921 | J52: 0.01035464665
A53: 4.7.2 Parkeringsbroms Transmission | B53: 0 | C53: 0 | D53: 0 | E53: 0 | F53: 0 | G53: =VLOOKUP($A53,'Pivot BE Komponent'!$I$5:$O$116,6,0) -> 0 | H53: =VLOOKUP($A53,'Pivot BE Komponent'!$I$5:$O$116,7,0) -> 0 | I53: 0 | J53: 0
A54: 4.7.3 Parkeringsbroms Hjulbroms | B54: 0 | C54: 0 | F54: 0 | G54: =VLOOKUP($A54,'Pivot BE Komponent'!$I$5:$O$116,6,0) -> 0 | H54: =VLOOKUP($A54,'Pivot BE Komponent'!$I$5:$O$116,7,0) -> 0 | I54: 0 | J54: 0
A55: 5.1.1 Ratt | B55: 0 | C55: 0 | D55: 0 | E55: 0 | F55: 0 | G55: =VLOOKUP($A55,'Pivot BE Komponent'!$I$5:$O$116,6,0) -> 0 | H55: =VLOOKUP($A55,'Pivot BE Komponent'!$I$5:$O$116,7,0) -> 0 | I55: 0 | J55: 0
A56: 5.1.3 Rattaxel | B56: 0 | C56: 0 | D56: 0 | E56: 0 | F56: 0 | G56: =VLOOKUP($A56,'Pivot BE Komponent'!$I$5:$O$116,6,0) -> 0 | H56: =VLOOKUP($A56,'Pivot BE Komponent'!$I$5:$O$116,7,0) -> 0 | I56: 0 | J56: 0
A57: 5.1.4 Styrväxel | B57: 3 | C57: 0 | D57: 0 | E57: 0 | F57: 0 | G57: =VLOOKUP($A57,'Pivot BE Komponent'!$I$5:$O$116,6,0) -> 3 | H57: =VLOOKUP($A57,'Pivot BE Komponent'!$I$5:$O$116,7,0) -> 0 | I57: 0.0005236515971 | J57: 0.0003882992493
A58: 5.1.5 Systemfunktion Styrning | B58: 1 | C58: 0 | D58: 2 | E58: 0 | F58: 0.001001502253 | G58: =VLOOKUP($A58,'Pivot BE Komponent'!$I$5:$O$116,6,0) -> 3 | H58: =VLOOKUP($A58,'Pivot BE Komponent'!$I$5:$O$116,7,0) -> 0 | I58: 0.0001745505324 | J58: 0.0003882992493
A59: 5.2.1 Styrsystem Arm/Stag | B59: 2 | C59: 0 | D59: 0 | E59: 0 | F59: 0 | G59: =VLOOKUP($A59,'Pivot BE Komponent'!$I$5:$O$116,6,0) -> 2 | H59: =VLOOKUP($A59,'Pivot BE Komponent'!$I$5:$O$116,7,0) -> 0 | I59: 0.0003491010648 | J59: 0.0002588661662
A60: 5.2.2 Styrled | B60: 49 | C60: 0 | D60: 3 | E60: 0 | F60: 0.00150225338 | G60: =VLOOKUP($A60,'Pivot BE Komponent'!$I$5:$O$116,6,0) -> 52 | H60: =VLOOKUP($A60,'Pivot BE Komponent'!$I$5:$O$116,7,0) -> 0 | I60: 0.008552976087 | J60: 0.006730520321
A61: 6.1.1 Dörr | B61: 26 | C61: 0 | D61: 3 | E61: 0 | F61: 0.00150225338 | G61: =VLOOKUP($A61,'Pivot BE Komponent'!$I$5:$O$116,6,0) -> 29 | H61: =VLOOKUP($A61,'Pivot BE Komponent'!$I$5:$O$116,7,0) -> 0 | I61: 0.004538313842 | J61: 0.00375355941
A62: 6.1.2 Främre Huv | B62: 0 | C62: 0 | D62: 0 | E62: 0 | F62: 0 | G62: =VLOOKUP($A62,'Pivot BE Komponent'!$I$5:$O$116,6,0) -> 0 | H62: =VLOOKUP($A62,'Pivot BE Komponent'!$I$5:$O$116,7,0) -> 0 | I62: 0 | J62: 0
A63: 6.1.3 Kaross | B63: 4 | C63: 0 | D63: 1 | E63: 0 | F63: 0.0005007511267 | G63: =VLOOKUP($A63,'Pivot BE Komponent'!$I$5:$O$116,6,0) -> 5 | H63: =VLOOKUP($A63,'Pivot BE Komponent'!$I$5:$O$116,7,0) -> 0 | I63: 0.0006982021295 | J63: 0.0006471654155
A64: 6.1.4 Stänkskydd | B64: 10 | C64: 0 | D64: 2 | E64: 0 | F64: 0.001001502253 | G64: =VLOOKUP($A64,'Pivot BE Komponent'!$I$5:$O$116,6,0) -> 12 | H64: =VLOOKUP($A64,'Pivot BE Komponent'!$I$5:$O$116,7,0) -> 0 | I64: 0.001745505324 | J64: 0.001553196997
A65: 6.1.5 Ruta | B65: 14 | C65: 0 | D65: 4 | E65: 0 | F65: 0.002003004507 | G65: =VLOOKUP($A65,'Pivot BE Komponent'!$I$5:$O$116,6,0) -> 18 | H65: =VLOOKUP($A65,'Pivot BE Komponent'!$I$5:$O$116,7,0) -> 0 | I65: 0.002443707453 | J65: 0.002329795496
A66: 6.2.1 Bilbälte | B66: 1 | C66: 0 | D66: 0 | E66: 0 | F66: 0 | G66: =VLOOKUP($A66,'Pivot BE Komponent'!$I$5:$O$116,6,0) -> 1 | H66: =VLOOKUP($A66,'Pivot BE Komponent'!$I$5:$O$116,7,0) -> 0 | I66: 0.0001745505324 | J66: 0.0001294330831
A67: 6.2.2 Förar/Passagerarplats | B67: 0 | C67: 0 | D67: 0 | E67: 0 | F67: 0 | G67: =VLOOKUP($A67,'Pivot BE Komponent'!$I$5:$O$116,6,0) -> 0 | H67: =VLOOKUP($A67,'Pivot BE Komponent'!$I$5:$O$116,7,0) -> 0 | I67: 0 | J67: 0
A68: 6.2.3 Utrustning Invändig | B68: 1 | C68: 0 | D68: 2 | E68: 0 | F68: 0.001001502253 | G68: =VLOOKUP($A68,'Pivot BE Komponent'!$I$5:$O$116,6,0) -> 3 | H68: =VLOOKUP($A68,'Pivot BE Komponent'!$I$5:$O$116,7,0) -> 0 | I68: 0.0001745505324 | J68: 0.0003882992493
A69: 6.2.5 Handikapputrustning | D69: 0 | E69: 0 | F69: =SUM(D69:E69)/Antal_BE_35_16 -> 0 | G69: =VLOOKUP($A69,'Pivot BE Komponent'!$I$5:$O$116,6,0) -> 0 | H69: =VLOOKUP($A69,'Pivot BE Komponent'!$I$5:$O$116,7,0) -> 0 | I69: =SUM(B69:C69)/Antal_BE_Över_16 -> 0 | J69: =SUM(G69:H69)/(Antal_BE_Över_16+Antal_BE_35_16) -> 0
A70: 6.3.1 Lastutrymme | B70: 3 | C70: 0 | D70: 0 | E70: 0 | F70: 0 | G70: =VLOOKUP($A70,'Pivot BE Komponent'!$I$5:$O$116,6,0) -> 3 | H70: =VLOOKUP($A70,'Pivot BE Komponent'!$I$5:$O$116,7,0) -> 0 | I70: 0.0005236515971 | J70: 0.0003882992493
A71: 6.3.2 Påbyggnadsram | B71: 25 | C71: 0 | D71: 5 | E71: 0 | F71: 0.002503755633 | G71: =VLOOKUP($A71,'Pivot BE Komponent'!$I$5:$O$116,6,0) -> 30 | H71: =VLOOKUP($A71,'Pivot BE Komponent'!$I$5:$O$116,7,0) -> 0 | I71: 0.004363763309 | J71: 0.003882992493
A72: 6.3.3 Lastbegränsande Anordning | B72: 0 | C72: 0 | D72: 0 | E72: 0 | F72: 0 | G72: =VLOOKUP($A72,'Pivot BE Komponent'!$I$5:$O$116,6,0) -> 0 | H72: =VLOOKUP($A72,'Pivot BE Komponent'!$I$5:$O$116,7,0) -> 0 | I72: 0 | J72: 0
A73: 6.3.4 Lastsäkringsutrustning | B73: 0 | C73: 0 | F73: 0 | G73: =VLOOKUP($A73,'Pivot BE Komponent'!$I$5:$O$116,6,0) -> 0 | H73: =VLOOKUP($A73,'Pivot BE Komponent'!$I$5:$O$116,7,0) -> 0 | I73: 0 | J73: 0
A74: 6.3.5 Lastanordning | B74: 2 | C74: 0 | D74: 0 | E74: 0 | F74: 0 | G74: =VLOOKUP($A74,'Pivot BE Komponent'!$I$5:$O$116,6,0) -> 2 | H74: =VLOOKUP($A74,'Pivot BE Komponent'!$I$5:$O$116,7,0) -> 0 | I74: 0.0003491010648 | J74: 0.0002588661662
A75: 6.4.1 Tillbehör Utvändigt | B75: 4 | C75: 0 | D75: 0 | E75: 0 | F75: 0 | G75: =VLOOKUP($A75,'Pivot BE Komponent'!$I$5:$O$116,6,0) -> 4 | H75: =VLOOKUP($A75,'Pivot BE Komponent'!$I$5:$O$116,7,0) -> 0 | I75: 0.0006982021295 | J75: 0.0005177323324
A76: 6.5.1 Gasinstallation | D76: 0 | E76: 0 | F76: 0 | G76: =VLOOKUP($A76,'Pivot BE Komponent'!$I$5:$O$116,6,0) -> 0 | H76: =VLOOKUP($A76,'Pivot BE Komponent'!$I$5:$O$116,7,0) -> 0 | I76: 0 | J76: 0
A77: 7.1.1 Rengörare | B77: 17 | C77: 0 | D77: 4 | E77: 0 | F77: 0.002003004507 | G77: =VLOOKUP($A77,'Pivot BE Komponent'!$I$5:$O$116,6,0) -> 21 | H77: =VLOOKUP($A77,'Pivot BE Komponent'!$I$5:$O$116,7,0) -> 0 | I77: 0.00296735905 | J77: 0.002718094745
A78: 7.1.2 Backspegel | B78: 18 | C78: 0 | D78: 3 | E78: 0 | F78: 0.00150225338 | G78: =VLOOKUP($A78,'Pivot BE Komponent'!$I$5:$O$116,6,0) -> 21 | H78: =VLOOKUP($A78,'Pivot BE Komponent'!$I$5:$O$116,7,0) -> 0 | I78: 0.003141909583 | J78: 0.002718094745
A79: 7.1.3 Huvudstrålkastare | B79: 120 | C79: 0 | D79: 18 | E79: 0 | F79: 0.00901352028 | G79: =VLOOKUP($A79,'Pivot BE Komponent'!$I$5:$O$116,6,0) -> 138 | H79: =VLOOKUP($A79,'Pivot BE Komponent'!$I$5:$O$116,7,0) -> 0 | I79: 0.02094606389 | J79: 0.01786176547
A80: 7.1.4 Dimstrålkastare | B80: 24 | C80: 0 | D80: 0 | E80: 0 | F80: 0 | G80: =VLOOKUP($A80,'Pivot BE Komponent'!$I$5:$O$116,6,0) -> 24 | H80: =VLOOKUP($A80,'Pivot BE Komponent'!$I$5:$O$116,7,0) -> 0 | I80: 0.004189212777 | J80: 0.003106393994
A81: 7.1.5 Fjärrstrålkastare | B81: 0 | C81: 0 | D81: 0 | E81: 0 | F81: 0 | G81: =VLOOKUP($A81,'Pivot BE Komponent'!$I$5:$O$116,6,0) -> 0 | H81: =VLOOKUP($A81,'Pivot BE Komponent'!$I$5:$O$116,7,0) -> 0 | I81: 0 | J81: 0
A82: 7.1.7 Arbetsbelysning | B82: 0 | C82: 0 | D82: 0 | E82: 0 | F82: 0 | G82: =VLOOKUP($A82,'Pivot BE Komponent'!$I$5:$O$116,6,0) -> 0 | H82: =VLOOKUP($A82,'Pivot BE Komponent'!$I$5:$O$116,7,0) -> 0 | I82: 0 | J82: 0
A83: 7.2.1 Positionslykta | B83: 46 | C83: 0 | D83: 7 | E83: 0 | F83: 0.003505257887 | G83: =VLOOKUP($A83,'Pivot BE Komponent'!$I$5:$O$116,6,0) -> 53 | H83: =VLOOKUP($A83,'Pivot BE Komponent'!$I$5:$O$116,7,0) -> 0 | I83: 0.008029324489 | J83: 0.006859953404
A84: 7.2.2 Sidomarkering | B84: 39 | C84: 0 | D84: 9 | E84: 0 | F84: 0.00450676014 | G84: =VLOOKUP($A84,'Pivot BE Komponent'!$I$5:$O$116,6,0) -> 48 | H84: =VLOOKUP($A84,'Pivot BE Komponent'!$I$5:$O$116,7,0) -> 0 | I84: 0.006807470763 | J84: 0.006212787989
A85: 7.2.3 Skyltlykta | B85: 27 | C85: 0 | D85: 3 | E85: 0 | F85: 0.00150225338 | G85: =VLOOKUP($A85,'Pivot BE Komponent'!$I$5:$O$116,6,0) -> 30 | H85: =VLOOKUP($A85,'Pivot BE Komponent'!$I$5:$O$116,7,0) -> 0 | I85: 0.004712864374 | J85: 0.003882992493
A86: 7.2.4 Reflex | B86: 13 | C86: 0 | D86: 5 | E86: 0 | F86: 0.002503755633 | G86: =VLOOKUP($A86,'Pivot BE Komponent'!$I$5:$O$116,6,0) -> 18 | H86: =VLOOKUP($A86,'Pivot BE Komponent'!$I$5:$O$116,7,0) -> 0 | I86: 0.002269156921 | J86: 0.002329795496
A87: 7.2.5 Dimbaklykta | B87: 0 | C87: 0 | F87: 0 | G87: =VLOOKUP($A87,'Pivot BE Komponent'!$I$5:$O$116,6,0) -> 0 | H87: =VLOOKUP($A87,'Pivot BE Komponent'!$I$5:$O$116,7,0) -> 0 | I87: 0 | J87: 0
A88: 7.2.7 Annan Lykta | B88: 3 | C88: 0 | D88: 0 | E88: 0 | F88: 0 | G88: =VLOOKUP($A88,'Pivot BE Komponent'!$I$5:$O$116,6,0) -> 3 | H88: =VLOOKUP($A88,'Pivot BE Komponent'!$I$5:$O$116,7,0) -> 0 | I88: 0.0005236515971 | J88: 0.0003882992493
A89: 7.3.1 Körriktningsvisare | B89: 3 | C89: 0 | D89: 3 | E89: 0 | F89: 0.00150225338 | G89: =VLOOKUP($A89,'Pivot BE Komponent'!$I$5:$O$116,6,0) -> 6 | H89: =VLOOKUP($A89,'Pivot BE Komponent'!$I$5:$O$116,7,0) -> 0 | I89: 0.0005236515971 | J89: 0.0007765984986
A90: 7.3.2 Stopplykta | B90: 17 | C90: 0 | D90: 4 | E90: 0 | F90: 0.002003004507 | G90: =VLOOKUP($A90,'Pivot BE Komponent'!$I$5:$O$116,6,0) -> 21 | H90: =VLOOKUP($A90,'Pivot BE Komponent'!$I$5:$O$116,7,0) -> 0 | I90: 0.00296735905 | J90: 0.002718094745
A91: 7.3.3 Signalanordning | B91: 13 | C91: 0 | D91: 0 | E91: 0 | F91: 0 | G91: =VLOOKUP($A91,'Pivot BE Komponent'!$I$5:$O$116,6,0) -> 13 | H91: =VLOOKUP($A91,'Pivot BE Komponent'!$I$5:$O$116,7,0) -> 0 | I91: 0.002269156921 | J91: 0.00168263008
A92: 7.3.4 Varningstriangel | B92: 3 | C92: 0 | D92: 0 | E92: 0 | F92: 0 | G92: =VLOOKUP($A92,'Pivot BE Komponent'!$I$5:$O$116,6,0) -> 3 | H92: =VLOOKUP($A92,'Pivot BE Komponent'!$I$5:$O$116,7,0) -> 0 | I92: 0.0005236515971 | J92: 0.0003882992493
A93: 7.3.5 Larmanordning | B93: 0 | C93: 0 | F93: 0 | G93: =VLOOKUP($A93,'Pivot BE Komponent'!$I$5:$O$116,6,0) -> 0 | H93: =VLOOKUP($A93,'Pivot BE Komponent'!$I$5:$O$116,7,0) -> 0 | I93: 0 | J93: 0
A94: 8.1.1 Hastighetsmätare | B94: 4 | C94: 0 | D94: 5 | E94: 0 | F94: 0.002503755633 | G94: =VLOOKUP($A94,'Pivot BE Komponent'!$I$5:$O$116,6,0) -> 9 | H94: =VLOOKUP($A94,'Pivot BE Komponent'!$I$5:$O$116,7,0) -> 0 | I94: 0.0006982021295 | J94: 0.001164897748
A95: 9.1.1 Kulkoppling | B95: 0 | C95: 0 | D95: 1 | E95: 0 | F95: 0.0005007511267 | G95: =VLOOKUP($A95,'Pivot BE Komponent'!$I$5:$O$116,6,0) -> 1 | H95: =VLOOKUP($A95,'Pivot BE Komponent'!$I$5:$O$116,7,0) -> 0 | I95: 0 | J95: 0.0001294330831
A96: 9.1.11 Kopplingsklasskylt | B96: 3 | C96: 0 | F96: 0 | G96: =VLOOKUP($A96,'Pivot BE Komponent'!$I$5:$O$116,6,0) -> 1 | H96: =VLOOKUP($A96,'Pivot BE Komponent'!$I$5:$O$116,7,0) -> 0 | I96: 0.0005236515971 | J96: 0.0001294330831
A97: 9.1.12 Multifunktionskoppling | B97: 0 | C97: 0 | F97: 0 | G97: =VLOOKUP($A97,'Pivot BE Komponent'!$I$5:$O$116,6,0) -> 0 | H97: =VLOOKUP($A97,'Pivot BE Komponent'!$I$5:$O$116,7,0) -> 0 | I97: 0 | J97: 0
A98: 9.1.2 Bygelkoppling | B98: 64 | C98: 0 | D98: 1 | E98: 0 | F98: 0.0005007511267 | G98: =VLOOKUP($A98,'Pivot BE Komponent'!$I$5:$O$116,6,0) -> 65 | H98: =VLOOKUP($A98,'Pivot BE Komponent'!$I$5:$O$116,7,0) -> 0 | I98: 0.01117123407 | J98: 0.008413150401
A99: 9.1.4 Vändskiva | B99: 11 | C99: 0 | D99: 0 | E99: 0 | F99: 0 | G99: =VLOOKUP($A99,'Pivot BE Komponent'!$I$5:$O$116,6,0) -> 11 | H99: =VLOOKUP($A99,'Pivot BE Komponent'!$I$5:$O$116,7,0) -> 0 | I99: 0.001920055856 | J99: 0.001423763914
A100: 9.1.5 Dragbalk Kopplingsanordning | B100: 1 | C100: 0 | D100: 1 | E100: 0 | F100: 0.0005007511267 | G100: =VLOOKUP($A100,'Pivot BE Komponent'!$I$5:$O$116,6,0) -> 2 | H100: =VLOOKUP($A100,'Pivot BE Komponent'!$I$5:$O$116,7,0) -> 0 | I100: 0.0001745505324 | J100: 0.0002588661662
A101: 9.1.6 Släpvagnskontakt | B101: 0 | C101: 0 | D101: 0 | E101: 0 | F101: =SUM(D101:E101)/Antal_BE_35_16 -> 0 | G101: =VLOOKUP($A101,'Pivot BE Komponent'!$I$5:$O$116,6,0) -> 0 | H101: =VLOOKUP($A101,'Pivot BE Komponent'!$I$5:$O$116,7,0) -> 0 | I101: =SUM(B101:C101)/Antal_BE_Över_16 -> 0 | J101: =SUM(G101:H101)/(Antal_BE_Över_16+Antal_BE_35_16) -> 0
A102: 9.2.1 Utskjutande Detalj | B102: 1 | C102: 0 | D102: 0 | E102: 0 | F102: 0 | G102: =VLOOKUP($A102,'Pivot BE Komponent'!$I$5:$O$116,6,0) -> 1 | H102: =VLOOKUP($A102,'Pivot BE Komponent'!$I$5:$O$116,7,0) -> 0 | I102: 0.0001745505324 | J102: 0.0001294330831
A103: 9.3.1 Identitet | B103: 11 | C103: 0 | D103: 3 | E103: 0 | F103: 0.00150225338 | G103: =VLOOKUP($A103,'Pivot BE Komponent'!$I$5:$O$116,6,0) -> 14 | H103: =VLOOKUP($A103,'Pivot BE Komponent'!$I$5:$O$116,7,0) -> 0 | I103: 0.001920055856 | J103: 0.001812063163
A104: 9.3.2 Ändring | B104: 4 | C104: 0 | D104: 1 | E104: 0 | F104: 0.0005007511267 | G104: =VLOOKUP($A104,'Pivot BE Komponent'!$I$5:$O$116,6,0) -> 5 | H104: =VLOOKUP($A104,'Pivot BE Komponent'!$I$5:$O$116,7,0) -> 0 | I104: 0.0006982021295 | J104: 0.0006471654155
A105: 9.4.1 Provkörning | B105: 1 | C105: 0 | D105: 1 | E105: 0 | F105: 0.0005007511267 | G105: =VLOOKUP($A105,'Pivot BE Komponent'!$I$5:$O$116,6,0) -> 2 | H105: =VLOOKUP($A105,'Pivot BE Komponent'!$I$5:$O$116,7,0) -> 0 | I105: 0.0001745505324 | J105: 0.0002588661662
A106: 30.1.9 Omborddiagnossystem | B106: 1 | C106: 0 | D106: 0 | E106: 0 | F106: 0 | G106: =VLOOKUP($A106,'Pivot BE Komponent'!$I$5:$O$116,6,0) -> 1 | H106: =VLOOKUP($A106,'Pivot BE Komponent'!$I$5:$O$116,7,0) -> 0 | I106: 0.0001745505324 | J106: 0.0001294330831
A107: 30.1.10 Denox-System | B107: 0 | C107: 0 | F107: 0 | G107: =VLOOKUP($A107,'Pivot BE Komponent'!$I$5:$O$116,6,0) -> 0 | H107: =VLOOKUP($A107,'Pivot BE Komponent'!$I$5:$O$116,7,0) -> 0 | I107: 0 | J107: 0
A108: 30.3.1 Miljökontroll Mätning | B108: 7 | C108: 0 | D108: 4 | E108: 0 | F108: 0.002003004507 | G108: =VLOOKUP($A108,'Pivot BE Komponent'!$I$5:$O$116,6,0) -> 11 | H108: =VLOOKUP($A108,'Pivot BE Komponent'!$I$5:$O$116,7,0) -> 0 | I108: 0.001221853727 | J108: 0.001423763914
A109: 30.4.1 Köldmedie Kontrollrapport | B109: 6 | C109: 0 | D109: 2 | E109: 0 | F109: 0.001001502253 | G109: =VLOOKUP($A109,'Pivot BE Komponent'!$I$5:$O$116,6,0) -> 8 | H109: =VLOOKUP($A109,'Pivot BE Komponent'!$I$5:$O$116,7,0) -> 0 | I109: 0.001047303194 | J109: 0.001035464665
A110: 50.1.5 Kopplingsuppgifter | B110: 0 | C110: 0 | F110: 0 | G110: =VLOOKUP($A110,'Pivot BE Komponent'!$I$5:$O$116,6,0) -> 0 | H110: =VLOOKUP($A110,'Pivot BE Komponent'!$I$5:$O$116,7,0) -> 0 | I110: 0 | J110: 0
A111: 50.2.7 Bromssystem | B111: 0 | C111: 0 | F111: 0 | G111: =VLOOKUP($A111,'Pivot BE Komponent'!$I$5:$O$116,6,0) -> 0 | H111: =VLOOKUP($A111,'Pivot BE Komponent'!$I$5:$O$116,7,0) -> 0 | I111: 0 | J111: 0
A112: 80.1.1 Rullbromsprov Inte Utfört | B112: 2 | C112: 0 | D112: 1 | E112: 0 | F112: 0.0005007511267 | G112: =VLOOKUP($A112,'Pivot BE Komponent'!$I$5:$O$116,6,0) -> 3 | H112: =VLOOKUP($A112,'Pivot BE Komponent'!$I$5:$O$116,7,0) -> 0 | I112: 0.0003491010648 | J112: 0.0003882992493
A113: 80.2.1 Underredskontroll Inte Utförd | B113: 0 | C113: 0 | F113: 0 | G113: =VLOOKUP($A113,'Pivot BE Komponent'!$I$5:$O$116,6,0) -> 0 | H113: =VLOOKUP($A113,'Pivot BE Komponent'!$I$5:$O$116,7,0) -> 0 | I113: 0 | J113: 0
A114: 80.3.1 Framvagnskontroll Inte Utförd | B114: 0 | C114: 0 | F114: 0 | G114: =VLOOKUP($A114,'Pivot BE Komponent'!$I$5:$O$116,6,0) -> 0 | H114: =VLOOKUP($A114,'Pivot BE Komponent'!$I$5:$O$116,7,0) -> 0 | I114: 0 | J114: 0
A115: 80.4.1 Överredskontroll Inte Utförd | B115: 0 | C115: 0 | F115: 0 | G115: =VLOOKUP($A115,'Pivot BE Komponent'!$I$5:$O$116,6,0) -> 0 | H115: =VLOOKUP($A115,'Pivot BE Komponent'!$I$5:$O$116,7,0) -> 0 | I115: 0 | J115: 0

Sheet Pivot Däck 2013 Q1 (hidden)
A1: Komponent | B1: 2.1.1 Däck
A3: Radetiketter | B3: Summa av 2 Underkänd Med Efterk | C3: Summa av X Underkänd Utan Efterk
A4: > 16000 | B4: 187 | C4: 283
A5: 3,5-16 ton | B5: 29 | C5: 31
A6: Tunga samtliga | B6: 216 | C6: 314

Sheet Däck (hidden)
A1: Viktklass | B1: Komponent | C1: 2 Underkänd Med Efterk | D1: X Underkänd Utan Efterk
A2: 3,5-16 ton | B2: 2.1.1 Däck | C2: 14 | D2: 11
A3: Tunga samtliga | B3: 2.1.1 Däck | C3: 90 | D3: 127
A4: > 16000 | B4: 2.1.1 Däck | C4: 76 | D4: 116
A5: 3,5-16 ton | B5: 2.1.1 Däck | C5: 15 | D5: 20
A6: Tunga samtliga | B6: 2.1.1 Däck | C6: 126 | D6: 187
A7: > 16000 | B7: 2.1.1 Däck | C7: 111 | D7: 167

Sheet Utdata Däck
D2: Andel underkända p.g.a. däck, kvartal 1
B3: Summa av 2 Underkänd Med Efterk | C3: Summa av X Underkänd Utan Efterk | D3: 2013 | E3: 2012
A4: 3,5-16 ton | B4: 29 | C4: 31 | D4: =SUM(B4:C4)/(1408+992) -> 0.025 | E4: 0.03237410072
A5: > 16000 | B5: 187 | C5: 283 | D5: =SUM(B5:C5)/(5616+3775) -> 0.05004791822 | E5: 0.0525955817
A6: Tunga, samtliga viktklasser | B6: 216 | C6: 314 | D6: =SUM(B6:C6)/(1408+992+5616+3775) -> 0.04494953778 | E6: 0.0478787561

Sheet B_Komponent (hidden)
A1: Viktklass | B1: System | C1: Delsystem | D1: Komponent | E1: 2 Underkänd Med Efterk | F1: 3 Körförbud | G1: J Justering | H1: X Underkänd Utan Efterk
A2: 3,5-16 ton | B2: 1. Stomme | C2: 1.1 Bärande Konstruktion | D2: 1.1.1 Ram | E2: 99 | F2: 1 | G2: 0 | H2: 0
A3: 3,5-16 ton | B3: 1. Stomme | C3: 1.1 Bärande Konstruktion | D3: 1.1.2 Balkprofil | E3: 71 | F3: 0 | G3: 0 | H3: 1
A4: 3,5-16 ton | B4: 1. Stomme | C4: 1.1 Bärande Konstruktion | D4: 1.1.3 Plåtyta | E4: 13 | F4: 0 | G4: 0 | H4: 0
A5: 3,5-16 ton | B5: 1. Stomme | C5: 1.2 Infästning | D5: 1.2.1 Infästning Hjulsystem | E5: 27 | F5: 0 | G5: 0 | H5: 0
A6: 3,5-16 ton | B6: 1. Stomme | C6: 1.2 Infästning | D6: 1.2.2 Infästning Drivsystem | E6: 2 | F6: 0 | G6: 0 | H6: 0
A7: 3,5-16 ton | B7: 1. Stomme | C7: 1.2 Infästning | D7: 1.2.5 Infästning Karosseri | E7: 12 | F7: 0 | G7: 0 | H7: 0
A8: 3,5-16 ton | B8: 1. Stomme | C8: 1.2 Infästning | D8: 1.2.6 Infästning Kopplingsanordning | E8: 5 | F8: 0 | G8: 0 | H8: 0
A9: 3,5-16 ton | B9: 1. Stomme | C9: 1.3 Skydd | D9: 1.3.1 Underkörningsskydd | E9: 4 | F9: 0 | G9: 0 | H9: 60
A10: 3,5-16 ton | B10: 1. Stomme | C10: 1.3 Skydd | D10: 1.3.2 Sidoskydd | E10: 10 | F10: 0 | G10: 0 | H10: 50
A11: 3,5-16 ton | B11: 2. Hjulsystem | C11: 2.1 Hjul | D11: 2.1.1 Däck | E11: 115 | F11: 0 | G11: 0 | H11: 123
A12: 3,5-16 ton | B12: 2. Hjulsystem | C12: 2.1 Hjul | D12: 2.1.2 Hjul/Fälg | E12: 9 | F12: 0 | G12: 0 | H12: 21
A13: 3,5-16 ton | B13: 2. Hjulsystem | C13: 2.1 Hjul | D13: 2.1.3 Hjullager | E13: 164 | F13: 0 | G13: 0 | H13: 1
A14: 3,5-16 ton | B14: 2. Hjulsystem | C14: 2.2 Fjädersystem | D14: 2.2.1 Fjädring | E14: 132 | F14: 2 | G14: 0 | H14: 0
A15: 3,5-16 ton | B15: 2. Hjulsystem | C15: 2.2 Fjädersystem | D15: 2.2.2 Fjädersäte | E15: 12 | F15: 0 | G15: 0 | H15: 0
A16: 3,5-16 ton | B16: 2. Hjulsystem | C16: 2.2 Fjädersystem | D16: 2.2.3 Stötdämpare | E16: 31 | F16: 0 | G16: 0 | H16: 51
A17: 3,5-16 ton | B17: 2. Hjulsystem | C17: 2.3 Axel/Länkage | D17: 2.3.1 Axel | E17: 70 | F17: 0 | G17: 0 | H17: 1
A18: 3,5-16 ton | B18: 2. Hjulsystem | C18: 2.3 Axel/Länkage | D18: 2.3.2 Tvärstag | E18: 12 | F18: 0 | G18: 0 | H18: 0
A19: 3,5-16 ton | B19: 2. Hjulsystem | C19: 2.3 Axel/Länkage | D19: 2.3.3 Länkarm | E19: 45 | F19: 2 | G19: 0 | H19: 0
A20: 3,5-16 ton | B20: 2. Hjulsystem | C20: 2.3 Axel/Länkage | D20: 2.3.4 Spindelled | E20: 80 | F20: 0 | G20: 0 | H20: 0
A21: 3,5-16 ton | B21: 2. Hjulsystem | C21: 2.3 Axel/Länkage | D21: 2.3.5 Spindeltapp | E21: 115 | F21: 1 | G21: 0 | H21: 0
A22: 3,5-16 ton | B22: 3. Drivsystem | C22: 3.1 Kraftkälla | D22: 3.1.1 Motor | E22: 18 | F22: 0 | G22: 0 | H22: 157
A23: 3,5-16 ton | B23: 3. Drivsystem | C23: 3.1 Kraftkälla | D23: 3.1.2 Bränslesystem | E23: 80 | F23: 0 | G23: 0 | H23: 14
A24: 3,5-16 ton | B24: 3. Drivsystem | C24: 3.1 Kraftkälla | D24: 3.1.3 Avgassystem | E24: 212 | F24: 0 | G24: 0 | H24: 128
A25: 3,5-16 ton | B25: 3. Drivsystem | C25: 3.1 Kraftkälla | D25: 3.1.4 El-System | E25: 28 | F25: 0 | G25: 0 | H25: 39
A26: 3,5-16 ton | B26: 3. Drivsystem | C26: 3.1 Kraftkälla | D26: 3.1.5 Hastighetsregulator | E26: 2 | F26: 0 | G26: 0 | H26: 43
A27: 3,5-16 ton | B27: 3. Drivsystem | C27: 3.1 Kraftkälla | D27: 3.1.6 Hydraulsystem | E27: 4 | F27: 0 | G27: 0 | H27: 26
A28: 3,5-16 ton | B28: 3. Drivsystem | C28: 3.2 Drivning | D28: 3.2.1 Växlingssystem | E28: 7 | F28: 0 | G28: 0 | H28: 5
A29: 3,5-16 ton | B29: 3. Drivsystem | C29: 3.2 Drivning | D29: 3.2.2 Kraftöverföring | E29: 25 | F29: 0 | G29: 0 | H29: 2
A30: 3,5-16 ton | B30: 4. Bromssystem | C30: 4.1 Färdbroms-Prestanda | D30: 4.1.1 Färdbroms Retardation | E30: 24 | F30: 3 | G30: 0 | H30: 0
A31: 3,5-16 ton | B31: 4. Bromssystem | C31: 4.2 Färdbroms-Funktion | D31: 4.2.1 Färdbroms Bromskraftfördelning | E31: 597 | F31: 1 | G31: 0 | H31: 0
A32: 3,5-16 ton | B32: 4. Bromssystem | C32: 4.2 Färdbroms-Funktion | D32: 4.2.2 Färdbroms Funktion | E32: 98 | F32: 0 | G32: 0 | H32: 0
A33: 3,5-16 ton | B33: 4. Bromssystem | C33: 4.2 Färdbroms-Funktion | D33: 4.2.3 Färdbroms Rörelsereserv | E33: 8 | F33: 0 | G33: 0 | H33: 0
A34: 3,5-16 ton | B34: 4. Bromssystem | C34: 4.2 Färdbroms-Funktion | D34: 4.2.4 Färdbroms Hjulbroms | E34: 457 | F34: 8 | G34: 0 | H34: 51
A35: 3,5-16 ton | B35: 4. Bromssystem | C35: 4.2 Färdbroms-Funktion | D35: 4.2.5 Tillsatsbroms | E35: 0 | F35: 0 | G35: 0 | H35: 1
A36: 3,5-16 ton | B36: 4. Bromssystem | C36: 4.3 Färdbroms-Manövrering | D36: 4.3.1 Färdbroms Reglage | E36: 2 | F36: 1 | G36: 0 | H36: 0
A37: 3,5-16 ton | B37: 4. Bromssystem | C37: 4.3 Färdbroms-Manövrering | D37: 4.3.2 Färdbroms Huvudcylinder | E37: 6 | F37: 0 | G37: 0 | H37: 3
A38: 3,5-16 ton | B38: 4. Bromssystem | C38: 4.4 Färdbroms-Transmisson | D38: 4.4.1 Bromsledning | E38: 266 | F38: 8 | G38: 0 | H38: 0
A39: 3,5-16 ton | B39: 4. Bromssystem | C39: 4.4 Färdbroms-Transmisson | D39: 4.4.2 Färdbroms Länksystem | E39: 4 | F39: 0 | G39: 0 | H39: 0
A40: 3,5-16 ton | B40: 4. Bromssystem | C40: 4.4 Färdbroms-Transmisson | D40: 4.4.3 Bromshävarm | E40: 10 | F40: 0 | G40: 0 | H40: 0
A41: 3,5-16 ton | B41: 4. Bromssystem | C41: 4.4 Färdbroms-Transmisson | D41: 4.4.4 Bromscylinder | E41: 70 | F41: 1 | G41: 0 | H41: 0
A42: 3,5-16 ton | B42: 4. Bromssystem | C42: 4.4 Färdbroms-Transmisson | D42: 4.4.5 Bromsventil | E42: 49 | F42: 0 | G42: 0 | H42: 0
A43: 3,5-16 ton | B43: 4. Bromssystem | C43: 4.4 Färdbroms-Transmisson | D43: 4.4.6 Bromssystem Uttag | E43: 44 | F43: 0 | G43: 0 | H43: 0
A44: 3,5-16 ton | B44: 4. Bromssystem | C44: 4.5 Färdbroms-Reglering | D44: 4.5.1 Lastkännande Ventil | E44: 34 | F44: 0 | G44: 0 | H44: 0
A45: 3,5-16 ton | B45: 4. Bromssystem | C45: 4.5 Färdbroms-Reglering | D45: 4.5.2 Abs-System | E45: 105 | F45: 0 | G45: 0 | H45: 0
A46: 3,5-16 ton | B46: 4. Bromssystem | C46: 4.6 Färdbroms-Energiförsörjning | D46: 4.6.1 Färdbroms Tryckluft | E46: 49 | F46: 0 | G46: 0 | H46: 30
A47: 3,5-16 ton | B47: 4. Bromssystem | C47: 4.6 Färdbroms-Energiförsörjning | D47: 4.6.2 Färdbroms Frysskydd | E47: 9 | F47: 0 | G47: 0 | H47: 4
A48: 3,5-16 ton | B48: 4. Bromssystem | C48: 4.6 Färdbroms-Energiförsörjning | D48: 4.6.4 Färdbroms Varningsanordning | E48: 21 | F48: 0 | G48: 0 | H48: 7
A49: 3,5-16 ton | B49: 4. Bromssystem | C49: 4.7 Parkeringsbroms | D49: 4.7.1 Parkeringsbroms Bromsfunktion | E49: 438 | F49: 0 | G49: 0 | H49: 0
A50: 3,5-16 ton | B50: 4. Bromssystem | C50: 4.7 Parkeringsbroms | D50: 4.7.2 Parkeringsbroms Transmission | E50: 8 | F50: 0 | G50: 0 | H50: 0
A51: 3,5-16 ton | B51: 4. Bromssystem | C51: 4.7 Parkeringsbroms | D51: 4.7.3 Parkeringsbroms Hjulbroms | E51: 2 | F51: 0 | G51: 0 | H51: 0
A52: 3,5-16 ton | B52: 5. Styrsystem | C52: 5.1 Styrmekanism | D52: 5.1.1 Ratt | E52: 1 | F52: 0 | G52: 0 | H52: 0
A53: 3,5-16 ton | B53: 5. Styrsystem | C53: 5.1 Styrmekanism | D53: 5.1.3 Rattaxel | E53: 5 | F53: 0 | G53: 0 | H53: 0
A54: 3,5-16 ton | B54: 5. Styrsystem | C54: 5.1 Styrmekanism | D54: 5.1.4 Styrväxel | E54: 17 | F54: 0 | G54: 0 | H54: 1
A55: 3,5-16 ton | B55: 5. Styrsystem | C55: 5.1 Styrmekanism | D55: 5.1.5 Systemfunktion Styrning | E55: 35 | F55: 0 | G55: 0 | H55: 0
A56: 3,5-16 ton | B56: 5. Styrsystem | C56: 5.2 Länkage | D56: 5.2.1 Styrsystem Arm/Stag | E56: 18 | F56: 0 | G56: 0 | H56: 0
A57: 3,5-16 ton | B57: 5. Styrsystem | C57: 5.2 Länkage | D57: 5.2.2 Styrled | E57: 351 | F57: 3 | G57: 0 | H57: 0
A58: 3,5-16 ton | B58: 6. Karosseri | C58: 6.1 Karossens Utsida | D58: 6.1.1 Dörr | E58: 11 | F58: 0 | G58: 0 | H58: 33
A59: 3,5-16 ton | B59: 6. Karosseri | C59: 6.1 Karossens Utsida | D59: 6.1.2 Främre Huv | E59: 6 | F59: 0 | G59: 0 | H59: 22
A60: 3,5-16 ton | B60: 6. Karosseri | C60: 6.1 Karossens Utsida | D60: 6.1.3 Kaross | E60: 21 | F60: 0 | G60: 0 | H60: 1
A61: 3,5-16 ton | B61: 6. Karosseri | C61: 6.1 Karossens Utsida | D61: 6.1.4 Stänkskydd | E61: 26 | F61: 0 | G61: 0 | H61: 152
A62: 3,5-16 ton | B62: 6. Karosseri | C62: 6.1 Karossens Utsida | D62: 6.1.5 Ruta | E62: 25 | F62: 0 | G62: 0 | H62: 194
A63: 3,5-16 ton | B63: 6. Karosseri | C63: 6.2 Personutrymme | D63: 6.2.1 Bilbälte | E63: 19 | F63: 0 | G63: 0 | H63: 0
A64: 3,5-16 ton | B64: 6. Karosseri | C64: 6.2 Personutrymme | D64: 6.2.2 Förar/Passagerarplats | E64: 2 | F64: 0 | G64: 0 | H64: 1
A65: 3,5-16 ton | B65: 6. Karosseri | C65: 6.2 Personutrymme | D65: 6.2.3 Utrustning Invändig | E65: 32 | F65: 0 | G65: 0 | H65: 0
A66: 3,5-16 ton | B66: 6. Karosseri | C66: 6.3 Lasthantering | D66: 6.3.1 Lastutrymme | E66: 33 | F66: 0 | G66: 0 | H66: 12
A67: 3,5-16 ton | B67: 6. Karosseri | C67: 6.3 Lasthantering | D67: 6.3.2 Påbyggnadsram | E67: 32 | F67: 0 | G67: 0 | H67: 109
A68: 3,5-16 ton | B68: 6. Karosseri | C68: 6.3 Lasthantering | D68: 6.3.3 Lastbegränsande Anordning | E68: 4 | F68: 0 | G68: 0 | H68: 12
A69: 3,5-16 ton | B69: 6. Karosseri | C69: 6.3 Lasthantering | D69: 6.3.4 Lastsäkringsutrustning | E69: 1 | F69: 0 | G69: 0 | H69: 0
A70: 3,5-16 ton | B70: 6. Karosseri | C70: 6.3 Lasthantering | D70: 6.3.5 Lastanordning | E70: 6 | F70: 0 | G70: 0 | H70: 1
A71: 3,5-16 ton | B71: 6. Karosseri | C71: 6.4 Extra Utrustning | D71: 6.4.1 Tillbehör Utvändigt | E71: 4 | F71: 1 | G71: 0 | H71: 14
A72: 3,5-16 ton | B72: 6. Karosseri | C72: 6.5 Gaskontroll | D72: 6.5.1 Gasinstallation | E72: 2 | F72: 0 | G72: 0 | H72: 0
A73: 3,5-16 ton | B73: 7. Kommunikation | C73: 7.1 Sikthjälpmedel | D73: 7.1.1 Rengörare | E73: 31 | F73: 0 | G73: 0 | H73: 366
A74: 3,5-16 ton | B74: 7. Kommunikation | C74: 7.1 Sikthjälpmedel | D74: 7.1.2 Backspegel | E74: 28 | F74: 0 | G74: 0 | H74: 121
A75: 3,5-16 ton | B75: 7. Kommunikation | C75: 7.1 Sikthjälpmedel | D75: 7.1.3 Huvudstrålkastare | E75: 388 | F75: 0 | G75: 55 | H75: 831
A76: 3,5-16 ton | B76: 7. Kommunikation | C76: 7.1 Sikthjälpmedel | D76: 7.1.4 Dimstrålkastare | E76: 19 | F76: 0 | G76: 0 | H76: 1
A77: 3,5-16 ton | B77: 7. Kommunikation | C77: 7.1 Sikthjälpmedel | D77: 7.1.5 Fjärrstrålkastare | E77: 1 | F77: 0 | G77: 0 | H77: 0
A78: 3,5-16 ton | B78: 7. Kommunikation | C78: 7.1 Sikthjälpmedel | D78: 7.1.7 Arbetsbelysning | E78: 0 | F78: 0 | G78: 0 | H78: 2
A79: 3,5-16 ton | B79: 7. Kommunikation | C79: 7.2 Markeringar | D79: 7.2.1 Positionslykta | E79: 29 | F79: 0 | G79: 0 | H79: 460
A80: 3,5-16 ton | B80: 7. Kommunikation | C80: 7.2 Markeringar | D80: 7.2.2 Sidomarkering | E80: 74 | F80: 0 | G80: 0 | H80: 498
A81: 3,5-16 ton | B81: 7. Kommunikation | C81: 7.2 Markeringar | D81: 7.2.3 Skyltlykta | E81: 32 | F81: 0 | G81: 0 | H81: 288
A82: 3,5-16 ton | B82: 7. Kommunikation | C82: 7.2 Markeringar | D82: 7.2.4 Reflex | E82: 52 | F82: 0 | G82: 0 | H82: 566
A83: 3,5-16 ton | B83: 7. Kommunikation | C83: 7.2 Markeringar | D83: 7.2.5 Dimbaklykta | E83: 0 | F83: 0 | G83: 0 | H83: 2
A84: 3,5-16 ton | B84: 7. Kommunikation | C84: 7.2 Markeringar | D84: 7.2.7 Annan Lykta | E84: 6 | F84: 0 | G84: 0 | H84: 40
A85: 3,5-16 ton | B85: 7. Kommunikation | C85: 7.3 Signaler | D85: 7.3.1 Körriktningsvisare | E85: 38 | F85: 0 | G85: 0 | H85: 228
A86: 3,5-16 ton | B86: 7. Kommunikation | C86: 7.3 Signaler | D86: 7.3.2 Stopplykta | E86: 77 | F86: 0 | G86: 0 | H86: 170
A87: 3,5-16 ton | B87: 7. Kommunikation | C87: 7.3 Signaler | D87: 7.3.3 Signalanordning | E87: 5 | F87: 0 | G87: 0 | H87: 130
A88: 3,5-16 ton | B88: 7. Kommunikation | C88: 7.3 Signaler | D88: 7.3.4 Varningstriangel | E88: 4 | F88: 0 | G88: 0 | H88: 93
A89: 3,5-16 ton | B89: 8. Instrumentering | C89: 8.1 Färdinstrument | D89: 8.1.1 Hastighetsmätare | E89: 36 | F89: 0 | G89: 0 | H89: 4
A90: 3,5-16 ton | B90: 9. Övrigt | C90: 9.1 Kopplingsanordningar | D90: 9.1.1 Kulkoppling | E90: 30 | F90: 0 | G90: 0 | H90: 0
A91: 3,5-16 ton | B91: 9. Övrigt | C91: 9.1 Kopplingsanordningar | D91: 9.1.11 Kopplingsklasskylt | E91: 0 | F91: 0 | G91: 0 | H91: 1
A92: 3,5-16 ton | B92: 9. Övrigt | C92: 9.1 Kopplingsanordningar | D92: 9.1.2 Bygelkoppling | E92: 9 | F92: 0 | G92: 0 | H92: 0
A93: 3,5-16 ton | B93: 9. Övrigt | C93: 9.1 Kopplingsanordningar | D93: 9.1.4 Vändskiva | E93: 1 | F93: 0 | G93: 0 | H93: 0
A94: 3,5-16 ton | B94: 9. Övrigt | C94: 9.1 Kopplingsanordningar | D94: 9.1.5 Dragbalk Kopplingsanordning | E94: 2 | F94: 0 | G94: 0 | H94: 0
A95: 3,5-16 ton | B95: 9. Övrigt | C95: 9.1 Kopplingsanordningar | D95: 9.1.6 Släpvagnskontakt | E95: 0 | F95: 0 | G95: 0 | H95: 12
A96: 3,5-16 ton | B96: 9. Övrigt | C96: 9.2 Trafikfarliga Anordningar | D96: 9.2.1 Utskjutande Detalj | E96: 8 | F96: 0 | G96: 0 | H96: 2
A97: 3,5-16 ton | B97: 9. Övrigt | C97: 9.3 Registeruppgift | D97: 9.3.1 Identitet | E97: 3 | F97: 0 | G97: 0 | H97: 65
A98: 3,5-16 ton | B98: 9. Övrigt | C98: 9.3 Registeruppgift | D98: 9.3.2 Ändring | E98: 36 | F98: 0 | G98: 0 | H98: 0
A99: 3,5-16 ton | B99: 9. Övrigt | C99: 9.4 Provkörning | D99: 9.4.1 Provkörning | E99: 12 | F99: 0 | G99: 0 | H99: 0
A100: 3,5-16 ton | B100: 30. Miljökontroll | C100: 30.1 Avgasrening | D100: 30.1.9 Omborddiagnossystem | E100: 1 | F100: 0 | G100: 0 | H100: 0
A101: 3,5-16 ton | B101: 30. Miljökontroll | C101: 30.3 Avgaser Dieseldriven | D101: 30.3.1 Miljökontroll Mätning | E101: 36 | F101: 0 | G101: 0 | H101: 0
A102: 3,5-16 ton | B102: 30. Miljökontroll | C102: 30.4 Köldmedie | D102: 30.4.1 Köldmedie Kontrollrapport | E102: 51 | F102: 0 | G102: 0 | H102: 0
A103: 3,5-16 ton | B103: 80. Kontroll Inte Utförd | C103: 80.1 Rullbromsprov | D103: 80.1.1 Rullbromsprov Inte Utfört | E103: 5 | F103: 0 | G103: 0 | H103: 0
A104: 3,5-16 ton | B104: 80. Kontroll Inte Utförd | C104: 80.3 Framvagnskontroll | D104: 80.3.1 Framvagnskontroll Inte Utförd | E104: 1 | F104: 0 | G104: 0 | H104: 0
A105: > 16000 | B105: 1. Stomme | C105: 1.1 Bärande Konstruktion | D105: 1.1.1 Ram | E105: 258 | F105: 1 | G105: 0 | H105: 0
A106: > 16000 | B106: 1. Stomme | C106: 1.1 Bärande Konstruktion | D106: 1.1.2 Balkprofil | E106: 149 | F106: 0 | G106: 0 | H106: 0
A107: > 16000 | B107: 1. Stomme | C107: 1.1 Bärande Konstruktion | D107: 1.1.3 Plåtyta | E107: 8 | F107: 0 | G107: 0 | H107: 0
A108: > 16000 | B108: 1. Stomme | C108: 1.2 Infästning | D108: 1.2.1 Infästning Hjulsystem | E108: 71 | F108: 2 | G108: 0 | H108: 0
A109: > 16000 | B109: 1. Stomme | C109: 1.2 Infästning | D109: 1.2.2 Infästning Drivsystem | E109: 7 | F109: 0 | G109: 0 | H109: 0
A110: > 16000 | B110: 1. Stomme | C110: 1.2 Infästning | D110: 1.2.4 Infästning Styrsystem | E110: 1 | F110: 0 | G110: 0 | H110: 0
A111: > 16000 | B111: 1. Stomme | C111: 1.2 Infästning | D111: 1.2.5 Infästning Karosseri | E111: 21 | F111: 0 | G111: 0 | H111: 1
A112: > 16000 | B112: 1. Stomme | C112: 1.2 Infästning | D112: 1.2.6 Infästning Kopplingsanordning | E112: 1 | F112: 0 | G112: 0 | H112: 0
A113: > 16000 | B113: 1. Stomme | C113: 1.3 Skydd | D113: 1.3.1 Underkörningsskydd | E113: 52 | F113: 0 | G113: 0 | H113: 143
A114: > 16000 | B114: 1. Stomme | C114: 1.3 Skydd | D114: 1.3.2 Sidoskydd | E114: 84 | F114: 0 | G114: 0 | H114: 167
A115: > 16000 | B115: 2. Hjulsystem | C115: 2.1 Hjul | D115: 2.1.1 Däck | E115: 633 | F115: 0 | G115: 0 | H115: 843
A116: > 16000 | B116: 2. Hjulsystem | C116: 2.1 Hjul | D116: 2.1.2 Hjul/Fälg | E116: 16 | F116: 0 | G116: 0 | H116: 23
A117: > 16000 | B117: 2. Hjulsystem | C117: 2.1 Hjul | D117: 2.1.3 Hjullager | E117: 906 | F117: 0 | G117: 0 | H117: 1
A118: > 16000 | B118: 2. Hjulsystem | C118: 2.1 Hjul | D118: 2.1.5 Däcktrycksövervakning | E118: 1 | F118: 0 | G118: 0 | H118: 0
A119: > 16000 | B119: 2. Hjulsystem | C119: 2.2 Fjädersystem | D119: 2.2.1 Fjädring | E119: 1019 | F119: 6 | G119: 0 | H119: 0
A120: > 16000 | B120: 2. Hjulsystem | C120: 2.2 Fjädersystem | D120: 2.2.2 Fjädersäte | E120: 26 | F120: 0 | G120: 0 | H120: 0
A121: > 16000 | B121: 2. Hjulsystem | C121: 2.2 Fjädersystem | D121: 2.2.3 Stötdämpare | E121: 109 | F121: 0 | G121: 0 | H121: 181
A122: > 16000 | B122: 2. Hjulsystem | C122: 2.3 Axel/Länkage | D122: 2.3.1 Axel | E122: 459 | F122: 1 | G122: 0 | H122: 36
A123: > 16000 | B123: 2. Hjulsystem | C123: 2.3 Axel/Länkage | D123: 2.3.2 Tvärstag | E123: 3 | F123: 0 | G123: 0 | H123: 0
A124: > 16000 | B124: 2. Hjulsystem | C124: 2.3 Axel/Länkage | D124: 2.3.3 Länkarm | E124: 539 | F124: 13 | G124: 0 | H124: 0
A125: > 16000 | B125: 2. Hjulsystem | C125: 2.3 Axel/Länkage | D125: 2.3.4 Spindelled | E125: 6 | F125: 0 | G125: 0 | H125: 0
A126: > 16000 | B126: 2. Hjulsystem | C126: 2.3 Axel/Länkage | D126: 2.3.5 Spindeltapp | E126: 527 | F126: 0 | G126: 0 | H126: 0
A127: > 16000 | B127: 3. Drivsystem | C127: 3.1 Kraftkälla | D127: 3.1.1 Motor | E127: 35 | F127: 0 | G127: 0 | H127: 760
A128: > 16000 | B128: 3. Drivsystem | C128: 3.1 Kraftkälla | D128: 3.1.2 Bränslesystem | E128: 134 | F128: 0 | G128: 0 | H128: 20
A129: > 16000 | B129: 3. Drivsystem | C129: 3.1 Kraftkälla | D129: 3.1.3 Avgassystem | E129: 731 | F129: 0 | G129: 0 | H129: 235
A130: > 16000 | B130: 3. Drivsystem | C130: 3.1 Kraftkälla | D130: 3.1.4 El-System | E130: 48 | F130: 0 | G130: 0 | H130: 7
A131: > 16000 | B131: 3. Drivsystem | C131: 3.1 Kraftkälla | D131: 3.1.5 Hastighetsregulator | E131: 32 | F131: 0 | G131: 0 | H131: 334
A132: > 16000 | B132: 3. Drivsystem | C132: 3.1 Kraftkälla | D132: 3.1.6 Hydraulsystem | E132: 19 | F132: 0 | G132: 0 | H132: 280
A133: > 16000 | B133: 3. Drivsystem | C133: 3.2 Drivning | D133: 3.2.1 Växlingssystem | E133: 20 | F133: 0 | G133: 0 | H133: 38
A134: > 16000 | B134: 3. Drivsystem | C134: 3.2 Drivning | D134: 3.2.2 Kraftöverföring | E134: 41 | F134: 0 | G134: 0 | H134: 20
A135: > 16000 | B135: 4. Bromssystem | C135: 4.1 Färdbroms-Prestanda | D135: 4.1.1 Färdbroms Retardation | E135: 769 | F135: 101 | G135: 0 | H135: 0
A136: > 16000 | B136: 4. Bromssystem | C136: 4.2 Färdbroms-Funktion | D136: 4.2.1 Färdbroms Bromskraftfördelning | E136: 2399 | F136: 3 | G136: 0 | H136: 0
A137: > 16000 | B137: 4. Bromssystem | C137: 4.2 Färdbroms-Funktion | D137: 4.2.2 Färdbroms Funktion | E137: 499 | F137: 0 | G137: 0 | H137: 0
A138: > 16000 | B138: 4. Bromssystem | C138: 4.2 Färdbroms-Funktion | D138: 4.2.3 Färdbroms Rörelsereserv | E138: 67 | F138: 0 | G138: 0 | H138: 0
A139: > 16000 | B139: 4. Bromssystem | C139: 4.2 Färdbroms-Funktion | D139: 4.2.4 Färdbroms Hjulbroms | E139: 1794 | F139: 9 | G139: 0 | H139: 76
A140: > 16000 | B140: 4. Bromssystem | C140: 4.2 Färdbroms-Funktion | D140: 4.2.5 Tillsatsbroms | E140: 3 | F140: 0 | G140: 0 | H140: 11
A141: > 16000 | B141: 4. Bromssystem | C141: 4.3 Färdbroms-Manövrering | D141: 4.3.1 Färdbroms Reglage | E141: 1 | F141: 0 | G141: 0 | H141: 0
A142: > 16000 | B142: 4. Bromssystem | C142: 4.3 Färdbroms-Manövrering | D142: 4.3.2 Färdbroms Huvudcylinder | E142: 1 | F142: 0 | G142: 0 | H142: 0
A143: > 16000 | B143: 4. Bromssystem | C143: 4.4 Färdbroms-Transmisson | D143: 4.4.1 Bromsledning | E143: 470 | F143: 4 | G143: 0 | H143: 0
A144: > 16000 | B144: 4. Bromssystem | C144: 4.4 Färdbroms-Transmisson | D144: 4.4.2 Färdbroms Länksystem | E144: 115 | F144: 0 | G144: 0 | H144: 0
A145: > 16000 | B145: 4. Bromssystem | C145: 4.4 Färdbroms-Transmisson | D145: 4.4.3 Bromshävarm | E145: 289 | F145: 0 | G145: 0 | H145: 0
A146: > 16000 | B146: 4. Bromssystem | C146: 4.4 Färdbroms-Transmisson | D146: 4.4.4 Bromscylinder | E146: 757 | F146: 2 | G146: 0 | H146: 0
A147: > 16000 | B147: 4. Bromssystem | C147: 4.4 Färdbroms-Transmisson | D147: 4.4.5 Bromsventil | E147: 209 | F147: 0 | G147: 0 | H147: 0
A148: > 16000 | B148: 4. Bromssystem | C148: 4.4 Färdbroms-Transmisson | D148: 4.4.6 Bromssystem Uttag | E148: 692 | F148: 0 | G148: 0 | H148: 1
A149: > 16000 | B149: 4. Bromssystem | C149: 4.5 Färdbroms-Reglering | D149: 4.5.1 Lastkännande Ventil | E149: 63 | F149: 0 | G149: 0 | H149: 2
A150: > 16000 | B150: 4. Bromssystem | C150: 4.5 Färdbroms-Reglering | D150: 4.5.2 Abs-System | E150: 750 | F150: 0 | G150: 0 | H150: 12
A151: > 16000 | B151: 4. Bromssystem | C151: 4.6 Färdbroms-Energiförsörjning | D151: 4.6.1 Färdbroms Tryckluft | E151: 284 | F151: 0 | G151: 0 | H151: 120
A152: > 16000 | B152: 4. Bromssystem | C152: 4.6 Färdbroms-Energiförsörjning | D152: 4.6.2 Färdbroms Frysskydd | E152: 344 | F152: 0 | G152: 0 | H152: 0
A153: > 16000 | B153: 4. Bromssystem | C153: 4.6 Färdbroms-Energiförsörjning | D153: 4.6.4 Färdbroms Varningsanordning | E153: 47 | F153: 0 | G153: 0 | H153: 40
A154: > 16000 | B154: 4. Bromssystem | C154: 4.7 Parkeringsbroms | D154: 4.7.1 Parkeringsbroms Bromsfunktion | E154: 178 | F154: 0 | G154: 0 | H154: 1
A155: > 16000 | B155: 4. Bromssystem | C155: 4.7 Parkeringsbroms | D155: 4.7.2 Parkeringsbroms Transmission | E155: 6 | F155: 0 | G155: 0 | H155: 0
A156: > 16000 | B156: 4. Bromssystem | C156: 4.7 Parkeringsbroms | D156: 4.7.3 Parkeringsbroms Hjulbroms | E156: 1 | F156: 0 | G156: 0 | H156: 0
A157: > 16000 | B157: 5. Styrsystem | C157: 5.1 Styrmekanism | D157: 5.1.1 Ratt | E157: 4 | F157: 0 | G157: 0 | H157: 0
A158: > 16000 | B158: 5. Styrsystem | C158: 5.1 Styrmekanism | D158: 5.1.3 Rattaxel | E158: 31 | F158: 0 | G158: 0 | H158: 0
A159: > 16000 | B159: 5. Styrsystem | C159: 5.1 Styrmekanism | D159: 5.1.4 Styrväxel | E159: 61 | F159: 0 | G159: 0 | H159: 0
A160: > 16000 | B160: 5. Styrsystem | C160: 5.1 Styrmekanism | D160: 5.1.5 Systemfunktion Styrning | E160: 17 | F160: 0 | G160: 0 | H160: 0
A161: > 16000 | B161: 5. Styrsystem | C161: 5.2 Länkage | D161: 5.2.1 Styrsystem Arm/Stag | E161: 87 | F161: 0 | G161: 0 | H161: 0
A162: > 16000 | B162: 5. Styrsystem | C162: 5.2 Länkage | D162: 5.2.2 Styrled | E162: 2141 | F162: 6 | G162: 0 | H162: 0
A163: > 16000 | B163: 6. Karosseri | C163: 6.1 Karossens Utsida | D163: 6.1.1 Dörr | E163: 69 | F163: 0 | G163: 0 | H163: 491
A164: > 16000 | B164: 6. Karosseri | C164: 6.1 Karossens Utsida | D164: 6.1.2 Främre Huv | E164: 2 | F164: 0 | G164: 0 | H164: 1
A165: > 16000 | B165: 6. Karosseri | C165: 6.1 Karossens Utsida | D165: 6.1.3 Kaross | E165: 34 | F165: 0 | G165: 0 | H165: 0
A166: > 16000 | B166: 6. Karosseri | C166: 6.1 Karossens Utsida | D166: 6.1.4 Stänkskydd | E166: 66 | F166: 0 | G166: 0 | H166: 768
A167: > 16000 | B167: 6. Karosseri | C167: 6.1 Karossens Utsida | D167: 6.1.5 Ruta | E167: 56 | F167: 0 | G167: 0 | H167: 508
A168: > 16000 | B168: 6. Karosseri | C168: 6.2 Personutrymme | D168: 6.2.1 Bilbälte | E168: 98 | F168: 0 | G168: 0 | H168: 0
A169: > 16000 | B169: 6. Karosseri | C169: 6.2 Personutrymme | D169: 6.2.2 Förar/Passagerarplats | E169: 18 | F169: 0 | G169: 0 | H169: 0
A170: > 16000 | B170: 6. Karosseri | C170: 6.2 Personutrymme | D170: 6.2.3 Utrustning Invändig | E170: 15 | F170: 0 | G170: 0 | H170: 0
A171: > 16000 | B171: 6. Karosseri | C171: 6.3 Lasthantering | D171: 6.3.1 Lastutrymme | E171: 75 | F171: 0 | G171: 0 | H171: 35
A172: > 16000 | B172: 6. Karosseri | C172: 6.3 Lasthantering | D172: 6.3.2 Påbyggnadsram | E172: 156 | F172: 0 | G172: 0 | H172: 991
A173: > 16000 | B173: 6. Karosseri | C173: 6.3 Lasthantering | D173: 6.3.3 Lastbegränsande Anordning | E173: 12 | F173: 0 | G173: 0 | H173: 43
A174: > 16000 | B174: 6. Karosseri | C174: 6.3 Lasthantering | D174: 6.3.4 Lastsäkringsutrustning | E174: 5 | F174: 0 | G174: 0 | H174: 0
A175: > 16000 | B175: 6. Karosseri | C175: 6.3 Lasthantering | D175: 6.3.5 Lastanordning | E175: 30 | F175: 0 | G175: 0 | H175: 4
A176: > 16000 | B176: 6. Karosseri | C176: 6.4 Extra Utrustning | D176: 6.4.1 Tillbehör Utvändigt | E176: 6 | F176: 0 | G176: 0 | H176: 76
A177: > 16000 | B177: 7. Kommunikation | C177: 7.1 Sikthjälpmedel | D177: 7.1.1 Rengörare | E177: 48 | F177: 0 | G177: 0 | H177: 722
A178: > 16000 | B178: 7. Kommunikation | C178: 7.1 Sikthjälpmedel | D178: 7.1.2 Backspegel | E178: 217 | F178: 0 | G178: 0 | H178: 439
A179: > 16000 | B179: 7. Kommunikation | C179: 7.1 Sikthjälpmedel | D179: 7.1.3 Huvudstrålkastare | E179: 1762 | F179: 0 | G179: 98 | H179: 2414
A180: > 16000 | B180: 7. Kommunikation | C180: 7.1 Sikthjälpmedel | D180: 7.1.4 Dimstrålkastare | E180: 603 | F180: 0 | G180: 0 | H180: 25
A181: > 16000 | B181: 7. Kommunikation | C181: 7.1 Sikthjälpmedel | D181: 7.1.5 Fjärrstrålkastare | E181: 7 | F181: 0 | G181: 0 | H181: 1
A182: > 16000 | B182: 7. Kommunikation | C182: 7.1 Sikthjälpmedel | D182: 7.1.7 Arbetsbelysning | E182: 1 | F182: 0 | G182: 0 | H182: 38
A183: > 16000 | B183: 7. Kommunikation | C183: 7.2 Markeringar | D183: 7.2.1 Positionslykta | E183: 64 | F183: 0 | G183: 0 | H183: 1999
A184: > 16000 | B184: 7. Kommunikation | C184: 7.2 Markeringar | D184: 7.2.2 Sidomarkering | E184: 192 | F184: 0 | G184: 0 | H184: 1723
A185: > 16000 | B185: 7. Kommunikation | C185: 7.2 Markeringar | D185: 7.2.3 Skyltlykta | E185: 119 | F185: 0 | G185: 0 | H185: 2207
A186: > 16000 | B186: 7. Kommunikation | C186: 7.2 Markeringar | D186: 7.2.4 Reflex | E186: 104 | F186: 0 | G186: 0 | H186: 1302
A187: > 16000 | B187: 7. Kommunikation | C187: 7.2 Markeringar | D187: 7.2.5 Dimbaklykta | E187: 0 | F187: 0 | G187: 0 | H187: 3
A188: > 16000 | B188: 7. Kommunikation | C188: 7.2 Markeringar | D188: 7.2.7 Annan Lykta | E188: 10 | F188: 0 | G188: 0 | H188: 369
A189: > 16000 | B189: 7. Kommunikation | C189: 7.3 Signaler | D189: 7.3.1 Körriktningsvisare | E189: 49 | F189: 0 | G189: 0 | H189: 382
A190: > 16000 | B190: 7. Kommunikation | C190: 7.3 Signaler | D190: 7.3.2 Stopplykta | E190: 163 | F190: 0 | G190: 0 | H190: 647
A191: > 16000 | B191: 7. Kommunikation | C191: 7.3 Signaler | D191: 7.3.3 Signalanordning | E191: 4 | F191: 0 | G191: 0 | H191: 421
A192: > 16000 | B192: 7. Kommunikation | C192: 7.3 Signaler | D192: 7.3.4 Varningstriangel | E192: 5 | F192: 0 | G192: 0 | H192: 269
A193: > 16000 | B193: 7. Kommunikation | C193: 7.3 Signaler | D193: 7.3.5 Larmanordning | E193: 1 | F193: 0 | G193: 0 | H193: 0
A194: > 16000 | B194: 8. Instrumentering | C194: 8.1 Färdinstrument | D194: 8.1.1 Hastighetsmätare | E194: 38 | F194: 0 | G194: 0 | H194: 8
A195: > 16000 | B195: 9. Övrigt | C195: 9.1 Kopplingsanordningar | D195: 9.1.1 Kulkoppling | E195: 8 | F195: 0 | G195: 0 | H195: 0
A196: > 16000 | B196: 9. Övrigt | C196: 9.1 Kopplingsanordningar | D196: 9.1.11 Kopplingsklasskylt | E196: 0 | F196: 0 | G196: 0 | H196: 55
A197: > 16000 | B197: 9. Övrigt | C197: 9.1 Kopplingsanordningar | D197: 9.1.2 Bygelkoppling | E197: 2068 | F197: 0 | G197: 0 | H197: 0
A198: > 16000 | B198: 9. Övrigt | C198: 9.1 Kopplingsanordningar | D198: 9.1.4 Vändskiva | E198: 240 | F198: 0 | G198: 0 | H198: 3
A199: > 16000 | B199: 9. Övrigt | C199: 9.1 Kopplingsanordningar | D199: 9.1.5 Dragbalk Kopplingsanordning | E199: 19 | F199: 0 | G199: 0 | H199: 0
A200: > 16000 | B200: 9. Övrigt | C200: 9.1 Kopplingsanordningar | D200: 9.1.6 Släpvagnskontakt | E200: 1 | F200: 0 | G200: 0 | H200: 25
... 395 more rows

Sheet Märken (hidden)
A1: Antal besiktade som värden | B1: Märke | C1: 0 Godkänd | D1: 2 Underkänd Med Efterk | E1: 3 Körförbud | F1: 6 Underkänd Utan Efterk | G1: U Underkänd Fle | H1: Utfall
A2: 3,5-16 ton | B2: VOLVO | C2: 1063 | D2: 1021 | E2: 11 | F2: 620 | G2: 0 | H2: 2715
A3: 3,5-16 ton | B3: MERCEDES-BENZ | C3: 679 | D3: 736 | E3: 9 | F3: 458 | G3: 0 | H3: 1882
A4: 3,5-16 ton | B4: SCANIA/SCANIA-VABIS | C4: 299 | D4: 119 | E4: 2 | F4: 111 | G4: 0 | H4: 531
A5: 3,5-16 ton | B5: IVECO | C5: 159 | D5: 189 | E5: 1 | F5: 108 | G5: 0 | H5: 457
A6: 3,5-16 ton | B6: CHEVROLET | C6: 122 | D6: 128 | E6: 0 | F6: 64 | G6: 0 | H6: 314
A7: 3,5-16 ton | B7: VW | C7: 106 | D7: 99 | E7: 1 | F7: 41 | G7: 0 | H7: 247
A8: 3,5-16 ton | B8: FORD | C8: 68 | D8: 88 | E8: 2 | F8: 36 | G8: 0 | H8: 194
A9: 3,5-16 ton | B9: DODGE /DODGE-FARGO/FARG0 | C9: 72 | D9: 66 | E9: 1 | F9: 38 | G9: 0 | H9: 177
A10: 3,5-16 ton | B10: RENAULT | C10: 37 | D10: 56 | E10: 0 | F10: 18 | G10: 0 | H10: 111
A11: 3,5-16 ton | B11: MAN | C11: 30 | D11: 31 | E11: 1 | F11: 32 | G11: 0 | H11: 94
A12: 3,5-16 ton | B12: ÖVRIGA | C12: 26 | D12: 16 | E12: 0 | F12: 13 | G12: 0 | H12: 55
A13: 3,5-16 ton | B13: UNIMOG | C13: 32 | D13: 9 | E13: 0 | F13: 9 | G13: 0 | H13: 50
A14: 3,5-16 ton | B14: GMC | C14: 15 | D14: 19 | E14: 0 | F14: 6 | G14: 0 | H14: 40
A15: 3,5-16 ton | B15: FIAT | C15: 23 | D15: 8 | E15: 0 | F15: 7 | G15: 0 | H15: 38
A16: 3,5-16 ton | B16: DAF | C16: 6 | D16: 19 | E16: 1 | F16: 9 | G16: 0 | H16: 35
A17: 3,5-16 ton | B17: TRISTAR | C17: 22 | D17: 5 | E17: 0 | F17: 5 | G17: 0 | H17: 32
A18: 3,5-16 ton | B18: MITSUBISHI | C18: 5 | D18: 10 | E18: 0 | F18: 9 | G18: 0 | H18: 24
A19: 3,5-16 ton | B19: HANOMAG/HANOMAG HENSCHEL | C19: 4 | D19: 6 | E19: 0 | F19: 2 | G19: 0 | H19: 12
A20: 3,5-16 ton | B20: Beskrivning saknas | C20: 11 | D20: 0 | E20: 0 | F20: 0 | G20: 0 | H20: 11
A21: 3,5-16 ton | B21: MAZDA | C21: 1 | D21: 7 | E21: 0 | F21: 3 | G21: 0 | H21: 11
A22: 3,5-16 ton | B22: HÄGGLUNDS | C22: 5 | D22: 0 | E22: 0 | F22: 5 | G22: 0 | H22: 10
A23: 3,5-16 ton | B23: ISUZU | C23: 3 | D23: 4 | E23: 0 | F23: 2 | G23: 0 | H23: 9
A24: 3,5-16 ton | B24: NISSAN | C24: 2 | D24: 2 | E24: 0 | F24: 4 | G24: 0 | H24: 8
A25: 3,5-16 ton | B25: OPEL | C25: 3 | D25: 2 | E25: 0 | F25: 1 | G25: 0 | H25: 6
A26: 3,5-16 ton | B26: INTERNATIONAL | C26: 4 | D26: 0 | E26: 0 | F26: 1 | G26: 0 | H26: 5
A27: 3,5-16 ton | B27: JEEP | C27: 4 | D27: 0 | E27: 0 | F27: 0 | G27: 0 | H27: 4
A28: 3,5-16 ton | B28: TOYOTA | C28: 1 | D28: 3 | E28: 0 | F28: 0 | G28: 0 | H28: 4
A29: 3,5-16 ton | B29: BEDFORD | C29: 1 | D29: 2 | E29: 0 | F29: 0 | G29: 0 | H29: 3
A30: 3,5-16 ton | B30: K-SETRA | C30: 0 | D30: 3 | E30: 0 | F30: 0 | G30: 0 | H30: 3
A31: 3,5-16 ton | B31: STEYR/STEYR-PUCH | C31: 2 | D31: 0 | E31: 0 | F31: 1 | G31: 0 | H31: 3
A32: 3,5-16 ton | B32: PEUGEOT | C32: 2 | D32: 0 | E32: 0 | F32: 0 | G32: 0 | H32: 2
A33: 3,5-16 ton | B33: SAAB | C33: 1 | D33: 1 | E33: 0 | F33: 0 | G33: 0 | H33: 2
A34: 3,5-16 ton | B34: BMC | C34: 1 | D34: 0 | E34: 0 | F34: 0 | G34: 0 | H34: 1
A35: 3,5-16 ton | B35: BORGWARD | C35: 1 | D35: 0 | E35: 0 | F35: 0 | G35: 0 | H35: 1
A36: 3,5-16 ton | B36: BÜSSING | C36: 0 | D36: 0 | E36: 0 | F36: 1 | G36: 0 | H36: 1
A37: 3,5-16 ton | B37: CITROEN | C37: 1 | D37: 0 | E37: 0 | F37: 0 | G37: 0 | H37: 1
A38: 3,5-16 ton | B38: FLEETWOOD | C38: 1 | D38: 0 | E38: 0 | F38: 0 | G38: 0 | H38: 1
A39: 3,5-16 ton | B39: FRANKIA | C39: 1 | D39: 0 | E39: 0 | F39: 0 | G39: 0 | H39: 1
A40: 3,5-16 ton | B40: HOBBY | C40: 0 | D40: 1 | E40: 0 | F40: 0 | G40: 0 | H40: 1
A41: 3,5-16 ton | B41: HUMMER | C41: 0 | D41: 1 | E41: 0 | F41: 0 | G41: 0 | H41: 1
A42: 3,5-16 ton | B42: JOHNSON | C42: 1 | D42: 0 | E42: 0 | F42: 0 | G42: 0 | H42: 1
A43: 3,5-16 ton | B43: MAGIRUS/MAGIRUS-DEUTTZ | C43: 1 | D43: 0 | E43: 0 | F43: 0 | G43: 0 | H43: 1
A44: 3,5-16 ton | B44: NEOPLAN | C44: 0 | D44: 1 | E44: 0 | F44: 0 | G44: 0 | H44: 1
A45: 3,5-16 ton | B45: OMNINOVA | C45: 0 | D45: 1 | E45: 0 | F45: 0 | G45: 0 | H45: 1
A46: 3,5-16 ton | B46: TRAILERGRUPPEN/TGAB | C46: 0 | D46: 0 | E46: 0 | F46: 1 | G46: 0 | H46: 1
A47: Tunga samtliga | B47: VOLVO | C47: 4111 | D47: 5335 | E47: 38 | F47: 2617 | G47: 0 | H47: 12101
A48: Tunga samtliga | B48: SCANIA/SCANIA-VABIS | C48: 3863 | D48: 5377 | E48: 116 | F48: 2205 | G48: 0 | H48: 11561
A49: Tunga samtliga | B49: MERCEDES-BENZ | C49: 1140 | D49: 1175 | E49: 12 | F49: 785 | G49: 0 | H49: 3112
A50: Tunga samtliga | B50: MAN | C50: 218 | D50: 207 | E50: 1 | F50: 157 | G50: 0 | H50: 583
A51: Tunga samtliga | B51: IVECO | C51: 165 | D51: 202 | E51: 1 | F51: 114 | G51: 0 | H51: 482
A52: Tunga samtliga | B52: DAF | C52: 133 | D52: 194 | E52: 2 | F52: 74 | G52: 0 | H52: 403
A53: Tunga samtliga | B53: CHEVROLET | C53: 122 | D53: 128 | E53: 0 | F53: 64 | G53: 0 | H53: 314
A54: Tunga samtliga | B54: VW | C54: 106 | D54: 99 | E54: 1 | F54: 41 | G54: 0 | H54: 247
A55: Tunga samtliga | B55: FORD | C55: 69 | D55: 88 | E55: 2 | F55: 36 | G55: 0 | H55: 195
A56: Tunga samtliga | B56: DODGE /DODGE-FARGO/FARG0 | C56: 72 | D56: 66 | E56: 1 | F56: 38 | G56: 0 | H56: 177
A57: Tunga samtliga | B57: RENAULT | C57: 39 | D57: 64 | E57: 0 | F57: 19 | G57: 0 | H57: 122
A58: Tunga samtliga | B58: ÖVRIGA | C58: 44 | D58: 22 | E58: 0 | F58: 19 | G58: 0 | H58: 85
A59: Tunga samtliga | B59: UNIMOG | C59: 32 | D59: 9 | E59: 0 | F59: 9 | G59: 0 | H59: 50
A60: Tunga samtliga | B60: GMC | C60: 15 | D60: 19 | E60: 0 | F60: 6 | G60: 0 | H60: 40
A61: Tunga samtliga | B61: FIAT | C61: 23 | D61: 8 | E61: 0 | F61: 7 | G61: 0 | H61: 38
A62: Tunga samtliga | B62: TRISTAR | C62: 22 | D62: 5 | E62: 0 | F62: 5 | G62: 0 | H62: 32
A63: Tunga samtliga | B63: MITSUBISHI | C63: 5 | D63: 10 | E63: 0 | F63: 9 | G63: 0 | H63: 24
A64: Tunga samtliga | B64: Beskrivning saknas | C64: 12 | D64: 5 | E64: 0 | F64: 0 | G64: 2 | H64: 19
A65: Tunga samtliga | B65: HANOMAG/HANOMAG HENSCHEL | C65: 4 | D65: 6 | E65: 0 | F65: 2 | G65: 0 | H65: 12
A66: Tunga samtliga | B66: MAZDA | C66: 1 | D66: 7 | E66: 0 | F66: 3 | G66: 0 | H66: 11
A67: Tunga samtliga | B67: HÄGGLUNDS | C67: 5 | D67: 0 | E67: 0 | F67: 5 | G67: 0 | H67: 10
A68: Tunga samtliga | B68: ISUZU | C68: 3 | D68: 4 | E68: 0 | F68: 2 | G68: 0 | H68: 9
A69: Tunga samtliga | B69: NISSAN | C69: 2 | D69: 2 | E69: 0 | F69: 4 | G69: 0 | H69: 8
A70: Tunga samtliga | B70: OPEL | C70: 3 | D70: 2 | E70: 0 | F70: 1 | G70: 0 | H70: 6
A71: Tunga samtliga | B71: INTERNATIONAL | C71: 4 | D71: 0 | E71: 0 | F71: 1 | G71: 0 | H71: 5
A72: Tunga samtliga | B72: JEEP | C72: 4 | D72: 0 | E72: 0 | F72: 0 | G72: 0 | H72: 4
A73: Tunga samtliga | B73: NEOPLAN | C73: 0 | D73: 3 | E73: 0 | F73: 1 | G73: 0 | H73: 4
A74: Tunga samtliga | B74: TOYOTA | C74: 1 | D74: 3 | E74: 0 | F74: 0 | G74: 0 | H74: 4
A75: Tunga samtliga | B75: BEDFORD | C75: 1 | D75: 2 | E75: 0 | F75: 0 | G75: 0 | H75: 3
A76: Tunga samtliga | B76: K-SETRA | C76: 0 | D76: 3 | E76: 0 | F76: 0 | G76: 0 | H76: 3
A77: Tunga samtliga | B77: STEYR/STEYR-PUCH | C77: 2 | D77: 0 | E77: 0 | F77: 1 | G77: 0 | H77: 3
A78: Tunga samtliga | B78: PEUGEOT | C78: 2 | D78: 0 | E78: 0 | F78: 0 | G78: 0 | H78: 2
A79: Tunga samtliga | B79: SAAB | C79: 1 | D79: 1 | E79: 0 | F79: 0 | G79: 0 | H79: 2
A80: Tunga samtliga | B80: WILLYS/WILLYS-OVERLAND | C80: 1 | D80: 0 | E80: 0 | F80: 1 | G80: 0 | H80: 2
A81: Tunga samtliga | B81: BMC | C81: 1 | D81: 0 | E81: 0 | F81: 0 | G81: 0 | H81: 1
A82: Tunga samtliga | B82: BORGWARD | C82: 1 | D82: 0 | E82: 0 | F82: 0 | G82: 0 | H82: 1
A83: Tunga samtliga | B83: BÜSSING | C83: 0 | D83: 0 | E83: 0 | F83: 1 | G83: 0 | H83: 1
A84: Tunga samtliga | B84: CITROEN | C84: 1 | D84: 0 | E84: 0 | F84: 0 | G84: 0 | H84: 1
A85: Tunga samtliga | B85: FLEETWOOD | C85: 1 | D85: 0 | E85: 0 | F85: 0 | G85: 0 | H85: 1
A86: Tunga samtliga | B86: FRANKIA | C86: 1 | D86: 0 | E86: 0 | F86: 0 | G86: 0 | H86: 1
A87: Tunga samtliga | B87: HOBBY | C87: 0 | D87: 1 | E87: 0 | F87: 0 | G87: 0 | H87: 1
A88: Tunga samtliga | B88: HUMMER | C88: 0 | D88: 1 | E88: 0 | F88: 0 | G88: 0 | H88: 1
A89: Tunga samtliga | B89: JOHNSON | C89: 1 | D89: 0 | E89: 0 | F89: 0 | G89: 0 | H89: 1
A90: Tunga samtliga | B90: MAGIRUS/MAGIRUS-DEUTTZ | C90: 1 | D90: 0 | E90: 0 | F90: 0 | G90: 0 | H90: 1
A91: Tunga samtliga | B91: OMNINOVA | C91: 0 | D91: 1 | E91: 0 | F91: 0 | G91: 0 | H91: 1
A92: Tunga samtliga | B92: TRAILERGRUPPEN/TGAB | C92: 0 | D92: 0 | E92: 0 | F92: 1 | G92: 0 | H92: 1
A93: > 16000 | B93: SCANIA/SCANIA-VABIS | C93: 3564 | D93: 5258 | E93: 114 | F93: 2094 | G93: 0 | H93: 11030
A94: > 16000 | B94: VOLVO | C94: 3048 | D94: 4314 | E94: 27 | F94: 1997 | G94: 0 | H94: 9386
A95: > 16000 | B95: MERCEDES-BENZ | C95: 461 | D95: 439 | E95: 3 | F95: 327 | G95: 0 | H95: 1230
A96: > 16000 | B96: MAN | C96: 188 | D96: 176 | E96: 0 | F96: 125 | G96: 0 | H96: 489
A97: > 16000 | B97: DAF | C97: 127 | D97: 175 | E97: 1 | F97: 65 | G97: 0 | H97: 368
A98: > 16000 | B98: ÖVRIGA | C98: 18 | D98: 6 | E98: 0 | F98: 6 | G98: 0 | H98: 30
A99: > 16000 | B99: IVECO | C99: 6 | D99: 13 | E99: 0 | F99: 6 | G99: 0 | H99: 25
A100: > 16000 | B100: RENAULT | C100: 2 | D100: 8 | E100: 0 | F100: 1 | G100: 0 | H100: 11
A101: > 16000 | B101: Beskrivning saknas | C101: 1 | D101: 5 | E101: 0 | F101: 0 | G101: 2 | H101: 8
A102: > 16000 | B102: NEOPLAN | C102: 0 | D102: 2 | E102: 0 | F102: 1 | G102: 0 | H102: 3
A103: > 16000 | B103: WILLYS/WILLYS-OVERLAND | C103: 1 | D103: 0 | E103: 0 | F103: 1 | G103: 0 | H103: 2
A104: > 16000 | B104: FORD | C104: 1 | D104: 0 | E104: 0 | F104: 0 | G104: 0 | H104: 1
A105: 3,5-16 ton | B105: BEDFORD | C105: 0 | D105: 1 | E105: 0 | F105: 0 | G105: 0 | H105: 1
A106: 3,5-16 ton | B106: CHEVROLET | C106: 12 | D106: 10 | E106: 0 | F106: 1 | G106: 0 | H106: 23
A107: 3,5-16 ton | B107: CITROEN | C107: 1 | D107: 0 | E107: 0 | F107: 0 | G107: 0 | H107: 1
A108: 3,5-16 ton | B108: DAF | C108: 1 | D108: 2 | E108: 0 | F108: 0 | G108: 0 | H108: 3
A109: 3,5-16 ton | B109: DODGE /DODGE-FARGO/FARG0 | C109: 16 | D109: 6 | E109: 0 | F109: 3 | G109: 0 | H109: 25
A110: 3,5-16 ton | B110: FIAT | C110: 1 | D110: 0 | E110: 0 | F110: 1 | G110: 0 | H110: 2
A111: 3,5-16 ton | B111: FORD | C111: 8 | D111: 6 | E111: 0 | F111: 4 | G111: 0 | H111: 18
A112: 3,5-16 ton | B112: GMC | C112: 1 | D112: 3 | E112: 0 | F112: 1 | G112: 0 | H112: 5
A113: 3,5-16 ton | B113: HÄGGLUNDS | C113: 0 | D113: 0 | E113: 0 | F113: 1 | G113: 0 | H113: 1
A114: 3,5-16 ton | B114: INTERNATIONAL | C114: 0 | D114: 1 | E114: 0 | F114: 0 | G114: 0 | H114: 1
A115: 3,5-16 ton | B115: ISUZU | C115: 1 | D115: 0 | E115: 0 | F115: 0 | G115: 0 | H115: 1
A116: 3,5-16 ton | B116: IVECO | C116: 30 | D116: 56 | E116: 2 | F116: 29 | G116: 0 | H116: 117
A117: 3,5-16 ton | B117: JEEP | C117: 1 | D117: 0 | E117: 0 | F117: 0 | G117: 0 | H117: 1
A118: 3,5-16 ton | B118: MAN | C118: 8 | D118: 2 | E118: 0 | F118: 3 | G118: 0 | H118: 13
A119: 3,5-16 ton | B119: MAZDA | C119: 0 | D119: 1 | E119: 0 | F119: 1 | G119: 0 | H119: 2
A120: 3,5-16 ton | B120: MERCEDES-BENZ | C120: 109 | D120: 107 | E120: 0 | F120: 53 | G120: 0 | H120: 269
A121: 3,5-16 ton | B121: MITSUBISHI | C121: 3 | D121: 2 | E121: 0 | F121: 1 | G121: 0 | H121: 6
A122: 3,5-16 ton | B122: NISSAN | C122: 2 | D122: 1 | E122: 0 | F122: 0 | G122: 0 | H122: 3
A123: 3,5-16 ton | B123: RENAULT | C123: 5 | D123: 4 | E123: 0 | F123: 5 | G123: 0 | H123: 14
A124: 3,5-16 ton | B124: SCANIA/SCANIA-VABIS | C124: 22 | D124: 6 | E124: 0 | F124: 2 | G124: 0 | H124: 30
A125: 3,5-16 ton | B125: TRISTAR | C125: 2 | D125: 3 | E125: 0 | F125: 0 | G125: 0 | H125: 5
A126: 3,5-16 ton | B126: UNIMOG | C126: 4 | D126: 4 | E126: 0 | F126: 2 | G126: 0 | H126: 10
A127: 3,5-16 ton | B127: VOLVO | C127: 146 | D127: 161 | E127: 2 | F127: 99 | G127: 0 | H127: 408
A128: 3,5-16 ton | B128: VW | C128: 17 | D128: 9 | E128: 0 | F128: 5 | G128: 0 | H128: 31
A129: 3,5-16 ton | B129: ÖVRIGA | C129: 1 | D129: 1 | E129: 0 | F129: 0 | G129: 0 | H129: 2
A130: Tunga samtliga | B130: BEDFORD | C130: 0 | D130: 1 | E130: 0 | F130: 0 | G130: 0 | H130: 1
A131: Tunga samtliga | B131: Beskrivning saknas | C131: 1 | D131: 0 | E131: 0 | F131: 0 | G131: 0 | H131: 1
A132: Tunga samtliga | B132: CHEVROLET | C132: 12 | D132: 10 | E132: 0 | F132: 1 | G132: 0 | H132: 23
A133: Tunga samtliga | B133: CITROEN | C133: 1 | D133: 0 | E133: 0 | F133: 0 | G133: 0 | H133: 1
A134: Tunga samtliga | B134: DAF | C134: 15 | D134: 21 | E134: 0 | F134: 14 | G134: 0 | H134: 50
A135: Tunga samtliga | B135: DODGE /DODGE-FARGO/FARG0 | C135: 16 | D135: 6 | E135: 0 | F135: 3 | G135: 0 | H135: 25
A136: Tunga samtliga | B136: FIAT | C136: 1 | D136: 0 | E136: 0 | F136: 1 | G136: 0 | H136: 2
A137: Tunga samtliga | B137: FORD | C137: 8 | D137: 6 | E137: 0 | F137: 4 | G137: 0 | H137: 18
A138: Tunga samtliga | B138: GMC | C138: 1 | D138: 3 | E138: 0 | F138: 1 | G138: 0 | H138: 5
A139: Tunga samtliga | B139: HÄGGLUNDS | C139: 0 | D139: 0 | E139: 0 | F139: 1 | G139: 0 | H139: 1
A140: Tunga samtliga | B140: INTERNATIONAL | C140: 0 | D140: 1 | E140: 0 | F140: 0 | G140: 0 | H140: 1
A141: Tunga samtliga | B141: ISUZU | C141: 1 | D141: 0 | E141: 0 | F141: 0 | G141: 0 | H141: 1
A142: Tunga samtliga | B142: IVECO | C142: 32 | D142: 58 | E142: 2 | F142: 29 | G142: 0 | H142: 121
A143: Tunga samtliga | B143: JEEP | C143: 1 | D143: 0 | E143: 0 | F143: 0 | G143: 0 | H143: 1
A144: Tunga samtliga | B144: MAN | C144: 46 | D144: 53 | E144: 0 | F144: 19 | G144: 0 | H144: 118
A145: Tunga samtliga | B145: MAZDA | C145: 0 | D145: 1 | E145: 0 | F145: 1 | G145: 0 | H145: 2
A146: Tunga samtliga | B146: MERCEDES-BENZ | C146: 198 | D146: 174 | E146: 1 | F146: 98 | G146: 0 | H146: 471
A147: Tunga samtliga | B147: MITSUBISHI | C147: 3 | D147: 2 | E147: 0 | F147: 1 | G147: 0 | H147: 6
A148: Tunga samtliga | B148: NISSAN | C148: 2 | D148: 1 | E148: 0 | F148: 0 | G148: 0 | H148: 3
A149: Tunga samtliga | B149: RENAULT | C149: 5 | D149: 5 | E149: 0 | F149: 5 | G149: 0 | H149: 15
A150: Tunga samtliga | B150: SCANIA/SCANIA-VABIS | C150: 676 | D150: 830 | E150: 14 | F150: 290 | G150: 0 | H150: 1810
A151: Tunga samtliga | B151: TRISTAR | C151: 2 | D151: 3 | E151: 0 | F151: 0 | G151: 0 | H151: 5
A152: Tunga samtliga | B152: UNIMOG | C152: 4 | D152: 4 | E152: 0 | F152: 2 | G152: 0 | H152: 10
A153: Tunga samtliga | B153: VOLVO | C153: 752 | D153: 865 | E153: 11 | F153: 409 | G153: 0 | H153: 2037
A154: Tunga samtliga | B154: VW | C154: 17 | D154: 9 | E154: 0 | F154: 5 | G154: 0 | H154: 31
A155: Tunga samtliga | B155: ÖVRIGA | C155: 3 | D155: 2 | E155: 0 | F155: 3 | G155: 0 | H155: 8
A156: > 16000 | B156: Beskrivning saknas | C156: 1 | D156: 0 | E156: 0 | F156: 0 | G156: 0 | H156: 1
A157: > 16000 | B157: DAF | C157: 14 | D157: 19 | E157: 0 | F157: 14 | G157: 0 | H157: 47
A158: > 16000 | B158: IVECO | C158: 2 | D158: 2 | E158: 0 | F158: 0 | G158: 0 | H158: 4
A159: > 16000 | B159: MAN | C159: 38 | D159: 51 | E159: 0 | F159: 16 | G159: 0 | H159: 105
A160: > 16000 | B160: MERCEDES-BENZ | C160: 89 | D160: 67 | E160: 1 | F160: 45 | G160: 0 | H160: 202
A161: > 16000 | B161: RENAULT | C161: 0 | D161: 1 | E161: 0 | F161: 0 | G161: 0 | H161: 1
A162: > 16000 | B162: SCANIA/SCANIA-VABIS | C162: 654 | D162: 824 | E162: 14 | F162: 288 | G162: 0 | H162: 1780
A163: > 16000 | B163: VOLVO | C163: 606 | D163: 704 | E163: 9 | F163: 310 | G163: 0 | H163: 1629
A164: > 16000 | B164: ÖVRIGA | C164: 2 | D164: 1 | E164: 0 | F164: 3 | G164: 0 | H164: 6

Sheet BE (hidden)
A1: Viktklass | B1: Stn | C1: Län | D1: 0 Godkänd | E1: 2 Underkänd Med Efterk | F1: 3 Körförbud | G1: Utfall
A2: 3,5-16 ton | B2: 0112 Arvidsjaur | C2: 25 Norrbottens län | D2: 12 | E2: 2 | F2: 0 | G2: 14
A3: 3,5-16 ton | B3: 0114 Gällivare | C3: 25 Norrbottens län | D3: 21 | E3: 8 | F3: 0 | G3: 29
A4: 3,5-16 ton | B4: 0115 Haparanda | C4: 25 Norrbottens län | D4: 8 | E4: 2 | F4: 0 | G4: 10
A5: 3,5-16 ton | B5: 0116 Jokkmokk | C5: 25 Norrbottens län | D5: 3 | E5: 0 | F5: 0 | G5: 3
A6: 3,5-16 ton | B6: 0121 Pajala | C6: 25 Norrbottens län | D6: 3 | E6: 0 | F6: 0 | G6: 3
A7: 3,5-16 ton | B7: 0123 Älvsbyn | C7: 25 Norrbottens län | D7: 7 | E7: 4 | F7: 0 | G7: 11
A8: 3,5-16 ton | B8: 0125 Övertorneå | C8: 25 Norrbottens län | D8: 20 | E8: 3 | F8: 0 | G8: 23
A9: 3,5-16 ton | B9: 0211 Funäsdalen | C9: 23 Jämtlands län | D9: 1 | E9: 0 | F9: 0 | G9: 1
A10: 3,5-16 ton | B10: 0217 Lycksele | C10: 24 Västerbottens län | D10: 10 | E10: 3 | F10: 0 | G10: 13
A11: 3,5-16 ton | B11: 0222 Sorsele | C11: 24 Västerbottens län | D11: 2 | E11: 0 | F11: 0 | G11: 2
A12: 3,5-16 ton | B12: 0224 Strömsund | C12: 23 Jämtlands län | D12: 18 | E12: 1 | F12: 0 | G12: 19
A13: 3,5-16 ton | B13: 0225 Sundsvall-Nacksta | C13: 22 Västernorrlands län | D13: 50 | E13: 11 | F13: 0 | G13: 61
A14: 3,5-16 ton | B14: 0226 Sveg | C14: 23 Jämtlands län | D14: 7 | E14: 0 | F14: 0 | G14: 7
A15: 3,5-16 ton | B15: 0228 Tärnaby | C15: 24 Västerbottens län | D15: 1 | E15: 0 | F15: 0 | G15: 1
A16: 3,5-16 ton | B16: 0231 Ånge | C16: 22 Västernorrlands län | D16: 12 | E16: 1 | F16: 0 | G16: 13
A17: 3,5-16 ton | B17: 0234 Örnsköldsvik | C17: 22 Västernorrlands län | D17: 40 | E17: 2 | F17: 0 | G17: 42
A18: 3,5-16 ton | B18: 0237 Vilhelmina-Ekorrbacken | C18: 24 Västerbottens län | D18: 17 | E18: 1 | F18: 0 | G18: 18
A19: 3,5-16 ton | B19: 0311 Avesta | C19: 20 Dalarna län | D19: 18 | E19: 1 | F19: 0 | G19: 19
A20: 3,5-16 ton | B20: 0315 Falun | C20: 20 Dalarna län | D20: 37 | E20: 2 | F20: 0 | G20: 39
A21: 3,5-16 ton | B21: 0317 Gävle-Sörby Urfjäll | C21: 21 Gävleborgs län | D21: 70 | E21: 21 | F21: 0 | G21: 91
A22: 3,5-16 ton | B22: 0320 Ljusdal | C22: 21 Gävleborgs län | D22: 34 | E22: 3 | F22: 0 | G22: 37
A23: 3,5-16 ton | B23: 0323 Mora | C23: 20 Dalarna län | D23: 34 | E23: 8 | F23: 0 | G23: 42
A24: 3,5-16 ton | B24: 0329 Hedemora | C24: 20 Dalarna län | D24: 39 | E24: 7 | F24: 0 | G24: 46
A25: 3,5-16 ton | B25: 0415 Nacka | C25: 1 Stockholms län | D25: 37 | E25: 10 | F25: 0 | G25: 47
A26: 3,5-16 ton | B26: 0418 Sollentuna | C26: 1 Stockholms län | D26: 37 | E26: 9 | F26: 0 | G26: 46
A27: 3,5-16 ton | B27: 0423 Södertälje-Moraberg | C27: 1 Stockholms län | D27: 41 | E27: 5 | F27: 0 | G27: 46
A28: 3,5-16 ton | B28: 0427 Uppsala-Fyrislund | C28: 3 Uppsala län | D28: 39 | E28: 5 | F28: 0 | G28: 44
A29: 3,5-16 ton | B29: 0428 Östhammar | C29: 3 Uppsala län | D29: 12 | E29: 6 | F29: 0 | G29: 18
A30: 3,5-16 ton | B30: 0429 Visby | C30: 9 Gotlands län | D30: 13 | E30: 1 | F30: 0 | G30: 14
A31: 3,5-16 ton | B31: 0515 Hallsberg | C31: 18 Örebro län | D31: 30 | E31: 7 | F31: 0 | G31: 37
A32: 3,5-16 ton | B32: 0522 Strängnäs | C32: 4 Södermanlands län | D32: 24 | E32: 6 | F32: 0 | G32: 30
A33: 3,5-16 ton | B33: 0523 Västerås-Tunbytorp | C33: 19 Västmanlands län | D33: 62 | E33: 13 | F33: 0 | G33: 75
A34: 3,5-16 ton | B34: 0525 Örebro-Lillån | C34: 18 Örebro län | D34: 17 | E34: 4 | F34: 0 | G34: 21
A35: 3,5-16 ton | B35: 0535 Lindesberg | C35: 18 Örebro län | D35: 26 | E35: 2 | F35: 0 | G35: 28
A36: 3,5-16 ton | B36: 0536 Norrköping-Herstadberg | C36: 5 Östergötlands län | D36: 51 | E36: 8 | F36: 0 | G36: 59
A37: 3,5-16 ton | B37: 0538 Katrineholm-Österleden | C37: 4 Södermanlands län | D37: 13 | E37: 3 | F37: 0 | G37: 16
A38: 3,5-16 ton | B38: 0611 Arvika | C38: 17 Värmlands län | D38: 31 | E38: 1 | F38: 0 | G38: 32
A39: 3,5-16 ton | B39: 0615 Hagfors | C39: 17 Värmlands län | D39: 15 | E39: 4 | F39: 0 | G39: 19
A40: 3,5-16 ton | B40: 0620 Skara | C40: 14 Västra Götalands län | D40: 25 | E40: 3 | F40: 0 | G40: 28
A41: 3,5-16 ton | B41: 0625 Tidaholm | C41: 14 Västra Götalands län | D41: 21 | E41: 2 | F41: 0 | G41: 23
A42: 3,5-16 ton | B42: 0629 Alingsås | C42: 14 Västra Götalands län | D42: 20 | E42: 5 | F42: 0 | G42: 25
A43: 3,5-16 ton | B43: 0634 Vänersborg | C43: 14 Västra Götalands län | D43: 20 | E43: 4 | F43: 0 | G43: 24
A44: 3,5-16 ton | B44: 0713 Falkenberg | C44: 13 Hallands län | D44: 28 | E44: 6 | F44: 0 | G44: 34
A45: 3,5-16 ton | B45: 0714 Göteborg-Aröd | C45: 14 Västra Götalands län | D45: 32 | E45: 4 | F45: 0 | G45: 36
A46: 3,5-16 ton | B46: 0721 Lysekil | C46: 14 Västra Götalands län | D46: 34 | E46: 5 | F46: 0 | G46: 39
A47: 3,5-16 ton | B47: 0729 Varberg | C47: 13 Hallands län | D47: 43 | E47: 6 | F47: 0 | G47: 49
A48: 3,5-16 ton | B48: 0732 Göteborg-Torslanda | C48: 14 Västra Götalands län | D48: 13 | E48: 1 | F48: 0 | G48: 14
A49: 3,5-16 ton | B49: 0734 Kungälv | C49: 14 Västra Götalands län | D49: 1 | E49: 0 | F49: 0 | G49: 1
A50: 3,5-16 ton | B50: 0854 Jönköping-Gamla flygfältet | C50: 6 Jönköpings län | D50: 4 | E50: 0 | F50: 0 | G50: 4
A51: 3,5-16 ton | B51: 0856 Karlshamn | C51: 10 Blekinge län | D51: 15 | E51: 2 | F51: 0 | G51: 17
A52: 3,5-16 ton | B52: 0859 Markaryd | C52: 7 Kronobergs län | D52: 22 | E52: 4 | F52: 0 | G52: 26
A53: 3,5-16 ton | B53: 0861 Nässjö | C53: 6 Jönköpings län | D53: 22 | E53: 5 | F53: 0 | G53: 27
A54: 3,5-16 ton | B54: 0863 Oskarshamn | C54: 8 Kalmar län | D54: 21 | E54: 2 | F54: 0 | G54: 23
A55: 3,5-16 ton | B55: 0869 Vetlanda | C55: 6 Jönköpings län | D55: 17 | E55: 1 | F55: 0 | G55: 18
A56: 3,5-16 ton | B56: 0870 Vimmerby | C56: 8 Kalmar län | D56: 23 | E56: 0 | F56: 0 | G56: 23
A57: 3,5-16 ton | B57: 0871 Värnamo | C57: 6 Jönköpings län | D57: 22 | E57: 5 | F57: 0 | G57: 27
A58: 3,5-16 ton | B58: 0873 Växjö | C58: 7 Kronobergs län | D58: 66 | E58: 12 | F58: 0 | G58: 78
A59: 3,5-16 ton | B59: 0876 Jönköping-Torsvik | C59: 6 Jönköpings län | D59: 37 | E59: 1 | F59: 0 | G59: 38
A60: 3,5-16 ton | B60: 0951 Eslöv | C60: 12 Skåne län | D60: 30 | E60: 6 | F60: 0 | G60: 36
A61: 3,5-16 ton | B61: 0952 Helsingborg-Berga | C61: 12 Skåne län | D61: 37 | E61: 7 | F61: 0 | G61: 44
A62: 3,5-16 ton | B62: 0961 Simrishamn | C62: 12 Skåne län | D62: 15 | E62: 1 | F62: 0 | G62: 16
A63: 3,5-16 ton | B63: 0962 Skurup | C63: 12 Skåne län | D63: 2 | E63: 0 | F63: 0 | G63: 2
A64: 3,5-16 ton | B64: 0967 Helsingborg-Ättekulla | C64: 12 Skåne län | D64: 23 | E64: 4 | F64: 0 | G64: 27
A65: Tunga samtliga | B65: 0111 Arjeplog | C65: 25 Norrbottens län | D65: 1 | E65: 0 | F65: 0 | G65: 1
A66: Tunga samtliga | B66: 0112 Arvidsjaur | C66: 25 Norrbottens län | D66: 63 | E66: 6 | F66: 0 | G66: 69
A67: Tunga samtliga | B67: 0114 Gällivare | C67: 25 Norrbottens län | D67: 90 | E67: 32 | F67: 0 | G67: 122
A68: Tunga samtliga | B68: 0115 Haparanda | C68: 25 Norrbottens län | D68: 44 | E68: 14 | F68: 0 | G68: 58
A69: Tunga samtliga | B69: 0116 Jokkmokk | C69: 25 Norrbottens län | D69: 19 | E69: 3 | F69: 0 | G69: 22
A70: Tunga samtliga | B70: 0121 Pajala | C70: 25 Norrbottens län | D70: 6 | E70: 0 | F70: 0 | G70: 6
A71: Tunga samtliga | B71: 0123 Älvsbyn | C71: 25 Norrbottens län | D71: 38 | E71: 14 | F71: 0 | G71: 52
A72: Tunga samtliga | B72: 0125 Övertorneå | C72: 25 Norrbottens län | D72: 102 | E72: 28 | F72: 0 | G72: 130
A73: Tunga samtliga | B73: 0211 Funäsdalen | C73: 23 Jämtlands län | D73: 1 | E73: 0 | F73: 0 | G73: 1
A74: Tunga samtliga | B74: 0217 Lycksele | C74: 24 Västerbottens län | D74: 35 | E74: 13 | F74: 0 | G74: 48
A75: Tunga samtliga | B75: 0222 Sorsele | C75: 24 Västerbottens län | D75: 10 | E75: 0 | F75: 0 | G75: 10
A76: Tunga samtliga | B76: 0224 Strömsund | C76: 23 Jämtlands län | D76: 52 | E76: 4 | F76: 0 | G76: 56
A77: Tunga samtliga | B77: 0225 Sundsvall-Nacksta | C77: 22 Västernorrlands län | D77: 159 | E77: 44 | F77: 0 | G77: 203
A78: Tunga samtliga | B78: 0226 Sveg | C78: 23 Jämtlands län | D78: 19 | E78: 8 | F78: 0 | G78: 27
A79: Tunga samtliga | B79: 0228 Tärnaby | C79: 24 Västerbottens län | D79: 1 | E79: 0 | F79: 0 | G79: 1
A80: Tunga samtliga | B80: 0231 Ånge | C80: 22 Västernorrlands län | D80: 61 | E80: 20 | F80: 0 | G80: 81
A81: Tunga samtliga | B81: 0234 Örnsköldsvik | C81: 22 Västernorrlands län | D81: 186 | E81: 42 | F81: 0 | G81: 228
A82: Tunga samtliga | B82: 0237 Vilhelmina-Ekorrbacken | C82: 24 Västerbottens län | D82: 53 | E82: 7 | F82: 0 | G82: 60
A83: Tunga samtliga | B83: 0311 Avesta | C83: 20 Dalarna län | D83: 32 | E83: 3 | F83: 0 | G83: 35
A84: Tunga samtliga | B84: 0315 Falun | C84: 20 Dalarna län | D84: 116 | E84: 21 | F84: 0 | G84: 137
A85: Tunga samtliga | B85: 0317 Gävle-Sörby Urfjäll | C85: 21 Gävleborgs län | D85: 252 | E85: 70 | F85: 3 | G85: 325
A86: Tunga samtliga | B86: 0320 Ljusdal | C86: 21 Gävleborgs län | D86: 102 | E86: 11 | F86: 0 | G86: 113
A87: Tunga samtliga | B87: 0323 Mora | C87: 20 Dalarna län | D87: 71 | E87: 23 | F87: 0 | G87: 94
A88: Tunga samtliga | B88: 0328 Vansbro | C88: 20 Dalarna län | D88: 1 | E88: 0 | F88: 0 | G88: 1
A89: Tunga samtliga | B89: 0329 Hedemora | C89: 20 Dalarna län | D89: 108 | E89: 27 | F89: 0 | G89: 135
A90: Tunga samtliga | B90: 0415 Nacka | C90: 1 Stockholms län | D90: 110 | E90: 26 | F90: 0 | G90: 136
A91: Tunga samtliga | B91: 0418 Sollentuna | C91: 1 Stockholms län | D91: 115 | E91: 36 | F91: 1 | G91: 152
A92: Tunga samtliga | B92: 0423 Södertälje-Moraberg | C92: 1 Stockholms län | D92: 183 | E92: 48 | F92: 0 | G92: 231
A93: Tunga samtliga | B93: 0427 Uppsala-Fyrislund | C93: 3 Uppsala län | D93: 159 | E93: 30 | F93: 1 | G93: 190
A94: Tunga samtliga | B94: 0428 Östhammar | C94: 3 Uppsala län | D94: 40 | E94: 10 | F94: 0 | G94: 50
A95: Tunga samtliga | B95: 0429 Visby | C95: 9 Gotlands län | D95: 58 | E95: 11 | F95: 0 | G95: 69
A96: Tunga samtliga | B96: 0515 Hallsberg | C96: 18 Örebro län | D96: 105 | E96: 20 | F96: 0 | G96: 125
A97: Tunga samtliga | B97: 0522 Strängnäs | C97: 4 Södermanlands län | D97: 69 | E97: 29 | F97: 2 | G97: 100
A98: Tunga samtliga | B98: 0523 Västerås-Tunbytorp | C98: 19 Västmanlands län | D98: 191 | E98: 49 | F98: 0 | G98: 240
A99: Tunga samtliga | B99: 0525 Örebro-Lillån | C99: 18 Örebro län | D99: 72 | E99: 15 | F99: 0 | G99: 87
A100: Tunga samtliga | B100: 0535 Lindesberg | C100: 18 Örebro län | D100: 113 | E100: 15 | F100: 0 | G100: 128
A101: Tunga samtliga | B101: 0536 Norrköping-Herstadberg | C101: 5 Östergötlands län | D101: 163 | E101: 38 | F101: 1 | G101: 202
A102: Tunga samtliga | B102: 0538 Katrineholm-Österleden | C102: 4 Södermanlands län | D102: 45 | E102: 22 | F102: 1 | G102: 68
A103: Tunga samtliga | B103: 0611 Arvika | C103: 17 Värmlands län | D103: 86 | E103: 19 | F103: 0 | G103: 105
A104: Tunga samtliga | B104: 0615 Hagfors | C104: 17 Värmlands län | D104: 35 | E104: 12 | F104: 0 | G104: 47
A105: Tunga samtliga | B105: 0620 Skara | C105: 14 Västra Götalands län | D105: 171 | E105: 18 | F105: 1 | G105: 190
A106: Tunga samtliga | B106: 0625 Tidaholm | C106: 14 Västra Götalands län | D106: 37 | E106: 3 | F106: 0 | G106: 40
A107: Tunga samtliga | B107: 0629 Alingsås | C107: 14 Västra Götalands län | D107: 39 | E107: 10 | F107: 0 | G107: 49
A108: Tunga samtliga | B108: 0634 Vänersborg | C108: 14 Västra Götalands län | D108: 51 | E108: 17 | F108: 0 | G108: 68
A109: Tunga samtliga | B109: 0713 Falkenberg | C109: 13 Hallands län | D109: 90 | E109: 10 | F109: 0 | G109: 100
A110: Tunga samtliga | B110: 0714 Göteborg-Aröd | C110: 14 Västra Götalands län | D110: 112 | E110: 23 | F110: 1 | G110: 136
A111: Tunga samtliga | B111: 0721 Lysekil | C111: 14 Västra Götalands län | D111: 69 | E111: 16 | F111: 0 | G111: 85
A112: Tunga samtliga | B112: 0725 Strömstad | C112: 14 Västra Götalands län | D112: 1 | E112: 0 | F112: 0 | G112: 1
A113: Tunga samtliga | B113: 0729 Varberg | C113: 13 Hallands län | D113: 236 | E113: 20 | F113: 0 | G113: 256
A114: Tunga samtliga | B114: 0732 Göteborg-Torslanda | C114: 14 Västra Götalands län | D114: 65 | E114: 14 | F114: 0 | G114: 79
A115: Tunga samtliga | B115: 0734 Kungälv | C115: 14 Västra Götalands län | D115: 1 | E115: 0 | F115: 0 | G115: 1
A116: Tunga samtliga | B116: 0854 Jönköping-Gamla flygfältet | C116: 6 Jönköpings län | D116: 7 | E116: 0 | F116: 0 | G116: 7
A117: Tunga samtliga | B117: 0856 Karlshamn | C117: 10 Blekinge län | D117: 64 | E117: 8 | F117: 0 | G117: 72
A118: Tunga samtliga | B118: 0859 Markaryd | C118: 7 Kronobergs län | D118: 94 | E118: 16 | F118: 0 | G118: 110
A119: Tunga samtliga | B119: 0861 Nässjö | C119: 6 Jönköpings län | D119: 67 | E119: 23 | F119: 0 | G119: 90
A120: Tunga samtliga | B120: 0863 Oskarshamn | C120: 8 Kalmar län | D120: 53 | E120: 8 | F120: 0 | G120: 61
A121: Tunga samtliga | B121: 0869 Vetlanda | C121: 6 Jönköpings län | D121: 49 | E121: 5 | F121: 0 | G121: 54
A122: Tunga samtliga | B122: 0870 Vimmerby | C122: 8 Kalmar län | D122: 69 | E122: 7 | F122: 0 | G122: 76
A123: Tunga samtliga | B123: 0871 Värnamo | C123: 6 Jönköpings län | D123: 93 | E123: 20 | F123: 0 | G123: 113
A124: Tunga samtliga | B124: 0873 Växjö | C124: 7 Kronobergs län | D124: 240 | E124: 52 | F124: 0 | G124: 292
A125: Tunga samtliga | B125: 0876 Jönköping-Torsvik | C125: 6 Jönköpings län | D125: 236 | E125: 31 | F125: 2 | G125: 269
A126: Tunga samtliga | B126: 0951 Eslöv | C126: 12 Skåne län | D126: 106 | E126: 18 | F126: 0 | G126: 124
A127: Tunga samtliga | B127: 0952 Helsingborg-Berga | C127: 12 Skåne län | D127: 117 | E127: 28 | F127: 0 | G127: 145
A128: Tunga samtliga | B128: 0961 Simrishamn | C128: 12 Skåne län | D128: 34 | E128: 7 | F128: 0 | G128: 41
A129: Tunga samtliga | B129: 0962 Skurup | C129: 12 Skåne län | D129: 2 | E129: 0 | F129: 0 | G129: 2
A130: Tunga samtliga | B130: 0967 Helsingborg-Ättekulla | C130: 12 Skåne län | D130: 206 | E130: 46 | F130: 0 | G130: 252
A131: > 16000 | B131: 0111 Arjeplog | C131: 25 Norrbottens län | D131: 1 | E131: 0 | F131: 0 | G131: 1
A132: > 16000 | B132: 0112 Arvidsjaur | C132: 25 Norrbottens län | D132: 51 | E132: 4 | F132: 0 | G132: 55
A133: > 16000 | B133: 0114 Gällivare | C133: 25 Norrbottens län | D133: 69 | E133: 24 | F133: 0 | G133: 93
A134: > 16000 | B134: 0115 Haparanda | C134: 25 Norrbottens län | D134: 36 | E134: 12 | F134: 0 | G134: 48
A135: > 16000 | B135: 0116 Jokkmokk | C135: 25 Norrbottens län | D135: 16 | E135: 3 | F135: 0 | G135: 19
A136: > 16000 | B136: 0121 Pajala | C136: 25 Norrbottens län | D136: 3 | E136: 0 | F136: 0 | G136: 3
A137: > 16000 | B137: 0123 Älvsbyn | C137: 25 Norrbottens län | D137: 31 | E137: 10 | F137: 0 | G137: 41
A138: > 16000 | B138: 0125 Övertorneå | C138: 25 Norrbottens län | D138: 82 | E138: 25 | F138: 0 | G138: 107
A139: > 16000 | B139: 0217 Lycksele | C139: 24 Västerbottens län | D139: 25 | E139: 10 | F139: 0 | G139: 35
A140: > 16000 | B140: 0222 Sorsele | C140: 24 Västerbottens län | D140: 8 | E140: 0 | F140: 0 | G140: 8
A141: > 16000 | B141: 0224 Strömsund | C141: 23 Jämtlands län | D141: 34 | E141: 3 | F141: 0 | G141: 37
A142: > 16000 | B142: 0225 Sundsvall-Nacksta | C142: 22 Västernorrlands län | D142: 109 | E142: 33 | F142: 0 | G142: 142
A143: > 16000 | B143: 0226 Sveg | C143: 23 Jämtlands län | D143: 12 | E143: 8 | F143: 0 | G143: 20
A144: > 16000 | B144: 0231 Ånge | C144: 22 Västernorrlands län | D144: 49 | E144: 19 | F144: 0 | G144: 68
A145: > 16000 | B145: 0234 Örnsköldsvik | C145: 22 Västernorrlands län | D145: 146 | E145: 40 | F145: 0 | G145: 186
A146: > 16000 | B146: 0237 Vilhelmina-Ekorrbacken | C146: 24 Västerbottens län | D146: 36 | E146: 6 | F146: 0 | G146: 42
A147: > 16000 | B147: 0311 Avesta | C147: 20 Dalarna län | D147: 14 | E147: 2 | F147: 0 | G147: 16
A148: > 16000 | B148: 0315 Falun | C148: 20 Dalarna län | D148: 79 | E148: 19 | F148: 0 | G148: 98
A149: > 16000 | B149: 0317 Gävle-Sörby Urfjäll | C149: 21 Gävleborgs län | D149: 182 | E149: 49 | F149: 3 | G149: 234
A150: > 16000 | B150: 0320 Ljusdal | C150: 21 Gävleborgs län | D150: 68 | E150: 8 | F150: 0 | G150: 76
A151: > 16000 | B151: 0323 Mora | C151: 20 Dalarna län | D151: 37 | E151: 15 | F151: 0 | G151: 52
A152: > 16000 | B152: 0328 Vansbro | C152: 20 Dalarna län | D152: 1 | E152: 0 | F152: 0 | G152: 1
A153: > 16000 | B153: 0329 Hedemora | C153: 20 Dalarna län | D153: 69 | E153: 20 | F153: 0 | G153: 89
A154: > 16000 | B154: 0415 Nacka | C154: 1 Stockholms län | D154: 73 | E154: 16 | F154: 0 | G154: 89
A155: > 16000 | B155: 0418 Sollentuna | C155: 1 Stockholms län | D155: 78 | E155: 27 | F155: 1 | G155: 106
A156: > 16000 | B156: 0423 Södertälje-Moraberg | C156: 1 Stockholms län | D156: 142 | E156: 43 | F156: 0 | G156: 185
A157: > 16000 | B157: 0427 Uppsala-Fyrislund | C157: 3 Uppsala län | D157: 120 | E157: 25 | F157: 1 | G157: 146
A158: > 16000 | B158: 0428 Östhammar | C158: 3 Uppsala län | D158: 28 | E158: 4 | F158: 0 | G158: 32
A159: > 16000 | B159: 0429 Visby | C159: 9 Gotlands län | D159: 45 | E159: 10 | F159: 0 | G159: 55
A160: > 16000 | B160: 0515 Hallsberg | C160: 18 Örebro län | D160: 75 | E160: 13 | F160: 0 | G160: 88
A161: > 16000 | B161: 0522 Strängnäs | C161: 4 Södermanlands län | D161: 45 | E161: 23 | F161: 2 | G161: 70
A162: > 16000 | B162: 0523 Västerås-Tunbytorp | C162: 19 Västmanlands län | D162: 129 | E162: 36 | F162: 0 | G162: 165
A163: > 16000 | B163: 0525 Örebro-Lillån | C163: 18 Örebro län | D163: 55 | E163: 11 | F163: 0 | G163: 66
A164: > 16000 | B164: 0535 Lindesberg | C164: 18 Örebro län | D164: 87 | E164: 13 | F164: 0 | G164: 100
A165: > 16000 | B165: 0536 Norrköping-Herstadberg | C165: 5 Östergötlands län | D165: 112 | E165: 30 | F165: 1 | G165: 143
A166: > 16000 | B166: 0538 Katrineholm-Österleden | C166: 4 Södermanlands län | D166: 32 | E166: 19 | F166: 1 | G166: 52
A167: > 16000 | B167: 0611 Arvika | C167: 17 Värmlands län | D167: 55 | E167: 18 | F167: 0 | G167: 73
A168: > 16000 | B168: 0615 Hagfors | C168: 17 Värmlands län | D168: 20 | E168: 8 | F168: 0 | G168: 28
A169: > 16000 | B169: 0620 Skara | C169: 14 Västra Götalands län | D169: 146 | E169: 15 | F169: 1 | G169: 162
A170: > 16000 | B170: 0625 Tidaholm | C170: 14 Västra Götalands län | D170: 16 | E170: 1 | F170: 0 | G170: 17
A171: > 16000 | B171: 0629 Alingsås | C171: 14 Västra Götalands län | D171: 19 | E171: 5 | F171: 0 | G171: 24
A172: > 16000 | B172: 0634 Vänersborg | C172: 14 Västra Götalands län | D172: 31 | E172: 13 | F172: 0 | G172: 44
A173: > 16000 | B173: 0713 Falkenberg | C173: 13 Hallands län | D173: 62 | E173: 4 | F173: 0 | G173: 66
A174: > 16000 | B174: 0714 Göteborg-Aröd | C174: 14 Västra Götalands län | D174: 80 | E174: 19 | F174: 1 | G174: 100
A175: > 16000 | B175: 0721 Lysekil | C175: 14 Västra Götalands län | D175: 35 | E175: 11 | F175: 0 | G175: 46
A176: > 16000 | B176: 0725 Strömstad | C176: 14 Västra Götalands län | D176: 1 | E176: 0 | F176: 0 | G176: 1
A177: > 16000 | B177: 0729 Varberg | C177: 13 Hallands län | D177: 193 | E177: 14 | F177: 0 | G177: 207
A178: > 16000 | B178: 0732 Göteborg-Torslanda | C178: 14 Västra Götalands län | D178: 52 | E178: 13 | F178: 0 | G178: 65
A179: > 16000 | B179: 0854 Jönköping-Gamla flygfältet | C179: 6 Jönköpings län | D179: 3 | E179: 0 | F179: 0 | G179: 3
A180: > 16000 | B180: 0856 Karlshamn | C180: 10 Blekinge län | D180: 49 | E180: 6 | F180: 0 | G180: 55
A181: > 16000 | B181: 0859 Markaryd | C181: 7 Kronobergs län | D181: 72 | E181: 12 | F181: 0 | G181: 84
A182: > 16000 | B182: 0861 Nässjö | C182: 6 Jönköpings län | D182: 45 | E182: 18 | F182: 0 | G182: 63
A183: > 16000 | B183: 0863 Oskarshamn | C183: 8 Kalmar län | D183: 32 | E183: 6 | F183: 0 | G183: 38
A184: > 16000 | B184: 0869 Vetlanda | C184: 6 Jönköpings län | D184: 32 | E184: 4 | F184: 0 | G184: 36
A185: > 16000 | B185: 0870 Vimmerby | C185: 8 Kalmar län | D185: 46 | E185: 7 | F185: 0 | G185: 53
A186: > 16000 | B186: 0871 Värnamo | C186: 6 Jönköpings län | D186: 71 | E186: 15 | F186: 0 | G186: 86
A187: > 16000 | B187: 0873 Växjö | C187: 7 Kronobergs län | D187: 174 | E187: 40 | F187: 0 | G187: 214
A188: > 16000 | B188: 0876 Jönköping-Torsvik | C188: 6 Jönköpings län | D188: 199 | E188: 30 | F188: 2 | G188: 231
A189: > 16000 | B189: 0951 Eslöv | C189: 12 Skåne län | D189: 76 | E189: 12 | F189: 0 | G189: 88
A190: > 16000 | B190: 0952 Helsingborg-Berga | C190: 12 Skåne län | D190: 80 | E190: 21 | F190: 0 | G190: 101
A191: > 16000 | B191: 0961 Simrishamn | C191: 12 Skåne län | D191: 19 | E191: 6 | F191: 0 | G191: 25
A192: > 16000 | B192: 0967 Helsingborg-Ättekulla | C192: 12 Skåne län | D192: 183 | E192: 42 | F192: 0 | G192: 225
A193: 3,5-16 ton | B193: 0511 Arboga | C193: 19 Västmanlands län | D193: 3 | E193: 4 | F193: 0 | G193: 7
A194: 3,5-16 ton | B194: 0512 Eskilstuna | C194: 4 Södermanlands län | D194: 4 | E194: 0 | F194: 0 | G194: 4
A195: 3,5-16 ton | B195: 0516 Karlskoga | C195: 18 Örebro län | D195: 3 | E195: 1 | F195: 0 | G195: 4
A196: 3,5-16 ton | B196: 0526 Finspång | C196: 5 Östergötlands län | D196: 3 | E196: 0 | F196: 0 | G196: 3
A197: 3,5-16 ton | B197: 0529 Motala | C197: 5 Östergötlands län | D197: 5 | E197: 0 | F197: 0 | G197: 5
A198: 3,5-16 ton | B198: 0530 Mjölby | C198: 5 Östergötlands län | D198: 7 | E198: 1 | F198: 0 | G198: 8
A199: 3,5-16 ton | B199: 0616 Karlstad-Våxnäs | C199: 17 Värmlands län | D199: 10 | E199: 1 | F199: 0 | G199: 11
A200: 3,5-16 ton | B200: 0618 Lidköping | C200: 14 Västra Götalands län | D200: 1 | E200: 0 | F200: 0 | G200: 1
... 109 more rows

Sheet Tunga totalt (hidden)
A2: Stn | B2: Län | C2: 0 Godkänd | D2: 2 Underkänd Med Efterk | E2: 3 Körförbud | F2: 6 Underkänd Utan Efterk | G2: U Underkänd Fle | H2: Utfall
A3: 0876 Jönköping-Torsvik | B3: 6 Jönköpings län | C3: 620 | D3: 592 | E3: 4 | F3: 411 | G3: 0 | H3: 1627
A4: 0317 Gävle-Sörby Urfjäll | B4: 21 Gävleborgs län | C4: 362 | D4: 706 | E4: 9 | F4: 208 | G4: 0 | H4: 1285
A5: 0418 Sollentuna | B5: 1 Stockholms län | C5: 392 | D5: 513 | E5: 6 | F5: 342 | G5: 0 | H5: 1253
A6: 0523 Västerås-Tunbytorp | B6: 19 Västmanlands län | C6: 328 | D6: 579 | E6: 8 | F6: 260 | G6: 0 | H6: 1175
A7: 0967 Helsingborg-Ättekulla | B7: 12 Skåne län | C7: 407 | D7: 446 | E7: 1 | F7: 296 | G7: 0 | H7: 1150
A8: 0536 Norrköping-Herstadberg | B8: 5 Östergötlands län | C8: 402 | D8: 442 | E8: 6 | F8: 237 | G8: 1 | H8: 1088
A9: 0873 Växjö | B9: 7 Kronobergs län | C9: 272 | D9: 568 | E9: 3 | F9: 237 | G9: 0 | H9: 1080
A10: 0423 Södertälje-Moraberg | B10: 1 Stockholms län | C10: 309 | D10: 514 | E10: 2 | F10: 241 | G10: 0 | H10: 1066
A11: 0729 Varberg | B11: 13 Hallands län | C11: 438 | D11: 430 | E11: 5 | F11: 161 | G11: 0 | H11: 1034
A12: 0225 Sundsvall-Nacksta | B12: 22 Västernorrlands län | C12: 256 | D12: 425 | E12: 7 | F12: 181 | G12: 0 | H12: 869
A13: 0952 Helsingborg-Berga | B13: 12 Skåne län | C13: 258 | D13: 379 | E13: 0 | F13: 214 | G13: 0 | H13: 851
A14: 0234 Örnsköldsvik | B14: 22 Västernorrlands län | C14: 191 | D14: 405 | E14: 5 | F14: 176 | G14: 0 | H14: 777
A15: 0427 Uppsala-Fyrislund | B15: 3 Uppsala län | C15: 217 | D15: 316 | E15: 17 | F15: 161 | G15: 0 | H15: 711
A16: 0415 Nacka | B16: 1 Stockholms län | C16: 267 | D16: 274 | E16: 2 | F16: 119 | G16: 0 | H16: 662
A17: 0620 Skara | B17: 14 Västra Götalands län | C17: 270 | D17: 285 | E17: 5 | F17: 95 | G17: 1 | H17: 656
A18: 0429 Visby | B18: 9 Gotlands län | C18: 287 | D18: 245 | E18: 3 | F18: 120 | G18: 0 | H18: 655
A19: 0714 Göteborg-Aröd | B19: 14 Västra Götalands län | C19: 193 | D19: 236 | E19: 1 | F19: 136 | G19: 0 | H19: 566
A20: 0515 Hallsberg | B20: 18 Örebro län | C20: 227 | D20: 239 | E20: 3 | F20: 94 | G20: 0 | H20: 563
A21: 0315 Falun | B21: 20 Dalarna län | C21: 214 | D21: 217 | E21: 2 | F21: 113 | G21: 0 | H21: 546
A22: 0871 Värnamo | B22: 6 Jönköpings län | C22: 110 | D22: 277 | E22: 5 | F22: 129 | G22: 0 | H22: 521
A23: 0611 Arvika | B23: 17 Värmlands län | C23: 178 | D23: 214 | E23: 4 | F23: 119 | G23: 0 | H23: 515
A24: 0329 Hedemora | B24: 20 Dalarna län | C24: 139 | D24: 254 | E24: 9 | F24: 112 | G24: 0 | H24: 514
A25: 0870 Vimmerby | B25: 8 Kalmar län | C25: 271 | D25: 167 | E25: 6 | F25: 66 | G25: 0 | H25: 510
A26: 0869 Vetlanda | B26: 6 Jönköpings län | C26: 208 | D26: 164 | E26: 2 | F26: 132 | G26: 0 | H26: 506
A27: 0713 Falkenberg | B27: 13 Hallands län | C27: 251 | D27: 184 | E27: 3 | F27: 61 | G27: 0 | H27: 499
A28: 0323 Mora | B28: 20 Dalarna län | C28: 217 | D28: 189 | E28: 1 | F28: 78 | G28: 0 | H28: 485
A29: 0732 Göteborg-Torslanda | B29: 14 Västra Götalands län | C29: 229 | D29: 145 | E29: 2 | F29: 107 | G29: 0 | H29: 483
A30: 0863 Oskarshamn | B30: 8 Kalmar län | C30: 126 | D30: 182 | E30: 0 | F30: 96 | G30: 0 | H30: 404
A31: 0951 Eslöv | B31: 12 Skåne län | C31: 146 | D31: 169 | E31: 1 | F31: 78 | G31: 0 | H31: 394
A32: 0721 Lysekil | B32: 14 Västra Götalands län | C32: 135 | D32: 160 | E32: 2 | F32: 94 | G32: 0 | H32: 391
A33: 0861 Nässjö | B33: 6 Jönköpings län | C33: 119 | D33: 205 | E33: 3 | F33: 54 | G33: 0 | H33: 381
A34: 0320 Ljusdal | B34: 21 Gävleborgs län | C34: 114 | D34: 177 | E34: 3 | F34: 79 | G34: 0 | H34: 373
A35: 0522 Strängnäs | B35: 4 Södermanlands län | C35: 99 | D35: 193 | E35: 3 | F35: 69 | G35: 0 | H35: 364
A36: 0217 Lycksele | B36: 24 Västerbottens län | C36: 120 | D36: 171 | E36: 0 | F36: 70 | G36: 0 | H36: 361
A37: 0535 Lindesberg | B37: 18 Örebro län | C37: 120 | D37: 163 | E37: 3 | F37: 67 | G37: 0 | H37: 353
A38: 0538 Katrineholm-Österleden | B38: 4 Södermanlands län | C38: 95 | D38: 167 | E38: 3 | F38: 67 | G38: 0 | H38: 332
A39: 0525 Örebro-Lillån | B39: 18 Örebro län | C39: 114 | D39: 160 | E39: 2 | F39: 51 | G39: 0 | H39: 327
A40: 0856 Karlshamn | B40: 10 Blekinge län | C40: 120 | D40: 116 | E40: 2 | F40: 87 | G40: 0 | H40: 325
A41: 0859 Markaryd | B41: 7 Kronobergs län | C41: 135 | D41: 130 | E41: 3 | F41: 54 | G41: 0 | H41: 322
A42: 0114 Gällivare | B42: 25 Norrbottens län | C42: 73 | D42: 151 | E42: 2 | F42: 84 | G42: 0 | H42: 310
A43: 0629 Alingsås | B43: 14 Västra Götalands län | C43: 106 | D43: 145 | E43: 0 | F43: 51 | G43: 0 | H43: 302
A44: 0961 Simrishamn | B44: 12 Skåne län | C44: 115 | D44: 131 | E44: 2 | F44: 47 | G44: 0 | H44: 295
A45: 0112 Arvidsjaur | B45: 25 Norrbottens län | C45: 109 | D45: 95 | E45: 3 | F45: 83 | G45: 0 | H45: 290
A46: 0634 Vänersborg | B46: 14 Västra Götalands län | C46: 80 | D46: 154 | E46: 4 | F46: 36 | G46: 0 | H46: 274
A47: 0237 Vilhelmina-Ekorrbacken | B47: 24 Västerbottens län | C47: 89 | D47: 102 | E47: 3 | F47: 71 | G47: 0 | H47: 265
A48: 0231 Ånge | B48: 22 Västernorrlands län | C48: 92 | D48: 103 | E48: 4 | F48: 55 | G48: 0 | H48: 254
A49: 0125 Övertorneå | B49: 25 Norrbottens län | C49: 57 | D49: 129 | E49: 0 | F49: 64 | G49: 0 | H49: 250
A50: 0224 Strömsund | B50: 23 Jämtlands län | C50: 92 | D50: 92 | E50: 1 | F50: 37 | G50: 0 | H50: 222
A51: 0226 Sveg | B51: 23 Jämtlands län | C51: 64 | D51: 104 | E51: 1 | F51: 47 | G51: 0 | H51: 216
A52: 0625 Tidaholm | B52: 14 Västra Götalands län | C52: 72 | D52: 99 | E52: 2 | F52: 26 | G52: 0 | H52: 199
A53: 0123 Älvsbyn | B53: 25 Norrbottens län | C53: 72 | D53: 56 | E53: 1 | F53: 58 | G53: 0 | H53: 187
A54: 0311 Avesta | B54: 20 Dalarna län | C54: 82 | D54: 48 | E54: 1 | F54: 18 | G54: 0 | H54: 149
A55: 0428 Östhammar | B55: 3 Uppsala län | C55: 46 | D55: 69 | E55: 2 | F55: 28 | G55: 0 | H55: 145
A56: 0615 Hagfors | B56: 17 Värmlands län | C56: 39 | D56: 64 | E56: 2 | F56: 14 | G56: 0 | H56: 119
A57: 0115 Haparanda | B57: 25 Norrbottens län | C57: 30 | D57: 57 | E57: 0 | F57: 19 | G57: 0 | H57: 106
A58: 0116 Jokkmokk | B58: 25 Norrbottens län | C58: 29 | D58: 23 | E58: 0 | F58: 15 | G58: 0 | H58: 67
A59: 0222 Sorsele | B59: 24 Västerbottens län | C59: 23 | D59: 18 | E59: 0 | F59: 2 | G59: 0 | H59: 43
A60: 0854 Jönköping-Gamla flygfältet | B60: 6 Jönköpings län | C60: 4 | D60: 11 | E60: 0 | F60: 1 | G60: 0 | H60: 16
A61: 0121 Pajala | B61: 25 Norrbottens län | C61: 1 | D61: 0 | E61: 0 | F61: 0 | G61: 0 | H61: 1
A62: 0228 Tärnaby | B62: 24 Västerbottens län | C62: 1 | D62: 0 | E62: 0 | F62: 0 | G62: 0 | H62: 1
A63: 0511 Arboga | B63: 19 Västmanlands län | C63: 33 | D63: 69 | E63: 1 | F63: 15 | G63: 0 | H63: 118
A64: 0512 Eskilstuna | B64: 4 Södermanlands län | C64: 26 | D64: 52 | E64: 0 | F64: 17 | G64: 0 | H64: 95
A65: 0516 Karlskoga | B65: 18 Örebro län | C65: 10 | D65: 24 | E65: 1 | F65: 11 | G65: 0 | H65: 46
A66: 0526 Finspång | B66: 5 Östergötlands län | C66: 13 | D66: 21 | E66: 0 | F66: 4 | G66: 0 | H66: 38
A67: 0529 Motala | B67: 5 Östergötlands län | C67: 29 | D67: 33 | E67: 1 | F67: 11 | G67: 0 | H67: 74
A68: 0530 Mjölby | B68: 5 Östergötlands län | C68: 26 | D68: 24 | E68: 0 | F68: 12 | G68: 0 | H68: 62
A69: 0533 Åtvidaberg | B69: 5 Östergötlands län | C69: 5 | D69: 8 | E69: 0 | F69: 1 | G69: 0 | H69: 14
A70: 0613 Falköping | B70: 14 Västra Götalands län | C70: 42 | D70: 42 | E70: 1 | F70: 19 | G70: 0 | H70: 104
A71: 0616 Karlstad-Våxnäs | B71: 17 Värmlands län | C71: 70 | D71: 82 | E71: 3 | F71: 51 | G71: 0 | H71: 206
A72: 0618 Lidköping | B72: 14 Västra Götalands län | C72: 23 | D72: 18 | E72: 0 | F72: 8 | G72: 0 | H72: 49
A73: 0627 Vara | B73: 14 Västra Götalands län | C73: 34 | D73: 40 | E73: 3 | F73: 18 | G73: 0 | H73: 95
A74: 0630 Borås-Ramnaslätt | B74: 14 Västra Götalands län | C74: 67 | D74: 107 | E74: 3 | F74: 40 | G74: 0 | H74: 217
A75: 0631 Kinna | B75: 14 Västra Götalands län | C75: 28 | D75: 23 | E75: 0 | F75: 19 | G75: 0 | H75: 70
A76: 0632 Trollhättan | B76: 14 Västra Götalands län | C76: 48 | D76: 47 | E76: 2 | F76: 15 | G76: 0 | H76: 112
A77: 0715 Göteborg-Sisjön | B77: 14 Västra Götalands län | C77: 29 | D77: 26 | E77: 0 | F77: 22 | G77: 0 | H77: 77
A78: 0716 Göteborg-Tagene | B78: 14 Västra Götalands län | C78: 96 | D78: 135 | E78: 2 | F78: 67 | G78: 0 | H78: 300
A79: 0717 Halmstad-Sannarp | B79: 13 Hallands län | C79: 99 | D79: 99 | E79: 1 | F79: 38 | G79: 0 | H79: 237
A80: 0719 Kungsbacka | B80: 13 Hallands län | C80: 37 | D80: 17 | E80: 0 | F80: 12 | G80: 0 | H80: 66
A81: 0722 Mölndal | B81: 14 Västra Götalands län | C81: 79 | D81: 78 | E81: 1 | F81: 42 | G81: 0 | H81: 200
A82: 0723 Partille | B82: 14 Västra Götalands län | C82: 47 | D82: 64 | E82: 1 | F82: 18 | G82: 0 | H82: 130
A83: 0724 Stenungsund | B83: 14 Västra Götalands län | C83: 44 | D83: 75 | E83: 2 | F83: 30 | G83: 0 | H83: 151
A84: 0727 Uddevalla | B84: 14 Västra Götalands län | C84: 80 | D84: 78 | E84: 0 | F84: 35 | G84: 0 | H84: 193
A85: 0730 Ängelholm | B85: 12 Skåne län | C85: 73 | D85: 77 | E85: 0 | F85: 49 | G85: 0 | H85: 199
A86: 0851 Borgholm | B86: 8 Kalmar län | C86: 5 | D86: 5 | E86: 0 | F86: 1 | G86: 0 | H86: 11
A87: 0853 Gislaved | B87: 6 Jönköpings län | C87: 16 | D87: 27 | E87: 0 | F87: 14 | G87: 0 | H87: 57
A88: 0860 Nybro | B88: 8 Kalmar län | C88: 20 | D88: 44 | E88: 0 | F88: 17 | G88: 0 | H88: 81
A89: 0862 Olofström | B89: 10 Blekinge län | C89: 18 | D89: 20 | E89: 1 | F89: 7 | G89: 0 | H89: 46
A90: 0866 Sölvesborg | B90: 10 Blekinge län | C90: 9 | D90: 24 | E90: 0 | F90: 6 | G90: 0 | H90: 39
A91: 0868 Tranås | B91: 6 Jönköpings län | C91: 11 | D91: 37 | E91: 0 | F91: 18 | G91: 0 | H91: 66
A92: 0872 Västervik | B92: 8 Kalmar län | C92: 22 | D92: 17 | E92: 0 | F92: 7 | G92: 0 | H92: 46
A93: 0875 Älmhult | B93: 7 Kronobergs län | C93: 13 | D93: 20 | E93: 0 | F93: 7 | G93: 0 | H93: 40
A94: 0953 Hässleholm | B94: 12 Skåne län | C94: 68 | D94: 80 | E94: 0 | F94: 21 | G94: 0 | H94: 169
A95: 0954 Hörby | B95: 12 Skåne län | C95: 0 | D95: 3 | E95: 0 | F95: 0 | G95: 0 | H95: 3
A96: 0955 Klippan | B96: 12 Skåne län | C96: 56 | D96: 45 | E96: 0 | F96: 30 | G96: 0 | H96: 131
A97: 0956 Kristianstad-Hammar | B97: 12 Skåne län | C97: 125 | D97: 83 | E97: 0 | F97: 32 | G97: 0 | H97: 240
A98: 0957 Landskrona | B98: 12 Skåne län | C98: 19 | D98: 28 | E98: 1 | F98: 12 | G98: 0 | H98: 60
A99: 0960 Malmö-Valdemarsro | B99: 12 Skåne län | C99: 183 | D99: 229 | E99: 2 | F99: 116 | G99: 0 | H99: 530
A100: 0963 Trelleborg | B100: 12 Skåne län | C100: 59 | D100: 19 | E100: 0 | F100: 14 | G100: 0 | H100: 92
A101: 0964 Ystad | B101: 12 Skåne län | C101: 94 | D101: 45 | E101: 0 | F101: 10 | G101: 0 | H101: 149
A102: 0968 Lomma | B102: 12 Skåne län | C102: 41 | D102: 90 | E102: 2 | F102: 21 | G102: 0 | H102: 154
